Workbook

Sheet Obsah
A1: Revízia výdavkov na dotácie
A2: Zdrojové dáta pre grafy a tabuľky v záverečnej správe
A5: Grafy
A6: Číslo | B6: Názov | L6: Poradie
A7: 1 | B7: Graf 1: Subvencie verejnej správy podľa poskytovateľa vo funkčnom členení (COFOG), 2015-2019 , mil. eur | L7: Graf 1
A8: 2 | B8: Graf 2: Výdavky na subvencie štátnej správy , % HDP | L8: Graf 2
A9: 3 | B9: Graf 3: Daňové výdavky (% HDP, 2020) | L9: Graf 3
A10: 4 | B10: Graf 4: Transfery VS, daňové výdavky a vybrané oblasti revízie (modrou) (priemer 2019-2021, mil. eur) | L10: Graf 4
A11: 5 | B11: Graf 5: Výdavky na subvencie, vybrané transfery a daňové výdavky podľa oblastí (mil. eur, 2019 - 2021) | L11: Graf 5
A12: 6 | B12: Graf 6: Podiel OZE na spotrebe energie v SR | L12: Graf 6
A13: 7 | B13: Graf 7: Emisná intenzita výroby elektriny (gCO2/kWh) | L13: Graf 7
A14: 8 | B14: Graf 8: Vývoj doplatkov po jednotlivých rokoch (mil. eur) | L14: Graf 8
A15: 9 | B15: Graf 9: Vývoj úrovne tarify za prevádzkovanie systému, základná sadzba (€ / MWh) | L15: Graf 9
A16: 10 | B16: Graf 10: Výška dotácie v priemere na 1 dotovanú MWh elektriny z OZE v EÚ, 2018 a 2019 (eur/MWh) | L16: Graf 10
A17: 11 | B17: Graf 11: Investičné náklady na elektrárne (€/kW). Body predstavujú jednotlivé zariadenia, čiarky sú priemer. | L17: Graf 11
A18: 12 | B18: Graf 12: Náklady na výrobu, životný cyklus (€/MWh). Body - jednotlivé zariadenia, čiarky - priemer. | L18: Graf 12
A19: 13 | B19: Graf 13: Dotácie na podporu výroby elektriny z uhlia (ľavá os, mil. eur), vyrobená energia (pravá os, TWh) | L19: Graf 13
A20: 14 | B20: Graf 14: Histogram poberateľov kompenzácie TPS podľa výšky kompenzácie (2021) | L20: Graf 14
A21: 15 | B21: Graf 15: Vývoj TPS podľa pásiem (v €/MWh). | L21: Graf 15
A22: 16 | B22: Graf 16: Tarifa za prevádzkovanie systému (€/MWh), pre rok 2022 bez kompenzácie. | L22: Graf 16
A23: 17 | B23: Graf 17: Podpora podnikov z Envirofondu v mil. eur a ako % na príjmoch z aukcií kvót | L23: Graf 17
A24: 18 | B24: Graf 18: Podiel kompenzácií nákladov v 2019 na príjmoch z ETS kvót v % (vyplatené v 2020) | L24: Graf 18
A25: 19 | B25: Graf 19: Vzťah medzi podielom kompenzácii nákladov na príjmoch z ETS kvót a podielom vybraných odvetví na pridanej hodnote v ekonomike v členských štátov EÚ v roku 2019 (%) | L25: Graf 19
A26: 20 | B26: Graf 20: Objem zníženia výnosov z TPS v dôsledku zavedenia individuálnej sadzby (v mil. eur) | L26: Graf 20
A27: 21 | B27: Graf 21: Úrovne TPS (v eur/MWh) podľa ročnej spotreby a individuálna sadzba TPS | L27: Graf 21
A28: 22 | B28: Graf 22: Objem zníženia výnosov z TSS v dôsledku zavedenia individuálnej sadzby (v mil. eur) | L28: Graf 22
A29: 23 | B29: Graf 23: Úroveň TSS a úroveň individuálnej sadzby TSS (v eur/MWh) | L29: Graf 23
A30: 24 | B30: Graf 24: Objem dotácie medzi 2019 a 2021 (v mil. eur) | L30: Graf 24
A31: 25 | B31: Graf 25: Objem dotácie podľa taríf (v mil. eur) | L31: Graf 25
A32: 26 | B32: Graf 26: Daňové oslobodenia a emisie v prepočte na efektívnu energiu podľa modelových príkladov | L32: Graf 26
A33: 27 | B33: Graf 27: Financovanie rekreácie a športu (COFOG 8.1) v 2019, % verejných výdavkov a % HDP | L33: Graf 27
A34: 28 | B34: Graf 28: Aktéri financovania rekreácie a športu (COFOG 8.1) na Slovensku, 2021, v mil. eur | L34: Graf 28
A35: 29 | B35: Graf 29: Príspevok uznaným športom (2021, mil. eur) a počet mladých športovcov (logaritmické osi) | L35: Graf 29
A36: 30 | B36: Graf 30: Podpora v sektore poľnohospodárstva (2021, mil. eur) | L36: Graf 30
A37: 31 | B37: Graf 31: Poskytnuté dotácie na hektár obhospodarovanej pôdy (2019, eur) | L37: Graf 31
A38: 32 | B38: Graf 32: Priíjemcovia zelenej nafty podľa počtu všetkých schválených dotačných schém (2021) | L38: Graf 32
A39: 33 | B39: Graf 33: Tvorba hrubého fixného kapitálu (THFK) v poľnohospodárstve na ha obhospodarovanej pôdy (2020) | L39: Graf 33
A40: 34 | B40: Graf 34: Vývoj reálnych príjmov a odpracovaných hodín farmárov – Slovensko a EÚ (index, 2010=100) | L40: Graf 34
A41: 35 | B41: Graf 35: Hrubá pridaná hodnota na hektár obhospodarovanej pôdy (2021) | L41: Graf 35
A42: 36 | B42: Graf 36: Podiel dotácií na zisku v sektore poľnohospodárstva (zdroj ŠR+ EÚ, 2020) | L42: Graf 36
A43: 37 | B43: Graf 37: Podiel dotácií na výnosoch poľnohospodárskych podnikov (zdroj ŠR + EÚ) | L43: Graf 37
A44: 38 | B44: Graf 38: Vyplatená štátna pomoc a počet prijímateľov (priemer 2019-2021, mil. eur) | L44: Graf 38
A45: 39 | B45: Graf 39: Vyplatená štátna pomoc (2018-2022, mil.eur) | L45: Graf 39
A46: 40 | B46: Graf 40: Výška dotácie (mil. eur) a počty príjemcov v rokoch 2019-2022 | L46: Graf 40
A47: 41 | B47: Graf 41: Príjemcovia Zelenej nafty podľa výšky dotácie v roku 2021 (v tis. eur) | L47: Graf 41
A48: 42 | B48: Graf 42: Vyplatené národné podpory a počet prijímateľov (priemer 2019-2021, mil. eur) | L48: Graf 42
A49: 43 | B49: Graf 43: Ostatné dotácie v pôdohospodárstve (mil. eur) | L49: Graf 43
A50: 44 | B50: Graf 44: Hustota dobytčích jednotiek na hektár poľnohospodárskej pôdy v roku 2020 (DJ/ha) | L50: Graf 44
A51: 45 | B51: Graf 45: Verejné výdavky na kultúru v rokoch 2011 – 2020 (% HDP) | L51: Graf 45
A52: 46 | B52: Graf 46: Verejné výdavky na kultúru v rokoch 2011 – 2020 (% verejných výdavkov) | L52: Graf 46
A53: 47 | B53: Graf 47: Objem poskytnutej dotačnej podpory z dotačných mechanizmov v rokoch 2008 – 2021 (mil. eur) | L53: Graf 47
A54: 48 | B54: Graf 48: Výdavky FPU (mil. eur) a podiel administratívnych nákladov na schválenej podpore | L54: Graf 48
A55: 49 | B55: Graf 49: Výdavky Audiovizuálneho fondu (mil. eur) | L55: Graf 49
A56: 50 | B56: Graf 50: Výdavky na filmové vratky (mil. eur), počet podporených filmov a počet žiadostí (pravá os) | L56: Graf 50
A57: 51 | B57: Graf 51: Výdavky Fondu na podporu kultúry národnostných menšín (mil. eur) | L57: Graf 51
A58: 52 | B58: Graf 52: Výdavky dotačnej schémy – Obnovme si svoj dom (mil. eur) | L58: Graf 52
A59: 53 | B59: Graf 53: Transfery zo ŠR a spolufinancovanie projektov Maticou slovenskou (tis. eur) | L59: Graf 53
A60: 54 | B60: Graf 54: Výdavky dotačnej schémy – Kultúra znevýhodnených skupín obyvateľstva (tis. eur) | L60: Graf 54
A61: 55 | B61: Graf 55: Cenové indexy pre vybrané tlačené tituly – denníky (10 % DPH) a týždenníky (20 % DPH) | L61: Graf 55
A62: 56 | B62: Graf 56: Dlhodobý pokles tlačených titulov – denníkov (DPH 10 %) aj týždenníkov (DPH 20 %) | L62: Graf 56
A63: 57 | B63: Graf 57: Vývoj predaja elektronických titulov, počtu predplatiteľov | L63: Graf 57
A64: 58 | B64: Graf 58: Výdavky na VaV ako podiel HDP, 2021 | L64: Graf 58
A65: 59 | B65: Graf 59: Porovnanie výdavkov na VaV s hospodárskou výkonnosťou krajín EÚ, 2021 | L65: Graf 59
A66: 60 | B66: Graf 60: Podiel výdavkov na VaV v pomere ku HDP z hľadiska sektorov, Slovensko | L66: Graf 60
A67: 61 | B67: Graf 61: Podiel výdavkov na VaV v pomere ku HDP z hľadiska sektorov krajín V4 a EÚ, 2021 | L67: Graf 61
A68: 62 | B68: Graf 62: Atraktivita výskumného systému v porovnaní s priemerom EÚ, 2021 | L68: Graf 62
A69: 63 | B69: Graf 63: Aktivita v oblasti duševného vlastníctva v porovnaní s priemerom EÚ, 2021 | L69: Graf 63
A70: 64 | B70: Graf 64: Poskytnutá podpora APVV podľa jednotlivých výziev / programov, mil. eur | L70: Graf 64
A71: 65 | B71: Graf 65: Výdavky a počet schválených projektov všeobecnej výzvy v rámci jednotlivých sektorov, mil. eur | L71: Graf 65
A72: 66 | B72: Graf 66: Výdavky na Stimuly pre výskum a vývoj, mil. eur | L72: Graf 66
A73: 67 | B73: Graf 67: Daňová úspora pre reprezentatívnu firmu (B-index (Warda, 2001) | L73: Graf 67
A74: 68 | B74: Graf 68: Medzinárodné porovnanie výdavkov na VaV podliehajúcich superodpočtu (v % HDP, 2019) | L74: Graf 68
A75: 69 | B75: Graf 69: Objem superodpočtu znižujúci firemnú daň (mil. eur) | L75: Graf 69
A76: 70 | B76: Graf 70: Počet firiem v jednotlivých intervaloch čerpania superodpočtu | L76: Graf 70
A77: 71 | B77: Graf 71: Skutočné výdavky na VaV (mil. eur) a sadzba superodpočtu (%) | L77: Graf 71
A78: 72 | B78: Graf 72: Superodpočet na VaV zvyšuje mieru R&D najmä u firiem s nízkou úrovňou R&D | L78: Graf 72
A79: 73 | B79: Graf 73: Počet patentových prihlášok na 1 mld. HDP | L79: Graf 73
A80: 74 | B80: Graf 74: Patentbox – miera daňovej úľavy v krajinách OECD | L80: Graf 74
A81: 75 | B81: Graf 75: Vládne výdavky na podporu turizmu ako % HDP a odhad pre Slovensko s výdavkami ST, 2018 | L81: Graf 75
A82: 76 | B82: Graf 76: Počet prenocovaní turistami na jedného obyvateľa, 2019 | L82: Graf 76
A83: 77 | B83: Graf 77: Podiel zahraničných turistov na celkovom počte prenocovaní všetkých turistov, 2019 | L83: Graf 77
A84: 78 | B84: Graf 78: Pomer výdavkov agentúr na podporu turizmu ku podielu sektora CR na HDP, 2018 | L84: Graf 78
A85: 79 | B85: Graf 79: Pomer výdavkov agentúr na podporu turizmu ku HDP | L85: Graf 79
A86: 80 | B86: Graf 80: Výdavky agentúry Slovakia Travel (mil. eur) | L86: Graf 80
A87: 81 | B87: Graf 81: Štruktúra výdavkov ST a CT | L87: Graf 81
A88: 82 | B88: Graf 82: Zazmluvnené výdavky podľa CRZ medzi rokmi 2021-2022 (mil. eur) | L88: Graf 82
A89: 83 | B89: Graf 83: Zazmluvnené výdavky ST na spoty v televíziách z pohľadu krajín 2021-2022 (mil. eur) | L89: Graf 83
A90: 84 | B90: Graf 84: Vzťah medzi počtom turistov a schválenými dotáciami pre OCR za rok 2019, mil. eur | L90: Graf 84
A91: 85 | B91: Graf 85: Výška schválených dotácii OCR, mil. eur | L91: Graf 85
A92: 86 | B92: Graf 86: Štruktúra pridelených dotácii pre najväčšie OCR[1] v rámci podkategórii, priemer 2020-2022 | L92: Graf 86
A93: 87 | B93: Graf 87: Štruktúra pridelených dotácii pre najväčšie OCR + ST v rámci podkategórii, priemer 2020-2022 | L93: Graf 87
A94: 88 | B94: Graf 88: Vybrané sektory ekonomiky kde čerpanie preukazov presiahlo 0,5 mil. eur na sektor (mil. eur, 2019) | L94: Graf 88
A95: 89 | B95: Graf 89: Využívanie rekreačných poukazov | L95: Graf 89
A96: 90 | B96: Graf 90: Podiel zamestnávateľov vyplácajúcich rekreačné poukazy (2019) | L96: Graf 90
A97: 91 | B97: Graf 91: Sezónne očistený počet prenocovaní (2018m1 = 100, podobné krajiny) | L97: Graf 91
A98: 92 | B98: Graf 92: Porovnanie počtu prenocovaní: historický trend vs. skutočnosť (neočistené dáta v tis.) | L98: Graf 92
A99: 93 | B99: Graf 93: Porovnanie počtu prenocovaní: historický trend vs. skutočnosť (sez. očistené dáta, v tis.) | L99: Graf 93
A100: 94 | B100: Graf 94: Odhad na základe SCM, počet prenocovaní na obyvateľa (sez. očistené dáta) | L100: Graf 94
A101: 95 | B101: Graf 95: Efekt opatrení na počet domácich prenocovaní (SCM odhad v mil.) | L101: Graf 95
A102: 96 | B102: Graf 96: Vývoj cien ubytovacích služieb, index HICP priemer 2015=100 | L102: Graf 96
A103: 97 | B103: Graf 97: Vývoj výnosov a nákladov z hospodárskej činnosti v sektore ubytovania (mil. eur) | L103: Graf 97
A104: 98 | B104: Graf 98: Dekompozícia nákladov v sektore ubytovania (mil. eur) | L104: Graf 98
A105: 99 | B105: Graf 99: Lorenzova krivka pre podiel výdavkov na rekreaćné a ubytovacie služby | L105: Graf 99
A106: 100 | B106: Graf 100: Vplyv opatrení na výber DPH v roku 2019[1] (zaplatená DPH v mil. eur) | L106: Graf 100
A107: 101 | B107: Graf 101: Objem tržieb podľa výšky sadzby DPH (v mil. eur) | L107: Graf 101
A108: 102 | B108: Graf 102: Výdavky na regionálny rozvoj podľa zdroja, 2019-2025, mil. eur | L108: Graf 102
A109: 103 | B109: Graf 103: Vzťah dotácie pre NRO na jedného uchádzača o zamestnanie k nárastu nezamestnanosti | L109: Graf 103
A110: 104 | B110: Graf 104: Regionálne príspevky pre NRO podľa kategórie príjemcu, mil. eur | L110: Graf 104
A111: 105 | B111: Graf 105: Výdavky a počet príjemcov na jednotlivé výzvy, podpora regionálneho rozvoja, 2019-2021, mil. eur | L111: Graf 105
A112: 106 | B112: Graf 106: Objem a počet investícií podporených štátom (schválené zámery, mld. eur) | L112: Graf 106
A113: 107 | B113: Graf 107: Intenzita pomoci pre investičné návrhy schválené v rokoch 2002 - 2022 | L113: Graf 107
A114: 108 | B114: Graf 108: Schválená investičná pomoc podľa formy pomoci (mil. eur) | L114: Graf 108
A115: 109 | B115: Graf 109: Počet podporených investícií podľa typu investičného zámeru | L115: Graf 109
A116: 110 | B116: Graf 110: Objem podporených investícií podľa okresov (2002-2022) a sieť diaľnic a rýchlostných ciest (2022) | L116: Graf 110
A117: 111 | B117: Graf 111: Počet podporených investícií podľa okresov (2002-2022) a sieť diaľnic a rýchlostných ciest (2022) | L117: Graf 111
A118: 112 | B118: Graf 112: Výška pomoci na vytvorené prac. miesto (v tis. eur) a nezamestnanosť v okrese | L118: Graf 112
A119: 113 | B119: Graf 113: Výška podporenej investície (v mil. eur) a nezamestnanosť v okrese | L119: Graf 113
A120: 114 | B120: Graf 114: Vývoj rozdielov v priemernej mzde | L120: Graf 114
A121: 115 | B121: Graf 115: Podiel firiem indikujúcich nedostatok pracovníkov ako bariéru rozvoja (%, sezónne očistené) | L121: Graf 115
A122: 116 | B122: Graf 116: Nedostatok pracovníkov v priemysle v krajinách V4 a Nemecku | L122: Graf 116
A123: 117 | B123: Graf 117: Ročná medziregionálna mobilita obyvateľstva 2015-2018 (% celkového obyvateľstva) | L123: Graf 117
A124: 118 | B124: Graf 118: Percento populácie prichádzajúce do regiónu 2015-2018 | L124: Graf 118
A125: 119 | B125: Graf 119: Destinácia vnútroslovenskej migrácie mladých ľudí 2015-2018 (15-29 rok života)[1] | L125: Graf 119
A126: 120 | B126: Graf 120: Vývoj vyrobeného množstva šumivého a tichého vína, 2015 – 2021 (v hl) | L126: Graf 120
A127: 121 | B127: Graf 121: Porovnanie výšky spotrebnej dane z tichého vína v krajinách EÚ, k 1.7.2021 (eur/1 hl) | L127: Graf 121
A128: 122 | B128: Graf 122: Množstvá vyskladneného liehu, 2015 – 2021 (akruálny príjem, hl a.) | L128: Graf 122
A129: 123 | B129: Graf 123: Porovnanie spotreby alkoholu v krajinách EÚ, 2009 (l na 1 dospelého) | L129: Graf 123
A130: 124 | B130: Graf 124: Vývoj počtu pestovateľských páleníc na Slovensku, 2018 - 2022 | L130: Graf 124
A131: 125 | B131: Graf 125: Výsledok hospodárenia pre vybrané liehovary | L131: Graf 125
A132: 126 | B132: Graf 126: Vývoj zdaneného množstva piva veľkých a malých pivovarov, 2015 - 2021 (hl) | L132: Graf 126
A133: 127 | B133: Graf 127: Výsledok hospodárenia MSP voči ostatným firmám | L133: Graf 127
A134: 128 | B134: Graf 128: Distribúcia firiem podľa výnosov v 2020 | L134: Graf 128
A135: 129 | B135: Graf 129: Distribúcia firiem podľa výnosov v 2021 | L135: Graf 129
A136: 130 | B136: Graf 130: Vývoj tržieb za jednotlivé kategórie podnikov (medziročné zmeny)[1] | L136: Graf 130
A137: 131 | B137: Graf 131: Podiel mikrodaňovníkov na celkovom počte firiem v jednotlivých sektoroch (2021) | L137: Graf 131
A138: 132 | B138: Graf 132: Rozdelenie firiem podľa výsledku hospodárenia a veľkosti (rok 2021) | L138: Graf 132
A139: 133 | B139: Graf 133: Rozdelenie mikrofiriem podľa dĺžky fungovania (rok 2021) | L139: Graf 133
A140: 134 | B140: Graf 134: Odhad výpadku daní a odvodov z oslobodenia predaja cenných papierov | L140: Graf 134
A141: 135 | B141: Graf 135: Objem obchodovaných akcií na Burze cenných papierov v Bratislave | L141: Graf 135
A142: 136 | B142: Graf 136: Počet novo-registrovaných batériových vozidiel (BEV) a plug-in hybridov (PHEV) podľa vlastníctva | L142: Graf 136
A143: 137 | B143: Graf 137: Vzťah medzi počtom elektrických vozidiel a podporou vo forme regulácií či dotácií | L143: Graf 137
A144: 138 | B144: Graf 138: Vzťah medzi počtom nabíjacích staníc a podporou vo forme regulácií či dotácií | L144: Graf 138
A145: 139 | B145: Graf 139: Čerpanie rezervy vlády a rezervy predsedu vlády (mil. eur) | L145: Graf 139
A146: 140 | B146: Graf 140: Čerpanie dotačného programu MF SR (mil. eur) | L146: Graf 140
A153: Tabuľky
A154: Číslo | B154: Názov | L154: Poradie
A155: 1 | B155: Tabuľka 1: Čerpanie fondov EÚ v 3. programovom období (mil. eur) | L155: Tabuľka 1
A156: 2 | B156: Tabuľka 2: Očakávané dotácie z EÚ fondov, programové obdobie 2021 – 2027 (mil. eur) | L156: Tabuľka 2
A157: 3 | B157: Tabuľka 3: Prehľad dotačných schém poskytovaných štátom zahrnutých v priebežnej správe, v mil. eur | L157: Tabuľka 3
A158: 4 | B158: Tabuľka 4: Aspekty dizajnu dotácií | L158: Tabuľka 4
A159: 5 | B159: Tabuľka 5: Dotačné schémy v energetike, v mil. eur, priemer 2019-2021 | L159: Tabuľka 5
A160: 6 | B160: Tabuľka 6: Príjemcovia dotácií v energetike, kumulatívne nad 2,5 mil. eur ročne (2021 resp. 2020, mil. eur) | L160: Tabuľka 6
A161: 7 | B161: Tabuľka 7: Prehľad distribúcie doplatkov podľa veľkosti príjemcu (2021) | L161: Tabuľka 7
A162: 8 | B162: Tabuľka 8: Porovnanie kompenzácie (2021) a úspory plynúcej z multipásmovej TPS bez kompenzácie (2022). | L162: Tabuľka 8
A163: 9 | B163: Tabuľka 9: Rozpočet dotácie podľa rôznych zdrojov (v mil. eur) | L163: Tabuľka 9
A164: 10 | B164: Tabuľka 10: Zoznam prijímateľov kompenzácií 2016-2020 (mil. eur) | L164: Tabuľka 10
A165: 11 | B165: Tabuľka 11: Prehľad možných zliav z taríf za rezervovanú kapacitu a prenos elektriny[1] | L165: Tabuľka 11
A166: 12 | B166: Tabuľka 12: Fakultatívne oslobodenia spotrebných daní z energií podľa 609/2007 Z. z. (mil. eur, ESA 2010) | L166: Tabuľka 12
A167: 13 | B167: Tabuľka 13: Obligatórne oslobodenia spotrebných daní z energií podľa 609/2007 Z. z. (v mil. eur, ESA 2010). | L167: Tabuľka 13
A168: 14 | B168: Tabuľka 14: Obligatórne oslobodenia spotrebných daní z energií podľa 609/2007 Z. z. (v mil. eur, ESA 2010). | L168: Tabuľka 14
A169: 15 | B169: Tabuľka 15: Dotačné schémy v športe, v mil. eur, 2019-2021 | L169: Tabuľka 15
A170: 16 | B170: Tabuľka 16: Výdavky zo štátneho rozpočtu na šport (vrátane dotácií, mil. eur) | L170: Tabuľka 16
A171: 17 | B171: Tabuľka 17: Účely použitia dotácií z jednotlivých schém | L171: Tabuľka 17
A172: 18 | B172: Tabuľka 18: Príjmy a výdavky Fondu na podporu športu (v mil. eur) | L172: Tabuľka 18
A173: 19 | B173: Tabuľka 19: Rozdelenie príspevkov z Národných športových projektov (2021) | L173: Tabuľka 19
A174: 20 | B174: Tabuľka 20: Dotačné schémy v pôdohospodárstve, v mil. eur, 2019-2021 | L174: Tabuľka 20
A175: 21 | B175: Tabuľka 21: Príjemcovia dotácií v poľnohospodárstve (top 10 príjemcov zelenej nafty, 2021, tis. eur) | L175: Tabuľka 21
A176: 22 | B176: Tabuľka 22: Dotácie štátnym podnikom | L176: Tabuľka 22
A177: 23 | B177: Tabuľka 23: Priemerné výdavky na dotačné schémy v kultúre, v mil. eur, 2019-2021 | L177: Tabuľka 23
A178: 24 | B178: Tabuľka 24: Vybrané ukazovatele z hlavnej knihy rozpočtu verejnej správy | L178: Tabuľka 24
A179: 25 | B179: Tabuľka 25: Priemer pridelenej podpory formou dotácie podľa programu (2019-2021) | L179: Tabuľka 25
A180: 26 | B180: Tabuľka 26: Ukazovatele audiovizuálnej kultúry a priemyslu za roky 2015 až 2021 | L180: Tabuľka 26
A181: 27 | B181: Tabuľka 27: Priemer pridelenej podpory formou dotácie podľa programu (roky 2019-2021) | L181: Tabuľka 27
A182: 28 | B182: Tabuľka 28: Priemer pridelenej podpory podľa programu (roky 2019-2021) | L182: Tabuľka 28
A183: 29 | B183: Tabuľka 29: Pomer národnostných menšín v sčítaniach obyvateľstva a alokácia prostriedkov | L183: Tabuľka 29
A184: 30 | B184: Tabuľka 30: Prijímatelia podľa priemernej alokácie (2020-2022), žiadanej sumy a stavu pamiatok | L184: Tabuľka 30
A185: 31 | B185: Tabuľka 31: Priemer podpory podľa podprogramu (roky 2020-2022) | L185: Tabuľka 31
A186: 32 | B186: Tabuľka 32: Priemer podpory podľa podprogramu (roky 2019-2021) | L186: Tabuľka 32
A187: 33 | B187: Tabuľka 33: Dotačné schémy vo výskume a vývoji, v mil. eur, 2019-2021 | L187: Tabuľka 33
A188: 34 | B188: Tabuľka 34: Ostatné dotačné schémy MŠVVŠ SR zo ŠR (pre podnikateľov a neziskové organizácie) | L188: Tabuľka 34
A189: 35 | B189: Tabuľka 35: Dotačné schémy vo výskume a vývoji, v mil. eur, 2019-2021 | L189: Tabuľka 35
A190: 36 | B190: Tabuľka 36: Štruktúra dotácii pre OCR a výdavkov Slovakia Travel, priemer 2020-2022, tis. eur | L190: Tabuľka 36
A191: 37 | B191: Tabuľka 37: Dotačné schémy v regionálnom rozvoji, v mil. eur, 2019-2021 | L191: Tabuľka 37
A192: 38 | B192: Tabuľka 38: Regionálne príspevky pre NRO a príspevky IROP pre jednotlivé okresy do roku 2021 | L192: Tabuľka 38
A193: 39 | B193: Tabuľka 39: Dotačné schémy v podpore mobility (priemer za 2019-2021, v mil. eur) | L193: Tabuľka 39
A194: 40 | B194: Tabuľka 40: Výnimky zo zdaňovania negatívnych externalít, v mil. eur, 2019-2021 | L194: Tabuľka 40
A195: 41 | B195: Tabuľka 41: Porovnanie efektívneho zaťaženia jednotlivých druhov alkoholu v bežnej dávke | L195: Tabuľka 41
A196: 42 | B196: Tabuľka 42: Dotačné schémy v podpore malých firiem, v mil. eur, 2019-2021 | L196: Tabuľka 42
A197: 43 | B197: Tabuľka 43: Dotačné schémy v zvýhodnení investícií do majetkových podielov, v mil. eur, 2019-2021 | L197: Tabuľka 43
A198: 44 | B198: Tabuľka 44: Skrátenie doby odpisu pre elektromobily, v mil. eur, 2019-2021 | L198: Tabuľka 44
A199: 45 | B199: Tabuľka 45: Využitie prostriedkov z rezervy predsedu vlády SR (2021) | L199: Tabuľka 45
A200: 46 | B200: Tabuľka 46: Využitie prostriedkov z dotačného programu MF SR (2021) | L200: Tabuľka 46
A201: 47 | B201: Tabuľka 47: Priemerné administratívne náklady vybraných dotačných schém (2019-2021) | L201: Tabuľka 47
A202: 48 | B202: Tabuľka 48: Priemerné administratívne náklady nadačných fondov | L202: Tabuľka 48

Sheet Graf 1
A1: Graf 1: Subvencie verejnej správy podľa poskytovateľa vo funkčnom členení (COFOG), 2015-2019 , mil. eur
A2: Zdroj: spracovanie ÚHP podľa údajov Eurostatu
C3: 2015 | D3: 2016 | E3: 2017 | F3: 2018 | G3: 2019 | H3: 2020 | I3: Priemer
B4: Verejná správa | C4: 950.1 | D4: 854.7 | E4: 876.9 | F4: 879.3 | G4: 928 | H4: 1240.5 | I4: 897.8
A5: Štátna správa | B5: Spolu | C5: 679.4 | D5: 600.3 | E5: 679.8 | F5: 664.8 | G5: 683.2 | H5: 967.5 | I5: 661.5 | J5: =I4-I5 -> 236.3
B6: Palivá a energie | C6: 488.3 | D6: 488.2 | E6: 532.6 | F6: 503 | G6: 498 | H6: 657.3 | I6: 502.02 | J6: =I4-I6 -> 395.78
B7: Poľnohospodárstvo | C7: 68.6 | D7: 16.6 | E7: 42.2 | F7: 32.1 | G7: 82 | H7: 91.5 | I7: 48.3 | J7: =J6-I7 -> 347.48
B8: Źivotné prostredie | C8: 56 | D8: 50.2 | E8: 60.4 | F8: 68.1 | G8: 32.2 | H8: 28.1 | I8: 53.38 | J8: =J7-I8 -> 294.1
B9: Ostatné | C9: 66.5 | D9: 45.3 | E9: 44.6 | F9: 61.6 | G9: 71 | H9: 190.6 | I9: 57.8 | J9: =J8-I9 -> 236.3
A10: Samosprávy | B10: Spolu | C10: 270.3 | D10: 254.1 | E10: 196.9 | F10: 214.3 | G10: 244.9 | H10: 272.7 | I10: 236.1
B11: Doprava | C11: 246.9 | D11: 229.7 | E11: 170.2 | F11: 185.8 | G11: 217.4 | H11: 246.8 | I11: 210 | J11: =I10-I11 -> 26.1
B12: Kultúra a šport | C12: 14 | D12: 16.2 | E12: 17.8 | F12: 17.7 | G12: 17.2 | H12: 14.4 | I12: 16.58 | J12: =J11-I12 -> 9.52
B13: Ostatné | C13: 9.4 | D13: 8.2 | E13: 8.9 | F13: 10.8 | G13: 10.3 | H13: 11.5 | I13: 9.52

Sheet Graf 2
A1: Graf 2: Výdavky na subvencie štátnej správy , % HDP
A2: Zdroj: spracovanie ÚHP podľa údajov Eurostatu
B4: 2013 | C4: 2014 | D4: 2015 | E4: 2016 | F4: 2017 | G4: 2018 | H4: 2019 | I4: 2020
A5: Slovensko | B5: 1.5 | C5: 1.4 | D5: 1.2 | E5: 1.1 | F5: 1 | G5: 1 | H5: 1 | I5: 1.3
A6: Česko | B6: 2.3 | C6: 2.3 | D6: 2.3 | E6: 2.2 | F6: 2.1 | G6: 2.2 | H6: 2.2 | I6: 3
A7: Maďarsko | B7: 2.1 | C7: 2 | D7: 1.9 | E7: 2 | F7: 1.8 | G7: 1.4 | H7: 1.4 | I7: 1.6
A8: Poľsko | B8: 0.7 | C8: 0.7 | D8: 0.5 | E8: 0.5 | F8: 0.5 | G8: 0.4 | H8: 0.5 | I8: 3.7
A9: priemer EÚ | B9: 1.326923077 | C9: 1.330769231 | D9: 1.280769231 | E9: 1.246153846 | F9: 1.203846154 | G9: 1.233333333 | H9: 1.240740741 | I9: 2.766666667
A10: priemer V3 | B10: 1.7 | C10: 1.666666667 | D10: 1.566666667 | E10: 1.566666667 | F10: 1.466666667 | G10: 1.333333333 | H10: 1.366666667 | I10: 2.766666667

Sheet Graf 3
A1: Graf 3: Daňové výdavky (% HDP, 2020)
A2: Zdroj: GTED
A3: EU | B3: Daňové výdavky (% HDP) | C3: Priemer krajín EÚ
A4: NL | B4: 14.2 | C4: 4.8925
A5: FI | B5: 12.57 | C5: 4.8925
A6: CZ | B6: 10.48 | C6: 4.8925
A7: IE | B7: 10.38 | C7: 4.8925
A8: UK | B8: 8.13 | C8: 4.8925
A9: LV | B9: 7.74 | C9: 4.8925
A10: BE | B10: 5.71 | C10: 4.8925
A11: EL | B11: 5.23 | C11: 4.8925
A12: SE | B12: 5.03 | C12: 4.8925
A13: RO | B13: 4.81 | C13: 4.8925
A14: AT | B14: 4.63 | C14: 4.8925
A15: LT | B15: 4.24 | C15: 4.8925
A16: FR | B16: 4 | C16: 4.8925
A17: IT | B17: 3.78 | C17: 4.8925
A18: ES | B18: 3.39 | C18: 4.8925
A19: DK | B19: 2.46 | C19: 4.8925
A20: HU | B20: 2.38 | C20: 4.8925
A21: PL | B21: 2.1 | C21: 4.8925
A22: SK | B22: 2.02 | C22: 4.8925
A23: LU | B23: 1.59 | C23: 4.8925
A24: EE | B24: 0.87 | C24: 4.8925
A25: DE | B25: 0.86 | C25: 4.8925
A26: BG | B26: 0.6 | C26: 4.8925
A27: SI | B27: 0.22 | C27: 4.8925

Sheet Graf 4
A1: Graf 4: Transfery VS, daňové výdavky a vybrané oblasti revízie (modrou) (priemer 2019-2021, mil. eur)
A2: Zdroj: RIS MF SR, Hlavná kniha, MF SR
B3: Pomocné výpočty | C3: Výdavky (mil. eur)
A4: Daňové výdavky - popdora podnikov - hodnotené revíziou | B4: 0 | C4: 449100000
A5: Daňové výdavky - podpora jendnotlivcov | B5: 449100000 | C5: 1274729496
A6: Daňové výdavky | B6: 0 | C6: 1723829496
A7: Subvencie a vybrané podpory hodnotené revíziou | B7: 1723829496 | C7: 992200000
A8: Nesúťaživé transfery 3. sektoru | B8: 2716029496 | C8: 616158139.3
A9: Bežné transfery do zahraničia (príspevky do EÚ a pod.) | B9: 3332187636 | C9: 955446380.8
A10: Bežné transfery jednotlivcom (sociálne dávky a pod.) | B10: 4287634016 | C10: 4554335224
A11: Bežné transfery v rámci VS (obci, VÚC a pod.) | B11: 8841969240 | C11: 5437881429
A12: Bežné transfery z fondov EÚ a spolufinancovanie | B12: 1.427985067e+10 | C12: 1324496750
A13: Investičné transfery | B13: 1.560434742e+10 | C13: 1418536919
A14: Transfery a ďalšie vybrané podpory | B14: 1723829496 | C14: 1.529905484e+10
A15: Transfery, daňové výdavky a ďalšie vybrané podpory | B15: 0 | C15: 1.702288434e+10

Sheet Graf 5
A1: Graf 5: Výdavky na subvencie, vybrané transfery a daňové výdavky podľa oblastí (mil. eur, 2019 - 2021)
A2: Zdroj: Rozpočet VS, spracovanie ÚHP
B4: Pomocné výpočty | C4: Daňové výdavky | D4: Pomocné výpočty | E4: Subvencie a súťaživé transfery 3. sektoru | F4: Pomocné výpočty | G4: Znížené poplatky
A5: Ostatné | B5: 0 | C5: 0 | D5: 449100000 | E5: 0 | F5: 0
A6: Rezervy | B6: 0 | C6: 0 | D6: 449100000 | E6: 5100000 | F6: 5100000
A7: Skrátenie doby odpisu pre elektromobily | B7: 0 | C7: 4100000 | D7: 450100000 | E7: 0 | F7: 4100000
A8: Zvýhodnenie investícií do majetkových podielov | B8: 4100000 | C8: 27500000 | D8: 422600000 | E8: 0 | F8: 27500000
A9: Podpora malých firiem | B9: 31600000 | C9: 31600000 | D9: 391000000 | E9: 0 | F9: 31600000
A10: Výnimky zo zdaňovania negatívnych externalít | B10: 63200000 | C10: 51700000 | D10: 339300000 | E10: 0 | F10: 51700000
A11: Podpora mobility zamestnancov | B11: 114900000 | C11: 22700000 | D11: 316600000 | E11: 0 | F11: 22700000
A12: Regionálny rozvoj | B12: 137600000 | C12: 64700000 | D12: 251900000 | E12: 23300000 | F12: 88000000
A13: Cestovný ruch | B13: 202300000 | C13: 59000000 | D13: 216200000 | E13: 26300000 | F13: 85300000
A14: Výskum a vývoj | B14: 261300000 | C14: 43100000 | D14: 199400000 | E14: 42600000 | F14: 85700000
A15: Kultúra | B15: 304400000 | C15: 3300000 | D15: 238700000 | E15: 56700000 | F15: 60000000
A16: Pôdohospodárstvo | B16: 307700000 | C16: 0 | D16: 295400000 | E16: 63400000 | F16: 63400000
A17: Šport | B17: 307700000 | C17: 2400000 | D17: 356400000 | E17: 104800000 | F17: 107200000
A18: Energetika | B18: 310100000 | C18: 139000000 | D18: 322200000 | E18: 554000000 | F18: 809000000 | G18: 116000000
A19: Spolu | C19: 449100000 | E19: 876200000 | F19: 1441300000 | G19: 116000000

Sheet Graf 6
A1: Graf 6: Podiel OZE na spotrebe energie v SR
A2: Zdroj: Eurostat
B3: 2004 | C3: 2005 | D3: 2006 | E3: 2007 | F3: 2008 | G3: 2009 | H3: 2010 | I3: 2011 | J3: 2012 | K3: 2013 | L3: 2014 | M3: 2015 | N3: 2016 | O3: 2017 | P3: 2018 | Q3: 2019 | R3: 2020 | S3: 2021
A4: Podiel OZE celkovo | B4: 0.06391 | C4: 0.0636 | D4: 0.06584 | E4: 0.07766 | F4: 0.07723 | G4: 0.09368 | H4: 0.09099 | I4: 0.10348 | J4: 0.10453 | K4: 0.10133 | L4: 0.11713 | M4: 0.12882 | N4: 0.12029 | O4: 0.11465 | P4: 0.11896 | Q4: 0.16894 | R4: 0.17345 | S4: 0.17412
A5: Cieľ 2020 | B5: 0.14 | C5: 0.14 | D5: 0.14 | E5: 0.14 | F5: 0.14 | G5: 0.14 | H5: 0.14 | I5: 0.14 | J5: 0.14 | K5: 0.14 | L5: 0.14 | M5: 0.14 | N5: 0.14 | O5: 0.14 | P5: 0.14 | Q5: 0.14 | R5: 0.14 | S5: 0.14
A6: Cieľ 2030 | B6: 0.192 | C6: 0.192 | D6: 0.192 | E6: 0.192 | F6: 0.192 | G6: 0.192 | H6: 0.192 | I6: 0.192 | J6: 0.192 | K6: 0.192 | L6: 0.192 | M6: 0.192 | N6: 0.192 | O6: 0.192 | P6: 0.192 | Q6: 0.192 | R6: 0.192 | S6: 0.192

Sheet Graf 7
A1: Graf 7: Emisná intenzita výroby elektriny (gCO2/kWh)
A2: Zdroj: EEA
B4: 1990 | C4: 1991 | D4: 1992 | E4: 1993 | F4: 1994 | G4: 1995 | H4: 1996 | I4: 1997 | J4: 1998 | K4: 1999 | L4: 2000 | M4: 2001 | N4: 2002 | O4: 2003 | P4: 2004 | Q4: 2005 | R4: 2006 | S4: 2007 | T4: 2008 | U4: 2009 | V4: 2010 | W4: 2011 | X4: 2012 | Y4: 2013 | Z4: 2014 | AA4: 2015 | AB4: 2016 | AC4: 2017 | AD4: 2018 | AE4: 2019 | AF4: 2020 | AG4: 2021
A5: Slovakia | B5: 467 | C5: 412 | D5: 345 | E5: 330 | F5: 279 | G5: 195 | H5: 209 | I5: 210 | J5: 208 | K5: 220 | L5: 210 | M5: 214 | N5: 202 | O5: 217 | P5: 221 | Q5: 193 | R5: 183 | S5: 185 | T5: 188 | U5: 166 | V5: 141 | W5: 152 | X5: 149 | Y5: 131 | Z5: 118 | AA5: 125 | AB5: 117 | AC5: 112 | AD5: 134 | AE5: 120 | AF5: 104 | AG5: 113
A6: EU-27 | B6: 501 | C6: 490 | D6: 478 | E6: 459 | F6: 456 | G6: 445 | H6: 432 | I6: 419 | J6: 420 | K6: 410 | L6: 394 | M6: 388 | N6: 394 | O6: 391 | P6: 380 | Q6: 379 | R6: 377 | S6: 386 | T6: 363 | U6: 350 | V6: 335 | W6: 342 | X6: 339 | Y6: 322 | Z6: 313 | AA6: 314 | AB6: 303 | AC6: 302 | AD6: 289 | AE6: 255 | AF6: 229 | AG6: 275

Sheet Graf 8
A1: Graf 8: Vývoj doplatkov po jednotlivých rokoch (mil. eur)
A2: Zdroj: ÚHP na základe údajov ÚRSO (nedatované)
B3: OZE | C3: KVET
A4: 2016 | B4: 372010455 | C4: 92744167
A5: 2017 | B5: 398078301 | C5: 117359185
A6: 2018 | B6: 378329417 | C6: 97148114
A7: 2019 | B7: 352624431 | C7: 81820916
A8: 2020 | B8: 358474000 | C8: 109047000
A9: 2021 | B9: =97310+231774042.9 -> 231871352.9 | C9: =30804630+76635 -> 30881265

Sheet Graf 9
A1: Graf 9: Vývoj úrovne tarify za prevádzkovanie systému, základná sadzba (€ / MWh)
A2: Zdroj: ÚHP na základe údajov ÚRSO
B3: Sadzba
A4: 2010 | B4: 6.3
A5: 2011 | B5: 14.85
A6: 2012 | B6: 15.7
A7: 2013 | B7: 19.88
A8: 2014 | B8: 19.82
A9: 2015 | B9: 21.82
A10: 2016 | B10: 22.9
A11: 2017 | B11: 26.203
A12: 2018 | B12: 26.43
A13: 2019 | B13: 25.988
A14: 2020 | B14: 23.621
A15: 2021 | B15: 23.7405
A16: 2022 | B16: 15.9
A17: 2023 | B17: 25.4807

Sheet Graf 10
A1: Graf 10: Výška dotácie v priemere na 1 dotovanú MWh elektriny z OZE v EÚ, 2018 a 2019 (eur/MWh)
A2: Nedostupné informácie o podpore v Bulharsku, Fínsku a Poľsku
A4: 2019 Annex | B4: Výroba OZE energií (MWh) | C4: Podpora OZE (mil. eur) | D4: Podpora OZE v 2019 | E4: Aritmetický priemer | F4: Vážený priemer | G4: Podpora OZE v 2018 | H4: Priemer 2019
A5: Česko | B5: 8248607.051 | C5: 1631.818039 | D5: 197.829528 | E5: 88.91570897 | F5: 102.5418146 | G5: 212.8845475 | H5: =AVERAGE(D5:D26) -> 88.91570897
A6: Taliansko | B6: 85701360.75 | C6: 15305.53337 | D6: 178.591486 | E6: 88.91570897 | F6: 102.5418146 | G6: 178.0159027
A7: Cyprus | B7: 401883 | C7: 70.330044 | D7: 175.0012914 | E7: 88.91570897 | F7: 102.5418146 | G7: 176.0366491
A8: Slovinsko | B8: 595880.639 | C8: 87.54894977 | D8: 146.9236354 | E8: 88.91570897 | F8: 102.5418146 | G8: 163.6346144
A9: Nemecko | B9: 252960132.7 | C9: 26746.63398 | D9: 105.7345823 | E9: 88.91570897 | F9: 102.5418146 | G9: 122.7273061
A10: Slovensko | B10: 2661011.805 | C10: 277.0923686 | D10: 104.1304545 | E10: 88.91570897 | F10: 102.5418146 | G10: 113.1602717
A11: Lotyšsko | B11: 882708 | C11: 91.04153578 | D11: 103.1389041 | E11: 88.91570897 | F11: 102.5418146 | G11: 103.2219702
A12: Grécko | B12: 12662050 | C12: 1242.732191 | D12: 98.14620784 | E12: 88.91570897 | F12: 102.5418146 | G12: 107.0991166
A13: Španielsko | B13: 59413851.78 | C13: 5787.730741 | D13: 97.41382805 | E13: 88.91570897 | F13: 102.5418146 | G13: 102.3574106
A14: Luxembursko | B14: 824979.442 | C14: 79.84495683 | D14: 96.7841776 | E14: 88.91570897 | F14: 102.5418146 | G14: 95.56956107
A15: Malta | B15: 175582.7299 | C15: 16.71766014 | D15: 95.21243999 | E15: 88.91570897 | F15: 102.5418146 | G15: 112.7559346
A16: Chorvátsko | B16: 2668505 | C16: 245.5137303 | D16: 92.00422347 | E16: 88.91570897 | F16: 102.5418146 | G16: 80.84520279
A17: Francúzsko | B17: 57466376.98 | C17: 5082.71726 | D17: 88.44680188 | E17: 88.91570897 | F17: 102.5418146 | G17: 85.55613195
A18: Portugalsko | B18: 18144886 | C18: 1010.451332 | D18: 55.68794048 | E18: 88.91570897 | F18: 102.5418146 | G18: 48.40813641
A19: Estónsko | B19: 1668165 | C19: 89.570933 | D19: 53.69428863 | E19: 88.91570897 | F19: 102.5418146 | G19: 53.70005436
A20: Rakúsko | B20: 10406236.56 | C20: 556.4545694 | D20: 53.47318084 | E20: 88.91570897 | F20: 102.5418146 | G20: 68.5309026
A21: Maďarsko | B21: 3303495.703 | C21: 163.4167642 | D21: 49.46783011 | E21: 88.91570897 | F21: 102.5418146 | G21: 47.26136502
A22: Litva | B22: 1994151.367 | C22: 95.74823998 | D22: 48.01452967 | E22: 88.91570897 | F22: 102.5418146 | G22: 50.51825318
A23: Rumunsko | B23: 10083963.8 | C23: 463.1410896 | D23: 45.92847601 | E23: 88.91570897 | F23: 102.5418146 | G23: 45.3638534
A24: Dánsko | B24: 21710677 | C24: 745.2351295 | D24: 34.32574348 | E24: 88.91570897 | F24: 102.5418146 | G24: 28.86768667
A25: Írsko | B25: 8749583.202 | C25: 192.6262449 | D25: 22.01547667 | E25: 88.91570897 | F25: 102.5418146 | G25: 10.89018068
A26: Švédsko | B26: 28114516 | C26: 398.6798844 | D26: 14.18057079 | E26: 88.91570897 | F26: 102.5418146 | G26: 17.69952276
A27: Belgicko | B27: - | C27: - | D27: - | E27: 88.91570897 | F27: 102.5418146 | G27: 103.214391
A28: Holandsko | B28: - | C28: - | D28: - | E28: 88.91570897 | F28: 102.5418146 | G28: 68.03909876

Sheet Graf 11
A1: Graf 11: Investičné náklady na elektrárne (€/kW). Body predstavujú jednotlivé zariadenia, čiarky sú priemer.
A2: Zdroj: IEA, 2020
A4: Fotovoltika | B4: 0.5 | C4: 843.2
B5: 0.5 | C5: 453.9
B6: 0.5 | C6: 529.55
B7: 0.5 | C7: 722.5
B8: 0.5 | C8: 601.8
B9: 0.5 | C9: 913.75
B10: 0.5 | C10: 819.4
B11: 0.5 | C11: 685.95
B12: 0.5 | C12: 696.25625
A13: Veterná e. | B13: 1 | C13: 1239.3
B14: 1 | C14: 1303.9
B15: 1 | C15: 1253.75
B16: 1 | C16: 1203.6
B17: 1 | C17: 1127.1
B18: 1 | C18: 780.3
B19: 1 | C19: 1303.9
B20: 1 | C20: 1253.75
B21: 1 | C21: 2260.15
B22: 1 | C22: 1514.7
B23: 1 | C23: 1928.65
B24: 1 | C24: 2317.95
B25: 1 | C25: 2368.1
B26: 1 | C26: 2568.7
B27: 1 | C27: 1214.65
B28: 1 | C28: 1274.15
B29: 1 | C29: 1062.5
B30: 1 | C30: 933.3
B31: 1 | C31: 1494.913889
A32: Biomasa | B32: 1.5 | C32: 3914.25
B33: 1.5 | C33: 5563.25
B34: 1.5 | C34: 930.75
B35: 1.5 | C35: 708.05
B36: 1.5 | C36: 2779.075
A37: Geotermál | B37: 2 | C37: 3273.35
B38: 2 | C38: 6062.2
B39: 2 | C39: 8329.15
B40: 2 | C40: 9315.15
B41: 2 | C41: 3502
B42: 2 | C42: 4707.3
B43: 2 | C43: 5864.858333

Sheet Graf 12
A1: Graf 12: Náklady na výrobu, životný cyklus (€/MWh). Body - jednotlivé zariadenia, čiarky - priemer.
A2: Zdroj: IEA, 2020
A3: Fotovoltika | B3: 0.5 | C3: 76.684888
B4: 0.5 | C4: 34.94623726
B5: 0.5 | C5: 37.02702154
B6: 0.5 | C6: 62.88274965
B7: 0.5 | C7: 28.84546806
B8: 0.5 | C8: 88.63670253
B9: 0.5 | C9: 73.14086388
B10: 0.5 | C10: 67.97744856
B11: 0.5 | C11: 58.76767244
A12: Veterná e. | B12: 1 | C12: 64.89788005
B13: 1 | C13: 58.26154426
B14: 1 | C14: 54.48931311
B15: 1 | C15: 66.58239388
B16: 1 | C16: 49.21554945
B17: 1 | C17: 24.80531345
B18: 1 | C18: 38.14515176
B19: 1 | C19: 47.66936426
B20: 1 | C20: 84.09379684
B21: 1 | C21: 63.98526433
B22: 1 | C22: 75.46289641
B23: 1 | C23: 60.66289791
B24: 1 | C24: 67.15668209
B25: 1 | C25: 77.72068438
B26: 1 | C26: 44.93592335
B27: 1 | C27: 50.59368709
B28: 1 | C28: 34.99334773
B29: 1 | C29: 45.02021064
B30: 1 | C30: 56.03843894
A31: Biomasa | B31: 1.5 | C31: 64.56539475
B32: 1.5
B33: 1.5 | C33: 45.47410029
B34: 1.5 | C34: 100.1430969
B35: 1.5 | C35: 113.9222102
A36: Geotermál | B36: 2 | C36: 57.91017477
B37: 2 | C37: 87.99370949
B38: 2 | C38: 115.6518332
B39: 2 | C39: 129.029667
B40: 2 | C40: 52.52650357
B41: 2 | C41: 79.4760078
B42: 2 | C42: 87.09798263

Sheet Graf 13
A1: Graf 13: Dotácie na podporu výroby elektriny z uhlia (ľavá os, mil. eur), vyrobená energia (pravá os, TWh)
A2: Zdroj: Inštitút hospodárskych analýz, SE
B3: Doplatok (ľavá os, v mil. eur) | C3: Objem vyrobenej elektriny (pravá os, TWh)
A4: 2017 | B4: 95408561 | C4: 1484000
A5: 2018 | B5: 106159834 | C5: 1271000
A6: 2019 | B6: 115737812 | C6: 1167000
A7: 2020 | B7: 109908000 | C7: 961000
A8: 2021 | B8: 124761264 | C8: 923000

Sheet Graf 14
A1: Graf 14: Histogram poberateľov kompenzácie TPS podľa výšky kompenzácie (2021)
A2: Zdroj: MH SR, ÚHP
B3: Počet | C3: Objem
A4: Do 50-tisíc € | B4: 49 | C4: 50000
A5: Od 50 do 100-tisíc € | B5: 30 | C5: 100000
A6: Od 100 do 200-tisíc € | B6: 15 | C6: 200000
A7: Od 200 do 300-tisíc € | B7: 4 | C7: 300000
A8: Od 300 do 400-tisíc € | B8: 3 | C8: 400000
A9: Od 400 do 500-tisíc € | B9: 3 | C9: 500000
A10: Od 500-tisíc do 1 mil. € | B10: 7 | C10: 1000000
A11: Nad 1 mil. € | B11: 6 | C11: 12000000

Sheet Graf 15
A1: Graf 15: Vývoj TPS podľa pásiem (v €/MWh).
A2: Zdroj: ÚHP na základe údajov ÚRSO
B3: Základná sadzba | C3: Multipásmová sadzba, spotreba 1-100 GWh | D3: Multipásmová sazdba, spotreba nad 100 GWh
A4: 2010 | B4: 6.3
A5: 2011 | B5: 14.85
A6: 2012 | B6: 15.7
A7: 2013 | B7: 19.88
A8: 2014 | B8: 19.82
A9: 2015 | B9: 21.82
A10: 2016 | B10: 22.9
A11: 2017 | B11: 26.203
A12: 2018 | B12: 26.43
A13: 2019 | B13: 25.988
A14: 2020 | B14: 23.621
A15: 2021 | B15: 23.7405
A16: 2022 | B16: 15.9 | C16: 11.9 | D16: 1.187
A17: 2023 | B17: 25.4807 | C17: 19.0705 | D17: 1.891

Sheet Graf 16
A1: Graf 16: Tarifa za prevádzkovanie systému (€/MWh), pre rok 2022 bez kompenzácie.
A2: Zdroj: ÚHP
B4: TPS
A5: 2022, > 100 GWh | B5: 1.2
A6: 2022, < 100 GWh | B6: 11.9
A7: 2021 (po odrátaní kompenzácie) | B7: 15
A8: 2021 | B8: 23.7

Sheet Graf 17
A1: Graf 17: Podpora podnikov z Envirofondu v mil. eur a ako % na príjmoch z aukcií kvót
A2: Zdroj: Envirofond
A3: Rok | B3: Kompenzácia nepriamych nákladov (mil. eur) | C3: Podiel kompenzácií nepriamych nákladov na príjmoch z aukcií kvót
A4: 2016 | B4: 10 | C4: 0.154
A5: 2017 | B5: 10 | C5: 0.115
A6: 2018 | B6: 6 | C6: 0.026
A7: 2019 | B7: 4 | C7: 0.016
A8: 2020 | B8: 11 | C8: 0.046
A9: 2021 | B9: 0 | C9: 0

Sheet Graf 18
A1: Graf 18: Podiel kompenzácií nákladov v 2019 na príjmoch z ETS kvót v % (vyplatené v 2020)
A2: Zdroj: EK, 2021
A3: Krajina | B3: Podiel kompenzácií na príjmoch z predaja emisných kvót
A4: LU | B4: 0.63
A5: FR | B5: 0.374
A6: FI | B6: 0.343
A7: BE | B7: 0.309
A8: NL | B8: 0.253
A9: DE | B9: 0.174
A10: EL | B10: 0.083
A11: ES | B11: 0.05
A12: PL | B12: 0.03
A13: SK | B13: 0.016
A14: LT | B14: 0.007

Sheet Graf 19
A1: Graf 19: Vzťah medzi podielom kompenzácii nákladov na príjmoch z ETS kvót a podielom vybraných odvetví na pridanej hodnote v ekonomike v členských štátov EÚ v roku 2019 (%)
A2: Zdroj: EK, Eurostat
A3: Podiel GDP_pododvetvia/ GDP_celkovo | B3: Percentuálny podiel príjmov z aukcií vynaložených na kompenzáciu nepriamych nákladov
A4: 0.02867489186 | B4: 0
A5: 0.02892926527 | B5: 0.309
A6: 0.04291562429 | B6: 0
A7: 0.01863368567 | B7: 0
A8: 0.00498046493 | B8: 0
A9: 0.02865298397 | B9: 0
A10: 0.02178392538 | B10: 0
A11: 0.02237823765 | B11: 0
A12: 0.03720951563 | B12: 0.343
A13: 0.01563769801 | B13: 0.374
A14: 0.02600428981 | B14: 0.174
A15: 0.01960595993 | B15: 0.083
A16: 0.02356323727 | B16: 0
A17: 0.00352756875 | B17: 0
A18: 0.03147257944 | B18: 0
A19: 0.0139392832 | B19: 0
A20: 0.03180112935 | B20: 0.007
A21: 0.001822440219 | B21: 0
A22: 0.0268309032 | B22: 0.253
A23: 0.03687781801 | B23: 0.03
A24: 0.03313265657 | B24: 0
A25: 0.02964550017 | B25: 0.016
A26: 0.03238443943 | B26: 0
A27: 0.02503907584 | B27: 0.05
A28: 0.02326527488 | B28: 0

Sheet Graf 20
A1: Graf 20: Objem zníženia výnosov z TPS v dôsledku zavedenia individuálnej sadzby (v mil. eur)
A2: Zdroj: IHA
B3: Suma
A4: 2018 | B4: 99.04919316
A5: 2019 | B5: 98.0878078
A6: 2020 | B6: 79.54962275
A7: 2021 | B7: 67.502551

Sheet Graf 21
A1: Graf 21: Úrovne TPS (v eur/MWh) podľa ročnej spotreby a individuálna sadzba TPS
A2: Zdroj: ÚHP na základe údajov ÚRSO
B3: TPS (pred zavedením pásem) | C3: TPS (pod 1 GWh) | D3: TPS (1-100 GWh) | E3: TPS (nad 100 GWh) | F3: Individuálna sadzba TPS
A4: 2020 | B4: 23.621 | E4: 1.18
A5: 2021 | B5: 23.7405 | E5: 1.19
A6: 2022 | C6: 15.9 | D6: 11.9 | E6: 1.187 | F6: 1.187
A7: 2023 | C7: 25.4807 | D7: 19.0705 | E7: 1.891 | F7: 1.891

Sheet Graf 22
A1: Graf 22: Objem zníženia výnosov z TSS v dôsledku zavedenia individuálnej sadzby (v mil. eur)
A2: Zdroj: IHA
B3: Suma
A4: 2018 | B4: 25.29409865
A5: 2019 | B5: 22.43247179
A6: 2020 | B6: 22.39617352
A7: 2021 | B7: 18.41145147

Sheet Graf 23
A1: Graf 23: Úroveň TSS a úroveň individuálnej sadzby TSS (v eur/MWh)
A2: Zdroj: ÚHP na základe údajov ÚRSO
B3: Tarifa za systémové služby | C3: Tarifa za systémové služby, individuálna sadzba
A4: 2018 | B4: 6.8919 | C4: =Tabuľka111[[#This Row],[Tarifa za systémové služby]]*0.05 -> 0.344595
A5: 2019 | B5: 5.9434 | C5: =Tabuľka111[[#This Row],[Tarifa za systémové služby]]*0.05 -> 0.29717
A6: 2020 | B6: 6.2121 | C6: =Tabuľka111[[#This Row],[Tarifa za systémové služby]]*0.05 -> 0.310605
A7: 2021 | B7: 6.3081 | C7: =Tabuľka111[[#This Row],[Tarifa za systémové služby]]*0.1 -> 0.63081
A8: 2022 | B8: 6.2976 | C8: =Tabuľka111[[#This Row],[Tarifa za systémové služby]]*0.1 -> 0.62976
A9: 2023 | B9: 10.132 | C9: =Tabuľka111[[#This Row],[Tarifa za systémové služby]]*0.1 -> 1.0132

Sheet Graf 24
A1: Graf 24: Objem dotácie medzi 2019 a 2021 (v mil. eur)
A2: Zdroj: MH SR
B3: Sadzba odvodu do NJF (efektívna sadzba)
A4: 2019 | B4: 6.85221
A5: 2020 | B5: 7.015898
A6: 2021 | B6: 7.973842

Sheet Graf 25
A1: Graf 25: Objem dotácie podľa taríf (v mil. eur)
A2: Zdroj: IHA
B3: Tarifa za rezervovanú kapacitu | C3: Tarifa za prenos elektriny
A4: 2018 | B4: 4.92917567 | C4: 2.000773296
A5: 2019 | B5: 4.902158675 | C5: 1.927385201
A6: 2020 | B6: 4.449935517 | C6: 1.59678107
A7: 2021 | B7: 4.212119626 | C7: 1.701920465

Sheet Graf 26
A1: Graf 26: Daňové oslobodenia a emisie v prepočte na efektívnu energiu podľa modelových príkladov
A2: Zdroj: ÚHP, EIA, IEA, Electricity Maps
D3: Efektivita | E3: gCO2/MWh efektívnej energie) | F3: Zvýhodnenie (€/MWh efektívnej energie) | G3: Emisie kg/MWh
A4: Elektrina | B4: 1.32 | C4: €/MWh | D4: 0.99 | E4: =G4*(1/D4) -> 201.010101 | F4: =B4*(1/D4) -> 1.333333333 | G4: 199
A5: Plyn | B5: 1.32 | C5: €/MWh | D5: 0.6 | E5: 300.8940232 | F5: 2.2 | G5: =52.91/0.29307107 -> 180.5364139
A6: Plyn | B6: 1.32 | C6: €/MWh | D6: 0.95 | E6: 190.0383304 | F6: 1.389473684 | G6: =52.91/0.29307107 -> 180.5364139
A7: Uhlie (25) | B7: 1.529278777 | C7: €/MWh | D7: 0.9 | E7: 368.2459078 | F7: 1.699198641 | G7: =97.13/0.29307107 -> 331.421317
A8: Uhlie (25) | B8: 1.529278777 | C8: €/MWh | D8: 0.6 | E8: 552.3688617 | F8: 2.548797961 | G8: =97.13/0.29307107 -> 331.421317
A9: Uhlie (18) | B9: 2.123998301 | C9: €/MWh | D9: 0.9 | E9: 372.1509143 | F9: 2.359998112 | G9: =98.16/0.29307107 -> 334.9358229
A10: Uhlie (18) | B10: 2.123998301 | C10: €/MWh | D10: 0.6 | E10: 558.2263715 | F10: 3.539997168 | G10: =98.16/0.29307107 -> 334.9358229
A11: Čerpadlo | B11: 2.123998301 | C11: €/MWh | D11: 2.5 | E11: 79.6 | F11: 0.8495993203 | G11: 199

Sheet Graf 27
A1: Graf 27: Financovanie rekreácie a športu (COFOG 8.1) v 2019, % verejných výdavkov a % HDP
A2: Zdroj: Eurostat, prepočty ÚHP
A4: GEO (Labels) | B4: % verejných výdavkov | C4: % HDP | D4: % HDP centrálna vláda
A5: Maďarsko | B5: 0.02363432567 | C5: 0.01080874281 | D5: 0.008104675005
A6: Estónsko | B6: 0.01489575713 | C6: 0.005874016941 | D6: 0.001680351071
A7: Luxembursko | B7: 0.01239637147 | C7: 0.005315433416 | D7: 0.0008867029641
A8: Holandsko | B8: 0.01219333685 | C8: 0.005122654679 | D8: 0.0003911174521
A9: Švédsko | B9: 0.01174319953 | C9: 0.005764260453 | D9: 0.001044520566
A10: Česko | B10: 0.01113761038 | C10: 0.004573329544 | D10: 0.001466072199
A11: Fínsko | B11: 0.01071911994 | C11: 0.005711712763 | D11: 0.0006420465442
A12: Poľsko | B12: 0.01055245969 | C12: 0.004407984334 | D12: 0.0005762744708
A13: Francúzsko | B13: 0.01019062018 | C13: 0.005640713232 | D13: 0.0003290074191
A14: Španielsko | B14: 0.009856174278 | C14: 0.004150678051 | D14: 0.0001518834756
A15: Cyprus | B15: 0.009353414109 | C15: 0.003589759191 | D15: 0.00199044759
A16: Grécko | B16: 0.008967843387 | C16: 0.004294670025 | D16: 0.0004038190367
A17: EU27 | B17: 0.008286124123 | C17: 0.003854657261 | D17: 0.001227357246
A18: Rumunsko | B18: 0.008185913161 | C18: 0.002968240632 | D18: 0.0008679773708
A19: Dánsko | B19: 0.007898512923 | C19: 0.003911096395 | D19: 0.0006483601288
A20: Belgicko | B20: 0.007707990283 | C20: 0.003995492629 | D20: 0
A21: Portugalsko | B21: 0.007343617108 | C21: 0.003117440219 | D21: 0.000247230782
A22: Litva | B22: 0.007223851072 | C22: 0.002511261791 | D22: 0.0004011469528
A23: Chorvátsko | B23: 0.007214911338 | C23: 0.003321852608 | D23: 9.17738261e-05
A24: Lotyšsko | B24: 0.006501828372 | C24: 0.002483097967 | D24: 0.000757002271
A25: Slovinsko | B25: 0.006408666959 | C25: 0.002777048848 | D25: 0.0002293544808
A26: Slovensko | B26: 0.005700732466 | C26: 0.002317965294 | D26: 0.001151539639
A27: Nemecko | B27: 0.005683759754 | C27: 0.002557185426 | D27: 0
A28: Rakúsko | B28: 0.005644921099 | C28: 0.002741507628 | D28: 0
A29: Taliansko | B29: 0.005604802739 | C29: 0.002717192563 | D29: 0.002092134747
A30: Malta | B30: 0.005499287862 | C30: 0.001979056175 | D30: 0.001979056175
A31: Írsko | B31: 0.004241727472 | C31: 0.001026572233 | D31: 0.0006835400362
A32: Bulharsko | B32: 0.002970034231 | C32: 0.001054290263 | D32: 0.003867896943

Sheet Graf 28
A1: Graf 28: Aktéri financovania rekreácie a športu (COFOG 8.1) na Slovensku, 2021, v mil. eur
A2: Zdroj: RIS MF SR
B3: Bežné výdavky | C3: Bežné výdavky | D3: Kapitálové výdavky | E3: Kapitálové výdavky | G3: Podiel na celkovom
A4: Spolu | B4: 0 | C4: 212233181.1 | D4: 0 | E4: 84424361.15 | F4: 41592719.62
A5: Centrálna vláda(zdroje ŠR) | B5: 88696737.45 | C5: 123536443.6 | D5: 42831641.53 | E5: 41592719.62 | F5: 41592719.62 | G5: 0.5566322771
A6: Obce okrem zdrojov ŠR a EÚ | B6: 916739.67 | C6: 87779997.78 | D6: 125903180.2 | E6: 40464904.89 | F6: 41592719.62 | G6: 0.4322994848
A7: VÚC okrem zdrojov ŠR a EÚ | B7: 106547.15 | C7: 810192.52 | D7: 213680662 | E7: 2516 | F7: 41592719.62 | G7: 0.002739551181
A8: Výdavky zo zdrojov EÚ a spolufinancovania | B8: 3.170862328e-08 | C8: 106547.15 | D8: 212126633.9 | E8: 2364220.64 | F8: 41592719.62 | G8: 0.008328686915

Sheet Graf 29
A1: Graf 29: Príspevok uznaným športom (2021, mil. eur) a počet mladých športovcov (logaritmické osi)
A2: Zdroj: MŠVVaŠ SR
C3: Príspevok štátu v roku 2019 (mil. eur) | D3: Počet športovcov do 23 rokov ktorí sa zúčastnili aspoň 3 súťaží
A4: Horolezectvo | B4: horolezectvo | C4: 923 | D4: 57288 | E4: 62.06717226
A5: Športové lezenie | B5: športové lezenie | C5: 376 | D5: 46421 | E5: 123.4601064
A6: Thajský box | B6: thajský box | C6: 191 | D6: 30408 | E6: 159.2041885
A7: Florbal | B7: florbal | C7: 4397 | D7: 709906 | E7: 161.4523539
A8: Americký futbal | B8: americký futbal | C8: 167 | D8: 30408 | E8: 182.0838323
A9: Softbal | B9: softbal | C9: 295 | D9: 54512 | E9: 184.7864407
A10: Športy s lietajúcim diskom | B10: športy s lietajúcim diskom | C10: 181 | D10: 37048 | E10: 204.6850829
A11: Volejbal | B11: volejbal | C11: 10059 | D11: 2069929 | E11: 205.7788051
A12: Tanečný šport | B12: tanečný šport | C12: 2024 | D12: 455543 | E12: 225.0706522
A13: Karate | B13: karate | C13: 3265 | D13: 780816 | E13: 239.1473201
A14: Športové rybárstvo | B14: športové rybárstvo | C14: 126 | D14: 30408 | E14: 241.3333333
A15: Korfbal | B15: korfbal | C15: 119 | D15: 30408 | E15: 255.5294118
A16: Gymnastika | B16: gymnastika | C16: 5271 | D16: 1379292 | E16: 261.6755834
A17: Šach | B17: šach | C17: 832 | D17: 224884 | E17: 270.2932692
A18: Wushu | B18: wushu | C18: 111 | D18: 30408 | E18: 273.9459459
A19: Atletika | B19: atletika | C19: 10667 | D19: 2959811 | E19: 277.4736102
A20: Rugby | B20: rugby | C20: 107 | D20: 30408 | E20: 284.1869159
A21: Jazdectvo | B21: jazdectvo | C21: 472 | D21: 137759 | E21: 291.8622881
A22: Orientačné športy | B22: orientačné športy | C22: 232 | D22: 68718 | E22: 296.1982759
A23: Taekwondo | B23: taekwondo | C23: 294 | D23: 95599 | E23: 325.1666667
A24: Judo | B24: judo | C24: 846 | D24: 294315 | E24: 347.8900709
A25: Triatlon | B25: triatlon | C25: 936 | D25: 350409 | E25: 374.3685897
A26: Basketbal | B26: basketbal | C26: 3695 | D26: 1440325 | E26: 389.8037889
A27: Hádzaná | B27: hádzaná | C27: 5860 | D27: 2383053 | E27: 406.6643345
A28: Lukostreľba | B28: lukostreľba | C28: 200 | D28: 88214 | E28: 441.07
A29: Bedminton | B29: bedminton | C29: 588 | D29: 282030 | E29: 479.6428571
A30: Boccia | B30: boccia | C30: 69 | D30: 33567 | E30: 486.4782609
A31: Moderný päťboj | B31: moderný päťboj | C31: 285 | D31: 140176 | E31: 491.845614
A32: Šípky | B32: šípky | C32: 90 | D32: 44756 | E32: 497.2888889
A33: Bowling | B33: bowling | C33: 58 | D33: 30408 | E33: 524.2758621
A34: Baseball | B34: baseball | C34: 321 | D34: 172762 | E34: 538.1993769
A35: Pretláčanie rukou | B35: pretláčanie rukou | C35: 55 | D35: 30408 | E35: 552.8727273
A36: Potápačské športy | B36: potápačské športy | C36: 216 | D36: 122087 | E36: 565.2175926
A37: Motocyklový šport | B37: motocyklový šport | C37: 282 | D37: 161097 | E37: 571.2659574
A38: Boule lyonnaise | B38: boule lyonnaise | C38: 51 | D38: 30408 | E38: 596.2352941
A39: Kolieskové korčuľovanie | B39: kolieskové korčuľovanie | C39: 95 | D39: 60850 | E39: 640.5263158
A40: Zápasenie | B40: zápasenie | C40: 601 | D40: 437713 | E40: 728.3078203
A41: Box | B41: box | C41: 183 | D41: 150430 | E41: 822.0218579
A42: Rybolovná technika | B42: rybolovná technika | C42: 88 | D42: 72936 | E42: 828.8181818
A43: Krasokorčuľovanie | B43: krasokorčuľovanie | C43: 313 | D43: 267230 | E43: 853.7699681
A44: Bridž | B44: bridž | C44: 34 | D44: 30408 | E44: 894.3529412
A45: Plavecké športy | B45: plavecké športy | C45: 3490 | D45: 3234369 | E45: 926.7532951
A46: Golf | B46: golf | C46: 353 | D46: 338340 | E46: 958.470255
A47: Vodné lyžovanie | B47: vodné lyžovanie | C47: 73 | D47: 76870 | E47: 1053.013699
A48: Psie záprahy | B48: psie záprahy | C48: 45 | D48: 49397 | E48: 1097.711111
A49: Vzpieranie | B49: vzpieranie | C49: 185 | D49: 214828 | E49: 1161.232432
A50: Šerm | B50: šerm | C50: 151 | D50: 185424 | E50: 1227.97351
A51: Vodný motorizmus | B51: vodný motorizmus | C51: 24 | D51: 30408 | E51: 1267
A52: Jachting | B52: jachting | C52: 85 | D52: 116007 | E52: 1364.788235
A53: Rýchlokorčuľovanie | B53: rýchlokorčuľovanie | C53: 63 | D53: 87409 | E53: 1387.444444
A54: Stolný tenis | B54: stolný tenis | C54: 1292 | D54: 1798150 | E54: 1391.756966
A55: Ľadový hokej | B55: ľadový hokej | C55: 6540 | D55: 9444480 | E55: 1444.110092
A56: Tenis | B56: tenis | C56: 2976 | D56: 4404418 | E56: 1479.979167
A57: Kanoistika | B57: kanoistika | C57: 1444 | D57: 2154783 | E57: 1492.231994
A58: Sánkovanie | B58: sánkovanie | C58: 111 | D58: 166760 | E58: 1502.342342
A59: Letecké športy | B59: letecké športy | C59: 122 | D59: 186632 | E59: 1529.770492
A60: Pozemný hokej | B60: pozemný hokej | C60: 118 | D60: 192988 | E60: 1635.491525
A61: Biliard | B61: biliard | C61: 20 | D61: 33567 | E61: 1678.35
A62: Squash | B62: squash | C62: 18 | D62: 30408 | E62: 1689.333333
A63: Dráhový golf | B63: dráhový golf | C63: 24 | D63: 43509 | E63: 1812.875
A64: Boby a skeleton | B64: boby a skeleton | C64: 62 | D64: 112785 | E64: 1819.112903
A65: Kickbox | B65: kickbox | C65: 107 | D65: 196051 | E65: 1832.252336
A66: Veslovanie | B66: veslovanie | C66: 87 | D66: 165597 | E66: 1903.413793
A67: Cyklistika | B67: cyklistika | C67: 1194 | D67: 2302297 | E67: 1928.221943
A68: Petanque | B68: petanque | C68: 15 | D68: 30408 | E68: 2027.2
A69: Curling | B69: curling | C69: 25 | D69: 51019 | E69: 2040.76
A70: Streľba | B70: streľba | C70: 576 | D70: 1201427 | E70: 2085.810764
A71: Lakros | B71: lakros | C71: 13 | D71: 30408 | E71: 2339.076923
A72: Biatlon | B72: biatlon | C72: 227 | D72: 564999 | E72: 2488.982379
A73: Skialpinizmus | B73: skialpinizmus | C73: 12 | D73: 30408 | E73: 2534
A74: Automobilový šport | B74: automobilový šport | C74: 90 | D74: 272014 | E74: 3022.377778
A75: Fitnes a kulturistika | B75: fitnes a kulturistika | D75: 648379
A76: Silový trojboj | B76: silový trojboj | D76: 49792
A77: Futbal | B77: futbal | C77: 67673 | D77: 12350474 | E77: 182.5022387

Sheet Graf 30
A1: Graf 30: Podpora v sektore poľnohospodárstva (2021, mil. eur)
A2: Zdroj: PPA, MPRV SR, ÚHP
B3: Pomocné výpočty | C3: Zdroj ŠR | D3: Zdroj EÚ | E3: SPOLU
A4: SPOLU | B4: 0 | C4: 124206414 | D4: 519032157.3 | E4: 643238571.3
A5: Jednotná platba na plochu | B5: 448915357.5 | C5: 0 | D5: 194323213.8 | E5: 194323213.8
A6: Poľnoh. postupy prospešné pre klímu | B6: 337045371 | C6: 0 | D6: 111869986.5 | E6: 111869986.5
A7: Ostatné oddelené priame platby | B7: 320416087.9 | C7: 0 | D7: 16629283.17 | E7: 16629283.17
A8: Viazané priame platby | B8: 264582332 | C8: 0 | D8: 55833755.86 | E8: 55833755.86
A9: PRV - neprojektové opatrenia | B9: 130677825.1 | C9: 34465943.78 | D9: 99438563.19 | E9: 133904507
A10: PRV - projektové opatrenia | B10: 82019027.71 | C10: 12284109.84 | D10: 36374687.5 | E10: 48658797.34
A11: Trhové opatrenia | B11: 63883995.2 | C11: 13572365.17 | D11: 4562667.34 | E11: 18135032.51
A12: Štátna pomoc | B12: 19288494.87 | C12: 44595500.33 | D12: 0 | E12: 44595500.33
A13: Národné podpory | B13: 10537044.44 | C13: 8751450.43 | D13: 0 | E13: 8751450.43
A14: Podpora potravinárov a doplnková vnútrošt. platba | B14: 0 | C14: 10537044.44 | D14: 0 | E14: 10537044.44

Sheet Graf 31
A1: Graf 31: Poskytnuté dotácie na hektár obhospodarovanej pôdy (2019, eur)
A2: Zdroj: EK, Eurostat, ÚHP
A3: ČŠ | B3: spolu na ha | C3: Dotácie - zdroj EÚ / ha | D3: Dotácie - zdroj ŠR / ha | E3: Mediánová dotácia na ha (zdroj EÚ + ŠR)
A4: CY | B4: 768.7390566 | C4: 684.2219476 | D4: 84.51710891 | E4: 398.6344963 | F4: uk malta prec
A5: NL | B5: 647.6323767 | C5: 440.8026305 | D5: 206.8297463 | E5: 398.6344963
A6: LU | B6: 637.2272131 | C6: 455.5969031 | D6: 181.63031 | E6: 398.6344963
A7: SI | B7: 573.528934 | C7: 537.6566981 | D7: 35.87223587 | E7: 398.6344963
A8: BE | B8: 569.1548403 | C8: 450.8531973 | D8: 118.301643 | E8: 398.6344963
A9: EL | B9: 551.4901846 | C9: 538.2727391 | D9: 13.21744553 | E9: 398.6344963
A10: AT | B10: 543.8885429 | C10: 470.8442504 | D10: 73.04429254 | E10: 398.6344963
A11: FI | B11: 531.7520893 | C11: 393.7319556 | D11: 138.0201336 | E11: 398.6344963
A12: CZ | B12: 487.8763112 | C12: 367.3348993 | D12: 120.5414119 | E12: 398.6344963
A13: IT | B13: 455.3995733 | C13: 422.7614738 | D13: 32.63809953 | E13: 398.6344963
A14: HU | B14: 428.065336 | C14: 388.8109425 | D14: 39.25439348 | E14: 398.6344963
A15: DE | B15: 408.6459486 | C15: 363.9067512 | D15: 44.73919734 | E15: 398.6344963
A16: HR | B16: 402.4882996 | C16: 376.3395325 | D16: 26.1487671 | E16: 398.6344963
A17: DK | B17: 394.7806929 | C17: 357.0234834 | D17: 37.75720952 | E17: 398.6344963
A18: SK | B18: 376.0875947 | C18: 352.2281796 | D18: 23.85941518 | E18: 398.6344963
A19: FR | B19: 366.4732377 | C19: 343.1225415 | D19: 23.35069619 | E19: 398.6344963
A20: PT | B20: 361.6655938 | C20: 342.0400902 | D20: 19.62550354 | E20: 398.6344963
A21: SE | B21: 351.7979605 | C21: 310.412332 | D21: 41.38562855 | E21: 398.6344963
A22: PL | B22: 348.5807721 | C22: 313.2217289 | D22: 35.35904315 | E22: 398.6344963
A23: IE | B23: 345.2721778 | C23: 311.6149747 | D23: 33.65720312 | E23: 398.6344963
A24: LT | B24: 343.7090361 | C24: 329.3632456 | D24: 14.34579052 | E24: 398.6344963
A25: ES | B25: 318.5595887 | C25: 289.3246637 | D25: 29.23492504 | E25: 398.6344963
A26: BG | B26: 278.2255199 | C26: 249.7058824 | D26: 28.51963746 | E26: 398.6344963
A27: EE | B27: 272.8930573 | C27: 260.7234261 | D27: 12.16963119 | E27: 398.6344963
A28: RO | B28: 216.0084273 | C28: 214.0352282 | D28: 1.973199046 | E28: 398.6344963
A29: LV | B29: 163.2726573 | C29: 157.6069252 | D29: 5.665732066 | E29: 398.6344963

Sheet Graf 32
A1: Graf 32: Priíjemcovia zelenej nafty podľa počtu všetkých schválených dotačných schém (2021)
A2: Zdroj: PPA, MPRV SR, ÚHP
A3: Počet schém | B3: Počet príjemcov
A4: 1 | B4: 64
A5: 2 | B5: 66
A6: 3 | B6: 104
A7: 4 | B7: 109
A8: 5 | B8: 139
A9: 6 | B9: 178
A10: 7 | B10: 327
A11: 8 | B11: 418
A12: 9 | B12: 428
A13: 10 | B13: 313
A14: 11 | B14: 173
A15: 12 | B15: 115
A16: 13 | B16: 34
A17: 14 | B17: 20
A18: 15 | B18: 5
A19: 16 | B19: 3
A20: 17 | B20: 1
A21: 18 | B21: 1

Sheet Graf 33
A1: Graf 33: Tvorba hrubého fixného kapitálu (THFK) v poľnohospodárstve na ha obhospodarovanej pôdy (2020)
A2: Zdroj: EK, Eurostat, ÚHP
A5: Member State | C5: GFCF in agriculture (million EUR) | D5: UAA (ha) | E5: GFCF na 1 ha | F5: Priemer EÚ
A6: Netherlands | B6: NL | C6: 4850.52 | D6: 1814450 | E6: 2673.272893 | F6: 449.3512962
A7: Malta | B7: MT | C7: 9.49 | D7: 10700 | E7: 886.9158879 | F7: 449.3512962
A8: Austria | B8: AT | C8: 2263.79 | D8: 2646960 | E8: 855.2414846 | F8: 449.3512962
A9: Belgium | B9: BE | C9: 1103.66 | D9: 1367080 | E9: 807.3119349 | F9: 449.3512962
A10: Luxembourg | B10: LU | C10: 99.95 | D10: 132140 | E10: 756.3947329 | F10: 449.3512962
A11: Italy | B11: IT | C11: 7904.23 | D11: 13122140 | E11: 602.3583044 | F11: 449.3512962
A12: Germany | B12: DE | C12: 9202.69 | D12: 16595000 | E12: 554.5459476 | F12: 449.3512962
A13: Finland | B13: FI | C13: 1189 | D13: 2270000 | E13: 523.7885463 | F13: 449.3512962
A14: Slovenia | B14: SI | C14: 236.5 | D14: 483890 | E14: 488.7474426 | F14: 449.3512962
A15: Denmark | B15: DK | C15: 1217.74 | D15: 2620000 | E15: 464.7862595 | F15: 449.3512962
A16: France | B16: FR | C16: 10547.19 | D16: 28897880 | E16: 364.981445 | F16: 449.3512962
A17: Greece | B17: GR | C17: 1541.71 | D17: 5267520 | E17: 292.6823249 | F17: 449.3512962
A18: Portugal | B18: PT | C18: 1033.51 | D18: 3968970 | E18: 260.3975339 | F18: 449.3512962
A19: Ireland | B19: IE | C19: 1158 | D19: 4511420 | E19: 256.6819316 | F19: 449.3512962
A20: Cyprus | B20: CY | C20: 32.05 | D20: 135560 | E20: 236.4266745 | F20: 449.3512962
A21: Hungary | B21: HU | C21: 1165.05 | D21: 4997880 | E21: 233.1088381 | F21: 449.3512962
A22: Czechia | B22: CZ | C22: 810.7 | D22: 3523870 | E22: 230.0595652 | F22: 449.3512962
A23: Estonia | B23: EE | C23: 213.01 | D23: 985460 | E23: 216.1528626 | F23: 449.3512962
A24: Spain | B24: ES | C24: 4742.55 | D24: 24434630 | E24: 194.0913368 | F24: 449.3512962
A25: Lithuania | B25: LT | C25: 539.7 | D25: 2942780 | E25: 183.3980114 | F25: 449.3512962
A26: Croatia | B26: HR | C26: 201.4 | D26: 1506210 | E26: 133.7130945 | F26: 449.3512962
A27: Latvia | B27: LV | C27: 241.77 | D27: 1969000 | E27: 122.7882174 | F27: 449.3512962
A28: Romania | B28: RO | C28: 1391.24 | D28: 13590720 | E28: 102.3669092 | F28: 449.3512962
A29: Poland | B29: PL | C29: 1370.46 | D29: 14483370 | E29: 94.62300556 | F29: 449.3512962
A30: Bulgaria | B30: BG | C30: 397.34 | D30: 5047250 | E30: 78.72405766 | F30: 449.3512962
A31: Slovakia | B31: SK | C31: 132.89 | D31: 1910040 | E31: 69.57445917 | F31: 449.3512962
A32: Average EU

Sheet Graf 34
A1: Graf 34: Vývoj reálnych príjmov a odpracovaných hodín farmárov – Slovensko a EÚ (index, 2010=100)
A2: Zdroj: EK, Eurostat, ÚHP
C5: 2011 | D5: 2012 | E5: 2013 | F5: 2014 | G5: 2015 | H5: 2016 | I5: 2017 | J5: 2018 | K5: 2019 | L5: 2020
A6: Index | B6: EÚ | C6: 111.53 | D6: 110.53 | E6: 115.19 | F6: 116.24 | G6: 113.71 | H6: 112.79 | I6: 129.43 | J6: 126.31 | K6: 130.84 | L6: 138.77
B7: SK | C7: 118.62 | D7: 133.62 | E7: 130.26 | F7: 143.34 | G7: 142.86 | H7: 173.45 | I7: 205.7 | J7: 201.57 | K7: 189.15 | L7: 207.13
A8: Odpracované hodiny | B8: EÚ | C8: 94.52705506 | D8: 94.1247745 | E8: 92.87567891 | F8: 91.28652601 | G8: 89.76683163 | H8: 91.68668422 | I8: 87.87997183 | J8: 86.96871473 | K8: 85.21025671 | L8: 76.96987237
B9: SK | C9: 102.3172906 | D9: 101.7825312 | E9: 96.61319073 | F9: 96.07843137 | G9: 87.1657754 | H9: 86.80926916 | I9: 77.54010695 | J9: 75.70409982 | K9: 79.32263815 | L9: 75.75757576
A10: Príjmy | B10: EÚ | C10: 14.592 | D10: 14.462 | E10: 15.06 | F10: 15.196 | G10: 14.875 | H10: 14.757 | I10: 16.933 | J10: 16.527 | K10: 17.332 | L10: 17.151
B11: SK | C11: 11.093 | D11: 12.496 | E11: 12.182 | F11: 13.405 | G11: 13.36 | H11: 16.22 | I11: 19.237 | J11: 18.851 | K11: 17.689 | L11: 19.371

Sheet Graf 35
A1: Graf 35: Hrubá pridaná hodnota na hektár obhospodarovanej pôdy (2021)
A2: Zdroj: EK, Eurostat, ÚHP
B4: HPH/ha | C4: Priemer EÚ
A5: NL | B5: 6114.654894 | C5: 1358.384156
A6: MT | B6: 4400.179856 | C6: 1358.384156
A7: CY | B7: 2965.156794 | C7: 1358.384156
A8: IT | B8: 2665.336843 | C8: 1358.384156
A9: BE | B9: 1898.430866 | C9: 1358.384156
A10: EL | B10: 1385.58532 | C10: 1358.384156
A11: AT | B11: 1363.932953 | C11: 1358.384156
A12: ES | B12: 1290.130974 | C12: 1358.384156
A13: FR | B13: 1266.337722 | C13: 1358.384156
A14: DK | B14: 1229.239654 | C14: 1358.384156
A15: DE | B15: 1172.206694 | C15: 1358.384156
A16: LU | B16: 1028.932262 | C16: 1358.384156
A17: PT | B17: 977.0106736 | C17: 1358.384156
A18: HR | B18: 933.089355 | C18: 1358.384156
A19: SI | B19: 867.3423423 | C19: 1358.384156
A20: HU | B20: 826.245675 | C20: 1358.384156
A21: IE | B21: 815.0706951 | C21: 1358.384156
A22: RO | B22: 811.0935858 | C22: 1358.384156
A23: SE | B23: 711.2499336 | C23: 1358.384156
A24: PL | B24: 688.3812948 | C24: 1358.384156
A25: CZ | B25: 669.8944554 | C25: 1358.384156
A26: BG | B26: 590.8179479 | C26: 1358.384156
A27: LV | B27: 527.9320249 | C27: 1358.384156
A28: FI | B28: 510.8280939 | C28: 1358.384156
A29: SK | B29: 371.765565 | C29: 1358.384156
A30: LT | B30: 322.5783063 | C30: 1358.384156
A31: EE | B31: 272.9474425 | C31: 1358.384156

Sheet Graf 36
A1: Graf 36: Podiel dotácií na zisku v sektore poľnohospodárstva (zdroj ŠR+ EÚ, 2020)
A2: Zdroj: EK, Eurostat, ÚHP
B3: Podiel
A4: SI | B4: 2.29790765
A5: SK | B5: 2.166082918
A6: CZ | B6: 1.589406491
A7: EE | B7: 1.397326077
A8: LT | B8: 1.370708908
A9: LU | B9: 1.229055148
A10: SE | B10: 0.8831355922
A11: HU | B11: 0.8067437842
A12: FI | B12: 0.7837533183
A13: AT | B13: 0.7163507264
A14: BG | B14: 0.6892416945
A15: DE | B15: 0.6729320514
A16: RO | B16: 0.65310473
A17: PT | B17: 0.6313058037
A18: HR | B18: 0.612927379
A19: UK | B19: 0.5833395734
A20: IE | B20: 0.5761955061
A21: LV | B21: 0.554487172
A22: FR | B22: 0.5414579285
A23: BE | B23: 0.5338733824
A24: DK | B24: 0.499839287
A25: PL | B25: 0.4834718427
A26: EL | B26: 0.4230476423
A27: NL | B27: 0.368728533
A28: ES | B28: 0.3510140793
A29: IT | B29: 0.3450351899
A30: MT | B30: 0.3281453956
A31: CY | B31: 0.2522558207

Sheet Graf 37
A1: Graf 37: Podiel dotácií na výnosoch poľnohospodárskych podnikov (zdroj ŠR + EÚ)
A2: Zdroj: Zelená správa, ÚHP
B4: 2018 | C4: 2019 | D4: 2020 | E4: 2021
A5: Podiel dotácií na výnosoch | B5: 0.2889020732 | C5: 0.3262019631 | D5: 0.2780907477 | E5: 0.2179007456
A6: Podiel ziskových podnikov | B6: 0.76 | C6: 0.68 | D6: 0.67 | E6: 0.81

Sheet Graf 38
A1: Graf 38: Vyplatená štátna pomoc a počet prijímateľov (priemer 2019-2021, mil. eur)
A2: Zdroj: Monitorovacie správy MPRV SR, Prehľad dotácií poskytovaných v rámci štátnej a minimálnej pomoci
B4: Národné podpory (NP) | C4: Štátna pomoc (ŠP) | D4: Prijímatelia | E4: Prijímatelia
A5: SPOLU | B5: 0 | C5: 43.33333333 | D5: 2200 | E5: 3277
A6: Zelená nafta | B6: 18.46666667 | C6: 24.86666667 | D6: 2200 | E6: 2251.333333
A7: Náhrada škôd* | B7: 13.26666667 | C7: 5.2 | D7: 2200 | E7: 46.33333333
A8: Poistné | B8: 8.3 | C8: 4.966666667 | D8: 2200 | E8: 757.6666667
A9: Ostatné | B9: 0 | C9: 8.3 | D9: 2200 | E9: 222

Sheet Graf 39
A1: Graf 39: Vyplatená štátna pomoc (2018-2022, mil.eur)
A2: Zdroj: MPRV SR
B3: 2018 | C3: 2019 | D3: 2020 | E3: 2021 | F3: 2022
A4: Zelená nafta | B4: 0 | C4: 23.03490352 | D4: 25.7192345 | E4: 25.92279683 | F4: 32.02847327
A5: Náhrada škôd | B5: 0 | C5: 15.58124505 | D5: 0 | E5: 0 | F5: 41.67644636
A6: Poistné | B6: 0 | C6: 3.98218226 | D6: 4.99969163 | E6: 5.99774396 | F6: 7.99999141
A7: Ostatné | B7: 4.37811024 | C7: 5.16419041 | D7: 6.97624205 | E7: 11.54162109 | F7: 22.41893096
A8: Spolu | B8: 4.37811024 | C8: 47.76252124 | D8: 37.69516818 | E8: 43.46216188 | F8: 104.123842

Sheet Graf 40
A1: Graf 40: Výška dotácie (mil. eur) a počty príjemcov v rokoch 2019-2022
A2: Zdroj: MPRV SR
B3: 2019 | C3: 2020 | D3: 2021 | E3: 2022
A4: Počet príjemcov | B4: 2031 | C4: 2225 | D4: 2498 | E4: 2697
A5: Objem dotácií (mil. eur) | B5: 23.03490352 | C5: 25.7192345 | D5: 25.92279683 | E5: 32.02847327

Sheet Graf 41
A1: Graf 41: Príjemcovia Zelenej nafty podľa výšky dotácie v roku 2021 (v tis. eur)
A2: Zdroj: Prehľad dotácií poskytovaných v rámci štátnej pomoci
B4: Počet príjemcov | C4: Objem dotácií (mil. eur)
A5: do 10 tisíc € | B5: 1848 | C5: 4.79785584
A6: 10-20 tisíc € | B6: 283 | C6: 3.99679662
A7: 20-30 tisíc € | B7: 175 | C7: 4.28925845
A8: 30-40 tisíc € | B8: 75 | C8: 2.55809732
A9: 40-50 tisíc € | B9: 38 | C9: 1.71260363
A10: viac ako 50 tisíc € | B10: 79 | C10: 8.56818497

Sheet Graf 42
A1: Graf 42: Vyplatené národné podpory a počet prijímateľov (priemer 2019-2021, mil. eur)
A2: Zdroj: Poskytnuté národné podpory 2019-2021 MPRV SR
B3: Pomocný výpočet kvôli grafu | C3: Vyplatené národné podpory | D3: Prijímatelia
A4: SPOLU | B4: 0 | C4: 7.533 | D4: 2200
A5: ŠP Hydromeliorácie | B5: 5.533 | C5: 2 | D5: 2200
A6: ŠP Topoľčianky | B6: 3.633 | C6: 1.9 | D6: 2200
A7: Prezentačné, publikačné, organizačné a iné činnosti | B7: 1.933 | C7: 1.7 | D7: 2200
A8: ŠP Závodisko | B8: 0.433 | C8: 1.5 | D8: 2200
A9: ŠP Lesy SR | B9: 0.233 | C9: 0.2 | D9: 2200
A10: Kompenzácia strát na zvieratách | B10: 0.033 | C10: 0.2 | D10: 2200
A11: ŠP Ulič | B11: 0 | C11: 0.033 | D11: 2200

Sheet Graf 43
A1: Graf 43: Ostatné dotácie v pôdohospodárstve (mil. eur)
A2: Zdroj: MF SR
B3: 2018 | C3: 2019 | D3: 2020 | E3: 2021
A4: Zelená nafta potravinárom | B4: neexistuje | C4: 5.570464 | D4: 5.08 | E4: 6.996
A5: Vnútroštátne platby | B5: 4.667566137 | C5: 4.119560462 | D5: 3.61938746 | E5: 3.54088512
A6: Správa vojenských lesov | B6: 4.31 | C6: 5.2 | D6: 2.65214 | E6: 1.03786
A7: SPOLU | B7: 8.977566137 | C7: 14.89002446 | D7: 11.35152746 | E7: 11.57474512

Sheet Graf 44
A1: Graf 44: Hustota dobytčích jednotiek na hektár poľnohospodárskej pôdy v roku 2020 (DJ/ha)
A2: Zdroj: IPP, MPRV SR, Eurostat
B4: Počet DJ/ ha | C4: Priemer EÚ
A5: Netherlands | B5: 3.45 | C5: 0.72
A6: Malta | B6: 3.25 | C6: 0.72
A7: Belgium | B7: 2.68 | C7: 0.72
A8: Cyprus | B8: 1.71 | C8: 0.72
A9: Denmark | B9: 1.58 | C9: 0.72
A10: Ireland | B10: 1.28 | C10: 0.72
A11: Luxembourg | B11: 1.24 | C11: 0.72
A12: Germany (until 1990 former territory of the FRG) | B12: 0.98 | C12: 0.72
A13: Slovenia | B13: 0.94 | C13: 0.72
A14: Austria | B14: 0.86 | C14: 0.72
A15: Italy | B15: 0.74 | C15: 0.72
A16: France | B16: 0.7 | C16: 0.72
A17: Spain | B17: 0.69 | C17: 0.72
A18: Poland | B18: 0.68 | C18: 0.72
A19: Portugal | B19: 0.61 | C19: 0.72
A20: Sweden | B20: 0.55 | C20: 0.72
A21: Greece | B21: 0.5 | C21: 0.72
A22: Croatia | B22: 0.5 | C22: 0.72
A23: Czechia | B23: 0.46 | C23: 0.72
A24: Finland | B24: 0.42 | C24: 0.72
A25: Hungary | B25: 0.38 | C25: 0.72
A26: Romania | B26: 0.34 | C26: 0.72
A27: Slovakia | B27: 0.33 | C27: 0.72
A28: Estonia | B28: 0.3 | C28: 0.72
A29: Lithuania | B29: 0.25 | C29: 0.72
A30: Latvia | B30: 0.24 | C30: 0.72
A31: Bulgaria | B31: 0.22 | C31: 0.72

Sheet Graf 45
A1: Graf 45: Verejné výdavky na kultúru v rokoch 2011 – 2020 (% HDP)
A2: Zdroj: Eurostat
B3: 2011 | C3: 2012 | D3: 2013 | E3: 2014 | F3: 2015 | G3: 2016 | H3: 2017 | I3: 2018 | J3: 2019 | K3: 2020
A4: SK | B4: 0.008191434739 | C4: 0.008425480638 | D4: 0.008457596814 | E4: 0.007126833454 | F4: 0.008190206051 | G4: 0.006587725871 | H4: 0.006680253757 | I4: 0.008660404786 | J4: 0.009545125893 | K4: 0.009600420507
A5: V4 | B5: 0.009059138528 | C5: 0.009174973228 | D5: 0.008973237237 | E5: 0.009240107446 | F5: 0.009151095378 | G5: 0.009661721275 | H5: 0.01022383181 | I5: 0.01090712117 | J5: 0.01085158658 | K5: 0.01164862316
A6: EU27 | B6: 0.008227528391 | C6: 0.008076065035 | D6: 0.007995022311 | E6: 0.007877927423 | F6: 0.007655238033 | G6: 0.00773504572 | H6: 0.007746318441 | I6: 0.007809395013 | J6: 0.007743206939 | K6: 0.008338298408

Sheet Graf 46
A1: Graf 46: Verejné výdavky na kultúru v rokoch 2011 – 2020 (% verejných výdavkov)
A2: Zdroj: Eurostat
B3: 2011 | C3: 2012 | D3: 2013 | E3: 2014 | F3: 2015 | G3: 2016 | H3: 2017 | I3: 2018 | J3: 2019 | K3: 2020
A4: SK | B4: 0.01972263674 | C4: 0.02041524091 | D4: 0.01983862353 | E4: 0.01641910344 | F4: 0.01792200108 | G4: 0.01543605332 | H4: 0.0168688678 | I4: 0.02174645515 | J4: 0.02347498869 | K4: 0.02107577026
A5: V4 | B5: 0.02043568038 | C5: 0.0207939331 | D5: 0.02045743333 | E5: 0.0211143754 | F5: 0.02109858405 | G5: 0.02311999687 | H5: 0.02470003893 | I5: 0.02607448141 | J5: 0.02578522143 | K5: 0.0241405225
A6: EU27 | B6: 0.01673978073 | C6: 0.01625360716 | D6: 0.01613247319 | E6: 0.0160886101 | F6: 0.01591737141 | G6: 0.01633916361 | H6: 0.01659008787 | I6: 0.01678613459 | J6: 0.01664441299 | K6: 0.01571017067

Sheet Graf 47
A1: Graf 47: Objem poskytnutej dotačnej podpory z dotačných mechanizmov v rokoch 2008 – 2021 (mil. eur)
A2: Zdroj: IKP, ÚHP podľa RIS MF SR
B3: 2008 | C3: 2009 | D3: 2010 | E3: 2011 | F3: 2012 | G3: 2013 | H3: 2014 | I3: 2015 | J3: 2016 | K3: 2017 | L3: 2018 | M3: 2019 | N3: 2020 | O3: 2021
A4: Ministerstvo kultúry SR | B4: 20.7 | C4: 29 | D4: 19.7 | E4: 17.6 | F4: 20.6 | G4: 20.4 | H4: 19.3 | I4: 19.3 | J4: 10.6 | K4: 12.7 | L4: 19.9 | M4: 17 | N4: 16.2 | O4: 14.2
A5: Audiovizuálny fond | B5: 0 | C5: 0 | D5: 6.8 | E5: 5.657974 | F5: 5.521038 | G5: 6.23429 | H5: 6.40106 | I5: 7.144987 | J5: 7.488128 | K5: 12.415301 | L5: 10.819687 | M5: 10.6 | N5: 11.7 | O5: 15.3
A6: Fond na podporu umenia | B6: 0 | C6: 0 | D6: 0 | E6: 0 | F6: 0 | G6: 0 | H6: 0 | I6: 0 | J6: 14.33039 | K6: 15.609628 | L6: 19.448449 | M6: 21.5 | N6: 19.9 | O6: 29.1
A7: Úrad vlády SR (menšiny) | B7: 0 | C7: 0 | D7: 0 | E7: 3.98162 | F7: 4.36141 | G7: 4.215819 | H7: 3.784901 | I7: 3.872696 | J7: 3.879203 | K7: 4.5 | L7: 0
A8: Fond na podporu kultúry národnostných menšín | B8: 0 | C8: 0 | D8: 0 | E8: 0 | F8: 0 | G8: 0 | H8: 0 | I8: 0 | J8: 0 | K8: 0 | L8: 7.251689 | M8: 7.4 | N8: 7.5 | O8: 7.9

Sheet Graf 48
A1: Graf 48: Výdavky FPU (mil. eur) a podiel administratívnych nákladov na schválenej podpore
A2: Zdroj: RIS MF SR
B3: 2016 | C3: 2017 | D3: 2018 | E3: 2019 | F3: 2020 | G3: 2021 | H3: 2022 OS | I3: 2023 R | J3: 2024 R
A4: Osobné výdavky | B4: 390742.0996 | C4: 414607.8987 | D4: 530451.5996 | E4: 622499.7012 | F4: 671592.4023 | G4: 856894.1587 | H4: 866230 | I4: 866230 | J4: 866230
A5: Tovary a služby | B5: 277792.023 | C5: 432666.3808 | D5: 736297.3036 | E5: 641585.5308 | F5: 332154.0377 | G5: 360957.2695 | H5: 372436 | I5: 372436 | J5: 372436
A6: Bežné dotácie a štipendiá | B6: 13901880.49 | C6: 13979745.01 | D6: 18669198.84 | E6: 20923127.46 | F6: 19595757.25 | G6: 28385102.49 | H6: 18478334 | I6: 18478330 | J6: 18478330
A7: Kapitálové dotácie | B7: 431424 | C7: 498923 | D7: 506484 | E7: 567488 | F7: 309845 | G7: 676219 | H7: 700000 | I7: 700000 | J7: 700000
A8: Spolu | B8: 15001838.61 | C8: 15325942.29 | D8: 20442431.74 | E8: 22754700.69 | F8: 20909348.69 | G8: 30279172.92 | H8: 20417000 | I8: 20416996 | J8: 20416996
A9: podiel nákladov | B9: 0.04657571954 | C9: 0.04940981446 | D9: 0.04212120667 | E9: 0.04359527219 | F9: 0.05042532386 | G9: 0.04190626461

Sheet Graf 49
A1: Graf 49: Výdavky Audiovizuálneho fondu (mil. eur)
A2: Zdroj: RIS MF SR
B3: 2015 | C3: 2016 | D3: 2017 | E3: 2018 | F3: 2019 | G3: 2020 | H3: 2021 | I3: 2022 OS | J3: 2023 R | K3: 2024 R
A4: Osobné výdavky | B4: 215073 | C4: 218915 | D4: 228273 | E4: 276426 | F4: 376824.5016 | G4: 400387.9486 | H4: 424059.9838 | I4: 455000 | J4: 455000 | K4: 455000
A5: Tovary a služby | B5: 262698 | C5: 262932 | D5: 266120 | E5: 353774 | F5: 1008325.458 | G5: 510530.1065 | H5: 414558.2913 | I5: 495100 | J5: 495100 | K5: 495100
A6: Kapitálové dotácie | B6: 413280 | C6: 292925 | D6: 333295 | E6: 180930 | F6: 276560 | G6: 163620 | H6: 180665 | I6: 200000 | J6: 200000 | K6: 200000
A7: Filmové vratky | C7: 412599 | D7: 368292 | E7: 217333 | F7: 970457 | G7: 2290030 | H7: 5585009 | I7: 6010000 | J7: 6290000 | K7: 6600000
A8: Bežné dotácie a štipendiá | B8: 6110895 | C8: 6623055 | D8: 7412346 | E8: 9685077 | F8: 9306189.67 | G8: 9275476.73 | H8: 9583705.46 | I8: 7750000 | J8: 7563110 | K8: 7563110
A9: Spolu | B9: 7224691.546 | C9: 7914325.387 | D9: 8678325.748 | E9: 10904924.22 | F9: 12023356.63 | G9: 12660044.79 | H9: 16187997.74 | I9: 14950100 | J9: 15230100 | K9: 15540100

Sheet Graf 50
A1: Graf 50: Výdavky na filmové vratky (mil. eur), počet podporených filmov a počet žiadostí (pravá os)
A2: Zdroj: RIS MF SR, MK SR
B3: 2016 | C3: 2017 | D3: 2018 | E3: 2019 | F3: 2020 | G3: 2021 | H3: 2022 OS | I3: 2023 R | J3: 2024 R
A4: Výška vratiek | B4: 412599 | C4: 368292 | D4: 217333 | E4: 970457 | F4: 2290030 | G4: 5585009 | H4: 6010000 | I4: 6290000 | J4: 6600000
A5: Počet filmov | B5: 2000000 | C5: 2000000 | D5: 2000000 | E5: 12000000 | F5: 19000000 | G5: 41000000
A6: Počet žiadostí o registráciu filmového projektu | B6: 4000000 | C6: 12000000 | D6: 30000000 | E6: 28000000 | F6: 45000000 | G6: 64000000 | H6: 79000000

Sheet Graf 51
A1: Graf 51: Výdavky Fondu na podporu kultúry národnostných menšín (mil. eur)
A2: Zdroj: RIS MF SR
B3: 2017 | C3: 2018 | D3: 2019 | E3: 2020 | F3: 2021 | G3: 2022 OS | H3: 2023 R | I3: 2024 R
A4: Osobné výdavky | B4: 41323.97949 | C4: 214396.2393 | D4: 280229.1904 | E4: 318082.3308 | F4: 316406.8023 | G4: 307000 | H4: 307000 | I4: 307000
A5: Tovary a služby | B5: 52924.99993 | C5: 240527.07 | D5: 156307.2705 | E5: 148680.2209 | F5: 130951.19 | G5: 129000 | H5: 129000 | I5: 129000
A6: Dotácie a štipendiá | C6: 7252174.48 | D6: 7429306.95 | E6: 7502305.63 | F6: 7948958.88 | G6: 7604000 | H6: 7604000 | I6: 7604000
A7: Spolu | B7: 94248.97943 | C7: 7707097.789 | D7: 7865843.411 | E7: 7969068.182 | F7: 8396316.872 | G7: 8040000 | H7: 8040000 | I7: 8040000

Sheet Graf 52
A1: Graf 52: Výdavky dotačnej schémy – Obnovme si svoj dom (mil. eur)
A2: Zdroj: RIS MF SR
B3: 2011 | C3: 2012 | D3: 2013 | E3: 2014 | F3: 2015 | G3: 2016 | H3: 2017 | I3: 2018 | J3: 2019 | K3: 2020 | L3: 2021 | M3: 2022 | N3: 2023 R | O3: 2024 R
A4: 640 Bežné dotácie | B4: 3933472.31 | C4: 4417584.99 | D4: 4299155.73 | E4: 4523016.41 | F4: 4873393.02 | G4: 5777763.99 | H4: 5867917.37 | I4: 7287423 | J4: 6747644 | K4: 6231462 | L4: 6671520 | M4: 7043402 | N4: 11016100 | O4: 11016100
A5: 720 Kapitálové dotácie | B5: 735600 | C5: 1070741 | D5: 1058767 | E5: 1022130.49 | F5: 884090.33 | G5: 808595.57 | H5: 2311936.26 | I5: 7827917 | J5: 5559403 | K5: 5504800 | L5: 5144000 | M5: 6466800 | N5: 3690000 | O5: 3690000
A6: Spolu | B6: 4669072.31 | C6: 5488325.99 | D6: 5357922.73 | E6: 5545146.9 | F6: 5757483.35 | G6: 6586359.56 | H6: 8179853.63 | I6: 15115340 | J6: 12307047 | K6: 11736262 | L6: 11815520 | M6: 13510202 | N6: 14706100 | O6: 14706100

Sheet Graf 53
A1: Graf 53: Transfery zo ŠR a spolufinancovanie projektov Maticou slovenskou (tis. eur)
A2: Zdroj: Matica slovenská
B3: 2015 | C3: 2016 | D3: 2017 | E3: 2018 | F3: 2019 | G3: 2020* | H3: 2021 | I3: 2022
A4: Financovanie z rozpočtu MS | B4: 259662 | C4: 208820 | D4: 320455 | E4: 158607 | F4: 385386 | H4: 188672 | I4: 179587
A5: Príspevok žiadaný od MK | B5: 1494000 | C5: 1494000 | D5: 1494000 | E5: 1494000 | F5: 1494000 | G5: 1744000 | H5: 1344600 | I5: 1344600
A6: Navýšenie príspevku od MK | C6: 1514000 | D6: 1594000 | E6: 1734000 | F6: 1784000
A7: pomer spolufinancovania | B7: 0.1480684419 | C7: 0.1226318695 | D7: 0.176612261 | E7: 0.09593898405 | F7: 0.205936135 | H7: 0.1230518786 | I7: 0.1178247813

Sheet Graf 54
A1: Graf 54: Výdavky dotačnej schémy – Kultúra znevýhodnených skupín obyvateľstva (tis. eur)
A2: Zdroj: RIS MF SR
B3: 2015 | C3: 2016 | D3: 2017 | E3: 2018 | F3: 2019 | G3: 2020 | H3: 2021 | I3: 2022 | J3: 2023 R | K3: 2024 R | L3: 2025 R
A4: Bežné dotácie | B4: 357279.55 | C4: 377775 | D4: 899303.1016 | E4: 954608.3008 | F4: 833434.2031 | G4: 876683.6992 | H4: 914095.6016 | I4: 945820 | J4: 980000 | K4: 980000 | L4: 980000
A5: Kapitálové dotácie | H5: 119948 | I5: 39421.5
A6: Spolu | B6: 357279.55 | C6: 377775 | D6: 899303.1016 | E6: 954608.3008 | F6: 833434.2031 | G6: 876683.6992 | H6: 1034043.602 | I6: 985241.5 | J6: 980000 | K6: 980000 | L6: 980000

Sheet Graf 55
A1: Graf 55: Cenové indexy pre vybrané tlačené tituly – denníky (10 % DPH) a týždenníky (20 % DPH)
A2: Zdroj: ŠÚ SR
A4: tovar (denníky, kupované v pondelok) | B4: 2018-01-01 | C4: 2018-02-01 | D4: 2018-03-01 | E4: 2018-04-01 | F4: 2018-05-01 | G4: 2018-06-01 | H4: 2018-07-01 | I4: 2018-08-01 | J4: 2018-09-01 | K4: 2018-10-01 | L4: 2018-11-01 | M4: 2018-12-01 | N4: 2019-01-01 | O4: 2019-02-01 | P4: 2019-03-01 | Q4: 2019-04-01 | R4: 2019-05-01 | S4: 2019-06-01 | T4: 2019-07-01 | U4: 2019-08-01 | V4: 2019-09-01 | W4: 2019-10-01 | X4: 2019-11-01 | Y4: 2019-12-01 | Z4: 2020-01-01 | AA4: 2020-02-01 | AB4: 2020-03-01 | AC4: 2020-04-01 | AD4: 2020-05-01 | AE4: 2020-06-01 | AF4: 2020-07-01 | AG4: 2020-08-01 | AH4: 2020-09-01 | AI4: 2020-10-01 | AJ4: 2020-11-01 | AK4: 2020-12-01 | AL4: 2021-01-01 | AM4: 2021-02-01 | AN4: 2021-03-01 | AO4: 2021-04-01 | AP4: 2021-05-01 | AQ4: 2021-06-01 | AR4: 2021-07-01 | AS4: 2021-08-01 | AT4: 2021-09-01 | AU4: 2021-10-01 | AV4: 2021-11-01 | AW4: 2021-12-01
A5: Nový čas (denník) | B5: 112.245 | C5: 112.245 | D5: 112.245 | E5: 112.245 | F5: 112.245 | G5: 112.245 | H5: 112.245 | I5: 112.245 | J5: 112.245 | K5: 112.245 | L5: 112.245 | M5: 112.245 | N5: 112.245 | O5: 112.245 | P5: 112.245 | Q5: 120.4085788 | R5: 120.4085788 | S5: 120.4085788 | T5: 120.4085788 | U5: 120.4085788 | V5: 120.4085788 | W5: 120.4085788 | X5: 120.4085788 | Y5: 120.4085788 | Z5: 132.6529272 | AA5: 132.6529272 | AB5: 132.6529272 | AC5: 132.6529272 | AD5: 132.6529272 | AE5: 132.6529272 | AF5: 132.6529272 | AG5: 132.6529272 | AH5: 132.6529272 | AI5: 132.6529272 | AJ5: 140.8166289 | AK5: 140.8166289 | AL5: =AK5 -> 140.8166289 | AM5: 140.8166289 | AN5: 140.8166289 | AO5: 140.8166289 | AP5: 140.8166289 | AQ5: 140.8166289 | AR5: 140.8166289 | AS5: 140.8166289 | AT5: 140.8166289 | AU5: =[23]s_quash_2021!$AA$589/[23]s_quash_2021!$Z$589*AT5 -> 153.0620429 | AV5: =AU5 -> 153.0620429 | AW5: 153.0620429
A6: Pravda (denník) | B6: 120 | C6: 120 | D6: 120 | E6: 120 | F6: 120 | G6: 120 | H6: 120 | I6: 120 | J6: 120 | K6: 120 | L6: 120 | M6: 120 | N6: 120 | O6: 120 | P6: 120 | Q6: 120 | R6: 120 | S6: 120 | T6: 120 | U6: 120 | V6: 120 | W6: 120 | X6: 159.9996 | Y6: 159.9996 | Z6: 159.9996 | AA6: 159.9996 | AB6: 159.9996 | AC6: 159.9996 | AD6: 159.9996 | AE6: 159.9996 | AF6: 159.9996 | AG6: 159.9996 | AH6: 159.9996 | AI6: 159.9996 | AJ6: 159.9996 | AK6: 159.9996 | AL6: =118.75/100*AK6 -> 189.999525 | AM6: =AL6 -> 189.999525 | AN6: 189.999525 | AO6: 189.999525 | AP6: 189.999525 | AQ6: 189.999525 | AR6: 189.999525 | AS6: 189.999525 | AT6: 189.999525 | AU6: 189.999525 | AV6: 189.999525 | AW6: 189.999525
A7: SME (denník) | B7: 120 | C7: 120 | D7: 120 | E7: 120 | F7: 120 | G7: 120 | H7: 120 | I7: 120 | J7: 120 | K7: 120 | L7: 120 | M7: 120 | N7: 120 | O7: 120 | P7: 120 | Q7: 159.9996 | R7: 159.9996 | S7: 159.9996 | T7: 159.9996 | U7: 159.9996 | V7: 159.9996 | W7: 159.9996 | X7: 159.9996 | Y7: 159.9996 | Z7: 159.9996 | AA7: 159.9996 | AB7: 159.9996 | AC7: 159.9996 | AD7: 159.9996 | AE7: 159.9996 | AF7: 159.9996 | AG7: 159.9996 | AH7: 159.9996 | AI7: 159.9996 | AJ7: 159.9996 | AK7: 159.9996 | AL7: =125/100*AK7 -> 199.9995 | AM7: =AL7 -> 199.9995 | AN7: 199.9995 | AO7: 199.9995 | AP7: 199.9995 | AQ7: 199.9995 | AR7: 199.9995 | AS7: 199.9995 | AT7: 199.9995 | AU7: 199.9995 | AV7: 199.9995 | AW7: 199.9995
A8: Hospodárske noviny (denník) | B8: 116.4719736 | C8: 116.4719736 | D8: 116.4719736 | E8: 116.4719736 | F8: 116.4719736 | G8: 116.4719736 | H8: 116.4719736 | I8: 116.4719736 | J8: 116.4719736 | K8: 116.4719736 | L8: 116.4719736 | M8: 116.4719736 | N8: 116.4719736 | O8: 116.4719736 | P8: 116.4719736 | Q8: 116.4719736 | R8: 116.4719736 | S8: 116.4719736 | T8: 116.4719736 | U8: 116.4719736 | V8: 116.4719736 | W8: 116.4719736 | X8: 116.4719736 | Y8: 116.4719736 | Z8: 116.4719736 | AA8: 116.4719736 | AB8: 116.4719736 | AC8: 116.4719736 | AD8: 116.4719736 | AE8: 116.4719736 | AF8: 116.4719736 | AG8: 116.4719736 | AH8: 116.4719736 | AI8: 116.4719736 | AJ8: 140.0016417 | AK8: 116.4719736 | AL8: =110.101/100*AK8 -> 128.2368076 | AM8: =AL8 -> 128.2368076 | AN8: 128.2368076 | AO8: 128.2368076 | AP8: 128.2368076 | AQ8: 128.2368076 | AR8: =118.182/110.101*AQ8 -> 137.6489078 | AS8: =AR8 -> 137.6489078 | AT8: =115.152/118.182*AS8 -> 134.119807 | AU8: =110.101/115.152*AT8 -> 128.2368076 | AV8: =115.152/110.101*AU8 -> 134.119807 | AW8: =120.202/115.152*AV8 -> 140.0016417
A9: Záhradkár (týždenník) | B9: 118.8678597 | C9: 118.8678597 | D9: 118.8678597 | E9: 118.8678597 | F9: 118.8678597 | G9: 118.8678597 | H9: 118.8678597 | I9: 118.8678597 | J9: 118.8678597 | K9: 118.8678597 | L9: 118.8678597 | M9: 118.8678597 | N9: 125.1571582 | O9: 125.1571582 | P9: 125.1571582 | Q9: 125.1571582 | R9: 125.1571582 | S9: 125.1571582 | T9: 125.1571582 | U9: 125.1571582 | V9: 125.1571582 | W9: 125.1571582 | X9: 125.1571582 | Y9: 125.1571582 | Z9: 137.7354526 | AA9: 137.7354526 | AB9: 137.7354526 | AC9: 137.7354526 | AD9: 137.7354526 | AE9: 137.7354526 | AF9: 137.7354526 | AG9: 137.7354526 | AH9: 137.7354526 | AI9: 137.7354526 | AJ9: 137.7354526 | AK9: 144.0245998 | AL9: =AK9 -> 144.0245998 | AM9: 144.0245998 | AN9: 144.0245998 | AO9: 144.0245998 | AP9: 144.0245998 | AQ9: 144.0245998 | AR9: =AQ9 -> 144.0245998 | AS9: =AR9 -> 144.0245998 | AT9: =AS9 -> 144.0245998 | AU9: =AT9 -> 144.0245998 | AV9: =AU9 -> 144.0245998 | AW9: =AV9 -> 144.0245998
A10: Plus 7 dní (tyždenník) | B10: 120.8339279 | C10: 120.8339279 | D10: 120.8339279 | E10: 120.8339279 | F10: 120.8339279 | G10: 120.8339279 | H10: 120.8339279 | I10: 120.8339279 | J10: 120.8339279 | K10: 120.8339279 | L10: 120.8339279 | M10: 120.8339279 | N10: 124.1677359 | O10: 124.1677359 | P10: 124.1677359 | Q10: 124.1677359 | R10: 124.1677359 | S10: 124.1677359 | T10: 124.1677359 | U10: 124.1677359 | V10: 124.1677359 | W10: 124.1677359 | X10: 124.1677359 | Y10: 124.1677359 | Z10: 132.5006327 | AA10: 132.5006327 | AB10: 132.5006327 | AC10: 132.5006327 | AD10: 132.5006327 | AE10: 132.5006327 | AF10: 132.5006327 | AG10: 132.5006327 | AH10: 132.5006327 | AI10: 132.5006327 | AJ10: 132.5006327 | AK10: 132.5006327 | AL10: =112.579/100*AK10 -> 149.1678873 | AM10: 149.1678873 | AN10: 149.1678873 | AO10: 149.1678873 | AP10: 149.1678873 | AQ10: 149.1678873 | AR10: =AQ10 -> 149.1678873 | AS10: =AR10 -> 149.1678873 | AT10: =AS10 -> 149.1678873 | AU10: =AT10 -> 149.1678873 | AV10: =AU10 -> 149.1678873 | AW10: =125.157/112.579*AV10 -> 165.8338169

Sheet Graf 56
A1: Graf 56: Dlhodobý pokles tlačených titulov – denníkov (DPH 10 %) aj týždenníkov (DPH 20 %)
A2: Zdroj: abcsr.sk
A3: tovar (denníky, kupované v pondelok) | B3: 2018-01-01 | C3: 2018-02-01 | D3: 2018-03-01 | E3: 2018-04-01 | F3: 2018-05-01 | G3: 2018-06-01 | H3: 2018-07-01 | I3: 2018-08-01 | J3: 2018-09-01 | K3: 2018-10-01 | L3: 2018-11-01 | M3: 2018-12-01 | N3: 2019-01-01 | O3: 2019-02-01 | P3: 2019-03-01 | Q3: 2019-04-01 | R3: 2019-05-01 | S3: 2019-06-01 | T3: 2019-07-01 | U3: 2019-08-01 | V3: 2019-09-01 | W3: 2019-10-01 | X3: 2019-11-01 | Y3: 2019-12-01 | Z3: 2020-01-01 | AA3: 2020-02-01 | AB3: 2020-03-01 | AC3: 2020-04-01 | AD3: 2020-05-01 | AE3: 2020-06-01 | AF3: 2020-07-01 | AG3: 2020-08-01 | AH3: 2020-09-01 | AI3: 2020-10-01 | AJ3: 2020-11-01 | AK3: 2020-12-01 | AL3: 2021-01-01 | AM3: 2021-02-01 | AN3: 2021-03-01 | AO3: 2021-04-01 | AP3: 2021-05-01 | AQ3: 2021-06-01 | AR3: 2021-07-01 | AS3: 2021-08-01 | AT3: 2021-09-01 | AU3: 2021-10-01 | AV3: 2021-11-01 | AW3: 2021-12-01
A4: Nový čas (dennik) | B4: 78015 | C4: 77283 | D4: 82654 | E4: 77960 | F4: 80768 | G4: 75283 | H4: 75468 | I4: 75967 | J4: 75157 | K4: 74625 | L4: 72533 | M4: 74291 | N4: 71818 | O4: 72341 | P4: 74885 | Q4: 73887 | R4: 71762 | S4: 71082 | T4: 67891 | U4: 69402 | V4: 68277 | W4: 69565 | X4: 71309 | Y4: 67899 | Z4: 65507 | AA4: 66503 | AB4: 61234 | AC4: 56306 | AD4: 58581 | AE4: 56331 | AF4: 57807 | AG4: 57539 | AH4: 56816 | AI4: 57176 | AJ4: 56575 | AK4: 54795 | AL4: 55777 | AM4: 53351 | AN4: 53743 | AO4: 53449 | AP4: 51382 | AQ4: 49433 | AR4: 50401 | AS4: 47755 | AT4: 48767 | AU4: 49288 | AV4: 48374 | AW4: 46096
A5: Hospodárske noviny (denník) | B5: 10395 | C5: 10545 | D5: 10466 | E5: 10325 | F5: 10025 | G5: 10028 | H5: 10014 | I5: 10024 | J5: 10013 | K5: 10123 | L5: 10312 | M5: 10084 | N5: 10161 | O5: 10196 | P5: 10207 | Q5: 10197 | R5: 10415 | S5: 10253 | T5: 10014 | U5: 10102 | V5: 10366 | W5: 10114 | X5: 10443 | Y5: 10584 | Z5: 10264.33333 | AA5: 10126 | AB5: 9045 | AC5: 9467 | AD5: 9487 | AE5: 10003 | AF5: 10084.78261 | AG5: 9966.666667 | AH5: 10489.35 | AI5: 10072.36364 | AJ5: 10487.7 | AK5: 10588.42857 | AL5: 9840.421053 | AM5: 9460 | AN5: 9023 | AO5: 9165 | AP5: 9051 | AQ5: 8631 | AR5: 8758.2 | AS5: 8315 | AT5: 9066 | AU5: 8827 | AV5: 8932 | AW5: 8927
A6: SME (denník) | B6: 22823 | C6: 23776 | D6: 26398 | E6: 24315 | F6: 23628 | G6: 23213 | H6: 22192 | I6: 22918 | J6: 22680 | K6: 23838 | L6: 23406 | M6: 23799 | N6: 22229 | O6: 22642 | P6: 23067 | Q6: 22929 | R6: 22409.8 | S6: 21780 | T6: 20718 | U6: 21834 | V6: 21420 | W6: 21799.6 | X6: 22121 | Y6: 21603.56522 | Z6: 21230 | AA6: 21477 | AB6: 20409 | AC6: 20603 | AD6: 19518.41667 | AE6: 18971.53846 | AF6: 19281.2963 | AG6: 18911.32 | AH6: 19936.375 | AI6: 19038.48148 | AJ6: 18616.95833 | AK6: 18492.20833 | AL6: 18163.08333 | AM6: 17571 | AN6: 16919 | AO6: 17528 | AP6: 16277.91667 | AQ6: 16140.23077 | AR6: 16578 | AS6: 15879 | AT6: 17238.54167 | AU6: 15985.65385 | AV6: 15761 | AW6: 15637
A7: Záhradkár (týždennik) | B7: 60523 | C7: 66938 | D7: 72608 | E7: 69029 | F7: 63688 | G7: 64049 | H7: 62439 | I7: 61255 | J7: 58367 | K7: 58322 | L7: 51982 | M7: 53136 | N7: 51397 | O7: 62352 | P7: 66405 | Q7: 66318 | R7: 62625 | S7: 56653 | T7: 55899 | U7: 55039 | V7: 59013 | W7: 59666 | X7: 52522 | Y7: 48434 | Z7: 55249 | AA7: 61156 | AB7: 64549 | AC7: 60460 | AD7: 58189 | AE7: 60765 | AF7: 52126 | AG7: 58303 | AH7: 54365 | AI7: 55104 | AJ7: 47375 | AK7: 49372 | AL7: 48266 | AM7: 63516 | AN7: 60086 | AO7: 67595 | AP7: 52694 | AQ7: 51759 | AR7: 49650 | AS7: 52532 | AT7: 46551 | AU7: 49993 | AV7: 44657 | AW7: 47766
A8: Plus 7 dní (tyždenník) | B8: 97440 | C8: 100131 | D8: 99236 | E8: 94511 | F8: 94038 | G8: 91339 | H8: 97503 | I8: 98014 | J8: 94440 | K8: 103449 | L8: 95768 | M8: 102279 | N8: 93688 | O8: 93950 | P8: 91987 | Q8: 93469 | R8: 93073 | S8: 91311 | T8: 93286 | U8: 93373 | V8: 91083 | W8: 92296.6 | X8: 90096.3 | Y8: 97522.6 | Z8: 93777 | AA8: 92187 | AB8: 90347 | AC8: 93115.6 | AD8: 89102 | AE8: 93076 | AF8: 95100.6 | AG8: 90549.2 | AH8: 88696 | AI8: 87335.6 | AJ8: 87769 | AK8: 95820 | AL8: 94558.2 | AM8: 93321 | AN8: 89265 | AO8: 85492 | AP8: 84116 | AQ8: 84051 | AR8: 86097 | AS8: 82995 | AT8: 81085 | AU8: 79085 | AV8: 79840 | AW8: 87684
A9: Všetky týždenníky (pravá os) | B9: 665916 | C9: 650871 | D9: 647943 | E9: 616684 | F9: 611139 | G9: 600875 | H9: 620260 | I9: 626872 | J9: 599340 | K9: 609321 | L9: 597026 | M9: 671398 | N9: 588927 | O9: 585626 | P9: 570033 | Q9: 582136 | R9: 553247 | S9: 557813 | T9: 558092 | U9: 565658 | V9: 541598.6 | W9: 553525.2 | X9: 539227.3 | Y9: 623793.6 | Z9: 519027.85 | AA9: 519222.75 | AB9: 510203 | AC9: 518264.6 | AD9: 484077.25 | AE9: 495703.35 | AF9: 496593.65 | AG9: 487870.15 | AH9: 477674.75 | AI9: 473314.8 | AJ9: 468951.5 | AK9: 565382.3333 | AL9: 490227.8 | AM9: 488120.1 | AN9: 479244 | AO9: 463239.6 | AP9: 449918.95 | AQ9: 452404 | AR9: 449294.6 | AS9: 441005 | AT9: 437065.75 | AU9: 433057 | AV9: 430815 | AW9: 518274

Sheet Graf 57
A1: Graf 57: Vývoj predaja elektronických titulov, počtu predplatiteľov
A2: Zdroj: abcsr.sk; denníkN
A3: tovar (denníky, kupované v pondelok) | B3: 2018-01-01 | C3: 2018-02-01 | D3: 2018-03-01 | E3: 2018-04-01 | F3: 2018-05-01 | G3: 2018-06-01 | H3: 2018-07-01 | I3: 2018-08-01 | J3: 2018-09-01 | K3: 2018-10-01 | L3: 2018-11-01 | M3: 2018-12-01 | N3: 2019-01-01 | O3: 2019-02-01 | P3: 2019-03-01 | Q3: 2019-04-01 | R3: 2019-05-01 | S3: 2019-06-01 | T3: 2019-07-01 | U3: 2019-08-01 | V3: 2019-09-01 | W3: 2019-10-01 | X3: 2019-11-01 | Y3: 2019-12-01 | Z3: 2020-01-01 | AA3: 2020-02-01 | AB3: 2020-03-01 | AC3: 2020-04-01 | AD3: 2020-05-01 | AE3: 2020-06-01 | AF3: 2020-07-01 | AG3: 2020-08-01 | AH3: 2020-09-01 | AI3: 2020-10-01 | AJ3: 2020-11-01 | AK3: 2020-12-01 | AL3: 2021-01-01 | AM3: 2021-02-01 | AN3: 2021-03-01 | AO3: 2021-04-01 | AP3: 2021-05-01 | AQ3: 2021-06-01 | AR3: 2021-07-01 | AS3: 2021-08-01 | AT3: 2021-09-01 | AU3: 2021-10-01 | AV3: 2021-11-01 | AW3: 2021-12-01
A4: SME (elektronické vydanie; pravá os) | B4: 9135 | C4: 9440 | D4: 10812 | E4: 10949 | F4: 10503 | G4: 9673 | H4: 8739 | I4: 8440 | J4: 10113 | K4: 10175 | L4: 10046 | M4: 11145 | N4: 10148 | O4: 10226 | P4: 10370 | Q4: 6973 | R4: 31425 | S4: 31532 | T4: 31634 | U4: 32007 | V4: 33056 | W4: 32875 | X4: 34072 | Y4: 35048 | Z4: 37394 | AA4: 39019 | AB4: 40623 | AC4: 44115 | AD4: 44267 | AE4: 45541.23 | AF4: 46185.676 | AG4: 46277.96 | AH4: 46340.83 | AI4: 45747.33 | AJ4: 48462 | AK4: 48120 | AL4: 51438 | AM4: 53179 | AN4: 55224 | AO4: 54584 | AP4: 52424 | AQ4: 51782 | AR4: 51422 | AS4: 51462 | AT4: 52550 | AU4: 52664 | AV4: 52967 | AW4: 53447
A5: Hospodárske noviny (elektronické vydanie) | B5: 487 | C5: 543 | D5: 503 | E5: 566 | F5: 576 | G5: 601 | H5: 614 | I5: 627 | J5: 590 | K5: 586 | L5: 653 | M5: 744 | N5: 868 | O5: 1027 | P5: 1115 | Q5: 1072 | R5: 1064 | S5: 1160 | T5: 1011 | U5: 1068 | V5: 1128 | W5: 1289 | X5: 1908 | Y5: 1797 | Z5: 1195 | AA5: 1142 | AB5: 3047 | AC5: 3436 | AD5: 2687 | AE5: 2309 | AF5: 2234.290323 | AG5: 2009.709677 | AH5: 2163.366667 | AI5: 3589.419355 | AJ5: 3021.1 | AK5: 2722.451613 | AL5: 2620.483871 | AM5: 2668.821429 | AN5: 2810 | AO5: 2712 | AP5: 2651 | AQ5: 2404 | AR5: 2317 | AS5: 2217 | AT5: 2205 | AU5: 2184 | AV5: 2102 | AW5: 2096
A6: Denník N (počet predplatiteľov, pravá os) | K6: 30000 | L6: 30000 | M6: 30000 | W6: 45000 | X6: 45000 | Y6: 45000 | AI6: 62000 | AJ6: 62000 | AK6: 62000 | AU6: 73000 | AV6: 73000 | AW6: 73000

Sheet Graf 58
A1: Graf 58: Výdavky na VaV ako podiel HDP, 2021
A2: Zdroj: Eurostat
A3: GEO (Labels) | B3: 2021 | C3: Priemer krajín EÚ | D3: Priemer krajín V3
A4: SE | B4: 0.0336 | C4: 0.01765 | D4: 0.01696666667
A5: BE | B5: 0.0322 | C5: 0.01765 | D5: 0.01696666667
A6: AT | B6: 0.0319 | C6: 0.01765 | D6: 0.01696666667
A7: DE | B7: 0.0313 | C7: 0.01765 | D7: 0.01696666667
A8: FI | B8: 0.0298 | C8: 0.01765 | D8: 0.01696666667
A9: DK | B9: 0.0281 | C9: 0.01765 | D9: 0.01696666667
A10: NL | B10: 0.0225 | C10: 0.01765 | D10: 0.01696666667
A11: FR | B11: 0.0221 | C11: 0.01765 | D11: 0.01696666667
A12: SI | B12: 0.0214 | C12: 0.01765 | D12: 0.01696666667
A13: CZ | B13: 0.02 | C13: 0.01765 | D13: 0.01696666667
A14: EE | B14: 0.0175 | C14: 0.01765 | D14: 0.01696666667
A15: PT | B15: 0.0166 | C15: 0.01765 | D15: 0.01696666667
A16: HU | B16: 0.0165 | C16: 0.01765 | D16: 0.01696666667
A17: IT | B17: 0.0149 | C17: 0.01765 | D17: 0.01696666667
A18: EL | B18: 0.0145 | C18: 0.01765 | D18: 0.01696666667
A19: PL | B19: 0.0144 | C19: 0.01765 | D19: 0.01696666667
A20: ES | B20: 0.0143 | C20: 0.01765 | D20: 0.01696666667
A21: HR | B21: 0.0124 | C21: 0.01765 | D21: 0.01696666667
A22: LT | B22: 0.0111 | C22: 0.01765 | D22: 0.01696666667
A23: LU | B23: 0.0102 | C23: 0.01765 | D23: 0.01696666667
A24: SK | B24: 0.0093 | C24: 0.01765 | D24: 0.01696666667
A25: CY | B25: 0.0087 | C25: 0.01765 | D25: 0.01696666667
A26: BG | B26: 0.0077 | C26: 0.01765 | D26: 0.01696666667
A27: LV | B27: 0.0069 | C27: 0.01765 | D27: 0.01696666667
A28: MT | B28: 0.0063 | C28: 0.01765 | D28: 0.01696666667
A29: RO | B29: 0.0047 | C29: 0.01765 | D29: 0.01696666667

Sheet Graf 59
A1: Graf 59: Porovnanie výdavkov na VaV s hospodárskou výkonnosťou krajín EÚ, 2021
A2: Zdroj: Eurostat
A3: HDP na obyv. v PPS ku priemeru EÚ | B3: Výdavky na VaV v pomere ku HDP
A4: 1.2 | B4: 0.0322 | C4: BE
A5: 0.57 | B5: 0.0077 | C5: BG
A6: 0.92 | B6: 0.02 | C6: CZ
A7: 1.33 | B7: 0.0281 | C7: DK
A8: 1.2 | B8: 0.0313 | C8: DE
A9: 0.89 | B9: 0.0175 | C9: EE
A10: 2.19 | C10: IE
A11: 0.64 | B11: 0.0145 | C11: EL
A12: 0.83 | B12: 0.0143 | C12: ES
A13: 1.04 | B13: 0.0221 | C13: FR
A14: 0.7 | B14: 0.0124 | C14: HR
A15: 0.95 | B15: 0.0149 | C15: IT
A16: 0.91 | B16: 0.0087 | C16: CY
A17: 0.72 | B17: 0.0069 | C17: LV
A18: 0.89 | B18: 0.0111 | C18: LT
A19: 2.68 | B19: 0.0102 | C19: LU
A20: 0.75 | B20: 0.0165 | C20: HU
A21: 1 | B21: 0.0063 | C21: MT
A22: 1.3 | B22: 0.0225 | C22: NL
A23: 1.23 | B23: 0.0319 | C23: AT
A24: 0.77 | B24: 0.0144 | C24: PL
A25: 0.75 | B25: 0.0166 | C25: PT
A26: 0.74 | B26: 0.0047 | C26: RO
A27: 0.9 | B27: 0.0214 | C27: SI
A28: 0.69 | B28: 0.0093 | C28: SK
A29: 1.12 | B29: 0.0298 | C29: FI
A30: 1.23 | B30: 0.0336 | C30: SE

Sheet Graf 60
A1: Graf 60: Podiel výdavkov na VaV v pomere ku HDP z hľadiska sektorov, Slovensko
A2: Zdroj: Eurostat
A3: TIME | B3: súkromný sektor | C3: verejný sektor + VŠ
A4: 2013 | B4: 0.0038 | C4: 0.0044
A5: 2014 | B5: 0.0032 | C5: 0.0055
A6: 2015 | B6: 0.0032 | C6: 0.0083
A7: 2016 | B7: 0.004 | C7: 0.0039
A8: 2017 | B8: 0.0048 | C8: 0.004
A9: 2018 | B9: 0.0045 | C9: 0.0038
A10: 2019 | B10: 0.0045 | C10: 0.0037
A11: 2020 | B11: 0.0049 | C11: 0.0042
A12: 2021 | B12: 0.0052 | C12: 0.0041

Sheet Graf 61
A1: Graf 61: Podiel výdavkov na VaV v pomere ku HDP z hľadiska sektorov krajín V4 a EÚ, 2021
A2: Zdroj: Eurostat
B3: súkromný sektor | C3: verejný sektor + VŠ
A4: Slovensko | B4: 0.0052 | C4: 0.0041
A5: Česko | B5: 0.0126 | C5: 0.0074
A6: Poľsko | B6: 0.0091 | C6: 0.0053
A7: Maďarsko | B7: 0.0124 | C7: 0.0041
A8: EÚ | B8: 0.015 | C8: 0.0076

Sheet Graf 62
A1: Graf 62: Atraktivita výskumného systému v porovnaní s priemerom EÚ, 2021
A2: Zdroj: EIS
B3: Atraktivita výskumného systému v porovnaní s priemerom EÚ, 2021 (Normalizácia okolo priemeru EÚ)
A4: LU | B4: 1.845233109
A5: NL | B5: 1.760170657
A6: DK | B6: 1.690241745
A7: SE | B7: 1.602974146
A8: BE | B8: 1.534088849
A9: AT | B9: 1.377705081
A10: FI | B10: 1.370975899
A11: IE | B11: 1.336137273
A12: CY | B12: 1.195704252
A13: FR | B13: 1.163625311
A14: PT | B14: 1.156080522
A15: EE | B15: 1.046328968
A16: EU | B16: 1
A17: IT | B17: 0.9955786078
A18: DE | B18: 0.915744535
A19: ES | B19: 0.9092503261
A20: SI | B20: 0.8792463211
A21: MT | B21: 0.8356353878
A22: CZ | B22: 0.7415877643
A23: HU | B23: 0.6803375978
A24: EL | B24: 0.6733603864
A25: SK | B25: 0.5646462178
A26: HR | B26: 0.5325803497
A27: LT | B27: 0.5321631621
A28: LV | B28: 0.5303382825
A29: PL | B29: 0.3937103754
A30: RO | B30: 0.3504589609
A31: BG | B31: 0.2845405159

Sheet Graf 63
A1: Graf 63: Aktivita v oblasti duševného vlastníctva v porovnaní s priemerom EÚ, 2021
A2: Zdroj: EIS
B3: Aktivita v oblasti duševného vlastníctva v porovnaní s priemerom EÚ, 2021 (Normalizácia okolo priemeru EÚ)
A4: DK | B4: 1.763955251
A5: FI | B5: 1.672411973
A6: SE | B6: 1.664689496
A7: AT | B7: 1.574905862
A8: DE | B8: 1.531251139
A9: LU | B9: 1.458036029
A10: NL | B10: 1.355034122
A11: EE | B11: 1.315526978
A12: MT | B12: 1.225571006
A13: IT | B13: 1.103547861
A14: EU | B14: 1
A15: BE | B15: 0.9462720242
A16: SI | B16: 0.9140041551
A17: BG | B17: 0.8835955206
A18: PL | B18: 0.844392857
A19: FR | B19: 0.8316285309
A20: ES | B20: 0.7985989247
A21: PT | B21: 0.7673581392
A22: LV | B22: 0.6742454401
A23: LT | B23: 0.6527850349
A24: IE | B24: 0.6251409005
A25: CZ | B25: 0.596955017
A26: CY | B26: 0.5412591177
A27: EL | B27: 0.4869712928
A28: SK | B28: 0.4825975303
A29: HU | B29: 0.4814107422
A30: HR | B30: 0.3566856678
A31: RO | B31: 0.3282238459

Sheet Graf 64
A1: Graf 64: Poskytnutá podpora APVV podľa jednotlivých výziev / programov, mil. eur
A2: Zdroj: APVV
B4: 2015 | C4: 2016 | D4: 2017 | E4: 2018 | F4: 2019 | G4: 2020 | H4: 2021
A5: Všeobecná výzva | B5: 23.73717 | C5: 26.00314 | D5: 34.45994 | E5: 38.164 | F5: 38.164 | G5: 35.07481 | H5: 33.76842
A6: Ostatné programy | B6: 1.249039 | C6: 1.341834 | D6: 0.532835 | E6: 1.116133 | F6: 1.116133 | G6: 4.403047 | H6: 5.383172
A7: Celkové výdavky | B7: 24.98621 | C7: 27.34498 | D7: 34.99278 | E7: 39.28013 | F7: 39.28013 | G7: 39.47785 | H7: 39.15159

Sheet Graf 65
A1: Graf 65: Výdavky a počet schválených projektov všeobecnej výzvy v rámci jednotlivých sektorov, mil. eur
A2: Zdroj: APVV
B3: 2011 | C3: 2012 | D3: 2014 | E3: 2015 | F3: 2016 | G3: 2017 | H3: 2018 | I3: 2019 | J3: 2020
A4: Neziskový sektor | B4: 1 | C4: 1 | E4: 3 | G4: 2 | H4: 1 | J4: 2
A5: SAV | B5: 54 | C5: 41 | D5: 51 | E5: 75 | F5: 35 | G5: 33 | H5: 44 | I5: 47 | J5: 66
A6: Súkromný sektor | B6: 12 | C6: 11 | D6: 14 | E6: 16 | F6: 10 | G6: 9 | H6: 8 | I6: 7 | J6: 11
A7: Verejný sektor bez SAV | B7: 11 | C7: 12 | D7: 11 | E7: 18 | F7: 6 | G7: 8 | H7: 6 | I7: 8 | J7: 10
A8: VŠ | B8: 87 | C8: 107 | D8: 72 | E8: 156 | F8: 103 | G8: 100 | H8: 93 | I8: 87 | J8: 102
A9: Celkové výdavky v mil. eur, pravá os | B9: 31.7065 | C9: 32.95607 | D9: 32.96015 | E9: 59.43949 | F9: 32.97236 | G9: 32.682 | H9: 32.84158 | I9: 32.70798 | J9: 40.99994

Sheet Graf 66
A1: Graf 66: Výdavky na Stimuly pre výskum a vývoj, mil. eur
A2: Zdroj: MŠVVŠ SR
B3: 2019 | C3: 2020 | D3: 2021
A4: Bežné transfery | B4: 9503689.7 | C4: 3395643.64 | D4: 2736946.93
A5: Kapitálové transfery | B5: 1083724 | C5: 159380 | D5: 103660
A6: SPOLU | B6: =SUM(B4:B5) -> 10587413.7 | C6: =SUM(C4:C5) -> 3555023.64 | D6: =SUM(D4:D5) -> 2840606.93
A7: Prijímatelia bežných transferov, pravá os | B7: 27 | C7: 18 | D7: 17

Sheet Graf 67
A1: Graf 67: Daňová úspora pre reprezentatívnu firmu (B-index (Warda, 2001)
A2: Zdroj: OECD
B3: Daňová úspora pre reprezentatívnu firmu
A4: Luxembursko | B4: -0.01
A5: Švajčiarsko | B5: -0.01
A6: Estónsko | B6: 0
A7: Fínsko | B7: 0
A8: Izrael | B8: 0
A9: Lotyšsko | B9: 0
A10: Kórea | B10: 0.02
A11: Mexiko | B11: 0.06
A12: Turecko | B12: 0.06
A13: Dánsko | B13: 0.07
A14: USA | B14: 0.07
A15: Austrália | B15: 0.1
A16: Švédsko | B16: 0.11
A17: UK | B17: 0.12
A18: Kanada | B18: 0.13
A19: Belgicko | B19: 0.15
A20: Holandsko | B20: 0.15
A21: Rakúsko | B21: 0.17
A22: Japonsko | B22: 0.17
A23: Nový Zéland | B23: 0.18
A24: Nemecko | B24: 0.19
A25: Maďarsko | B25: 0.19
A26: Taliansko | B26: 0.2
A27: Česko | B27: 0.21
A28: Slovinsko | B28: 0.21
A29: Nórsko | B29: 0.22
A30: Poľsko | B30: 0.22
A31: Írsko | B31: 0.27
A32: SK 2022 | B32: 0.28
A33: Grécko | B33: 0.29
A34: Island | B34: 0.3
A35: Litva | B35: 0.31
A36: Kolumbia | B36: 0.33
A37: Španielsko | B37: 0.33
A38: Čile | B38: 0.35
A39: Francúzsko | B39: 0.37
A40: Portugalsko | B40: 0.39
A41: SK 2021 | B41: 0.55

Sheet Graf 68
A1: Graf 68: Medzinárodné porovnanie výdavkov na VaV podliehajúcich superodpočtu (v % HDP, 2019)
A2: Zdroj: OECD
B3: Výdavky na VaV podliehajúcich superodpočtu
A4: Kostarika | B4: 0
A5: Estónsko | B5: 0
A6: Fínsko | B6: 0
A7: Nemecko | B7: 0
A8: Lotyšsko | B8: 0
A9: Luxembursko | B9: 0
A10: Švajčirasko | B10: 0
A11: Mexiko | B11: 1.7e-05
A12: Kolumbia | B12: 5.6e-05
A13: Grécko | B13: 7.9e-05
A14: Čile | B14: 8.1e-05
A15: Nový Zéland | B15: 0.000137
A16: Švédsko | B16: 0.000145
A17: Poľsko | B17: 0.000179
A18: Litva | B18: 0.000264
A19: Španielsko | B19: 0.000265
A20: Slovensko | B20: 0.000274
A21: Dánsko | B21: 0.000314
A22: Česko | B22: 0.000473
A23: Maďarsko | B23: 0.000532
A24: Slovinsko | B24: 0.000992
A25: Japonsko | B25: 0.000998
A26: EU | B26: 0.000999
A27: Turecko | B27: 0.001103
A28: Kanada | B28: 0.001136
A29: USA | B29: 0.001137
A30: Nórsko | B30: 0.001148
A31: Island | B31: 0.001174
A32: OECD | B32: 0.001182
A33: Rakúsko | B33: 0.001221
A34: Kórea | B34: 0.001223
A35: Holandsko | B35: 0.001454
A36: Taliansko | B36: 0.001614
A37: Írsko | B37: 0.001764
A38: Rakúsko | B38: 0.001907
A39: Portugalsko | B39: 0.002004
A40: Belgicko | B40: 0.002077
A41: Francúzsko | B41: 0.002839
A42: UK | B42: 0.003301

Sheet Graf 69
A1: Graf 69: Objem superodpočtu znižujúci firemnú daň (mil. eur)
A2: Zdroj: daňové priznania
B3: 2017 | C3: 2019 | D3: 2021
A4: do 100 tis. | B4: 2322660.149 | C4: 7127092.671 | D4: 11239167.96
A5: 100 až 200 tis. | B5: 525309.582 | C5: 3974242.562 | D5: 5213700.139
A6: 200 až 500 tis. | B6: 2075307.698 | C6: 6227489.696 | D6: 8839491.528
A7: 500 tis. až 1 mil. | B7: 0 | C7: 2477965.604 | D7: 5730514.923
A8: viac ako 1 mil. | B8: 3879173.464 | C8: 5774801.147 | D8: 28490604.2
B9: 8802450.893 | C9: 25581591.68 | D9: 59513478.75

Sheet Graf 70
A1: Graf 70: Počet firiem v jednotlivých intervaloch čerpania superodpočtu
A2: Zdroj: daňové priznania
B3: 2017 | C3: 2019 | D3: 2021
A4: do 100 tis. | B4: 150 | C4: 301 | D4: 404
A5: 100 až 200 tis. | B5: 4 | C5: 29 | D5: 38
A6: 200 až 500 tis. | B6: 7 | C6: 20 | D6: 29
A7: 500 tis. až 1 mil. | B7: 0 | C7: 4 | D7: 9
A8: viac ako 1 mil. | B8: 1 | C8: 4 | D8: 9
B9: 162 | C9: 358 | D9: 489

Sheet Graf 71
A1: Graf 71: Skutočné výdavky na VaV (mil. eur) a sadzba superodpočtu (%)
A2: Zdroj: OECD
B3: 2015 | C3: 2016 | D3: 2017 | E3: 2018 | F3: 2019 | G3: 2020
A4: skutočné výdavky | B4: 36633409.72 | C4: 66045104.2 | D4: 167665732.9 | E4: 119729758.9 | F4: 81211402.13 | G4: 94318814.15
A5: skutočné výdavky očistené o outlier | B5: 32117985.72 | C5: 55296851.8 | D5: 93776712.92 | E5: 74737346.93 | F5: 81211402.13 | G5: 94318814.15
A6: sadzba superodpočtu (pravá os) | B6: 0.25 | C6: 0.25 | D6: 0.25 | E6: 1 | F6: 1.5 | G6: 2

Sheet Graf 72
A1: Graf 72: Superodpočet na VaV zvyšuje mieru R&D najmä u firiem s nízkou úrovňou R&D
A2: Zdroj: Appelt a kol. (2020)
A3: Malé podniky (10-49 zam.) | B3: Stredné podniky (50-249 zam.) | C3: Veľké podniky (250+ zam.) | D3: Malé VaV (pod 400K $) | E3: Stredné VaV (400k $- 2m $) | F3: Veľké VaV (nad 2m $)
A4: 1.42 | B4: 1 | C4: 0.42 | D4: 1.7 | E4: 1.08 | F4: -0.19
A5: Malé podniky (10-49 zam.) | B5: 1.42 | C5: 1.25 | D5: 1.7 | E5: 0
A6: Stredné podniky (50-249 zam.) | B6: 1 | C6: 0.78 | D6: 1.25 | E6: 0
A7: Veľké podniky (250+ zam.) | B7: 0.42 | C7: 0.08 | D7: 0.8 | E7: 0
A8: Malé VaV (pod 400K $) | B8: 1.7 | C8: 1.42 | D8: 1.95 | E8: 0
A9: Stredné VaV (400k $- 2m $) | B9: 1.08 | C9: 0.68 | D9: 1.4 | E9: 0
A10: Veľké VaV (nad 2m $) | B10: -0.19 | C10: -0.7 | D10: 0.2 | E10: 0

Sheet Graf 73
A1: Graf 73: Počet patentových prihlášok na 1 mld. HDP
A2: Zdroj: EIS
B3: 2021
A4: SE | B4: 8.917769
A5: FI | B5: 7.549705044
A6: DE | B6: 6.178302786
A7: DK | B7: 5.840061559
A8: NL | B8: 4.777142648
A9: AT | B9: 4.69050322
A10: FR | B10: 3.542921098
A11: BE | B11: 3.02528167
A12: EU | B12: 2.962330494
A13: SI | B13: 2.393811061
A14: IT | B14: 2.01706814
A15: IE | B15: 1.684314559
A16: LU | B16: 1.654891357
A17: EE | B17: 1.556105706
A18: ES | B18: 1.281557103
A19: MT | B19: 1.230175328
A20: HU | B20: 1.106075602
A21: PT | B21: 0.8513159226
A22: LV | B22: 0.7693295659
A23: CZ | B23: 0.7110245138
A24: EL | B24: 0.5627974977
A25: SK | B25: 0.5340243636
A26: CY | B26: 0.5280931777
A27: LT | B27: 0.5081779985
A28: BG | B28: 0.5055390529
A29: PL | B29: 0.4480219576
A30: HR | B30: 0.4445407089
A31: RO | B31: 0.186647819

Sheet Graf 74
A1: Graf 74: Patentbox – miera daňovej úľavy v krajinách OECD
A2: Zdroj: OECD | B2: Miera danovej úľavy
A3: Belgicko | B3: 0.1504
A4: Luxembursko | B4: 0.2
A5: Poľsko | B5: 0.2631578947
A6: Holandsko | B6: 0.28
A7: Malta | B7: 0.2857142857
A8: Francúzsko | B8: 0.3123048095
A9: Litva | B9: 0.3333333333
A10: Španielsko | B10: 0.4
A11: Slovensko | B11: 0.5
A12: Portugalsko | B12: 0.5
A13: Taliansko | B13: 0.5
A14: Írsko | B14: 0.5
A15: Maďarsko | B15: 0.5
A16: UK | B16: 0.5263157895
A17: Švajčiarsko | B17: 0.5566037736
A18: USA | B18: 0.6252380952
A19: Grécko | B19: 1

Sheet Graf 75
A1: Graf 75: Vládne výdavky na podporu turizmu ako % HDP a odhad pre Slovensko s výdavkami ST, 2018
A2: Zdroj: World Bank, Eurostat
B3: Vládne výdavky na podporu turizmu ako % HDP | C3: Priemer EÚ
A4: Malta | B4: 0.002315743971 | C4: 0.001
A5: Estónsko | B5: 0.00193665586 | C5: 0.001
A6: Cyprus | B6: 0.001850772235 | C6: 0.001
A7: Španielsko | B7: 0.001687084825 | C7: 0.001
A8: Portugalsko | B8: 0.001559575035 | C8: 0.001
A9: Maďarsko | B9: 0.00132281548 | C9: 0.001
A10: Rakúsko | B10: 0.001297272614 | C10: 0.001
A11: Slovinsko | B11: 0.001090174908 | C11: 0.001
A12: Belgicko | B12: 0.00102153549 | C12: 0.001
A13: Francúzsko | B13: 0.001002832473 | C13: 0.001
A14: Fínsko | B14: 0.0009851710343 | C14: 0.001
A15: Česko | B15: 0.0009479998388 | C15: 0.001
A16: Taliansko | B16: 0.0009314712639 | C16: 0.001
A17: Švédsko | B17: 0.0008498467408 | C17: 0.001
A18: Dánsko | B18: 0.000826914547 | C18: 0.001
A19: Holandsko | B19: 0.0007364464778 | C19: 0.001
A20: Bulharsko | B20: 0.000711431097 | C20: 0.001
A21: Lotyšsko | B21: 0.0006860216234 | C21: 0.001
A22: Poľsko | B22: 0.0006829471903 | C22: 0.001
A23: Litva | B23: 0.0006591262622 | C23: 0.001
A24: Nemecko | B24: 0.0005760334456 | C24: 0.001
A25: Slovensko | B25: 0.0005590965001 | C25: 0.001 | D25: 0.0078 | E25: Spolu s ST
A26: Írsko | B26: 0.000551080071 | C26: 0.001
A27: Rumunsko | B27: 0.0004890049678 | C27: 0.001
A28: Chorvátsko | B28: 0.0003795873127 | C28: 0.001
A29: Grécko | B29: 0.0002784620208 | C29: 0.001

Sheet Graf 76
A1: Graf 76: Počet prenocovaní turistami na jedného obyvateľa, 2019
A2: Zdroj: Eurostat
B3: Počet | C3: Priemer EÚ
A4: Malta | B4: 22.44692363 | C4: 7.44
A5: Chorvátsko | B5: 22.21002507 | C5: 7.44
A6: Rakúsko | B6: 14.19996696 | C6: 7.44
A7: Cyprus | B7: 14.12675563 | C7: 7.44
A8: Grécko | B8: 13.77662123 | C8: 7.44
A9: Španielsko | B9: 10.04846074 | C9: 7.44
A10: Portugalsko | B10: 7.609735063 | C10: 7.44
A11: Slovinsko | B11: 7.580164007 | C11: 7.44
A12: Taliansko | B12: 7.223388705 | C12: 7.44
A13: Holadnsko | B13: 7.204172345 | C13: 7.44
A14: Francúzsko | B14: 6.841272381 | C14: 7.44
A15: Írsko | B15: 6.598259625 | C15: 7.44
A16: Švédsko | B16: 6.255433539 | C16: 7.44
A17: Dánsko | B17: 5.926178852 | C17: 7.44
A18: Česko | B18: 5.324948004 | C18: 7.44
A19: Estónsko | B19: 5.252064212 | C19: 7.44
A20: Nemecko | B20: 5.215257692 | C20: 7.44
A21: Luxembursko | B21: 4.556508376 | C21: 7.44
A22: Fínsko | B22: 4.168349962 | C22: 7.44
A23: Bulharsko | B23: 3.908038561 | C23: 7.44
A24: Belgicko | B24: 3.668182045 | C24: 7.44
A25: Maďarsko | B25: 3.43672409 | C25: 7.44
A26: Litva | B26: 3.286483544 | C26: 7.44
A27: Slovensko | B27: 3.155029762 | C27: 7.44
A28: Lotyšsko | B28: 2.921051767 | C28: 7.44
A29: Poľsko | B29: 2.466343367 | C29: 7.44
A30: Rumunsko | B30: 1.553715256 | C30: 7.44

Sheet Graf 77
A1: Graf 77: Podiel zahraničných turistov na celkovom počte prenocovaní všetkých turistov, 2019
A2: Zdroj: Eurostat
B3: Podiel | C3: Priemer EÚ
A4: Malta | B4: 0.9520798621 | C4: 0.4730655559
A5: Cyprus | B5: 0.9423815177 | C5: 0.4730655559
A6: Chorvátsko | B6: 0.9226356623 | C6: 0.4730655559
A7: Luxembursko | B7: 0.8781484528 | C7: 0.4730655559
A8: Grécko | B8: 0.835487554 | C8: 0.4730655559
A9: Slovinsko | B9: 0.7205976055 | C9: 0.4730655559
A10: Rakúsko | B10: 0.7145657919 | C10: 0.4730655559
A11: Lotyšsko | B11: 0.6990064036 | C11: 0.4730655559
A12: Portugalsko | B12: 0.6648978673 | C12: 0.4730655559
A13: Bulharsko | B13: 0.6437113068 | C13: 0.4730655559
A14: Španielsko | B14: 0.6366172461 | C14: 0.4730655559
A15: Estónsko | B15: 0.6280475788 | C15: 0.4730655559
A16: Taliansko | B16: 0.5052503831 | C16: 0.4730655559
A17: Írsko | B17: 0.4998422997 | C17: 0.4730655559
A18: Belgicko | B18: 0.4987865903 | C18: 0.4730655559
A19: Česko | B19: 0.4766448761 | C19: 0.4730655559
A20: Maďarsko | B20: 0.4744756477 | C20: 0.4730655559
A21: Litva | B21: 0.4630197888 | C21: 0.4730655559
A22: Holandsko | B22: 0.4192263543 | C22: 0.4730655559
A23: Dánsko | B23: 0.3780432257 | C23: 0.4730655559
A24: Slovensko | B24: 0.3510918483 | C24: 0.4730655559
A25: Fínsko | B25: 0.3055118148 | C25: 0.4730655559
A26: Francúzsko | B26: 0.3045323459 | C26: 0.4730655559
A27: Švédsko | B27: 0.2529507388 | C27: 0.4730655559
A28: Nemecko | B28: 0.2042793378 | C28: 0.4730655559
A29: Poľsko | B29: 0.2001610023 | C29: 0.4730655559
A30: Rumunsko | B30: 0.1762820905 | C30: 0.4730655559

Sheet Graf 78
A1: Graf 78: Pomer výdavkov agentúr na podporu turizmu ku podielu sektora CR na HDP, 2018
A2: Zdroj: Výročné správy agentúr, OECD, Eurostat
A3: Krajina | B3: Pomer (2022) | C3: Priemer
A4: Estónsko | B4: 0.01509881586 | C4: 0.004237290466
A5: Maďarsko | B5: 0.01192374413 | C5: 0.004237290466
A6: Slovensko 2023 | B6: 0.00789499224 | C6: 0.004237290466
A7: Slovensko 2022 | B7: 0.006298809976 | C7: 0.004237290466
A8: Chorvátsko | B8: 0.005193949494 | C8: 0.004237290466
A9: Slovinsko | B9: 0.005021765515 | C9: 0.004237290466
A10: Grécko | B10: 0.004495953557 | C10: 0.004237290466
A11: Dánsko | B11: 0.003431127347 | C11: 0.004237290466
A12: Rakúsko | B12: 0.002306045942 | C12: 0.004237290466
A13: Poľsko | B13: 0.002227675572 | C13: 0.004237290466
A14: Portugalsko | B14: 0.00210874616 | C14: 0.004237290466
A15: Česko | B15: 0.001848369599 | C15: 0.004237290466
A16: UK | B16: 0.0008352952592 | C16: 0.004237290466
A17: Taliansko | B17: 0.0003053975581 | C17: 0.004237290466
A18: Francúzsko | B18: 0.0002878900625 | C18: 0.004237290466

Sheet Graf 79
A1: Graf 79: Pomer výdavkov agentúr na podporu turizmu ku HDP
A2: Zdroj: Výročné správy agentúr, OECD, Eurostat
A4: Krajina | B4: Pomer HDP (2022) | C4: Priemer
A5: Estónsko | B5: 0.0008153360566 | C5: 0.0002577985074
A6: Maďarsko | B6: 0.000803953755 | C6: 0.0002577985074
A7: Chorvátsko | B7: 0.0006128860403 | C7: 0.0002577985074
A8: Grécko | B8: 0.0003057248419 | C8: 0.0002577985074
A9: Slovinsko | B9: 0.0002661535723 | C9: 0.0002577985074
A10: Slovensko 2023 | B10: 0.0002210597827 | C10: 0.0002577985074
A11: Slovensko 2022 | B11: 0.0001763666793 | C11: 0.0002577985074
A12: Portugalsko | B12: 0.0001686996928 | C12: 0.0002577985074
A13: Rakúsko | B13: 0.0001498929862 | C13: 0.0002577985074
A14: Dánsko | B14: 8.234705633e-05 | C14: 0.0002577985074
A15: Česko | B15: 5.360271838e-05 | C15: 0.0002577985074
A16: Poľsko | B16: 2.673210686e-05 | C16: 0.0002577985074
A17: UK | B17: 2.672944829e-05 | C17: 0.0002577985074
A18: Francúzsko | B18: 2.130386463e-05 | C18: 0.0002577985074
A19: Taliansko | B19: 1.801845593e-05 | C19: 0.0002577985074

Sheet Graf 80
A1: Graf 80: Výdavky agentúry Slovakia Travel (mil. eur)
A2: Zdroj: RIS, MF SR
B3: 2022 S | C3: 2023 R | D3: 2024 R | E3: 2025 R
A4: Mzdy | B4: 1951394.416 | C4: 4654547 | D4: 4934285 | E4: 4934285
A5: Prevádzkové náklady | B5: 1739571.608 | C5: 2390091 | D5: 2373651 | E5: 2373651
A6: Propagácia a marketing | B6: 15193400 | C6: 19283000 | D6: 19299400 | E6: 19299400
A7: Spolu | B7: 18884366.02 | C7: 26327638 | D7: 26607336 | E7: 26607336

Sheet Graf 81
A1: Graf 81: Štruktúra výdavkov ST a CT
A2: Zdroj: Výročne správy, RIS MF SR
B3: Osobné náklady | C3: Iné | D3: Služby
A4: CT | B4: 0.1108 | C4: 0.17092 | D4: 0.71828
A5: ST 2022 | B5: 0.1033 | C5: 0.09211 | D5: 0.80459
A6: ST 2023 | B6: 0.17679 | C6: 0.09078 | D6: 0.73243

Sheet Graf 82
A1: Graf 82: Zazmluvnené výdavky podľa CRZ medzi rokmi 2021-2022 (mil. eur)
A2: Zdroj: CRZ
B3: Pomocné výpočty | C3: Výdavky | D3: Pomocné výpočty
A4: EXPO | B4: 6.587 | C4: =C9-B4 -> 11.38916052 | D4: 0
A5: Nákup vysielacieho času | B5: 6.587 | C5: 5.80136432 | D5: =C9-C5-B5 -> 5.5877962
A6: Marketingová spolupráca | B6: =C5+B5 -> 12.38836432 | C6: 1.40365 | D6: =C9-C6-B6 -> 4.1841462
A7: Zmluva o dielo | B7: =B6+C6 -> 13.79201432 | C7: 0.9239868 | D7: =C9-C7-B7 -> 3.2601594
A8: Iné | B8: =B7+C7 -> 14.71600112 | C8: 3.2601594 | D8: =C9-C8-B8 -> 0
A9: Spolu | B9: 0 | C9: 17.97616052 | D9: 0

Sheet Graf 83
A1: Graf 83: Zazmluvnené výdavky ST na spoty v televíziách z pohľadu krajín 2021-2022 (mil. eur)
A2: Zdroj: CRZ
B3: Pomocné výpočty | C3: Výdavky | D3: Pomocné výpočty
A4: Slovensko | B4: 0.6 | C4: 0.4 | D4: 0
A5: Poľsko | B5: 0.6 | C5: 0.3 | D5: 0.1
A6: Česko | B6: 0 | C6: 0.9 | D6: 0.1
A7: Spolu | B7: 0 | C7: 0 | D7: 1

Sheet Graf 84
A1: Graf 84: Vzťah medzi počtom turistov a schválenými dotáciami pre OCR za rok 2019, mil. eur
A2: Zdroj: ŠÚ SR, MDV SR
B3: Počet turistov v danom regióne | C3: Výška schválenej dotácie pre daný región
A4: Bratislava | B4: 1.395896 | C4: 0.96145
A5: Región Senec | B5: 0.07694 | C5: 0.0925
A6: Trnava | B6: 0.077883 | C6: 0.0898488
A7: Rezort Piešťany | B7: 0.153563 | C7: 0.206
A8: OOCR Záhorie | B8: 0.060603 | C8: 0.0269849
A9: OOCR Žitný ostrov – Csallóköz | B9: 0.252505 | C9: 0.0815
A10: Podunajsko | B10: 0.252505 | C10: 0.046659
A11: Nitrianska OCR | B11: 0.105768 | C11: 0.0569
A12: Región Horná Nitra – Bojnice | B12: 0.103567 | C12: 0.1344687
A13: OOCR Trenčianske Teplice | B13: 0.164151 | C13: 0.25603482
A14: Región Horné Považie | B14: 0.314635 | C14: 0.01036536
A15: OOCR "Trenčín a okolie" | B15: 0.164151 | C15: 0.064034
A16: Klaster Orava | B16: 0.140663 | C16: 0.05935
A17: Malá Fatra | B17: 0.572902 | C17: 0.21329
A18: Rajecká dolina | B18: 0.278742 | C18: 0.044139
A19: Turiec -Kremnicko | B19: 0.116143 | C19: 0.0277
A20: Liptov | B20: 0.724647 | C20: 0.935932
A21: OOCR Dudince | B21: 0.072123 | C21: 0.10594
A22: Región Banská Štiavnica | B22: 0.044974 | C22: 0.039543
A23: Región Horehronie | B23: 0.276263 | C23: 0.087472
A24: Región Gron | B24: 0.107794 | C24: 0.01381441
A25: Vysoké Tatry | B25: 0.252866 | C25: 1.04543738
A26: Spiš | B26: 0.213225 | C26: 0.12651
A27: Košice – Turizmus | B27: 0.030604 | C27: 0.28300833

Sheet Graf 85
A1: Graf 85: Výška schválených dotácii OCR, mil. eur
A2: Zdroj: MDV SR
B3: 2016 | C3: 2017 | D3: 2018 | E3: 2019 | F3: 2020 | G3: 2021
A4: BOCR | B4: 0.714 | C4: 0.738121 | D4: 0.87505 | E4: 0.96145 | F4: 1.03141429 | G4: 1.1
A5: VT | B5: 0.857 | C5: 0.97624009 | D5: 0.85577142 | E5: 1.04543738 | F5: 1.16648434 | G5: 1.2
A6: Liptov | B6: 0.800793 | C6: 0.897955 | D6: 0.914752 | E6: 0.935932 | F6: 1.003852 | G6: 1
A7: TRB | B7: 0.28 | C7: 0.332 | D7: 0.358 | E7: 0.5073 | F7: 0.51229278 | G7: 0.4
A8: Iné | B8: 1.70046608 | C8: 2.11109674 | D8: 2.66638263 | E8: 2.95876301 | F8: 3.8305729 | G8: 4.4
A9: Spolu | B9: =SUM(B4:B8) -> 4.35225908 | C9: 5.05541283 | D9: 5.66995605 | E9: 6.40888239 | F9: 7.54461631 | G9: 8.1
B10: =B8/B9 -> 0.3907088362 | C10: 0.4175913641 | D10: 0.4702651319 | E10: 0.4616659864 | F10: 0.5077226916 | G10: 0.5432098765

Sheet Graf 86
A1: Graf 86: Štruktúra pridelených dotácii pre najväčšie OCR[1] v rámci podkategórii, priemer 2020-2022
A2: Zdroj: CRZ
A3: Markeitng a propagácia | B3: Iné | C3: Podpora podujatí | D3: Inftraštruktúra CR | E3: Spolu
A4: 2715665.3 | B4: 2715665.3 | C4: 4111561.557 | D4: 5249986.88 | E4: 6198255.66
A5: 0 | B5: 1395896.257 | C5: 1138425.323 | D5: 0 | E5: 0
A6: 3482590.36 | B6: 2086694.103 | C6: 948268.78 | D6: 948268.78 | E6: 0

Sheet Graf 87
A1: Graf 87: Štruktúra pridelených dotácii pre najväčšie OCR + ST v rámci podkategórii, priemer 2020-2022
A2: Zdroj: CRZ
A3: Marketing | B3: Podpora podujatí | C3: Infraštruktúra | D3: Iné | E3: Spolu
A4: 12.73 | B4: 12.73 | C4: =B4+B5 -> 15.59 | D4: =E4-D5 -> 16.43 | E4: 17.7
A5: 0 | B5: 2.86 | C5: 0.84 | D5: 1.27 | E5: 0
A6: 0 | B6: =E4-B5-B4 -> 2.11 | C6: =E4-C5-C4 -> 1.27 | D6: 0 | E6: 0

Sheet Graf 88
A1: Graf 88: Vybrané sektory ekonomiky kde čerpanie preukazov presiahlo 0,5 mil. eur na sektor (mil. eur, 2019)
A2: Zdroj: MF SR
B3: Čerpanie preukazov
A4: Stavebníctvo | B4: 0.64072794
A5: Dodávka vody | B5: 0.84275363
A6: Dodávka energií | B6: 1.1355
A7: Financie | B7: 1.772966
A8: Inform. a komunikácie | B8: 2.206206
A9: Odborné + admin. činnosti | B9: 2.795227
A10: Obchod | B10: 3.436722
A11: Dopr. a skladovanie | B11: 3.599364
A12: Priemysel | B12: 11.579061
A13: Verejná správa | B13: 14.515001

Sheet Graf 89
A1: Graf 89: Využívanie rekreačných poukazov
A2: Zdroj: Daňové priznania a hlásenia
B4: 2019 | C4: 2020 | D4: 2021
A5: Počet uplatnených poukazov, pravá os v tis. | B5: 232592 | C5: 215072 | D5: 197353
A6: Celkový objem vyplatených poukazov, ľavá os v mil. eur | B6: 44629880 | C6: 42316332 | D6: 40480812
A7: Vplyv na VF (výpadok príjmov), ľavá os v mil. eur | B7: 25800000 | C7: 22300000 | D7: 23400000

Sheet Graf 90
A1: Graf 90: Podiel zamestnávateľov vyplácajúcich rekreačné poukazy (2019)
A2: Zdroj: Daňové priznania a hlásenia
A5: nad 50 zamestnacov (vrátane) | B5: 0.8586786114
A6: pod 50 zamestnancov | B6: 0.02553678998

Sheet Graf 91
A1: Graf 91: Sezónne očistený počet prenocovaní (2018m1 = 100, podobné krajiny)
A2: Zdroj: Eurostat (tour_occ_nim)
B3: 2018-01-01 | C3: 2018-02-01 | D3: 2018-03-01 | E3: 2018-04-01 | F3: 2018-05-01 | G3: 2018-06-01 | H3: 2018-07-01 | I3: 2018-08-01 | J3: 2018-09-01 | K3: 2018-10-01 | L3: 2018-11-01 | M3: 2018-12-01 | N3: 2019-01-01 | O3: 2019-02-01 | P3: 2019-03-01 | Q3: 2019-04-01 | R3: 2019-05-01 | S3: 2019-06-01 | T3: 2019-07-01 | U3: 2019-08-01 | V3: 2019-09-01 | W3: 2019-10-01 | X3: 2019-11-01 | Y3: 2019-12-01
A4: LT | B4: 100 | C4: 101.3562934 | D4: 98.84406119 | E4: 103.8709795 | F4: 104.1350587 | G4: 105.1111767 | H4: 110.7210038 | I4: 108.7991079 | J4: 108.3308259 | K4: 106.5019121 | L4: 106.9676751 | M4: 108.4815014 | N4: 112.5281873 | O4: 113.6812114 | P4: 117.1819231 | Q4: 115.9017849 | R4: 116.3599205 | S4: 117.9338996 | T4: 113.701991 | U4: 117.0144106 | V4: 119.0198753 | W4: 118.9092834 | X4: 120.1779903 | Y4: 119.6566119
A5: HR | B5: 100 | C5: 95.5693452 | D5: 97.21558356 | E5: 99.79094952 | F5: 99.63769497 | G5: 101.9917992 | H5: 99.57069875 | I5: 100.0604205 | J5: 103.0031067 | K5: 103.4495951 | L5: 105.1597225 | M5: 104.5671199 | N5: 103.2850593 | O5: 106.3725227 | P5: 107.4522793 | Q5: 106.8672184 | R5: 108.1728541 | S5: 107.8410858 | T5: 109.9324019 | U5: 111.4394985 | V5: 110.2880754 | W5: 111.933157 | X5: 111.932595 | Y5: 112.4627261
A6: SK | B6: 100 | C6: 96.62703914 | D6: 101.8850754 | E6: 99.45338997 | F6: 98.04404274 | G6: 100.8911433 | H6: 99.38828424 | I6: 101.2149897 | J6: 101.2102332 | K6: 104.3818549 | L6: 103.1268709 | M6: 103.9510531 | N6: 106.0727724 | O6: 109.419168 | P6: 108.0307023 | Q6: 112.1381634 | R6: 114.0910675 | S6: 114.1177349 | T6: 118.4986687 | U6: 120.0559701 | V6: 119.3868526 | W6: 122.9207829 | X6: 126.5238122 | Y6: 127.9260039
A7: HU | B7: 100 | C7: 100.1095893 | D7: 99.66853288 | E7: 101.8107358 | F7: 101.3556966 | G7: 99.48819974 | H7: 100.4212419 | I7: 101.0022141 | J7: 102.302283 | K7: 102.1232562 | L7: 101.4122002 | M7: 101.487972 | N7: 100.9666484 | O7: 101.1275243 | P7: 101.5487307 | Q7: 99.95809652 | R7: 100.3787944 | S7: 101.4037941 | T7: 100.4896057 | U7: 100.7103319 | V7: 99.67222794 | W7: 100.118202 | X7: 100.283948 | Y7: 99.81841089
A8: BE | B8: 100 | C8: 99.6566852 | D8: 92.93257421 | E8: 99.99795706 | F8: 99.8597468 | G8: 97.75201619 | H8: 98.33544799 | I8: 98.25572005 | J8: 99.65092634 | K8: 99.52251218 | L8: 98.70930341 | M8: 103.1072909 | N8: 99.96330401 | O8: 92.47957595 | P8: 103.9250092 | Q8: 105.289257 | R8: 91.37629167 | S8: 109.1012189 | T8: 98.98546011 | U8: 100.7829429 | V8: 101.7225738 | W8: 106.1841266 | X8: 102.7216295 | Y8: 106.2807951
A9: EE | B9: 100 | C9: 98.25836014 | D9: 102.8432723 | E9: 102.7062861 | F9: 101.2768629 | G9: 100.4715878 | H9: 102.824025 | I9: 103.3110874 | J9: 103.6927122 | K9: 104.8873693 | L9: 104.1956295 | M9: 107.3486805 | N9: 105.5461921 | O9: 107.5494436 | P9: 104.2029647 | Q9: 106.3576529 | R9: 108.1049478 | S9: 109.2876128 | T9: 107.6066562 | U9: 109.68844 | V9: 110.0168534 | W9: 109.82234 | X9: 113.4090724 | Y9: 109.3963965
A10: PO | B10: 100 | C10: 98.04463157 | D10: 100.1102113 | E10: 100.3234084 | F10: 100.5810281 | G10: 101.0842674 | H10: 101.872474 | I10: 102.431329 | J10: 103.1763865 | K10: 103.8041235 | L10: 103.7686779 | M10: 104.6218057 | N10: 104.4223639 | O10: 105.5641814 | P10: 105.6898225 | Q10: 105.6974382 | R10: 106.919744 | S10: 107.1094019 | T10: 106.907722 | U10: 107.9952124 | V10: 107.9902134 | W10: 108.8151319 | X10: 109.884708 | Y10: 109.7526161
A11: AVG | B11: 100 | C11: 98.83248415 | D11: 98.60237256 | E11: 101.4167194 | F11: 101.1410147 | G11: 100.9831745 | H11: 102.2908152 | I11: 102.3099798 | J11: 103.3593734 | K11: 103.3814614 | L11: 103.3688681 | M11: 104.9357284 | N11: 104.4519592 | O11: 104.4624099 | P11: 106.6667882 | Q11: 106.6785747 | R11: 105.2187587 | S11: 108.7795022 | T11: 106.2706395 | U11: 107.9384727 | V11: 108.1183032 | W11: 109.2970401 | X11: 109.7349905 | Y11: 109.5612594

Sheet Graf 92
A1: Graf 92: Porovnanie počtu prenocovaní: historický trend vs. skutočnosť (neočistené dáta v tis.)
A2: Zdroj: Eurostat (tour_occ_nim), IFP
B3: Počet domácich prenocovaní | C3: Prognóza 2019 podľa trendu
A4: 2014-01-01 | B4: 382397
A5: 2014-02-01 | B5: 521348
A6: 2014-03-01 | B6: 501846
A7: 2014-04-01 | B7: 482236
A8: 2014-05-01 | B8: 575968
A9: 2014-06-01 | B9: 616578
A10: 2014-07-01 | B10: 841743
A11: 2014-08-01 | B11: 874520
A12: 2014-09-01 | B12: 609592
A13: 2014-10-01 | B13: 607408
A14: 2014-11-01 | B14: 525668
A15: 2014-12-01 | B15: 389044
A16: 2015-01-01 | B16: 416227
A17: 2015-02-01 | B17: 519187
A18: 2015-03-01 | B18: 538470
A19: 2015-04-01 | B19: 520606
A20: 2015-05-01 | B20: 613321
A21: 2015-06-01 | B21: 689189
A22: 2015-07-01 | B22: 966587
A23: 2015-08-01 | B23: 1030949
A24: 2015-09-01 | B24: 683163
A25: 2015-10-01 | B25: 680908
A26: 2015-11-01 | B26: 606695
A27: 2015-12-01 | B27: 462817
A28: 2016-01-01 | B28: 543592
A29: 2016-02-01 | B29: 681488
A30: 2016-03-01 | B30: 647470
A31: 2016-04-01 | B31: 578675
A32: 2016-05-01 | B32: 681552
A33: 2016-06-01 | B33: 780027
A34: 2016-07-01 | B34: 1130851
A35: 2016-08-01 | B35: 1190823
A36: 2016-09-01 | B36: 779428
A37: 2016-10-01 | B37: 725111
A38: 2016-11-01 | B38: 615965
A39: 2016-12-01 | B39: 501586
A40: 2017-01-01 | B40: 576902
A41: 2017-02-01 | B41: 702199
A42: 2017-03-01 | B42: 691630
A43: 2017-04-01 | B43: 623418
A44: 2017-05-01 | B44: 766946
A45: 2017-06-01 | B45: 845002
A46: 2017-07-01 | B46: 1232185
A47: 2017-08-01 | B47: 1240725
A48: 2017-09-01 | B48: 787801
A49: 2017-10-01 | B49: 734525
A50: 2017-11-01 | B50: 641287
A51: 2017-12-01 | B51: 508372
A52: 2018-01-01 | B52: 607131
A53: 2018-02-01 | B53: 701068
A54: 2018-03-01 | B54: 738232
A55: 2018-04-01 | B55: 647200
A56: 2018-05-01 | B56: 751985
A57: 2018-06-01 | B57: 860803
A58: 2018-07-01 | B58: 1234557
A59: 2018-08-01 | B59: 1290690
A60: 2018-09-01 | B60: 786273
A61: 2018-10-01 | B61: 799572
A62: 2018-11-01 | B62: 678053
A63: 2018-12-01 | B63: 533694 | C63: 533694
A64: 2019-01-01 | B64: 645282 | C64: 642381.9807
A65: 2019-02-01 | B65: 798178 | C65: 746137.9059
A66: 2019-03-01 | B66: 777684 | C66: 789153.0095
A67: 2019-04-01 | B67: 733636 | C67: 694125
A68: 2019-05-01 | B68: 876501 | C68: 808501.0068
A69: 2019-06-01 | B69: 967706 | C69: 927211.1245
A70: 2019-07-01 | B70: 1483022 | C70: 1331643.894
A71: 2019-08-01 | B71: 1541879 | C71: 1393638.349
A72: 2019-09-01 | B72: 911576 | C72: 849649.1138
A73: 2019-10-01 | B73: 943165 | C73: 864524.2613
A74: 2019-11-01 | B74: 839362 | C74: 733454.3865
A75: 2019-12-01 | B75: 659652 | C75: 577489.4611

Sheet Graf 93
A1: Graf 93: Porovnanie počtu prenocovaní: historický trend vs. skutočnosť (sez. očistené dáta, v tis.)
A2: Zdroj: Eurostat (tour_occ_nim), IFP
B3: ='[25]NSA domaci'!$B$1 -> Počet domácich prenocovaní | C3: ='[25]NSA domaci'!$C$1 -> Prognóza 2019 podľa trendu
A4: 2014-01-01 | B4: 546258.4692
A5: 2014-02-01 | B5: 571479.8444
A6: 2014-03-01 | B6: 563598.8083
A7: 2014-04-01 | B7: 572349.2641
A8: 2014-05-01 | B8: 580314.0579
A9: 2014-06-01 | B9: 573944.4148
A10: 2014-07-01 | B10: 571066.592
A11: 2014-08-01 | B11: 571453.7067
A12: 2014-09-01 | B12: 589738.332
A13: 2014-10-01 | B13: 598726.2487
A14: 2014-11-01 | B14: 600389.005
A15: 2014-12-01 | B15: 595849.2302
A16: 2015-01-01 | B16: 584792.863
A17: 2015-02-01 | B17: 576752.0701
A18: 2015-03-01 | B18: 608288.0131
A19: 2015-04-01 | B19: 629250.9238
A20: 2015-05-01 | B20: 630346.8349
A21: 2015-06-01 | B21: 643372.973
A22: 2015-07-01 | B22: 647102.3513
A23: 2015-08-01 | B23: 663156.9501
A24: 2015-09-01 | B24: 664641.5919
A25: 2015-10-01 | B25: 683504.8077
A26: 2015-11-01 | B26: 704145.8274
A27: 2015-12-01 | B27: 702606.3577
A28: 2016-01-01 | B28: 731132.3402
A29: 2016-02-01 | B29: 742627.4287
A30: 2016-03-01 | B30: 723426.4978
A31: 2016-04-01 | B31: 712528.5635
A32: 2016-05-01 | B32: 711326.902
A33: 2016-06-01 | B33: 730197.1497
A34: 2016-07-01 | B34: 742392.7518
A35: 2016-08-01 | B35: 753786.4629
A36: 2016-09-01 | B36: 764008.7904
A37: 2016-10-01 | B37: 747054.6058
A38: 2016-11-01 | B38: 737837.1431
A39: 2016-12-01 | B39: 766887.462
A40: 2017-01-01 | B40: 762757.8202
A41: 2017-02-01 | B41: 767510.6367
A42: 2017-03-01 | B42: 765118.3602
A43: 2017-04-01 | B43: 767704.838
A44: 2017-05-01 | B44: 794394.3221
A45: 2017-06-01 | B45: 784115.6013
A46: 2017-07-01 | B46: 793463.5487
A47: 2017-08-01 | B47: 778173.957
A48: 2017-09-01 | B48: 786825.837
A49: 2017-10-01 | B49: 765346.0613
A50: 2017-11-01 | B50: 778086.5893
A51: 2017-12-01 | B51: 782761.4513
A52: 2018-01-01 | B52: 795365.2041
A53: 2018-02-01 | B53: 768537.847
A54: 2018-03-01 | B54: 810358.4381
A55: 2018-04-01 | B55: 791017.6581
A56: 2018-05-01 | B56: 779808.2006
A57: 2018-06-01 | B57: 802453.048
A58: 2018-07-01 | B58: 790499.8298
A59: 2018-08-01 | B59: 805028.8093
A60: 2018-09-01 | B60: 804990.978
A61: 2018-10-01 | B61: 830216.9533
A62: 2018-11-01 | B62: 820235.247
A63: 2018-12-01 | B63: 826790.5053 | C63: 826790.5053
A64: 2019-01-01 | B64: 843665.9225 | C64: 830210.5148
A65: 2019-02-01 | B65: 870281.9889 | C65: 835594.3791
A66: 2019-03-01 | B66: 859238.6155 | C66: 841053.1906
A67: 2019-04-01 | B67: 891907.9326 | C67: 846577.8603
A68: 2019-05-01 | B68: 907440.6521 | C68: 852161.5979
A69: 2019-06-01 | B69: 907652.7549 | C69: 857799.3454
A70: 2019-07-01 | B70: 942497.1782 | C70: 863487.3521
A71: 2019-08-01 | B71: 954883.412 | C71: 869222.8523
A72: 2019-09-01 | B72: 949561.4842 | C72: 875003.8243
A73: 2019-10-01 | B73: 977669.136 | C73: 880828.8075
A74: 2019-11-01 | B74: 1006326.377 | C74: 886696.7649
A75: 2019-12-01 | B75: 1017478.922 | C75: 892606.9798

Sheet Graf 94
A1: Graf 94: Odhad na základe SCM, počet prenocovaní na obyvateľa (sez. očistené dáta)
A2: Zdroj: Eurostat (tour_occ_nim) a (tour_occ_ninraw), IFP
A3: mesiac | B3: Rozdiel medzi Slovenskom a syntetickým Slovenskom
A4: 2015-01-01 | B4: -0.01437375
A5: 2015-02-01 | B5: -0.01492585
A6: 2015-03-01 | B6: -0.0073395
A7: 2015-04-01 | B7: -0.00402468
A8: 2015-05-01 | B8: 4.707e-05
A9: 2015-06-01 | B9: -0.00384478
A10: 2015-07-01 | B10: -0.00652872
A11: 2015-08-01 | B11: -0.00332506
A12: 2015-09-01 | B12: -0.00164487
A13: 2015-10-01 | B13: 0.00226193
A14: 2015-11-01 | B14: 0.00674976
A15: 2015-12-01 | B15: 0.0041077
A16: 2016-01-01 | B16: 0.01220204
A17: 2016-02-01 | B17: 0.01055926
A18: 2016-03-01 | B18: 0.00119796
A19: 2016-04-01 | B19: 0.00547202
A20: 2016-05-01 | B20: 0.00211741
A21: 2016-06-01 | B21: 0.004155
A22: 2016-07-01 | B22: 0.00284479
A23: 2016-08-01 | B23: 0.00663103
A24: 2016-09-01 | B24: 0.00889318
A25: 2016-10-01 | B25: 0.0041406
A26: 2016-11-01 | B26: -0.00117905
A27: 2016-12-01 | B27: 0.00645569
A28: 2017-01-01 | B28: 0.00794811
A29: 2017-02-01 | B29: 0.00544912
A30: 2017-03-01 | B30: 0.00408228
A31: 2017-04-01 | B31: -0.00048775
A32: 2017-05-01 | B32: 0.00694885
A33: 2017-06-01 | B33: 0.00425191
A34: 2017-07-01 | B34: 0.00607087
A35: 2017-08-01 | B35: 0.00190694
A36: 2017-09-01 | B36: 0.00174839
A37: 2017-10-01 | B37: -0.00275533
A38: 2017-11-01 | B38: -0.00354776
A39: 2017-12-01 | B39: -0.0038942
A40: 2018-01-01 | B40: -0.00106758
A41: 2018-02-01 | B41: -0.00712257
A42: 2018-03-01 | B42: -2.174e-05
A43: 2018-04-01 | B43: -0.00161842
A44: 2018-05-01 | B44: -0.00765062
A45: 2018-06-01 | B45: -0.00301222
A46: 2018-07-01 | B46: -0.00561426
A47: 2018-08-01 | B47: -0.00247231
A48: 2018-09-01 | B48: -0.00752419
A49: 2018-10-01 | B49: 0.00015702
A50: 2018-11-01 | B50: -0.00343366
A51: 2018-12-01 | B51: -0.00143508
A52: 2019-01-01 | B52: 0.00584475
A53: 2019-02-01 | B53: 0.00899182
A54: 2019-03-01 | B54: 0.00793839
A55: 2019-04-01 | B55: 0.01105119
A56: 2019-05-01 | B56: 0.01549346
A57: 2019-06-01 | B57: 0.01346808
A58: 2019-07-01 | B58: 0.02365946
A59: 2019-08-01 | B59: 0.02398389
A60: 2019-09-01 | B60: 0.02081277
A61: 2019-10-01 | B61: 0.02524536
A62: 2019-11-01 | B62: 0.03234163
A63: 2019-12-01 | B63: 0.03383836

Sheet Graf 95
A1: Graf 95: Efekt opatrení na počet domácich prenocovaní (SCM odhad v mil.)
A2: Zdroj: Eurostat (tour_occ_nim) a (tour_occ_ninraw), IFP
B3: 2015 | C3: 2016 | D3: 2017 | E3: 2018 | F3: 2019 SCM | G3: 2019
A4: Slovakia | B4: 7791475 | C4: 8856568 | D4: 9350992 | E4: 9629258 | F4: 10155073.15 | G4: 11177659

Sheet Graf 96
A1: Graf 96: Vývoj cien ubytovacích služieb, index HICP priemer 2015=100
A2: Zdroj: ŠÚ SR
A3: 2017-01-01 | B3: 102.83
A4: 2017-02-01 | B4: 103.02
A5: 2017-03-01 | B5: 102.92
A6: 2017-04-01 | B6: 102.53
A7: 2017-05-01 | B7: 102.64
A8: 2017-06-01 | B8: 103.08
A9: 2017-07-01 | B9: 103.16
A10: 2017-08-01 | B10: 103.3
A11: 2017-09-01 | B11: 104.51
A12: 2017-10-01 | B12: 104.8
A13: 2017-11-01 | B13: 104.7
A14: 2017-12-01 | B14: 104.78
A15: 2018-01-01 | B15: 104.98
A16: 2018-02-01 | B16: 105.08
A17: 2018-03-01 | B17: 105.21
A18: 2018-04-01 | B18: 105.21
A19: 2018-05-01 | B19: 105.43
A20: 2018-06-01 | B20: 105.44
A21: 2018-07-01 | B21: 105.66
A22: 2018-08-01 | B22: 105.71
A23: 2018-09-01 | B23: 106.55
A24: 2018-10-01 | B24: 107.03
A25: 2018-11-01 | B25: 106.89
A26: 2018-12-01 | B26: 107.14
A27: 2019-01-01 | B27: 107.51
A28: 2019-02-01 | B28: 107.39
A29: 2019-03-01 | B29: 107.38
A30: 2019-04-01 | B30: 107.55
A31: 2019-05-01 | B31: 111.04
A32: 2019-06-01 | B32: 108.16
A33: 2019-07-01 | B33: 108.4
A34: 2019-08-01 | B34: 108.59
A35: 2019-09-01 | B35: 109.35
A36: 2019-10-01 | B36: 110.25
A37: 2019-11-01 | B37: 110.35
A38: 2019-12-01 | B38: 110.61

Sheet Graf 97
A1: Graf 97: Vývoj výnosov a nákladov z hospodárskej činnosti v sektore ubytovania (mil. eur)
A2: Zdroj: Daňové priznania
B3: Výnosy z hospodárskej a finančnej činoosti | C3: Náklady z hospodárskej a finančnej činoosti
B4: Výnosy | C4: Náklady
A5: 2014 | B5: 453983744 | C5: 498272800
A6: 2015 | B6: 534688096 | C6: 582069952
A7: 2016 | B7: 640384704 | C7: 620114432
A8: 2017 | B8: 640196800 | C8: 623777792
A9: 2018 | B9: 594846592 | C9: 604122176
A10: 2019 | B10: 799102336 | C10: 784335744
A11: 2020 | B11: 501495552 | C11: 559294848
A12: 2021* | B12: 508534176 | C12: 570742720
A14: * | B14: Neúplné údaje

Sheet Graf 98
A1: Graf 98: Dekompozícia nákladov v sektore ubytovania (mil. eur)
A2: Zdroj: Register účtovných závierok, Finstat
A3: rok | B3: materiál+energie | C3: služby | D3: tovar | E3: osobné náklady | F3: ostatné náklady | G3: dane a poplatky | H3: odpisy
A4: 2014 | B4: 107.276408 | C4: 121.986263 | D4: 31.923263 | E4: 107.630871 | F4: 24.838809 | G4: 4.510347 | H4: 55.842788
A5: 2015 | B5: 124.591889 | C5: 138.343183 | D5: 37.803838 | E5: 115.814513 | F5: 29.200725 | G5: 4.610296 | H5: 51.024872
A6: 2016 | B6: 134.06215 | C6: 147.153969 | D6: 68.764671 | E6: 130.516711 | F6: 26.395743 | G6: 5.016815 | H6: 54.364407
A7: 2017 | B7: 133.163511 | C7: 155.094776 | D7: 74.071617 | E7: 140.406212 | F7: 27.805813 | G7: 5.306647 | H7: 48.91968
A8: 2018 | B8: 140.112379 | C8: 165.136296 | D8: 29.944327 | E8: 154.344951 | F8: 10.187196 | G8: 5.306708 | H8: 51.990042
A9: 2019 | B9: 157.788385 | C9: 184.187855 | D9: 26.071566 | E9: 176.964473 | F9: 13.701357 | G9: 5.813656 | H9: 56.299679
A10: 2020 | B10: 130.803519 | C10: 161.001978 | D10: 21.916351 | E10: 168.68589 | F10: 13.497111 | G10: 5.527537 | H10: 79.245966
A11: 2021* | B11: 96.460003 | C11: 112.187025 | D11: 50.50626 | E11: 139.458296 | F11: 22.329487 | G11: 4.66804 | H11: 54.141152

Sheet Graf 99
A1: Graf 99: Lorenzova krivka pre podiel výdavkov na rekreaćné a ubytovacie služby
A2: Zdroj: Rodinné účty 2015
B3: podiel domácností | C3: rovnomerné rozloženie | D3: dovolenkové balíky | E3: ubytovacie služby | F3: ubytovanie a dovolenky
B4: cum_hh | C4: cum_hh | D4: cum_x096 | E4: cum_x112 | F4: cum_ubyt
B5: 0.004146411925 | C5: 0.004146411925 | D5: 0 | E5: 0.004624176575 | F5: 0.001431777165
B6: 0.007538419373 | C6: 0.007538419373 | D6: 0 | E6: 0.004624176575 | F6: 0.001431777165
B7: 0.02454459166 | C7: 0.02454459166 | D7: 0 | E7: 0.004624176575 | F7: 0.001431777165
B8: 0.0370980353 | C8: 0.0370980353 | D8: 0 | E8: 0.004624176575 | F8: 0.001431777165
B9: 0.05277959242 | C9: 0.05277959242 | D9: 0 | E9: 0.004624176575 | F9: 0.001431777165
B10: 0.08858536284 | C10: 0.08858536284 | D10: 0 | E10: 0.004624176575 | F10: 0.001431777165
B11: 0.09279565744 | C11: 0.09279565744 | D11: 0 | E11: 0.01054040583 | F11: 0.00326361075
B12: 0.09957477212 | C12: 0.09957477212 | D12: 0 | E12: 0.01054040583 | F12: 0.00326361075
B13: 0.1218675755 | C13: 0.1218675755 | D13: 0 | E13: 0.01054040583 | F13: 0.00326361075
B14: 0.1484724319 | C14: 0.1484724319 | D14: 0 | E14: 0.01054040583 | F14: 0.00326361075
B15: 0.1656199639 | C15: 0.1656199639 | D15: 0 | E15: 0.01054040583 | F15: 0.00326361075
B16: 0.1724035335 | C16: 0.1724035335 | D16: 0 | E16: 0.01054040583 | F16: 0.00326361075
B17: 0.2025774453 | C17: 0.2025774453 | D17: 0 | E17: 0.01054040583 | F17: 0.00326361075
B18: 0.2190932303 | C18: 0.2190932303 | D18: 0 | E18: 0.01054040583 | F18: 0.00326361075
B19: 0.2574009042 | C19: 0.2574009042 | D19: 0 | E19: 0.01054040583 | F19: 0.00326361075
B20: 0.2889519683 | C20: 0.2889519683 | D20: 0 | E20: 0.01054040583 | F20: 0.00326361075
B21: 0.2916163463 | C21: 0.2916163463 | D21: 0 | E21: 0.01054040583 | F21: 0.00326361075
B22: 0.3067649407 | C22: 0.3067649407 | D22: 0 | E22: 0.01054040583 | F22: 0.00326361075
B23: 0.3513264229 | C23: 0.3513264229 | D23: 0.1448749029 | E23: 0.01054040583 | F23: 0.1032811052
B24: 0.3580907835 | C24: 0.3580907835 | D24: 0.1448749029 | E24: 0.01054040583 | F24: 0.1032811052
B25: 0.3643508557 | C25: 0.3643508557 | D25: 0.1448749029 | E25: 0.01054040583 | F25: 0.1032811052
B26: 0.3708070409 | C26: 0.3708070409 | D26: 0.1448749029 | E26: 0.01054040583 | F26: 0.1032811052
B27: 0.3838017012 | C27: 0.3838017012 | D27: 0.1448749029 | E27: 0.01054040583 | F27: 0.1032811052
B28: 0.4589967113 | C28: 0.4589967113 | D28: 0.1448749029 | E28: 0.01054040583 | F28: 0.1032811052
B29: 0.4642362417 | C29: 0.4642362417 | D29: 0.1448749029 | E29: 0.01054040583 | F29: 0.1032811052
B30: 0.5219341702 | C30: 0.5219341702 | D30: 0.1448749029 | E30: 0.01054040583 | F30: 0.1032811052
B31: 0.5349717423 | C31: 0.5349717423 | D31: 0.1448749029 | E31: 0.01054040583 | F31: 0.1032811052
B32: 0.5400838901 | C32: 0.5400838901 | D32: 0.1448749029 | E32: 0.01054040583 | F32: 0.1032811052
B33: 0.5474902859 | C33: 0.5474902859 | D33: 0.1448749029 | E33: 0.01054040583 | F33: 0.1032811052
B34: 0.5574706408 | C34: 0.5574706408 | D34: 0.1448749029 | E34: 0.01054040583 | F34: 0.1032811052
B35: 0.5781580065 | C35: 0.5781580065 | D35: 0.1448749029 | E35: 0.2516327647 | F35: 0.1779301866
B36: 0.583797321 | C36: 0.583797321 | D36: 0.1448749029 | E36: 0.2516327647 | F36: 0.1779301866
B37: 0.5906404604 | C37: 0.5906404604 | D37: 0.1448749029 | E37: 0.2516327647 | F37: 0.1779301866
B38: 0.6098521929 | C38: 0.6098521929 | D38: 0.1448749029 | E38: 0.2516327647 | F38: 0.1779301866
B39: 0.6150549733 | C39: 0.6150549733 | D39: 0.1448749029 | E39: 0.2516327647 | F39: 0.1779301866
B40: 0.6303808973 | C40: 0.6303808973 | D40: 0.1448749029 | E40: 0.2516327647 | F40: 0.1779301866
B41: 0.6429096689 | C41: 0.6429096689 | D41: 0.1448749029 | E41: 0.2516327647 | F41: 0.1779301866
B42: 0.6867937536 | C42: 0.6867937536 | D42: 0.1448749029 | E42: 0.2516327647 | F42: 0.1779301866
B43: 0.6988974752 | C43: 0.6988974752 | D43: 0.1448749029 | E43: 0.2516327647 | F43: 0.1779301866
B44: 0.7098695519 | C44: 0.7098695519 | D44: 0.1448749029 | E44: 0.2516327647 | F44: 0.1779301866
B45: 0.7376282257 | C45: 0.7376282257 | D45: 0.1448749029 | E45: 0.2516327647 | F45: 0.1779301866
B46: 0.7718268194 | C46: 0.7718268194 | D46: 0.1448749029 | E46: 0.2516327647 | F46: 0.1779301866
B47: 0.7828843881 | C47: 0.7828843881 | D47: 0.1448749029 | E47: 0.2516327647 | F47: 0.1779301866
B48: 0.7883097564 | C48: 0.7883097564 | D48: 0.1448749029 | E48: 0.2516327647 | F48: 0.1779301866
B49: 0.7940637079 | C49: 0.7940637079 | D49: 0.1448749029 | E49: 0.2516327647 | F49: 0.1779301866
B50: 0.8010637306 | C50: 0.8010637306 | D50: 0.1448749029 | E50: 0.2516327647 | F50: 0.1779301866
B51: 0.8065003281 | C51: 0.8065003281 | D51: 0.1448749029 | E51: 0.2516327647 | F51: 0.1779301866
B52: 0.812432598 | C52: 0.812432598 | D52: 0.1448749029 | E52: 0.2516327647 | F52: 0.1779301866
B53: 0.8169895824 | C53: 0.8169895824 | D53: 0.1448749029 | E53: 0.2516327647 | F53: 0.1779301866
B54: 0.8208172832 | C54: 0.8208172832 | D54: 0.1448749029 | E54: 0.2516327647 | F54: 0.1779301866
B55: 0.8422236712 | C55: 0.8422236712 | D55: 0.1448749029 | E55: 0.2516327647 | F55: 0.1779301866
B56: 0.85302922 | C56: 0.85302922 | D56: 0.1448749029 | E56: 0.2516327647 | F56: 0.1779301866
B57: 0.8621515436 | C57: 0.8621515436 | D57: 0.1448749029 | E57: 0.2516327647 | F57: 0.1779301866
B58: 0.8778982409 | C58: 0.8778982409 | D58: 0.1448749029 | E58: 0.2516327647 | F58: 0.1779301866
B59: 0.8962934637 | C59: 0.8962934637 | D59: 0.1448749029 | E59: 0.2516327647 | F59: 0.1779301866
B60: 0.9045201703 | C60: 0.9045201703 | D60: 0.1448749029 | E60: 0.2516327647 | F60: 0.1779301866
B61: 0.9075626298 | C61: 0.9075626298 | D61: 0.1448749029 | E61: 0.2516327647 | F61: 0.1779301866
B62: 0.9173091524 | C62: 0.9173091524 | D62: 0.1448749029 | E62: 0.2516327647 | F62: 0.1779301866
B63: 0.9266370446 | C63: 0.9266370446 | D63: 0.1448749029 | E63: 0.2516327647 | F63: 0.1779301866
B64: 0.9415210165 | C64: 0.9415210165 | D64: 0.1448749029 | E64: 0.2516327647 | F64: 0.1779301866
B65: 0.9437428615 | C65: 0.9437428615 | D65: 0.1448749029 | E65: 0.256588473 | F65: 0.1794646155
B66: 0.9610451294 | C66: 0.9610451294 | D66: 0.1448749029 | E66: 0.256588473 | F66: 0.1794646155
B67: 0.9649964075 | C67: 0.9649964075 | D67: 0.1448749029 | E67: 0.256588473 | F67: 0.1794646155
B68: 0.9759987918 | C68: 0.9759987918 | D68: 0.1448749029 | E68: 0.256588473 | F68: 0.1794646155
B69: 0.9824110907 | C69: 0.9824110907 | D69: 0.1448749029 | E69: 0.256588473 | F69: 0.1794646155
B70: 0.9876593441 | C70: 0.9876593441 | D70: 0.1448749029 | E70: 0.256588473 | F70: 0.1794646155
B71: 1.007249337 | C71: 1.007249337 | D71: 0.1448749029 | E71: 0.256588473 | F71: 0.1794646155
B72: 1.008884297 | C72: 1.008884297 | D72: 0.1448749029 | E72: 0.256588473 | F72: 0.1794646155
B73: 1.025611578 | C73: 1.025611578 | D73: 0.1448749029 | E73: 0.256588473 | F73: 0.1794646155
B74: 1.047552856 | C74: 1.047552856 | D74: 0.1448749029 | E74: 0.256588473 | F74: 0.1794646155
B75: 1.051099434 | C75: 1.051099434 | D75: 0.1448749029 | E75: 0.258842953 | F75: 0.1801626669
B76: 1.055157131 | C76: 1.055157131 | D76: 0.1448749029 | E76: 0.258842953 | F76: 0.1801626669
B77: 1.097136175 | C77: 1.097136175 | D77: 0.1448749029 | E77: 0.3758830083 | F77: 0.2164016115
B78: 1.104950241 | C78: 1.104950241 | D78: 0.1448749029 | E78: 0.3758830083 | F78: 0.2164016115
B79: 1.109506029 | C79: 1.109506029 | D79: 0.1448749029 | E79: 0.3758830083 | F79: 0.2164016115
B80: 1.118315779 | C80: 1.118315779 | D80: 0.1448749029 | E80: 0.3758830083 | F80: 0.2164016115
B81: 1.166345095 | C81: 1.166345095 | D81: 0.1448749029 | E81: 0.3758830083 | F81: 0.2164016115
B82: 1.17120609 | C82: 1.17120609 | D82: 0.1448749029 | E82: 0.3758830083 | F82: 0.2164016115
B83: 1.187461494 | C83: 1.187461494 | D83: 0.1448749029 | E83: 0.3758830083 | F83: 0.2164016115
B84: 1.194285045 | C84: 1.194285045 | D84: 0.1448749029 | E84: 0.3758830083 | F84: 0.2164016115
B85: 1.198502468 | C85: 1.198502468 | D85: 0.1448749029 | E85: 0.3758830083 | F85: 0.2164016115
B86: 1.200594033 | C86: 1.200594033 | D86: 0.1448749029 | E86: 0.3758830083 | F86: 0.2164016115
B87: 1.208604461 | C87: 1.208604461 | D87: 0.1448749029 | E87: 0.3758830083 | F87: 0.2164016115
B88: 1.217516788 | C88: 1.217516788 | D88: 0.1448749029 | E88: 0.3758830083 | F88: 0.2164016115
B89: 1.224713714 | C89: 1.224713714 | D89: 0.1628734416 | E89: 0.3758830083 | F89: 0.2288272884
B90: 1.231976022 | C90: 1.231976022 | D90: 0.1628734416 | E90: 0.3758830083 | F90: 0.2288272884
B91: 1.246789633 | C91: 1.246789633 | D91: 0.1628734416 | E91: 0.3758830083 | F91: 0.2288272884
B92: 1.251055357 | C92: 1.251055357 | D92: 0.1628734416 | E92: 0.3758830083 | F92: 0.2288272884
B93: 1.270081136 | C93: 1.270081136 | D93: 0.1628734416 | E93: 0.3758830083 | F93: 0.2288272884
B94: 1.281268709 | C94: 1.281268709 | D94: 0.1628734416 | E94: 0.3758830083 | F94: 0.2288272884
B95: 1.28557481 | C95: 1.28557481 | D95: 0.1628734416 | E95: 0.3758830083 | F95: 0.2288272884
B96: 1.315334285 | C96: 1.315334285 | D96: 0.1628734416 | E96: 0.3758830083 | F96: 0.2288272884
B97: 1.320525407 | C97: 1.320525407 | D97: 0.1628734416 | E97: 0.3758830083 | F97: 0.2288272884
B98: 1.347561699 | C98: 1.347561699 | D98: 0.1628734416 | E98: 0.3758830083 | F98: 0.2288272884
B99: 1.349284678 | C99: 1.349284678 | D99: 0.1628734416 | E99: 0.3758830083 | F99: 0.2288272884
B100: 1.37177676 | C100: 1.37177676 | D100: 0.1628734416 | E100: 0.3758830083 | F100: 0.2288272884
B101: 1.376957121 | C101: 1.376957121 | D101: 0.1628734416 | E101: 0.3758830083 | F101: 0.2288272884
B102: 1.380917402 | C102: 1.380917402 | D102: 0.1628734416 | E102: 0.3758830083 | F102: 0.2288272884
B103: 1.386514236 | C103: 1.386514236 | D103: 0.1628734416 | E103: 0.3758830083 | F103: 0.2288272884
B104: 1.389874168 | C104: 1.389874168 | D104: 0.1631759401 | E104: 0.3758830083 | F104: 0.2290361248
B105: 1.438651051 | C105: 1.438651051 | D105: 0.1631759401 | E105: 0.3758830083 | F105: 0.2290361248
B106: 1.467327542 | C106: 1.467327542 | D106: 0.1631759401 | E106: 0.3758830083 | F106: 0.2290361248
B107: 1.474141805 | C107: 1.474141805 | D107: 0.1631759401 | E107: 0.3758830083 | F107: 0.2290361248
B108: 1.513413587 | C108: 1.513413587 | D108: 0.1631759401 | E108: 0.4065407819 | F108: 0.2385286472
B109: 1.527187726 | C109: 1.527187726 | D109: 0.1631759401 | E109: 0.4065407819 | F109: 0.2385286472
B110: 1.533963329 | C110: 1.533963329 | D110: 0.1631759401 | E110: 0.4065407819 | F110: 0.2385286472
B111: 1.550943012 | C111: 1.550943012 | D111: 0.1631759401 | E111: 0.4065407819 | F111: 0.2385286472
B112: 1.633096868 | C112: 1.633096868 | D112: 0.1631759401 | E112: 0.4065407819 | F112: 0.2385286472
B113: 1.643143237 | C113: 1.643143237 | D113: 0.1631759401 | E113: 0.4065407819 | F113: 0.2385286472
B114: 1.663494678 | C114: 1.663494678 | D114: 0.1631759401 | E114: 0.4065407819 | F114: 0.2385286472
B115: 1.683835042 | C115: 1.683835042 | D115: 0.1631759401 | E115: 0.4314932414 | F115: 0.2462546415
B116: 1.685852823 | C116: 1.685852823 | D116: 0.1631759401 | E116: 0.4314932414 | F116: 0.2462546415
B117: 1.709489769 | C117: 1.709489769 | D117: 0.1631759401 | E117: 0.4314932414 | F117: 0.2462546415
B118: 1.711285188 | C118: 1.711285188 | D118: 0.1631759401 | E118: 0.4314932414 | F118: 0.2462546415
B119: 1.714350577 | C119: 1.714350577 | D119: 0.1631759401 | E119: 0.4314932414 | F119: 0.2462546415
B120: 1.732207509 | C120: 1.732207509 | D120: 0.1631759401 | E120: 0.4314932414 | F120: 0.2462546415
B121: 1.814771379 | C121: 1.814771379 | D121: 0.1631759401 | E121: 0.4314932414 | F121: 0.2462546415
B122: 1.821952354 | C122: 1.821952354 | D122: 0.1631759401 | E122: 0.4314932414 | F122: 0.2462546415
B123: 1.837435298 | C123: 1.837435298 | D123: 0.1631759401 | E123: 0.4314932414 | F123: 0.2462546415
B124: 1.86074745 | C124: 1.86074745 | D124: 0.1631759401 | E124: 0.4964888979 | F124: 0.2663791535
B125: 1.87151106 | C125: 1.87151106 | D125: 0.1631759401 | E125: 0.4964888979 | F125: 0.2663791535
B126: 1.889763318 | C126: 1.889763318 | D126: 0.1869120811 | E126: 0.4964888979 | F126: 0.2827659072
B127: 1.904926936 | C127: 1.904926936 | D127: 0.1869120811 | E127: 0.4964888979 | F127: 0.2827659072
B128: 1.90900899 | C128: 1.90900899 | D128: 0.1869120811 | E128: 0.4964888979 | F128: 0.2827659072
B129: 1.919057783 | C129: 1.919057783 | D129: 0.1869120811 | E129: 0.4964888979 | F129: 0.2827659072
B130: 1.921956008 | C130: 1.921956008 | D130: 0.1869120811 | E130: 0.4964888979 | F130: 0.2827659072
B131: 1.92402071 | C131: 1.92402071 | D131: 0.1869120811 | E131: 0.4964888979 | F131: 0.2827659072
B132: 1.944103705 | C132: 1.944103705 | D132: 0.1869120811 | E132: 0.4964888979 | F132: 0.2827659072
B133: 1.976666165 | C133: 1.976666165 | D133: 0.1869120811 | E133: 0.4964888979 | F133: 0.2827659072
B134: 1.984953882 | C134: 1.984953882 | D134: 0.1869120811 | E134: 0.4964888979 | F134: 0.2827659072
B135: 1.99817414 | C135: 1.99817414 | D135: 0.196830704 | E135: 0.4964888979 | F135: 0.2896134411
B136: 2.02486784 | C136: 2.02486784 | D136: 0.196830704 | E136: 0.4964888979 | F136: 0.2896134411
B137: 2.03320303 | C137: 2.03320303 | D137: 0.196830704 | E137: 0.4964888979 | F137: 0.2896134411
B138: 2.040589031 | C138: 2.040589031 | D138: 0.196830704 | E138: 0.4964888979 | F138: 0.2896134411
B139: 2.054394633 | C139: 2.054394633 | D139: 0.196830704 | E139: 0.4964888979 | F139: 0.2896134411
B140: 2.075514988 | C140: 2.075514988 | D140: 0.196830704 | E140: 0.4964888979 | F140: 0.2896134411
B141: 2.080771649 | C141: 2.080771649 | D141: 0.196830704 | E141: 0.4964888979 | F141: 0.2896134411
B142: 2.09005541 | C142: 2.09005541 | D142: 0.196830704 | E142: 0.4964888979 | F142: 0.2896134411
B143: 2.104011405 | C143: 2.104011405 | D143: 0.196830704 | E143: 0.4964888979 | F143: 0.2896134411
B144: 2.139781457 | C144: 2.139781457 | D144: 0.196830704 | E144: 0.4964888979 | F144: 0.2896134411
B145: 2.165550046 | C145: 2.165550046 | D145: 0.196830704 | E145: 0.4964888979 | F145: 0.2896134411
B146: 2.177514311 | C146: 2.177514311 | D146: 0.196830704 | E146: 0.4964888979 | F146: 0.2896134411
B147: 2.18148056 | C147: 2.18148056 | D147: 0.196830704 | E147: 0.4964888979 | F147: 0.2896134411
B148: 2.195257305 | C148: 2.195257305 | D148: 0.196830704 | E148: 0.4964888979 | F148: 0.2896134411
B149: 2.203387441 | C149: 2.203387441 | D149: 0.196830704 | E149: 0.505555818 | F149: 0.2924208185
B150: 2.212013009 | C150: 2.212013009 | D150: 0.196830704 | E150: 0.505555818 | F150: 0.2924208185
B151: 2.214151367 | C151: 2.214151367 | D151: 0.196830704 | E151: 0.505555818 | F151: 0.2924208185
B152: 2.220948081 | C152: 2.220948081 | D152: 0.196830704 | E152: 0.505555818 | F152: 0.2924208185
B153: 2.228973707 | C153: 2.228973707 | D153: 0.196830704 | E153: 0.505555818 | F153: 0.2924208185
B154: 2.240099262 | C154: 2.240099262 | D154: 0.196830704 | E154: 0.505555818 | F154: 0.2924208185
B155: 2.278419905 | C155: 2.278419905 | D155: 0.196830704 | E155: 0.505555818 | F155: 0.2924208185
B156: 2.301002011 | C156: 2.301002011 | D156: 0.196830704 | E156: 0.505555818 | F156: 0.2924208185
B157: 2.325235134 | C157: 2.325235134 | D157: 0.196830704 | E157: 0.505555818 | F157: 0.2924208185
B158: 2.32826666 | C158: 2.32826666 | D158: 0.196830704 | E158: 0.505555818 | F158: 0.2924208185
B159: 2.333065401 | C159: 2.333065401 | D159: 0.196830704 | E159: 0.505555818 | F159: 0.2924208185
B160: 2.337954088 | C160: 2.337954088 | D160: 0.196830704 | E160: 0.505555818 | F160: 0.2924208185
B161: 2.396467127 | C161: 2.396467127 | D161: 0.196830704 | E161: 0.505555818 | F161: 0.2924208185
B162: 2.41064333 | C162: 2.41064333 | D162: 0.196830704 | E162: 0.505555818 | F162: 0.2924208185
B163: 2.432338317 | C163: 2.432338317 | D163: 0.196830704 | E163: 0.505555818 | F163: 0.2924208185
B164: 2.440896881 | C164: 2.440896881 | D164: 0.196830704 | E164: 0.505555818 | F164: 0.2924208185
B165: 2.453179073 | C165: 2.453179073 | D165: 0.196830704 | E165: 0.505555818 | F165: 0.2924208185
B166: 2.472984973 | C166: 2.472984973 | D166: 0.196830704 | E166: 0.505555818 | F166: 0.2924208185
B167: 2.482854266 | C167: 2.482854266 | D167: 0.196830704 | E167: 0.505555818 | F167: 0.2924208185
B168: 2.520062748 | C168: 2.520062748 | D168: 0.196830704 | E168: 0.505555818 | F168: 0.2924208185
B169: 2.534601377 | C169: 2.534601377 | D169: 0.196830704 | E169: 0.505555818 | F169: 0.2924208185
B170: 2.556701726 | C170: 2.556701726 | D170: 0.196830704 | E170: 0.505555818 | F170: 0.2924208185
B171: 2.575921695 | C171: 2.575921695 | D171: 0.196830704 | E171: 0.505555818 | F171: 0.2924208185
B172: 2.579862981 | C172: 2.579862981 | D172: 0.196830704 | E172: 0.505555818 | F172: 0.2924208185
B173: 2.590529965 | C173: 2.590529965 | D173: 0.196830704 | E173: 0.505555818 | F173: 0.2924208185
B174: 2.599463848 | C174: 2.599463848 | D174: 0.196830704 | E174: 0.505555818 | F174: 0.2924208185
B175: 2.603478376 | C175: 2.603478376 | D175: 0.196830704 | E175: 0.505555818 | F175: 0.2924208185
B176: 2.608425015 | C176: 2.608425015 | D176: 0.196830704 | E176: 0.505555818 | F176: 0.2924208185
B177: 2.614880789 | C177: 2.614880789 | D177: 0.196830704 | E177: 0.505555818 | F177: 0.2924208185
B178: 2.62202806 | C178: 2.62202806 | D178: 0.196830704 | E178: 0.505555818 | F178: 0.2924208185
B179: 2.67882808 | C179: 2.67882808 | D179: 0.196830704 | E179: 0.505555818 | F179: 0.2924208185
B180: 2.691429786 | C180: 2.691429786 | D180: 0.196830704 | E180: 0.505555818 | F180: 0.2924208185
B181: 2.693326305 | C181: 2.693326305 | D181: 0.196830704 | E181: 0.505555818 | F181: 0.2924208185
B182: 2.724880671 | C182: 2.724880671 | D182: 0.196830704 | E182: 0.5118900495 | F182: 0.2943820775
B183: 2.740056218 | C183: 2.740056218 | D183: 0.196830704 | E183: 0.5118900495 | F183: 0.2943820775
B184: 2.748890318 | C184: 2.748890318 | D184: 0.196830704 | E184: 0.5118900495 | F184: 0.2943820775
B185: 2.754338947 | C185: 2.754338947 | D185: 0.196830704 | E185: 0.5118900495 | F185: 0.2943820775
B186: 2.780159353 | C186: 2.780159353 | D186: 0.196830704 | E186: 0.5118900495 | F186: 0.2943820775
B187: 2.787217322 | C187: 2.787217322 | D187: 0.196830704 | E187: 0.5118900495 | F187: 0.2943820775
B188: 2.806659871 | C188: 2.806659871 | D188: 0.196830704 | E188: 0.5118900495 | F188: 0.2943820775
B189: 2.821626894 | C189: 2.821626894 | D189: 0.196830704 | E189: 0.5118900495 | F189: 0.2943820775
B190: 2.841372229 | C190: 2.841372229 | D190: 0.196830704 | E190: 0.5118900495 | F190: 0.2943820775
B191: 2.846688721 | C191: 2.846688721 | D191: 0.196830704 | E191: 0.5118900495 | F191: 0.2943820775
B192: 2.876155429 | C192: 2.876155429 | D192: 0.196830704 | E192: 0.5118900495 | F192: 0.2943820775
B193: 2.893437696 | C193: 2.893437696 | D193: 0.196830704 | E193: 0.5118900495 | F193: 0.2943820775
B194: 2.898130231 | C194: 2.898130231 | D194: 0.196830704 | E194: 0.5118900495 | F194: 0.2943820775
B195: 2.908380011 | C195: 2.908380011 | D195: 0.196830704 | E195: 0.5118900495 | F195: 0.2943820775
B196: 2.915296708 | C196: 2.915296708 | D196: 0.196830704 | E196: 0.5118900495 | F196: 0.2943820775
B197: 2.976320371 | C197: 2.976320371 | D197: 0.196830704 | E197: 0.5118900495 | F197: 0.2943820775
B198: 3.001581252 | C198: 3.001581252 | D198: 0.196830704 | E198: 0.5118900495 | F198: 0.2943820775
B199: 3.014324109 | C199: 3.014324109 | D199: 0.196830704 | E199: 0.5118900495 | F199: 0.2943820775
B200: 3.028589843 | C200: 3.028589843 | D200: 0.196830704 | E200: 0.5118900495 | F200: 0.2943820775
... 4584 more rows

Sheet Graf 100
A1: Graf 100: Vplyv opatrení na výber DPH v roku 2019[1] (zaplatená DPH v mil. eur)
A2: Zdroj: Daňové priznania
F3: výber DPH pri sadzbe 20 % | G3: výber DPH pri sadzbe 20 %
F4: bezpoukazov | G4: plus poukazy
B5: 2016 | C5: 2017 | D5: 2018 | E5: 2019 | F5: 2019i | G5: 2019ii
A6: skutočný výber DPH | B6: ='[26]NSA domaci_DPH'!$I$37 -> 41542525 | C6: ='[26]NSA domaci_DPH'!$I$49 -> 46139144.7 | D6: ='[26]NSA domaci_DPH'!$I$61 -> 49516618 | E6: ='[26]NSA domaci_DPH'!$I$73 -> 34082160 | F6: ='[26]NSA domaci_DPH'!$I$75 -> 51636865.59 | G6: 64788040
A7: vplyv zníženia sadzby na 10%* | E7: =F6-E6 -> 17554705.59
A8: vplyv reakreačných poukazov** | E8: =G6-F6 -> 13151174.41

Sheet Graf 101
A1: Graf 101: Objem tržieb podľa výšky sadzby DPH (v mil. eur)
A2: Zdroj: Daňové priznania
B3: 2019 | C3: 2020 | D3: 2021 | E3: 2022
A4: tržby podliehajúce DPH 20% | B4: 331505693 | C4: 187264168 | D4: 186598787 | E4: 359105818
A5: tržby podliehajúce DPH 10% | B5: 332444839 | C5: 216632089 | D5: 212387540 | E5: 321279411

Sheet Graf 102
A1: Graf 102: Výdavky na regionálny rozvoj podľa zdroja, 2019-2025, mil. eur
A2: Zdroj: RVS, MF SR
B3: 2019 S | C3: 2020 S | D3: 2021 S | E3: 2022 S | F3: 2023 R | G3: 2024 R | H3: 2025 R
A4: Regionálny rozvoj EÚ | B4: 181140772 | C4: 209567133 | D4: 222822491 | E4: 261943913 | F4: 1279669552 | G4: 546940328 | H4: 768812728
A5: Regionálny rozvoj spolufinancovanie | B5: 34698335 | C5: 25644539 | D5: 28467432 | E5: 33137640 | F5: 213862431 | G5: 123971320 | H5: 171283908
A6: Regionálny rozvoj EÚ + spolufinancovanie | B6: 215839107 | C6: 235211672 | D6: 251289923 | E6: 295081553 | F6: 1493531983 | G6: 670911648 | H6: 940096636
A7: Regionálny rozvoj ŠR | B7: 18443779.42 | C7: 26911281.77 | D7: 24440363.2 | E7: 27529380.56 | F7: 10005830 | G7: 10005830 | H7: 10005830
A8: Podpora regionálneho rozvoja ŠR | B8: 1149521 | C8: 2260199.602 | D8: 18677271 | E8: 9665373.598 | F8: 1110180 | G8: 1110180 | H8: 1110180
A9: Podpora NRO | B9: 17294258.42 | C9: 24651082.16 | D9: 5763092.198 | E9: 17864006.96 | F9: 8895650 | G9: 8895650 | H9: 8895650
A10: Regionálny rozvoj spolu | B10: 234282886.4 | C10: 262122953.8 | D10: 275730286.2 | E10: 322610933.6 | F10: 1503537813 | G10: 680917478 | H10: 950102466
A11: Regionálna investičná pomoc | B11: 5000000 | C11: 27968719 | D11: 50329815 | E11: 49998519.5

Sheet Graf 103
A1: Graf 103: Vzťah dotácie pre NRO na jedného uchádzača o zamestnanie k nárastu nezamestnanosti
A2: Zdroj: MIRRI SR a ÚPSVaR
A3: Okresy | C3: rozdiel v nezam. 22-16
A4: Bratislava I | B4: 0 | C4: -0.89
A5: Bratislava II | B5: 0 | C5: -1.01
A6: Bratislava III | B6: 0 | C6: -1.11
A7: Bratislava IV | B7: 0 | C7: -1.04
A8: Bratislava V | B8: 0 | C8: -1.28
A9: Malacky | B9: 0 | C9: -0.93
A10: Pezinok | B10: 0 | C10: -0.29 | D10: Pezinok
A11: Senec | B11: 0 | C11: 0.01
A12: Dunajská Streda | B12: 0 | C12: -3.46
A13: Galanta | B13: 0 | C13: -0.75
A14: Hlohovec | B14: 0 | C14: -2.8
A15: Piešťany | B15: 0 | C15: -1.97
A16: Senica | B16: 0 | C16: -2.19
A17: Skalica | B17: 0 | C17: -1.96
A18: Trnava | B18: 0 | C18: -1.87
A19: Bánovce nad Bebravou | B19: 0 | C19: -3.07
A20: Ilava | B20: 0 | C20: -3.13
A21: Myjava | B21: 0 | C21: -2.27
A22: Nové Mesto nad Váhom | B22: 0 | C22: -2.86
A23: Partizánske | B23: 0 | C23: -4.45
A24: Považská Bystrica | B24: 0 | C24: -1.91
A25: Prievidza | B25: 0 | C25: -4.45
A26: Púchov | B26: 0 | C26: -1.13
A27: Trenčín | B27: 0 | C27: -3.01
A28: Komárno | B28: 0 | C28: -6.64
A29: Levice | B29: 0 | C29: -4.41
A30: Nitra | B30: 0 | C30: -3.69
A31: Nové Zámky | B31: 0 | C31: -4.13 | D31: Nové Zámky
A32: Šaľa | B32: 0 | C32: -3.65
A33: Topoľčany | B33: 0 | C33: -4.42
A34: Zlaté Moravce | B34: 0 | C34: -4.55 | D34: Zlaté Moravce
A35: Bytča | B35: 0 | C35: -3.5
A36: Čadca | B36: 0 | C36: -4.08
A37: Dolný Kubín | B37: 0 | C37: -4.03
A38: Kysucké Nové Mesto | B38: 0 | C38: -3.3
A39: Liptovský Mikuláš | B39: 0 | C39: -2.46 | D39: Liptovský Mikuláš
A40: Martin | B40: 0 | C40: -0.93
A41: Námestovo | B41: 0 | C41: -4.02
A42: Ružomberok | B42: 0 | C42: -2.6
A43: Turčianske Teplice | B43: 0 | C43: -2.18
A44: Tvrdošín | B44: 0 | C44: -3.22 | D44: Tvrdošín
A45: Žilina | B45: 0 | C45: -2.47
A46: Banská Bystrica | B46: 0 | C46: -3.2
A47: Banská Štiavnica | B47: 0 | C47: -7.38
A48: Brezno | B48: 0 | C48: -5.2
A49: Detva | B49: 0 | C49: -6.07
A50: Krupina | B50: 0 | C50: -4.45
A51: Lučenec | B51: 1364.589955 | C51: -5.63 | D51: Lučenec
A52: Poltár | B52: 2477.915194 | C52: -8.19 | D52: Poltár
A53: Revúca | B53: 1552.272727 | C53: -3.22 | D53: Revúca
A54: Rimavská Sobota | B54: 1002.499219 | C54: -7.15 | D54: Rimavská Sobota
A55: Veľký Krtíš | B55: 2181.636727 | C55: -8.93 | D55: Veľký Krtíš
A56: Zvolen | B56: 0 | C56: -4.25
A57: Žarnovica | B57: 0 | C57: -5.69
A58: Žiar nad Hronom | B58: 0 | C58: -4.74
A59: Bardejov | B59: 642.0242537 | C59: -5.12 | D59: Bardejov
A60: Humenné | B60: 0 | C60: -6.26
A61: Kežmarok | B61: 1073.986152 | C61: -5.57 | D61: Kežmarok
A62: Levoča | B62: 1171.138506 | C62: -5.34 | D62: Levoča
A63: Medzilaborce | B63: 2413.18328 | C63: -4.45 | D63: Medzilaborce
A64: Poprad | B64: 0 | C64: -3.25
A65: Prešov | B65: 0 | C65: -3.42
A66: Sabinov | B66: 1253.238742 | C66: -2.7 | D66: Sabinov
A67: Snina | B67: 1279.069767 | C67: -6.92 | D67: Snina
A68: Stará Ľubovňa | B68: 0 | C68: -3.2
A69: Stropkov | B69: 828.3220175 | C69: -2.99 | D69: Stropkov
A70: Svidník | B70: 1511.230469 | C70: -5.48 | D70: Svidník
A71: Vranov nad Topľou | B71: 1000.594295 | C71: -1.87 | D71: Vranov nad Topľou
A72: Gelnica | B72: 1452.608376 | C72: -5.77 | D72: Gelnica
A73: Košice I | B73: 0 | C73: -2.62
A74: Košice II | B74: 0 | C74: -2.87
A75: Košice III | B75: 0 | C75: -2.47
A76: Košice IV | B76: 0 | C76: -2.19
A77: Košice - okolie | B77: 648.9894628 | C77: -5.95 | D77: Košice - okolie
A78: Michalovce | B78: 620.8251473 | C78: -0.52 | D78: Michalovce
A79: Rožňava | B79: 886.9801085 | C79: -6.24 | D79: Rožňava
A80: Sobrance | B80: 2024.752475 | C80: -2.8 | D80: Sobrance
A81: Spišská Nová Ves | B81: 0 | C81: -4.8
A82: Trebišov | B82: 915.2707757 | C82: -5.26 | D82: Trebišov

Sheet Graf 104
A1: Graf 104: Regionálne príspevky pre NRO podľa kategórie príjemcu, mil. eur
A2: Zdroj: MIRRI SR
A3: financie v mil. eur | B3: 2019 | C3: 2020 | D3: 2021
A4: Podniky | B4: 9.420568 | C4: 8.337676 | D4: 0.61275
A5: Tretí sektor | B5: 3.645703 | C5: 1.210045 | D5: 0.448931
A6: Verejná správa | B6: 8.829895 | C6: 8.297292 | D6: 3.727739

Sheet Graf 105
A1: Graf 105: Výdavky a počet príjemcov na jednotlivé výzvy, podpora regionálneho rozvoja, 2019-2021, mil. eur
A2: Zdroj: MIRRI SR, spracovanie ÚHP 2022
B6: 2019 | C6: 2020 | D6: 2021
A7: Podpora regionálneho rozvoja | B7: 1.135346 | D7: 2.110178
A8: Zmiernenie dopadov koronakrízy, VS | C8: 1.23877542
A9: Zmiernenie dopadov koronakrízy, MVO | C9: 1.10023813
A10: Výzva pre NRO | D10: 16.57292053
A11: Materské školy v Bratislavskom kraji | D11: 1.62211674

Sheet Graf 106
A1: Graf 106: Objem a počet investícií podporených štátom (schválené zámery, mld. eur)
A2: Zdroj: MH SR
B3: Náklady štátu | C3: Náklady investora | D3: Počet investícií (pravá os)
A4: 2002 | B4: 0.012746465 | C4: 0.053641373 | D4: 1
A5: 2003 | B5: 0.166018388 | C5: 0.909212212 | D5: 1
A6: 2004 | B6: 0.3134023423 | C6: 1.426598313 | D6: 18
A7: 2006 | B7: 0.358314809 | C7: 1.10653671 | D7: 48
A8: 2007 | B8: 0.1713130925 | C8: 0.61611732 | D8: 16
A9: 2008 | B9: 0.04266767311 | C9: 0.3467081152 | D9: 5
A10: 2009 | B10: 0.07195058315 | C10: 0.3006922492 | D10: 7
A11: 2010 | B11: 0.034287867 | C11: 0.054655314 | D11: 9
A12: 2011 | B12: 0.064930195 | C12: 0.195081959 | D12: 10
A13: 2012 | B13: 0.121191498 | C13: 0.267071138 | D13: 10
A14: 2013 | B14: 0.058003168 | C14: 0.332165072 | D14: 10
A15: 2014 | B15: 0.099887481 | C15: 0.355011131 | D15: 13
A16: 2015 | B16: 0.179461122 | C16: 1.44512049 | D16: 17
A17: 2016 | B17: 0.059162 | C17: 0.283101382 | D17: 8
A18: 2017 | B18: 0.13278152 | C18: 0.54407631 | D18: 16
A19: 2018 | B19: 0.047317018 | C19: 0.1819162416 | D19: 18
A20: 2019 | B20: 0.005 | C20: 0.020595487 | D20: 2
A21: 2020 | B21: 0.027968719 | C21: 0.115075293 | D21: 12
A22: 2021 | B22: 0.050329815 | C22: 0.352272652 | D22: 11
A23: 2022 | B23: 0.0499985195 | C23: 0.4085946365 | D23: 17

Sheet Graf 107
A1: Graf 107: Intenzita pomoci pre investičné návrhy schválené v rokoch 2002 - 2022
A2: Zdroj: MH SR
A3: Rok | B3: 2002 | C3: 2003 | D3: 2004 | E3: 2006 | F3: 2007 | G3: 2008 | H3: 2009 | I3: 2010 | J3: 2011 | K3: 2012 | L3: 2013 | M3: 2014 | N3: 2015 | O3: 2016 | P3: 2017 | Q3: 2018 | R3: 2019 | S3: 2020 | T3: 2021 | U3: 2022
A4: Max | B4: 0.1920000016 | C4: 0.1544025886 | D4: 0.2917714696 | E4: 0.5 | F4: 0.5 | G4: 0.49993349 | H4: 0.5 | I4: 0.5 | J4: 0.5 | K4: 0.5077631579 | L4: 0.5498561493 | M4: 0.4917108753 | N4: 0.3634090909 | O4: 0.45 | P4: 0.55 | Q4: 0.4189338257 | R4: 0.25 | S4: 0.35 | T4: 0.3500000065 | U4: 0.3753834093
A5: Min | B5: 0.1920000016 | C5: 0.1544025886 | D5: 0.03417323552 | E5: 0.03521903323 | F5: 0.05000080533 | G5: 0.04766666667 | H5: 0.1363578784 | I5: 0.2869402985 | J5: 0.1121538462 | K5: 0.18 | L5: 0.079753693 | M5: 0.1017782979 | N5: 0.09228696844 | O5: 0.09 | P5: 0.104322786 | Q5: 0.06225542512 | R5: 0.1471076395 | S5: 0.07179094789 | T5: 0.05625 | U5: 0.01792501284
A6: Priemer v danom toku | B6: 0.1920000016 | C6: 0.1544025886 | D6: 0.1734562407 | E6: 0.2587000637 | F6: 0.2682858414 | G6: 0.2649389351 | H6: 0.3153119509 | I6: 0.406635826 | J6: 0.3684584988 | K6: 0.314384852 | L6: 0.3022928862 | M6: 0.2947632223 | N6: 0.2594678652 | O6: 0.2428380517 | P6: 0.3050842084 | Q6: 0.2623591507 | R6: 0.1985538197 | S6: 0.2157999541 | T6: 0.1986973112 | U6: 0.1733765526
A7: Priemer 2002 - 2022 | B7: =AVERAGE($B$6:$U$6) -> 0.2584903911 | C7: 0.2584903911 | D7: 0.2584903911 | E7: 0.2584903911 | F7: 0.2584903911 | G7: 0.2584903911 | H7: 0.2584903911 | I7: 0.2584903911 | J7: 0.2584903911 | K7: 0.2584903911 | L7: 0.2584903911 | M7: 0.2584903911 | N7: 0.2584903911 | O7: 0.2584903911 | P7: 0.2584903911 | Q7: 0.2584903911 | R7: 0.2584903911 | S7: 0.2584903911 | T7: 0.2584903911 | U7: 0.2584903911

Sheet Graf 108
A1: Graf 108: Schválená investičná pomoc podľa formy pomoci (mil. eur)
A2: Zdroj: MH SR
A3: Rok | B3: Dotácia na obstaranie majetku | C3: Príspevok na vytvorené miesta | D3: Príspevok na rekvalifikáciu | E3: Daňová úľava
A4: 2002 | B4: 0 | C4: 0 | D4: 0 | E4: 12.746465
A5: 2003 | B5: 84.55696 | C5: 8.13251 | D5: 15.933081 | E5: 13.044214
A6: 2004 | B6: 203.4057289 | C6: 13.54756697 | D6: 24.07501834 | E6: 72.37402808
A7: 2006 | B7: 98.64773085 | C7: 37.86898065 | D7: 12.50406721 | E7: 206.9500235
A8: 2007 | B8: 96.97425828 | C8: 13.83146784 | D8: 0 | E8: 60.50736635
A9: 2008 | B9: 0 | C9: 9.626236473 | D9: 0 | E9: 33.04143663
A10: 2009 | B10: 37.01270424 | C10: 4.425111865 | D10: 0 | E10: 30.51276705
A11: 2010 | B11: 21.087402 | C11: 5.256815 | D11: 0 | E11: 7.94365
A12: 2011 | B12: 24.794438 | C12: 7.04274 | D12: 0 | E12: 33.093017
A13: 2012 | B13: 0 | C13: 0 | D13: 0 | E13: 121.191498
A14: 2013 | B14: 3.08 | C14: 8.3769 | D14: 0 | E14: 46.546268
A15: 2014 | B15: 7.28653 | C15: 4.2363 | D15: 0 | E15: 88.364651
A16: 2015 | B16: 147.762601 | C16: 6.024 | D16: 0 | E16: 25.674521
A17: 2016 | B17: 37.95 | C17: 0 | D17: 0 | E17: 21.212
A18: 2017 | B18: 43.520716 | C18: 0.688004 | D18: 0 | E18: 88.5728
A19: 2018 | B19: 9.464682 | C19: 6.25863 | D19: 0 | E19: 31.593706
A20: 2019 | B20: 3.5 | C20: 0 | D20: 0 | E20: 1.5
A21: 2020 | B21: 3.5 | C21: 4.386709 | D21: 0 | E21: 20.08201
A22: 2021 | B22: 0 | C22: 2.269336 | D22: 0 | E22: 48.060479
A23: 2022 | B23: 15.002312 | C23: 1.698447 | D23: 0 | E23: 33.2977605

Sheet Graf 109
A1: Graf 109: Počet podporených investícií podľa typu investičného zámeru
A2: Zdroj: MH SR
A3: Rok | B3: Priemyselná výroba | C3: Technologické centrá a Centrá stretegikcých služieb
A4: 2002 | B4: 1 | C4: 0
A5: 2003 | B5: 1 | C5: 0
A6: 2004 | B6: 17 | C6: 1
A7: 2006 | B7: 41 | C7: 7
A8: 2007 | B8: 16 | C8: 0
A9: 2008 | B9: 4 | C9: 1
A10: 2009 | B10: 7 | C10: 0
A11: 2010 | B11: 8 | C11: 1
A12: 2011 | B12: 10 | C12: 0
A13: 2012 | B13: 10 | C13: 0
A14: 2013 | B14: 7 | C14: 3
A15: 2014 | B15: 10 | C15: 3
A16: 2015 | B16: 13 | C16: 4
A17: 2016 | B17: 8 | C17: 0
A18: 2017 | B18: 14 | C18: 2
A19: 2018 | B19: 16 | C19: 2
A20: 2019 | B20: 0 | C20: 2
A21: 2020 | B21: 9 | C21: 3
A22: 2021 | B22: 8 | C22: 3
A23: 2022 | B23: 13 | C23: 4

Sheet Graf 110
A1: Graf 110: Objem podporených investícií podľa okresov (2002-2022) a sieť diaľnic a rýchlostných ciest (2022)
A2: Zdroj: MH SR, NDS
B3: Objem podporených investícií
A4: Bánovce nad Bebravou | B4: 45854079.72
A5: Banská Bystrica | B5: 130671398
A6: Bardejov | B6: 75620464.68
A7: Bratislava | B7: 423489112.7
A8: Brezno | B8: 22428865.43
A9: Čadca | B9: 16992000
A10: Detva | B10: 61488750
A11: Dolný Kubín | B11: 28150000
A12: Dunajská Streda | B12: 28990000
A13: Galanta | B13: 278878629.3
A14: Gelnica | B14: 41610797
A15: Hlohovec | B15: 65823408
A16: Humenné | B16: 7610336
A17: Ilava | B17: 94577645.06
A18: Kežmarok | B18: 72552020
A19: Košice | B19: 212108515.3
A20: Košice - okolie | B20: 734453306.5
A21: Kysucké Nové Mesto | B21: 35313014
A22: Levice | B22: 152113854.5
A23: Levoča | B23: 12500000
A24: Liptovský Mikuláš | B24: 3413994.556
A25: Lučenec | B25: 82166566.32
A26: Malacky | B26: 66387838
A27: Martin | B27: 65140557
A28: Medzilaborce | B28: 7065988
A29: Michalovce | B29: 112254381.1
A30: Námestovo | B30: 33173000
A31: Nitra | B31: 1959125342
A32: Nové Mesto nad Váhom | B32: 401248455.3
A33: Nové Zámky | B33: 55732589.24
A34: Piešťany | B34: 34079376
A35: Poltár | B35: 26387000
A36: Poprad | B36: 26185000
A37: Považská Bystrica | B37: 71805970.66
A38: Prešov | B38: 192410168.2
A39: Prievidza | B39: 211047378.6
A40: Púchov | B40: 503943956.8
A41: Revúca | B41: 6875000
A42: Rimavská Sobota | B42: 26086406.89
A43: Rožňava | B43: 98517802.93
A44: Ružomberok | B44: 404800000
A45: Sabinov | B45: 4513200
A46: Senica | B46: 125187456
A47: Spišská Nová Ves | B47: 33857426.42
A48: Stará Ľubovňa | B48: 4210000
A49: Šaľa | B49: 310000000
A50: Topoľčany | B50: 96304214.75
A51: Trebišov | B51: 684000
A52: Trenčín | B52: 302027045.1
A53: Trnava | B53: 1621593008
A54: Tvrdošín | B54: 18478000
A55: Veľký Krtíš | B55: 6500000
A56: Zlaté Moravce | B56: 21200000
A57: Zvolen | B57: 100877979.2
A58: Žarnovica | B58: 27423122.88
A59: Žiar nad Hronom | B59: 103583636.7
A60: Žilina | B60: 1675463618
A61: Celkový súčet | B61: 1.138097567e+10

Sheet Graf 111
A1: Graf 111: Počet podporených investícií podľa okresov (2002-2022) a sieť diaľnic a rýchlostných ciest (2022)
A2: Zdroj: MH SR, NDS
B3: Počet podporených investícií
A4: Bánovce nad Bebravou | B4: 3
A5: Banská Bystrica | B5: 5
A6: Bardejov | B6: 6
A7: Bratislava | B7: 6
A8: Brezno | B8: 1
A9: Čadca | B9: 1
A10: Detva | B10: 4
A11: Dolný Kubín | B11: 2
A12: Dunajská Streda | B12: 1
A13: Galanta | B13: 7
A14: Gelnica | B14: 3
A15: Hlohovec | B15: 1
A16: Humenné | B16: 1
A17: Ilava | B17: 5
A18: Kežmarok | B18: 6
A19: Košice | B19: 13
A20: Košice - okolie | B20: 18
A21: Kysucké Nové Mesto | B21: 2
A22: Levice | B22: 5
A23: Levoča | B23: 1
A24: Liptovský Mikuláš | B24: 1
A25: Lučenec | B25: 12
A26: Malacky | B26: 1
A27: Martin | B27: 5
A28: Medzilaborce | B28: 1
A29: Michalovce | B29: 8
A30: Námestovo | B30: 2
A31: Nitra | B31: 18
A32: Nové Mesto nad Váhom | B32: 8
A33: Nové Zámky | B33: 3
A34: Piešťany | B34: 2
A35: Poltár | B35: 1
A36: Poprad | B36: 1
A37: Považská Bystrica | B37: 3
A38: Prešov | B38: 11
A39: Prievidza | B39: 8
A40: Púchov | B40: 5
A41: Revúca | B41: 1
A42: Rimavská Sobota | B42: 5
A43: Rožňava | B43: 6
A44: Ružomberok | B44: 2
A45: Sabinov | B45: 2
A46: Senica | B46: 2
A47: Spišská Nová Ves | B47: 4
A48: Stará Ľubovňa | B48: 1
A49: Šaľa | B49: 1
A50: Topoľčany | B50: 5
A51: Trebišov | B51: 1
A52: Trenčín | B52: 5
A53: Trnava | B53: 6
A54: Tvrdošín | B54: 2
A55: Veľký Krtíš | B55: 2
A56: Zlaté Moravce | B56: 1
A57: Zvolen | B57: 2
A58: Žarnovica | B58: 2
A59: Žiar nad Hronom | B59: 5
A60: Žilina | B60: 11
A61: Celkový súčet | B61: 247

Sheet Graf 112
A1: Graf 112: Výška pomoci na vytvorené prac. miesto (v tis. eur) a nezamestnanosť v okrese
A2: Zdroj: MH SR, ŠÚSR
A3: rok | B3: Nezamestnanosť v okrese | C3: Výška pomoci na vytvorené prac. miesto
A4: 2002 | B4: 0.1013 | C4: 21901.14261
A5: 2003 | B5: 0.1079 | C5: 47433.82514
A6: 2004 | B6: 0.0797 | C6: 75177.07658
A7: 2004 | B7: 0.0797 | C7: 50857.3668
A8: 2004 | B8: 0.2144 | C8: 11617.86667
A9: 2004 | B9: 0.02766 | C9: 7135.481101
A10: 2004 | B10: 0.0868 | C10: 324562.7778
A11: 2004 | B11: 0.0959 | C11: 2837.087083
A12: 2004 | B12: 0.0981 | C12: 19916.352
A13: 2004 | B13: 0.0959 | C13: 19150.33846
A14: 2004 | B14: 0.0769 | C14: 73764.26222
A15: 2004 | B15: 0.0547 | C15: 5961.551724
A16: 2004 | B16: 0.0685 | C16: 14125.07234
A17: 2004 | B17: 0.1603 | C17: 15088.14545
A18: 2004 | B18: 0.2558 | C18: 11949.808
A19: 2004 | B19: 0.0495 | C19: 5263.306375
A20: 2004 | B20: 0.0981 | C20: 30563.03716
A21: 2004 | B21: 0.110375 | C21: 15682.16535
A22: 2004 | B22: 0.2234 | C22: 30628.93423
A23: 2004 | B23: 0.1603 | C23: 7643.335526
A24: 2006 | B24: 0.1939 | C24: 69250.31766
A25: 2006 | B25: 0.0583 | C25: 8858.249896
A26: 2006 | B26: 0.1404 | C26: 28734.01798
A27: 2006 | B27: 0.1404 | C27: 26687.49266
A28: 2006 | B28: 0.0554 | C28: 23654.55429
A29: 2006 | B29: 0.0749 | C29: 4562.243805
A30: 2006 | B30: 0.0555 | C30: 25187.4949
A31: 2006 | B31: 0.0583 | C31: 12092.16046
A32: 2006 | B32: 0.1005 | C32: 41492.39859
A33: 2006 | B33: 0.0475 | C33: 45497.14092
A34: 2006 | B34: 0.0717 | C34: 37760.83333
A35: 2006 | B35: 0.1616 | C35: 39053.27582
A36: 2006 | B36: 0.0775 | C36: 41405.98347
A37: 2006 | B37: 0.1295 | C37: 4741.988095
A38: 2006 | B38: 0.198 | C38: 47236.18301
A39: 2006 | B39: 0.2101 | C39: 53110.2702
A40: 2006 | B40: 0.1295 | C40: 16928.89863
A41: 2006 | B41: 0.1648 | C41: 8207.950849
A42: 2006 | B42: 0.0583 | C42: 27631.71582
A43: 2006 | B43: 0.1404 | C43: 49790.88117
A44: 2006 | B44: 0.0919 | C44: 26913.15247
A45: 2006 | B45: 0.01838 | C45: 7692.89115
A46: 2006 | B46: 0.0328 | C46: 7855.382394
A47: 2006 | B47: 0.0629 | C47: 18816.91253
A48: 2006 | B48: 0.0464 | C48: 7203.786649
A49: 2006 | B49: 0.0328 | C49: 8669.470588
A50: 2006 | B50: 0.0631 | C50: 40549.81132
A51: 2006 | B51: 0.0583 | C51: 25866.91451
A52: 2006 | B52: 0.1708 | C52: 20405.63
A53: 2006 | B53: 0.0583 | C53: 12302.87339
A54: 2006 | B54: 0.08075 | C54: 37953.928
A55: 2006 | B55: 0.0629 | C55: 16197.30465
A56: 2006 | B56: 0.0473 | C56: 15350.92453
A57: 2006 | B57: 0.0623 | C57: 17051.78723
A58: 2006 | B58: 0.0717 | C58: 23452.00662
A59: 2006 | B59: 0.0245 | C59: 14809.59457
A60: 2006 | B60: 0.01838 | C60: 66387.84091
A61: 2006 | B61: 0.1708 | C61: 41492.3913
A62: 2006 | B62: 0.133 | C62: 40503.21981
A63: 2006 | B63: 0.08075 | C63: 9198.583333
A64: 2006 | B64: 0.01838 | C64: 14908.21881
A65: 2006 | B65: 0.0429 | C65: 18034.37143
A66: 2006 | B66: 0.0328 | C66: 10675.28182
A67: 2006 | B67: 0.1308 | C67: 32525.89126
A68: 2006 | B68: 0.01838 | C68: 8182.301002
A69: 2006 | B69: 0.08075 | C69: 9582.021136
A70: 2006 | B70: 0.08075 | C70: 10979.74713
A71: 2006 | B71: 0.0384 | C71: 3542.818976
A72: 2007 | B72: 0.0339 | C72: 66875
A73: 2007 | B73: 0.0344 | C73: 57731.38439
A74: 2007 | B74: 0.0656 | C74: 13901.48937
A75: 2007 | B75: 0.2014 | C75: 33193.92157
A76: 2007 | B76: 0.0344 | C76: 33459.47023
A77: 2007 | B77: 0.0344 | C77: 60674.65363
A78: 2007 | B78: 0.1938 | C78: 52667.68333
A79: 2007 | B79: 0.1652 | C79: 32113.89277
A80: 2007 | B80: 0.0513 | C80: 5179.074257
A81: 2007 | B81: 0.0394 | C81: 32869.00148
A82: 2007 | B82: 0.0949 | C82: 48784
A83: 2007 | B83: 0.0638 | C83: 26105.41104
A84: 2007 | B84: 0.0389 | C84: 38450.87435
A85: 2007 | B85: 0.1501 | C85: 25332.55212
A86: 2007 | B86: 0.2705 | C86: 5923.919538
A87: 2007 | B87: 0.1173 | C87: 8911.471575
A88: 2008 | B88: 0.1052 | C88: 59453.26658
A89: 2008 | B89: 0.08335 | C89: 13307.07326
A90: 2008 | B90: 0.1737 | C90: 18499.0453
A91: 2008 | B91: 0.0284 | C91: 31934.0183
A92: 2008 | B92: 0.01778 | C92: 18815.78947
A93: 2009 | B93: 0.2171 | C93: 50566.6325
A94: 2009 | B94: 0.22 | C94: 23142.57895
A95: 2009 | B95: 0.0771 | C95: 7971.428571
A96: 2009 | B96: 0.2171 | C96: 6000
A97: 2009 | B97: 0.0738 | C97: 55000
A98: 2009 | B98: 0.2171 | C98: 37037.03704
A99: 2009 | B99: 0.0712 | C99: 29436.92308
A100: 2010 | B100: 0.194 | C100: 23553.29333
A101: 2010 | B101: 0.1439 | C101: 42025.60976
A102: 2010 | B102: 0.0629 | C102: 36666.66667
A103: 2010 | B103: 0.2127 | C103: 40000
A104: 2010 | B104: 0.11 | C104: 28671.03125
A105: 2010 | B105: 0.0698 | C105: 36725.33333
A106: 2010 | B106: 0.0752 | C106: 38450
A107: 2010 | B107: 0.1628 | C107: 21666.66667
A108: 2010 | B108: 0.2883 | C108: 13750
A109: 2011 | B109: 0.1716 | C109: 42947.48206
A110: 2011 | B110: 0.2866 | C110: 28813.55932
A111: 2011 | B111: 0.2873 | C111: 40000
A112: 2011 | B112: 0.0725 | C112: 45000
A113: 2011 | B113: 0.3459 | C113: 13320.1581
A114: 2011 | B114: 0.1543 | C114: 22772.90837
A115: 2011 | B115: 0.1543 | C115: 16692.91339
A116: 2011 | B116: 0.2866 | C116: 16435.64356
A117: 2011 | B117: 0.1152 | C117: 33534.16216
A118: 2011 | B118: 0.0944 | C118: 27863.94545
A119: 2012 | B119: 0.072 | C119: 29297.10801
A120: 2012 | B120: 0.1169 | C120: 9000
A121: 2012 | B121: 0.0937 | C121: 25605
A122: 2012 | B122: 0.2559 | C122: 33556.52174
A123: 2012 | B123: 0.1534 | C123: 50000
A124: 2012 | B124: 0.246 | C124: 44934.64052
A125: 2012 | B125: 0.1037 | C125: 31017.68254
A126: 2012 | B126: 0.128 | C126: 38692.30769
A127: 2013 | B127: 0.0675 | C127: 27600
A128: 2013 | B128: 0.082 | C128: 33500.84034
A129: 2013 | B129: 0.2129 | C129: 28399.29714
A130: 2013 | B130: 0.0945 | C130: 30000
A131: 2013 | B131: 0.2156 | C131: 9215.993865
A132: 2013 | B132: 0.0922 | C132: 34409.09091
A133: 2013 | B133: 0.2156 | C133: 32800
A134: 2013 | B134: 0.1421 | C134: 30000
A135: 2013 | B135: 0.1188 | C135: 10500
A136: 2013 | B136: 0.1188 | C136: 14511.42857
A137: 2014 | B137: 0.1512 | C137: 42857.14286
A138: 2014 | B138: 0.196 | C138: 30000
A139: 2014 | B139: 0.1228 | C139: 30000
A140: 2014 | B140: 0.0854 | C140: 18821.41509
A141: 2014 | B141: 0.1034 | C141: 32706.76692
A142: 2014 | B142: 0.1678 | C142: 30000
A143: 2014 | B143: 0.2357 | C143: 29500
A144: 2014 | B144: 0.110675 | C144: 11800
A145: 2014 | B145: 0.1118 | C145: 29518.86792
A146: 2014 | B146: 0.0782 | C146: 8441.611765
A147: 2014 | B147: 0.1247 | C147: 22108.93333
A148: 2014 | B148: 0.2559 | C148: 12784.48276
A149: 2015 | B149: 0.0569 | C149: 25000
A150: 2015 | B150: 0.2344 | C150: 25000
A151: 2015 | B151: 0.1511 | C151: 21070.775
A152: 2015 | B152: 0.1753 | C152: 15248.73196
A153: 2015 | B153: 0.1086 | C153: 29505.57009
A154: 2015 | B154: 0.1254 | C154: 7462
A155: 2015 | B155: 0.1845 | C155: 25000
A156: 2015 | B156: 0.088425 | C156: 8150
A157: 2015 | B157: 0.1037 | C157: 20833.33333
A158: 2015 | B158: 0.1254 | C158: 30000
A159: 2015 | B159: 0.1753 | C159: 30212.48
A160: 2015 | B160: 0.1766 | C160: 30029.91045
A161: 2015 | B161: 0.1254 | C161: 20610.9
A162: 2015 | B162: 0.0732 | C162: 6000
A163: 2015 | B163: 0.1766 | C163: 30000
A164: 2015 | B164: 0.0732 | C164: 28125
A165: 2016 | B165: 0.1122 | C165: 22277.22772
A166: 2016 | B166: 0.1548 | C166: 13596.43917
A167: 2016 | B167: 0.0522 | C167: 56923.07692
A168: 2016 | B168: 0.0625 | C168: 14539.57997
A169: 2016 | B169: 0.1377 | C169: 28000
A170: 2016 | B170: 0.0522 | C170: 27857.14286
A171: 2016 | B171: 0.0471 | C171: 22835.8209
A172: 2016 | B172: 0.0522 | C172: 39301.31004
A173: 2017 | B173: 0.1212 | C173: 25000
A174: 2017 | B174: 0.0339 | C174: 22595
A175: 2017 | B175: 0.1848 | C175: 26580
A176: 2017 | B176: 0.0488 | C176: 24583.33333
A177: 2017 | B177: 0.1848 | C177: 33000
A178: 2017 | B178: 0.0245 | C178: 18240.31818
A179: 2017 | B179: 0.0563 | C179: 29500
A180: 2017 | B180: 0.0395 | C180: 16250
A181: 2017 | B181: 0.1623 | C181: 7699.4
A182: 2017 | B182: 0.1024 | C182: 22757.975
A183: 2017 | B183: 0.0198 | C183: 44348.00476
A184: 2017 | B184: 0.05205 | C184: 17500
A185: 2017 | B185: 0.0674 | C185: 8823.529412
A186: 2017 | B186: 0.1623 | C186: 57142.85714
A187: 2017 | B187: 0.0674 | C187: 45088.93556
A188: 2018 | B188: 0.0316 | C188: 12916.66667
A189: 2018 | B189: 0.0329 | C189: 13000
A190: 2018 | B190: 0.0239 | C190: 13636.36364
A191: 2018 | B191: 0.0411 | C191: 5666.666667
A192: 2018 | B192: 0.0211 | C192: 25245.64
A193: 2018 | B193: 0.1615 | C193: 30000
A194: 2018 | B194: 0.0858 | C194: 10952.38095
A195: 2018 | B195: 0.1107 | C195: 23076.92308
A196: 2018 | B196: 0.0858 | C196: 23000
A197: 2018 | B197: 0.0446 | C197: 23214.28571
A198: 2018 | B198: 0.0683 | C198: 18127.90698
A199: 2018 | B199: 0.1521 | C199: 29658.73016
A200: 2018 | B200: 0.0584 | C200: 10896.48
... 29 more rows

Sheet Graf 113
A1: Graf 113: Výška podporenej investície (v mil. eur) a nezamestnanosť v okrese
A2: Zdroj: MH, ŠÚSR
A3: rok | B3: Nezamestnanosť v okrese | C3: Výška podporenej investície
A4: 2002 | B4: 0.1013 | C4: 66387838
A5: 2003 | B5: 0.1079 | C5: 1075230600
A6: 2004 | B6: 0.0797 | C6: 925503883.7
A7: 2004 | B7: 0.0797 | C7: 237757418.8
A8: 2004 | B8: 0.2144 | C8: 6689230
A9: 2004 | B9: 0.02766 | C9: 13609506.74
A10: 2004 | B10: 0.0868 | C10: 13506606
A11: 2004 | B11: 0.0959 | C11: 8298479.719
A12: 2004 | B12: 0.0981 | C12: 30282812.19
A13: 2004 | B13: 0.0959 | C13: 24198367
A14: 2004 | B14: 0.0769 | C14: 119132975
A15: 2004 | B15: 0.0547 | C15: 35683463
A16: 2004 | B16: 0.0685 | C16: 82480250
A17: 2004 | B17: 0.1603 | C17: 24397530
A18: 2004 | B18: 0.2558 | C18: 11252738
A19: 2004 | B19: 0.0495 | C19: 72850693.75
A20: 2004 | B20: 0.0981 | C20: 105000000
A21: 2004 | B21: 0.110375 | C21: 7505145
A22: 2004 | B22: 0.2234 | C22: 9237867.623
A23: 2004 | B23: 0.1603 | C23: 12613689
A24: 2006 | B24: 0.1939 | C24: 265000000
A25: 2006 | B25: 0.0583 | C25: 8205536.746
A26: 2006 | B26: 0.1404 | C26: 10170616.74
A27: 2006 | B27: 0.1404 | C27: 40264223
A28: 2006 | B28: 0.0554 | C28: 19419040
A29: 2006 | B29: 0.0749 | C29: 3413994.556
A30: 2006 | B30: 0.0555 | C30: 65823408
A31: 2006 | B31: 0.0583 | C31: 8480216.424
A32: 2006 | B32: 0.1005 | C32: 18721370.24
A33: 2006 | B33: 0.0475 | C33: 78475735.25
A34: 2006 | B34: 0.0717 | C34: 16065857
A35: 2006 | B35: 0.1616 | C35: 15923122.88
A36: 2006 | B36: 0.0775 | C36: 13013277
A37: 2006 | B37: 0.1295 | C37: 6638784
A38: 2006 | B38: 0.198 | C38: 32970855.74
A39: 2006 | B39: 0.2101 | C39: 49126999.93
A40: 2006 | B40: 0.1295 | C40: 11285932.42
A41: 2006 | B41: 0.1648 | C41: 11617871.61
A42: 2006 | B42: 0.0583 | C42: 87827789.95
A43: 2006 | B43: 0.1404 | C43: 36081789.82
A44: 2006 | B44: 0.0919 | C44: 75877979.15
A45: 2006 | B45: 0.01838 | C45: 40170550.36
A46: 2006 | B46: 0.0328 | C46: 19043318.06
A47: 2006 | B47: 0.0629 | C47: 23710084.31
A48: 2006 | B48: 0.0464 | C48: 16792803.56
A49: 2006 | B49: 0.0328 | C49: 14913364
A50: 2006 | B50: 0.0631 | C50: 12955918
A51: 2006 | B51: 0.0583 | C51: 92112129.06
A52: 2006 | B52: 0.1708 | C52: 9135697
A53: 2006 | B53: 0.0583 | C53: 13433578.97
A54: 2006 | B54: 0.08075 | C54: 32921729
A55: 2006 | B55: 0.0629 | C55: 28923886.34
A56: 2006 | B56: 0.0473 | C56: 13560048
A57: 2006 | B57: 0.0623 | C57: 13357233
A58: 2006 | B58: 0.0717 | C58: 43948748.59
A59: 2006 | B59: 0.0245 | C59: 19916351.32
A60: 2006 | B60: 0.01838 | C60: 50454757
A61: 2006 | B61: 0.1708 | C61: 12475100
A62: 2006 | B62: 0.133 | C62: 22428865.43
A63: 2006 | B63: 0.08075 | C63: 6145356
A64: 2006 | B64: 0.01838 | C64: 1329582.421
A65: 2006 | B65: 0.0429 | C65: 20307376
A66: 2006 | B66: 0.0328 | C66: 4452500
A67: 2006 | B67: 0.1308 | C67: 15684126.67
A68: 2006 | B68: 0.01838 | C68: 17924716.19
A69: 2006 | B69: 0.08075 | C69: 10906758.28
A70: 2006 | B70: 0.08075 | C70: 19483834.56
A71: 2006 | B71: 0.0384 | C71: 13958706.76
A72: 2007 | B72: 0.0339 | C72: 224000000
A73: 2007 | B73: 0.0344 | C73: 255194848.3
A74: 2007 | B74: 0.0656 | C74: 18627995.75
A75: 2007 | B75: 0.2014 | C75: 7998075
A76: 2007 | B76: 0.0344 | C76: 13941445.93
A77: 2007 | B77: 0.0344 | C77: 26292604.39
A78: 2007 | B78: 0.1938 | C78: 7535020
A79: 2007 | B79: 0.1652 | C79: 29432317.6
A80: 2007 | B80: 0.0513 | C80: 20923123
A81: 2007 | B81: 0.0394 | C81: 13602536.02
A82: 2007 | B82: 0.0949 | C82: 7610336
A83: 2007 | B83: 0.0638 | C83: 20049127
A84: 2007 | B84: 0.0389 | C84: 21244108.08
A85: 2007 | B85: 0.1501 | C85: 58164243.51
A86: 2007 | B86: 0.2705 | C86: 14217406.89
A87: 2007 | B87: 0.1173 | C87: 48597224.99
A88: 2008 | B88: 0.1052 | C88: 18012016.2
A89: 2008 | B89: 0.08335 | C89: 23955918.48
A90: 2008 | B90: 0.1737 | C90: 20471685.59
A91: 2008 | B91: 0.0284 | C91: 26936168.09
A92: 2008 | B92: 0.01778 | C92: 300000000
A93: 2009 | B93: 0.2171 | C93: 39732058.69
A94: 2009 | B94: 0.22 | C94: 6942773.684
A95: 2009 | B95: 0.0771 | C95: 13950000
A96: 2009 | B96: 0.2171 | C96: 4200000
A97: 2009 | B97: 0.0738 | C97: 110518000
A98: 2009 | B98: 0.2171 | C98: 6000000
A99: 2009 | B99: 0.0712 | C99: 191300000
A100: 2010 | B100: 0.194 | C100: 7065988
A101: 2010 | B101: 0.1439 | C101: 11486510
A102: 2010 | B102: 0.0629 | C102: 17150000
A103: 2010 | B103: 0.2127 | C103: 3400000
A104: 2010 | B104: 0.11 | C104: 2293683
A105: 2010 | B105: 0.0698 | C105: 13772000
A106: 2010 | B106: 0.0752 | C106: 13400000
A107: 2010 | B107: 0.1628 | C107: 13500000
A108: 2010 | B108: 0.2883 | C108: 6875000
A109: 2011 | B109: 0.1716 | C109: 38309154
A110: 2011 | B110: 0.2866 | C110: 3400000
A111: 2011 | B111: 0.2873 | C111: 10000000
A112: 2011 | B112: 0.0725 | C112: 130000000
A113: 2011 | B113: 0.3459 | C113: 6740000
A114: 2011 | B114: 0.1543 | C114: 19053000
A115: 2011 | B115: 0.1543 | C115: 14120000
A116: 2011 | B116: 0.2866 | C116: 3320000
A117: 2011 | B117: 0.1152 | C117: 21200000
A118: 2011 | B118: 0.0944 | C118: 13870000
A119: 2012 | B119: 0.072 | C119: 35964726
A120: 2012 | B120: 0.1169 | C120: 25000000
A121: 2012 | B121: 0.0937 | C121: 20485000
A122: 2012 | B122: 0.2559 | C122: 7600000
A123: 2012 | B123: 0.1534 | C123: 8280000
A124: 2012 | B124: 0.246 | C124: 60000000
A125: 2012 | B125: 0.1335 | C125: 95000000
A126: 2012 | B126: 0.1037 | C126: 15632910
A127: 2012 | B127: 0.072 | C127: 70000000
A128: 2012 | B128: 0.128 | C128: 50300000
A129: 2013 | B129: 0.0675 | C129: 14352000
A130: 2013 | B130: 0.082 | C130: 249932000
A131: 2013 | B131: 0.2129 | C131: 20000000
A132: 2013 | B132: 0.0945 | C132: 46370000
A133: 2013 | B133: 0.2156 | C133: 5464000
A134: 2013 | B134: 0.0922 | C134: 7573000
A135: 2013 | B135: 0.2156 | C135: 8200000
A136: 2013 | B136: 0.1421 | C136: 13650000
A137: 2013 | B137: 0.1188 | C137: 13084800
A138: 2013 | B138: 0.1188 | C138: 11542440
A139: 2014 | B139: 0.1512 | C139: 2432710
A140: 2014 | B140: 0.196 | C140: 13915000
A141: 2014 | B141: 0.1228 | C141: 19950000
A142: 2014 | B142: 0.0854 | C142: 2267124
A143: 2014 | B143: 0.1034 | C143: 28990000
A144: 2014 | B144: 0.1678 | C144: 11150000
A145: 2014 | B145: 0.2357 | C145: 26387000
A146: 2014 | B146: 0.110675 | C146: 2596778
A147: 2014 | B147: 0.1118 | C147: 10094000
A148: 2014 | B148: 0.0782 | C148: 14100000
A149: 2014 | B149: 0.1247 | C149: 10000000
A150: 2014 | B150: 0.2559 | C150: 3016000
A151: 2014 | B151: 0.0853 | C151: 310000000
A152: 2015 | B152: 0.0569 | C152: 27573000
A153: 2015 | B153: 0.2344 | C153: 4281000
A154: 2015 | B154: 0.1511 | C154: 2510133
A155: 2015 | B155: 0.1753 | C155: 4080000
A156: 2015 | B156: 0.1086 | C156: 8750000
A157: 2015 | B157: 0.1254 | C157: 7700000
A158: 2015 | B158: 0.1845 | C158: 5000000
A159: 2015 | B159: 0.088425 | C159: 3161612
A160: 2015 | B160: 0.1037 | C160: 50100000
A161: 2015 | B161: 0.1254 | C161: 32350000
A162: 2015 | B162: 0.1753 | C162: 4243360
A163: 2015 | B163: 0.1766 | C163: 16630000
A164: 2015 | B164: 0.1254 | C164: 2367370
A165: 2015 | B165: 0.0732 | C165: 10119472
A166: 2015 | B166: 0.1766 | C166: 16733829
A167: 2015 | B167: 0.0732 | C167: 22361246
A168: 2016 | B168: 0.1122 | C168: 5000000
A169: 2016 | B169: 0.1548 | C169: 12660000
A170: 2016 | B170: 0.0522 | C170: 98000000
A171: 2016 | B171: 0.0625 | C171: 89401016
A172: 2016 | B172: 0.1377 | C172: 4250000
A173: 2016 | B173: 0.0522 | C173: 17600000
A174: 2016 | B174: 0.0471 | C174: 15352366
A175: 2016 | B175: 0.0522 | C175: 100000000
A176: 2017 | B176: 0.1212 | C176: 3711000
A177: 2017 | B177: 0.0339 | C177: 1509150
A178: 2017 | B178: 0.1848 | C178: 1329000
A179: 2017 | B179: 0.0488 | C179: 16992000
A180: 2017 | B180: 0.1848 | C180: 1200000
A181: 2017 | B181: 0.0245 | C181: 3860000
A182: 2017 | B182: 0.0563 | C182: 59383000
A183: 2017 | B183: 0.0395 | C183: 26955489
A184: 2017 | B184: 0.1623 | C184: 139990
A185: 2017 | B185: 0.1024 | C185: 2000000
A186: 2017 | B186: 0.0198 | C186: 99009301
A187: 2017 | B187: 0.05205 | C187: 60000000
A188: 2017 | B188: 0.0674 | C188: 5025920
A189: 2017 | B189: 0.1623 | C189: 20000000
A190: 2017 | B190: 0.0674 | C190: 65942980
A191: 2018 | B191: 0.0316 | C191: 12069259
A192: 2018 | B192: 0.0329 | C192: 19172000
A193: 2018 | B193: 0.0239 | C193: 16866000
A194: 2018 | B194: 0.0411 | C194: 17000000
A195: 2018 | B195: 0.0211 | C195: 3861632
A196: 2018 | B196: 0.1615 | C196: 2600000
A197: 2018 | B197: 0.0858 | C197: 3500000
A198: 2018 | B198: 0.1107 | C198: 742000
A199: 2018 | B199: 0.0858 | C199: 600000
A200: 2018 | B200: 0.0446 | C200: 57415000
... 34 more rows

Sheet Graf 114
A1: Graf 114: Vývoj rozdielov v priemernej mzde
A2: Zdroj: ŠÚSR
B4: 2006 | C4: 2007 | D4: 2008 | E4: 2009 | F4: 2010 | G4: 2011 | H4: 2012 | I4: 2013 | J4: 2014 | K4: 2015 | L4: 2016 | M4: 2017 | N4: 2018 | O4: 2019 | P4: 2020 | Q4: 2021
A5: priemer 10 okresov s najvyššou mzdou | B5: 728.5653846 | C5: 791.1438462 | D5: 851.0453846 | E5: 832.4846154 | F5: 879.3846154 | G5: 905.6923077 | H5: 927.4615385 | I5: 944 | J5: 961.32 | K5: 1000.72 | L5: 1023.6 | M5: 1085.65 | N5: 1180.95 | O5: 1264.55 | P5: 1317.8 | Q5: 1395.15
A6: priemer 10 okresov s najnižšou mzdou | B6: 462.377 | C6: 527.2880952 | D6: 574.2819048 | E6: 577.1395238 | F6: 606.4761905 | G6: 662.7619048 | H6: 681.3809524 | I6: 684.1428571 | J6: 723.4285714 | K6: 748 | L6: 757.5 | M6: 814.1 | N6: 880.75 | O6: 970.35 | P6: 1042.9 | Q6: 1110.2

Sheet Graf 115
A1: Graf 115: Podiel firiem indikujúcich nedostatok pracovníkov ako bariéru rozvoja (%, sezónne očistené)
A2: Zdroj: Európske podnikateľské a spotrebiteľské prieskumy
B4: Priemysel | C4: Služby
A5: 2004-Q1 | B5: 0 | C5: 1
A6: 2004-Q2 | B6: 1 | C6: 1
A7: 2004-Q3 | B7: 2 | C7: 1
A8: 2004-Q4 | B8: 3 | C8: 0
A9: 2005-Q1 | B9: 2 | C9: 1
A10: 2005-Q2 | B10: 2 | C10: 1
A11: 2005-Q3 | B11: 1 | C11: 2
A12: 2005-Q4 | B12: 1 | C12: 2
A13: 2006-Q1 | B13: 1 | C13: 2
A14: 2006-Q2 | B14: 2 | C14: 2
A15: 2006-Q3 | B15: 4 | C15: 2
A16: 2006-Q4 | B16: 6 | C16: 2
A17: 2007-Q1 | B17: 7 | C17: 4
A18: 2007-Q2 | B18: 4 | C18: 4
A19: 2007-Q3 | B19: 16 | C19: 5
A20: 2007-Q4 | B20: 10 | C20: 6
A21: 2008-Q1 | B21: 17 | C21: 5
A22: 2008-Q2 | B22: 10 | C22: 5
A23: 2008-Q3 | B23: 16 | C23: 4
A24: 2008-Q4 | B24: 5 | C24: 4
A25: 2009-Q1 | B25: 1 | C25: 2
A26: 2009-Q2 | B26: 1 | C26: 4
A27: 2009-Q3 | B27: 1 | C27: 2
A28: 2009-Q4 | B28: 1 | C28: 2
A29: 2010-Q1 | B29: 1 | C29: 1
A30: 2010-Q2 | B30: 2 | C30: 1
A31: 2010-Q3 | B31: 4 | C31: 2
A32: 2010-Q4 | B32: 3 | C32: 3
A33: 2011-Q1 | B33: 1 | C33: 2
A34: 2011-Q2 | B34: 1 | C34: 2
A35: 2011-Q3 | B35: 2 | C35: 4
A36: 2011-Q4 | B36: 2 | C36: 4
A37: 2012-Q1 | B37: 2 | C37: 4
A38: 2012-Q2 | B38: 1 | C38: 3
A39: 2012-Q3 | B39: 1 | C39: 3
A40: 2012-Q4 | B40: 0 | C40: 3
A41: 2013-Q1 | B41: 0 | C41: 4
A42: 2013-Q2 | B42: 1 | C42: 3
A43: 2013-Q3 | B43: 1 | C43: 3
A44: 2013-Q4 | B44: 7 | C44: 5
A45: 2014-Q1 | B45: 5 | C45: 4
A46: 2014-Q2 | B46: 6 | C46: 5
A47: 2014-Q3 | B47: 8 | C47: 5
A48: 2014-Q4 | B48: 8 | C48: 5
A49: 2015-Q1 | B49: 7 | C49: 6
A50: 2015-Q2 | B50: 9 | C50: 7
A51: 2015-Q3 | B51: 10 | C51: 9
A52: 2015-Q4 | B52: 12 | C52: 11
A53: 2016-Q1 | B53: 10 | C53: 7
A54: 2016-Q2 | B54: 13 | C54: 10
A55: 2016-Q3 | B55: 17 | C55: 12
A56: 2016-Q4 | B56: 20 | C56: 13
A57: 2017-Q1 | B57: 21 | C57: 14
A58: 2017-Q2 | B58: 24 | C58: 15
A59: 2017-Q3 | B59: 30 | C59: 17
A60: 2017-Q4 | B60: 34 | C60: 16
A61: 2018-Q1 | B61: 34 | C61: 18
A62: 2018-Q2 | B62: 33 | C62: 18
A63: 2018-Q3 | B63: 35 | C63: 19
A64: 2018-Q4 | B64: 37 | C64: 19
A65: 2019-Q1 | B65: 32 | C65: 21
A66: 2019-Q2 | B66: 23 | C66: 18
A67: 2019-Q3 | B67: 26 | C67: 23
A68: 2019-Q4 | B68: 25 | C68: 22
A69: 2020-Q1 | B69: 19 | C69: 23
A70: 2020-Q2 | B70: 11 | C70: 10
A71: 2020-Q3 | B71: 7 | C71: 11
A72: 2020-Q4 | B72: 18 | C72: 15
A73: 2021-Q1 | B73: 17 | C73: 13
A74: 2021-Q2 | B74: 20 | C74: 13
A75: 2021-Q3 | B75: 24 | C75: 25
A76: 2021-Q4 | B76: 31 | C76: 25
A77: 2022-Q1 | B77: 31 | C77: 27
A78: 2022-Q2 | B78: 23 | C78: 25
A79: 2022-Q3 | B79: 28 | C79: 32

Sheet Graf 116
A1: Graf 116: Nedostatok pracovníkov v priemysle v krajinách V4 a Nemecku
A2: Zdroj: Európske podnikateľské a spotrebiteľské prieskumy
B3: Priemysel | C3: Služby | D3: Priemysel CZ | E3: Priemysel HU | F3: Priemysel PL | G3: Priemysel DE
A4: 2004-Q1 | B4: 0 | C4: 1 | D4: 0 | E4: 22.5 | F4: 8.1 | G4: 1.5
A5: 2004-Q2 | B5: 1 | C5: 1 | D5: 10.4 | E5: 24.5 | F5: 7.8 | G5: 1.2
A6: 2004-Q3 | B6: 2 | C6: 1 | D6: 9.2 | E6: 22.9 | F6: 9.1 | G6: 1.4
A7: 2004-Q4 | B7: 3 | C7: 0 | D7: 9.8 | E7: 24.5 | F7: 9.2 | G7: 1.5
A8: 2005-Q1 | B8: 2 | C8: 1 | D8: 4.6 | E8: 25.7 | F8: 9.9 | G8: 1.7
A9: 2005-Q2 | B9: 2 | C9: 1 | D9: 4.5 | E9: 18.6 | F9: 10.8 | G9: 1.9
A10: 2005-Q3 | B10: 1 | C10: 2 | D10: 4 | E10: 19.2 | F10: 10.4 | G10: 1.7
A11: 2005-Q4 | B11: 1 | C11: 2 | D11: 5.3 | E11: 23.9 | F11: 12.3 | G11: 1.8
A12: 2006-Q1 | B12: 1 | C12: 2 | D12: 11.3 | E12: 12.8 | F12: 12.6 | G12: 2.4
A13: 2006-Q2 | B13: 2 | C13: 2 | D13: 13.8 | E13: 26.5 | F13: 14.3 | G13: 3.1
A14: 2006-Q3 | B14: 4 | C14: 2 | D14: 11.8 | E14: 24.4 | F14: 17.1 | G14: 4.1
A15: 2006-Q4 | B15: 6 | C15: 2 | D15: 21.8 | E15: 25.6 | F15: 20.8 | G15: 5.2
A16: 2007-Q1 | B16: 7 | C16: 4 | D16: 22.7 | E16: 24.8 | F16: 21.2 | G16: 6.6
A17: 2007-Q2 | B17: 4 | C17: 4 | D17: 22.3 | E17: 26.5 | F17: 25.2 | G17: 7.6
A18: 2007-Q3 | B18: 16 | C18: 5 | D18: 25.9 | E18: 30.6 | F18: 26.1 | G18: 9.6
A19: 2007-Q4 | B19: 10 | C19: 6 | D19: 26.9 | E19: 28.7 | F19: 27.9 | G19: 9.6
A20: 2008-Q1 | B20: 17 | C20: 5 | D20: 29.2 | E20: 32.1 | F20: 30.5 | G20: 9.8
A21: 2008-Q2 | B21: 10 | C21: 5 | D21: 18 | E21: 33.1 | F21: 27.9 | G21: 10.3
A22: 2008-Q3 | B22: 16 | C22: 4 | D22: 16.8 | E22: 32 | F22: 27.9 | G22: 9.4
A23: 2008-Q4 | B23: 5 | C23: 4 | D23: 9.7 | E23: 26.6 | F23: 24.5 | G23: 6.3
A24: 2009-Q1 | B24: 1 | C24: 2 | D24: 2.7 | E24: 13.7 | F24: 13.7 | G24: 3.1
A25: 2009-Q2 | B25: 1 | C25: 4 | D25: 0.9 | E25: 8 | F25: 9 | G25: 1.3
A26: 2009-Q3 | B26: 1 | C26: 2 | D26: 1.1 | E26: 8.7 | F26: 8.9 | G26: 0.7
A27: 2009-Q4 | B27: 1 | C27: 2 | D27: 1.7 | E27: 11.5 | F27: 9.6 | G27: 1.4
A28: 2010-Q1 | B28: 1 | C28: 1 | D28: 0.4 | E28: 9.3 | F28: 9.1 | G28: 1.9
A29: 2010-Q2 | B29: 2 | C29: 1 | D29: 2.1 | E29: 11.4 | F29: 11 | G29: 2.6
A30: 2010-Q3 | B30: 4 | C30: 2 | D30: 1.6 | E30: 13.9 | F30: 10.8 | G30: 4.2
A31: 2010-Q4 | B31: 3 | C31: 3 | D31: 9.7 | E31: 17.8 | F31: 12.9 | G31: 7.5
A32: 2011-Q1 | B32: 1 | C32: 2 | D32: 9.5 | E32: 18.7 | F32: 12.2 | G32: 7.2
A33: 2011-Q2 | B33: 1 | C33: 2 | D33: 13.9 | E33: 15 | F33: 13 | G33: 10.1
A34: 2011-Q3 | B34: 2 | C34: 4 | D34: 12.4 | E34: 17.6 | F34: 12.3 | G34: 11.6
A35: 2011-Q4 | B35: 2 | C35: 4 | D35: 6.1 | E35: 14.9 | F35: 13.6 | G35: 10.8
A36: 2012-Q1 | B36: 2 | C36: 4 | D36: 3.6 | E36: 15.9 | F36: 12.6 | G36: 9.1
A37: 2012-Q2 | B37: 1 | C37: 3 | D37: 3.8 | E37: 20.5 | F37: 13.7 | G37: 8.9
A38: 2012-Q3 | B38: 1 | C38: 3 | D38: 3.5 | E38: 16.5 | F38: 12.7 | G38: 7.9
A39: 2012-Q4 | B39: 0 | C39: 3 | D39: 3 | E39: 16.2 | F39: 12.9 | G39: 6.5
A40: 2013-Q1 | B40: 0 | C40: 4 | D40: 2.6 | E40: 17.7 | F40: 11.5 | G40: 6.8
A41: 2013-Q2 | B41: 1 | C41: 3 | D41: 2.9 | E41: 13.9 | F41: 12.1 | G41: 6.3
A42: 2013-Q3 | B42: 1 | C42: 3 | D42: 3.3 | E42: 17 | F42: 12.3 | G42: 5.4
A43: 2013-Q4 | B43: 7 | C43: 5 | D43: 3.2 | E43: 18.5 | F43: 13.7 | G43: 6.4
A44: 2014-Q1 | B44: 5 | C44: 4 | D44: 3.3 | E44: 18.7 | F44: 14.6 | G44: 7.3
A45: 2014-Q2 | B45: 6 | C45: 5 | D45: 4.1 | E45: 24 | F45: 15.2 | G45: 8.5
A46: 2014-Q3 | B46: 8 | C46: 5 | D46: 5.9 | E46: 22.7 | F46: 15.3 | G46: 8.3
A47: 2014-Q4 | B47: 8 | C47: 5 | D47: 4.8 | E47: 29.7 | F47: 16.5 | G47: 9.2
A48: 2015-Q1 | B48: 7 | C48: 6 | D48: 6.1 | E48: 30.9 | F48: 16.6 | G48: 9.1
A49: 2015-Q2 | B49: 9 | C49: 7 | D49: 6.9 | E49: 37.1 | F49: 18.4 | G49: 9.4
A50: 2015-Q3 | B50: 10 | C50: 9 | D50: 8.7 | E50: 38.1 | F50: 19.8 | G50: 9.8
A51: 2015-Q4 | B51: 12 | C51: 11 | D51: 14 | E51: 38.2 | F51: 21.6 | G51: 9.5
A52: 2016-Q1 | B52: 10 | C52: 7 | D52: 14.8 | E52: 41.6 | F52: 22.9 | G52: 9.2
A53: 2016-Q2 | B53: 13 | C53: 10 | D53: 16.5 | E53: 46.5 | F53: 24.9 | G53: 11
A54: 2016-Q3 | B54: 17 | C54: 12 | D54: 18.9 | E54: 52.4 | F54: 27.4 | G54: 11.4
A55: 2016-Q4 | B55: 20 | C55: 13 | D55: 30.1 | E55: 51.9 | F55: 30 | G55: 13.2
A56: 2017-Q1 | B56: 21 | C56: 14 | D56: 32.7 | E56: 52.5 | F56: 31.9 | G56: 12.6
A57: 2017-Q2 | B57: 24 | C57: 15 | D57: 33.5 | E57: 57 | F57: 35.5 | G57: 15.8
A58: 2017-Q3 | B58: 30 | C58: 17 | D58: 40.5 | E58: 60.8 | F58: 38.1 | G58: 19.4
A59: 2017-Q4 | B59: 34 | C59: 16 | D59: 38.7 | E59: 57 | F59: 41.6 | G59: 21.8
A60: 2018-Q1 | B60: 34 | C60: 18 | D60: 43.5 | E60: 61.8 | F60: 45.9 | G60: 25.2
A61: 2018-Q2 | B61: 33 | C61: 18 | D61: 42.3 | E61: 55.9 | F61: 47.2 | G61: 27.6
A62: 2018-Q3 | B62: 35 | C62: 19 | D62: 43.2 | E62: 60.6 | F62: 49.9 | G62: 23.2
A63: 2018-Q4 | B63: 37 | C63: 19 | D63: 46.3 | E63: 64.6 | F63: 50.5 | G63: 23.2
A64: 2019-Q1 | B64: 32 | C64: 21 | D64: 39 | E64: 66.3 | F64: 50.2 | G64: 21.3
A65: 2019-Q2 | B65: 23 | C65: 18 | D65: 35.1 | E65: 67.8 | F65: 49.3 | G65: 20.2
A66: 2019-Q3 | B66: 26 | C66: 23 | D66: 40.2 | E66: 52.9 | F66: 48.1 | G66: 17.7
A67: 2019-Q4 | B67: 25 | C67: 22 | D67: 39.2 | E67: 47 | F67: 47.9 | G67: 16
A68: 2020-Q1 | B68: 19 | C68: 23 | D68: 27.7 | E68: 41.4 | F68: 46 | G68: 14.5
A69: 2020-Q2 | B69: 11 | C69: 10 | D69: 13.5 | E69: 13.6 | F69: 29.5 | G69: 8.5
A70: 2020-Q3 | B70: 7 | C70: 11 | D70: 16.7 | E70: 18.6 | F70: 29.1 | G70: 7.6
A71: 2020-Q4 | B71: 18 | C71: 15 | D71: 17.6 | E71: 24 | F71: 33.6 | G71: 9.3
A72: 2021-Q1 | B72: 17 | C72: 13 | D72: 22 | E72: 30.7 | F72: 33.5 | G72: 14.4
A73: 2021-Q2 | B73: 20 | C73: 13 | D73: 18.4 | E73: 35.4 | F73: 36.5 | G73: 19.3
A74: 2021-Q3 | B74: 24 | C74: 25 | D74: 27.6 | E74: 41.4 | F74: 38.3 | G74: 26.3
A75: 2021-Q4 | B75: 31 | C75: 25 | D75: 22.6 | E75: 46.7 | F75: 39.4 | G75: 33.4
A76: 2022-Q1 | B76: 31 | C76: 27 | D76: 24.9 | E76: 45.6 | F76: 40.2 | G76: 34.6
A77: 2022-Q2 | B77: 23 | C77: 25 | D77: 18.6 | E77: 42 | F77: 39.3 | G77: 38.1
A78: 2022-Q3 | B78: 28 | C78: 32 | D78: 26.1 | E78: 39.7 | F78: 39.9 | G78: 42.1

Sheet Graf 117
A1: Graf 117: Ročná medziregionálna mobilita obyvateľstva 2015-2018 (% celkového obyvateľstva)
A2: Zdroj: OECD Cities and Regions at a Glance 2020
A4: iso3 | B4: mobility rate (%)
A5: Maďarsko | B5: 0.05785049126
A6: Kórea | B6: 0.04730284587
A7: Holandsko | B7: 0.04457973689
A8: Veľká Británia | B8: 0.0408379212
A9: Nemecko | B9: 0.03711934015
A10: Turecko | B10: 0.03501390666
A11: Dánsko | B11: 0.03436246142
A12: USA | B12: 0.03154182807
A13: Izrael | B13: 0.03084892221
A14: Austrália | B14: 0.03021076694
A15: Nórsko | B15: 0.02798234113
A16: Francúzsko | B16: 0.02772164904
A17: Island | B17: 0.02618097328
A18: Litva | B18: 0.02506213076
A19: OECD30 | B19: 0.02498517677
A20: Belgicko | B20: 0.02423802391
A21: Fínsko | B21: 0.02393822931
A22: Švédsko | B22: 0.02308671363
A23: Slovinsko | B23: 0.0220564492
A24: Mexiko | B24: 0.02091179788
A25: Rakúsko | B25: 0.02085770294
A26: Lotyšsko | B26: 0.01929258928
A27: Japonsko | B27: 0.01803851873
A28: Švajčiarsko | B28: 0.01734233275
A29: Čile | B29: 0.01579551212
A30: Estónsko | B30: 0.01088269521
A31: Taliansko | B31: 0.008973214775
A32: Španielsko | B32: 0.008933557197
A33: Česko | B33: 0.008485626429
A34: Rumunsko | B34: 0.00766703859
A35: Poľsko | B35: 0.005506454036
A36: Slovensko | B36: 0.004600571003

Sheet Graf 118
A1: Graf 118: Percento populácie prichádzajúce do regiónu 2015-2018
A2: Zdroj: OECD, Regions and Cities at a Glance 2020
B5: Region | C5: Minimum | D5: Region | E5: Maximum
A6: Slovinsko | B6: Carinthia | C6: -0.3266667 | D6: Central Slovenia | E6: 0.18
A7: Španielsko | B7: Melilla | C7: -1.25 | D7: Madrid | E7: 0.21
A8: Dánsko | B8: West Jutland | C8: -0.3466667 | D8: East Zealand | E8: 0.3166667
A9: Izrael | B9: Jerusalem district | C9: -0.4633333 | D9: Central district | E9: 0.35
A10: Švajčiarsko | B10: Basel-Stadt | C10: -0.79 | D10: Freiburg | E10: 0.4233333
A11: Fínsko | B11: Kainuu | C11: -0.725 | D11: Helsinki-Uusimaa | E11: 0.4366667
A12: Taliansko | B12: Carbonia-Iglesias | C12: -0.7566667 | D12: Bologna | E12: 0.5166667
A13: Japonsko | B13: Aomori | C13: -0.5 | D13: Tokyo | E13: 0.59
A14: Litva | B14: Taurage county | C14: -0.8633333 | D14: Vilnius county | E14: 0.5933333
A15: Estónsko | B15: Northeast Estonia | C15: -0.8433333 | D15: North Estonia | E15: 0.6233333
A16: Česko | B16: Karlovy Vary | C16: -0.36 | D16: Central Bohemia | E16: 0.64
A17: Lotyšsko | B17: Vidzeme | C17: -0.6933333 | D17: Pieriga | E17: 0.65
A18: Holandsko | B18: Noord-Drenthe | C18: -4.17 | D18: Oost-Zuid-Holland | E18: 0.6966667
A19: Švédsko | B19: Norrbottens County | C19: -0.92 | D19: Uppsala County | E19: 0.7433333
A20: Rakúsko | B20: Traunviertel | C20: -0.61 | D20: Wiener Umland/Nordteil | E20: 0.8066667
A21: Belgicko | B21: Brussels | C21: -1.22 | D21: Arr. Waremme | E21: 0.83
A22: Slovensko | B22: Prešov Region | C22: -0.2433333 | D22: Bratislava Region | E22: 0.8833333
A23: Nórsko | B23: Finnmark | C23: -0.9133334 | D23: Akershus | E23: 0.9466667
A24: Poľsko | B24: Pulawski | C24: -0.39 | D24: Poznanski | E24: 0.9666666
A25: Francúzsko | B25: Paris | C25: -1.445 | D25: Haute-Corse | E25: 1.145
A26: Veľká Británia | B26: Brent | C26: -2.163333 | D26: Breckland and South Norfolk | E26: 1.223333
A27: Maďarsko | B27: Szabolcs-Szatmár-Bereg | C27: -0.8366666 | D27: Pest | E27: 1.246667
A28: Island | B28: Westfjords | C28: -1.14 | D28: Southern Peninsula | E28: 1.316667
A29: Kanada | B29: Northern Rockies | C29: -2.55 | D29: Central Okanagan | E29: 1.42
A30: Austrália | B30: Western Australia - Outback | C30: -2.08 | D30: Sunshine Coast | E30: 1.723333
A31: Nemecko | B31: Trier | C31: -11.96667 | D31: Potsdam | E31: 1.736667
A32: Turecko | B32: Kars | C32: -2.86 | D32: Tekirdag | E32: 2.27
A33: USA | B33: Anchorage | C33: -5.065 | D33: Flagstaff | E33: 2.725
A34: Čile | B34: Chañaral | C34: -1.61 | D34: Parinacota | E34: 3.833333
A35: Kórea | B35: Seoul | C35: -1.193333 | D35: Sejong | E35: 12.04667
A36: Mexiko | B36: Sinaloa | C36: -8.64 | D36: Hidalgo | E36: 13.21

Sheet Graf 119
A1: Graf 119: Destinácia vnútroslovenskej migrácie mladých ľudí 2015-2018 (15-29 rok života)[1]
A2: Zdroj: OECD, Regions and Cities at a Glance 2020
B4: Veľký región v okolí hlavného mesta | C4: Okolie hlavného mesta | D4: Región pri hlavnom meste | E4: Región v blízkosti malého-stredného mesta | F4: Vzdialený región
A5: Švajčiarsko | B5: 0 | C5: 100 | D5: 0 | E5: 0
A6: Estónsko | B6: 0 | C6: 100 | D6: 0 | E6: 0
A7: Fínsko | B7: 0 | C7: 100 | D7: 0 | E7: 0
A8: Grécko | B8: 0 | C8: 0 | D8: 0 | E8: 100
A9: Litva | B9: 0 | C9: 100 | D9: 0 | E9: 0
A10: Lotyšsko | B10: 0 | C10: 100 | D10: 0 | E10: 0
A11: Nórsko | B11: 0 | C11: 100 | D11: 0 | E11: 0
A12: Slovensko | B12: 0 | C12: 90.97357178 | D12: 9.026425362 | E12: 0
A13: Slovinsko | B13: 0 | C13: 100 | D13: 0 | E13: 0
A14: Poľsko | B14: 41.11764145 | C14: 58.88235474 | D14: 0 | E14: 0
A15: Francúsko | B15: 44.15079117 | C15: 55.84921265 | D15: 0 | E15: 0
A16: OECD27 | B16: 52.98771946 | C16: 41.52746847 | D16: 0.8103901973 | E16: 3.846153846 | F16: 0.8282679044
A17: Chile | B17: 53.6482048 | C17: 46.3517952 | D17: 0 | E17: 0
A18: Veľká Británia | B18: 66.32554626 | C18: 33.67445374 | D18: 0 | E18: 0
A19: Portugalsko | B19: 67.25574493 | C19: 0 | D19: 11.2092905 | E19: 0 | F19: 21.53496552
A20: Švédsko | B20: 71.71640778 | C20: 28.28359413 | D20: 0 | E20: 0
A21: Dánsko | B21: 80.89255524 | C21: 19.10743904 | D21: 0 | E21: 0
A22: Austrália | B22: 82.98006439 | C22: 17.01993561 | D22: 0 | E22: 0
A23: Nemecko | B23: 83.17170715 | C23: 16.82829666 | D23: 0 | E23: 0
A24: Taliansko | B24: 90.37424469 | C24: 9.625754356 | D24: 0 | E24: 0
A25: Rakúsko | B25: 96.04779816 | C25: 3.117772341 | D25: 0.8344292641 | E25: 0
A26: Česko | B26: 100 | C26: 0 | D26: 0 | E26: 0
A27: Španielsko | B27: 100 | C27: 0 | D27: 0 | E27: 0
A28: Maďarsko | B28: 100 | C28: 0 | D28: 0 | E28: 0
A29: Japosnko | B29: 100 | C29: 0 | D29: 0 | E29: 0
A30: Kórea | B30: 100 | C30: 0 | D30: 0 | E30: 0
A31: Mexiko | B31: 100 | C31: 0 | D31: 0 | E31: 0

Sheet Graf 120
A1: Graf 120: Vývoj vyrobeného množstva šumivého a tichého vína, 2015 – 2021 (v hl)
A2: Zdroj: agregované daňové priznania
B3: víno zdaňované | C3: víno nezdaňované
A4: 2015 | B4: 65127.38 | C4: 404891.28
A5: 2016 | B5: 67164.64 | C5: 382138.25
A6: 2017 | B6: 61093.67 | C6: 388104.03
A7: 2018 | B7: 68415.29 | C7: 348896.67
A8: 2019 | B8: 70418.82 | C8: 345996.94
A9: 2020 | B9: 66590.4 | C9: 380357.99
A10: 2021 | B10: 72350.98 | C10: 430885.5

Sheet Graf 121
A1: Graf 121: Porovnanie výšky spotrebnej dane z tichého vína v krajinách EÚ, k 1.7.2021 (eur/1 hl)
A2: Zdroj: Excise duty tables
A4: Krajina | B4: sadzba v eur/1 hl
A5: Slovensko | B5: 0
A6: Česká republika | B6: 0
A7: Maďarsko | B7: 0
A8: Rakúsko | B8: 0
A9: Nemecko | B9: 0
A10: Bulharsko | B10: 0
A11: Cyprus | B11: 0
A12: Grécko | B12: 0
A13: Španielsko | B13: 0
A14: Chorvátsko | B14: 0
A15: Taliansko | B15: 0
A16: Luxembursko | B16: 0
A17: Portugalsko | B17: 0
A18: Rumunsko | B18: 0
A19: Slovinsko | B19: 0
A20: Francúzsko | B20: 3.91
A21: Malta | B21: 20.5
A22: Poľsko | B22: 36.06965174
A23: Belgicko | B23: 74.9086
A24: Holandsko | B24: 88.3
A25: Lotyšsko | B25: 111
A26: Estónsko | B26: 147.82
A27: Dánsko | B27: 151.3115459
A28: Litva | B28: 164.67
A29: Švédsko | B29: 246.9345407
A30: Fínsko | B30: 421
A31: Írsko | B31: 424.84

Sheet Graf 122
A1: Graf 122: Množstvá vyskladneného liehu, 2015 – 2021 (akruálny príjem, hl a.)
A2: Zdroj: Agregované daňové priznania
B4: Lieh - pestovateľské pálenie | C4: Lieh - základná sadzba
A5: 2015 | B5: 14202.7682 | C5: 181662.8942
A6: 2016 | B6: 14114.4457 | C6: 186697.7512
A7: 2017 | B7: 12414.6738 | C7: 189384.8345
A8: 2018 | B8: 22186.41 | C8: 192007.9977
A9: 2019 | B9: 24939.9699 | C9: 186312.7576
A10: 2020 | B10: 15986.6454 | C10: 184228.3469
A11: 2021 | B11: 20865.758 | C11: 187396.3085

Sheet Graf 123
A1: Graf 123: Porovnanie spotreby alkoholu v krajinách EÚ, 2009 (l na 1 dospelého)
A2: Zdroj: WHO
B3: Nezaznamenaná spotreba | C3: Legálna spotreba
A4: Malta | B4: 0.4 | C4: 7.61
A5: Švédsko | B5: 1.7 | C5: 7.15
A6: Cyprus | B6: 1 | C6: 8.53
A7: Taliansko | B7: 2.4 | C7: 7.19
A8: Holandsko | B8: 0.5 | C8: 9.23
A9: Grécko | B9: 1.8 | C9: 8.75
A10: Bulharsko | B10: 1.2 | C10: 10.25
A11: Belgicko | B11: 1 | C11: 11
A12: Fínsko | B12: 2.3 | C12: 9.97
A13: Priemer EÚ | B13: 1.6 | C13: 10.85
A14: Francúzsko | B14: 0.4 | C14: 12.3
A15: Chorvátsko | B15: 2.5 | C15: 10.26
A16: Luxembursko | B16: 1 | C16: 11.76
A17: Dánsko | B17: 2 | C17: 10.86
A18: Nemecko | B18: 1 | C18: 11.87
A19: Írsko | B19: 1 | C19: 11.87
A20: Rakúsko | B20: 0.7 | C20: 12.3
A21: Litva | B21: 0.4 | C21: 12.62
A22: Španielsko | B22: 1.4 | C22: 11.67
A23: Portugalsko | B23: 2 | C23: 11.43
A24: Poľsko | B24: 3 | C24: 10.6
A25: Estónsko | B25: 0.7 | C25: 13.35
A26: Maďarsko | B26: 2.5 | C26: 11.65
A27: Slovensko | B27: 3 | C27: 11.59
A28: Slovinsko | B28: 3 | C28: 12.31
A29: Rumunsko | B29: 3 | C29: 13.3
A30: ČR | B30: 1.5 | C30: 15.11

Sheet Graf 124
A1: Graf 124: Vývoj počtu pestovateľských páleníc na Slovensku, 2018 - 2022
A2: Zdroj: FS SR
B3: Počet liehovarníckych závodov na pestovateľské pálenie ovocia
A4: 2018 | B4: 199
A5: 2019 | B5: 208
A6: 2020 | B6: 221
A7: 2021 | B7: 244
A8: 2022 | B8: 248

Sheet Graf 125
A1: Graf 125: Výsledok hospodárenia pre vybrané liehovary
A2: Zdroj: FS SR, agregované daňové priznania
A3: 2018 = 100 | B3: Liehovary (všetky) | C3: Liehovary (iba destilovanie) | D3: Výroba nápojov (všetky)
A4: 2018 | B4: 100 | C4: 100 | D4: 100
A5: 2019 | B5: 103.0951556 | C5: 113.5286347 | D5: 100.9788611
A6: 2020 | B6: 81.24751107 | C6: 78.42948259 | D6: 62.39251571
A7: 2021 | B7: 60.99846646 | C7: 137.8281005 | D7: 72.10398294

Sheet Graf 126
A1: Graf 126: Vývoj zdaneného množstva piva veľkých a malých pivovarov, 2015 - 2021 (hl)
A2: Zdroj: agregované daňové priznania
A3: hl | B3: veľké pivovary | C3: malé pivovary
A4: 2015 | B4: 3.597527799 | C4: 284.437388
A5: 2016 | B5: 3.534087416 | C5: 289.2555015
A6: 2017 | B6: 3.560975709 | C6: 313.1979079
A7: 2018 | B7: 3.68366092 | C7: 319.330198
A8: 2019 | B8: 3.620143734 | C8: 332.302152
A9: 2020 | B9: 3.486100238 | C9: 277.90592
A10: 2021 | B10: 3.367158626 | C10: 249.418708

Sheet Graf 127
A1: Graf 127: Výsledok hospodárenia MSP voči ostatným firmám
A2: Zdroj: individuálne daňové priznania
A4: 2018 = 100 | B4: Len MSP (aj výroba piva, aj pohostinstvá) | C4: Výroba piva (všetky) | D4: Výroba nápojov (všetky) | E4: Výroba piva (MSP)
A5: 2018 | B5: 100 | C5: 100 | D5: 100 | E5: 100
A6: 2019 | B6: 154.009428 | C6: 106.5513983 | D6: 100.9788611 | E6: 66.29451096
A7: 2020 | B7: 14.36613497 | C7: 55.41996956 | D7: 62.39251571 | E7: -67.97124051
A8: 2021 | B8: 25.94208011 | C8: 65.01754999 | D8: 72.10398294 | E8: -21.28080515

Sheet Graf 128
A1: Graf 128: Distribúcia firiem podľa výnosov v 2020
A2: Zdroj: agregované daňové priznania
A5: podiel | B5: hranica - tis. eur
A6: 12.88819 | B6: 1.971
A7: 7.472229 | B7: 5.893
A8: 6.189571 | B8: 9.815
A9: 5.522953 | B9: 13.737
A10: 5.093022 | B10: 17.659
A11: 4.580737 | B11: 21.581
A12: 4.201386 | B12: 25.503
A13: 3.873265 | B13: 29.425
A14: 3.555518 | B14: 33.347
A15: 3.25528 | B15: 37.269
A16: 3.232584 | B16: 41.191
A17: 3.202755 | B17: 45.113
A18: 3.407669 | B18: 49.035
A19: 1.9188 | B19: 52.957
A20: 1.777435 | B20: 56.879
A21: 1.671087 | B21: 60.801
A22: 1.584193 | B22: 64.723
A23: 1.527777 | B23: 68.645
A24: 1.416241 | B24: 72.567
A25: 1.333238 | B25: 76.489
A26: 1.287197 | B26: 80.411
A27: 1.232727 | B27: 84.333
A28: 1.140645 | B28: 88.255
A29: 1.085526 | B29: 92.177
A30: 1.244399 | B30: 96.099
A31: 1.196413 | B31: 100.021
A32: 0.8689393 | B32: 103.943
A33: 0.8339223 | B33: 107.865
A34: 0.8365162 | B34: 111.787
A35: 0.7989054 | B35: 115.709
A36: 0.7833423 | B36: 119.631
A37: 0.7684277 | B37: 123.553
A38: 0.76324 | B38: 127.475
A39: 0.7087691 | B39: 131.397
A40: 0.6542983 | B40: 135.319
A41: 0.6542983 | B41: 139.241
A42: 0.6114998 | B42: 143.163
A43: 0.5862098 | B43: 147.085
A44: 0.582319 | B44: 151.007
A45: 0.5609198 | B45: 154.929
A46: 0.5362782 | B46: 158.851
A47: 0.5070974 | B47: 162.773
A48: 0.5356297 | B48: 166.695
A49: 0.4863466 | B49: 170.617
A50: 0.4876435 | B50: 174.539
A51: 0.4701351 | B51: 178.461
A52: 0.4591112 | B52: 182.383
A53: 0.4292819 | B53: 186.305
A54: 0.4065858 | B54: 190.227
A55: 0.3903742 | B55: 194.149
A56: 0.3890773 | B56: 198.071

Sheet Graf 129
A1: Graf 129: Distribúcia firiem podľa výnosov v 2021
A2: Zdroj: agregované daňové priznania
A5: podiel | B5: hranica - tis. eur
A6: 12.5849 | B6: 1.971
A7: 7.209302 | B7: 5.893
A8: 6.050334 | B8: 9.815
A9: 5.358395 | B9: 13.737
A10: 4.865244 | B10: 17.659
A11: 4.54922 | B11: 21.581
A12: 4.263141 | B12: 25.503
A13: 3.875757 | B13: 29.425
A14: 3.669959 | B14: 33.347
A15: 3.380057 | B15: 37.269
A16: 3.368589 | B16: 41.191
A17: 3.429117 | B17: 45.113
A18: 3.818413 | B18: 49.035
A19: 1.844536 | B19: 52.957
A20: 1.767442 | B20: 56.879
A21: 1.696082 | B21: 60.801
A22: 1.60051 | B22: 64.723
A23: 1.442498 | B23: 68.645
A24: 1.399809 | B24: 72.567
A25: 1.341829 | B25: 76.489
A26: 1.259 | B26: 80.411
A27: 1.213125 | B27: 84.333
A28: 1.156419 | B28: 88.255
A29: 1.101625 | B29: 92.177
A30: 1.065307 | B30: 96.099
A31: 1.034724 | B31: 100.021
A32: 0.9640013 | B32: 103.943
A33: 0.9009238 | B33: 107.865
A34: 0.8391207 | B34: 111.787
A35: 0.8200064 | B35: 115.709
A36: 0.8231921 | B36: 119.631
A37: 0.8104492 | B37: 123.553
A38: 0.7295317 | B38: 127.475
A39: 0.7550175 | B39: 131.397
A40: 0.7059573 | B40: 135.319
A41: 0.6441542 | B41: 139.241
A42: 0.6186684 | B42: 143.163
A43: 0.6581714 | B43: 147.085
A44: 0.625677 | B44: 151.007
A45: 0.5555909 | B45: 154.929
A46: 0.5817139 | B46: 158.851
A47: 0.5218222 | B47: 162.773
A48: 0.5129022 | B48: 166.695
A49: 0.5377509 | B49: 170.617
A50: 0.4657534 | B50: 174.539
A51: 0.4530105 | B51: 178.461
A52: 0.4281618 | B52: 182.383
A53: 0.4536477 | B53: 186.305
A54: 0.4358076 | B54: 190.227
A55: 0.4275247 | B55: 194.149
A56: 0.3861102 | B56: 198.071

Sheet Graf 130
A1: Graf 130: Vývoj tržieb za jednotlivé kategórie podnikov (medziročné zmeny)[1]
A2: Zdroj: agregované daňové priznania
A3: Rasty | B3: 2019 | C3: 2020 | D3: 2021
A4: Stredné firmy | B4: 0.06802282074 | C4: -0.02443160906 | D4: 0.1586755082
A5: Dočasné mikrofirmy | B5: -0.1785907013 | C5: -0.2283962946 | D5: -0.4722666203
A6: Mikro firmy | B6: 0.04038761377 | C6: -0.1010507717 | D6: 0.1761315869
A7: Veľké firmy | B7: 0.01347827192 | C7: -0.06668706051 | D7: 0.08378916017
A8: Spolu | B8: 0.0337318928 | C8: -0.04966420137 | D8: 0.1098414538

Sheet Graf 131
A1: Graf 131: Podiel mikrodaňovníkov na celkovom počte firiem v jednotlivých sektoroch (2021)
A2: Zdroj: agregované daňové priznania
A4: Sektor | B4: podiel mikrodaňovníkov | C4: podiel SME na všetkých firmách
A5: Verejné služby | B5: 0.8762822505 | C5: 0.6167532888
A6: Umenie | B6: 0.8446400829 | C6: 0.6167532888
A7: Vzdelávanie | B7: 0.8291750503 | C7: 0.6167532888
A8: Administratíva | B8: 0.7176728432 | C8: 0.6167532888
A9: Profesionálne služby | B9: 0.7007627801 | C9: 0.6167532888
A10: Nehnuteľnosti | B10: 0.6906454761 | C10: 0.6167532888
A11: Financie | B11: 0.6745575221 | C11: 0.6167532888
A12: Informatizácia | B12: 0.6110040301 | C12: 0.6167532888
A13: Poľnohospodárstvo | B13: 0.5998432075 | C13: 0.6167532888
A14: Ubytovanie a Reštaurácie | B14: 0.5992383716 | C14: 0.6167532888
A15: Malo/Veľkoobchod | B15: 0.5357671717 | C15: 0.6167532888
A16: Stavebníctvo | B16: 0.5316785998 | C16: 0.6167532888
A17: Priemysel | B17: 0.4731625118 | C17: 0.6167532888
A18: Doprava | B18: 0.4694016761 | C18: 0.6167532888
A19: Voda | B19: 0.4508196721 | C19: 0.6167532888
A20: Ťažba | B20: 0.4144144144 | C20: 0.6167532888
A21: Zdravotníctvo | B21: 0.2745643881 | C21: 0.6167532888
A22: Energetika | B22: 0.2002164502 | C22: 0.6167532888

Sheet Graf 132
A1: Graf 132: Rozdelenie firiem podľa výsledku hospodárenia a veľkosti (rok 2021)
A2: Zdroj: agregované daňové priznania
B5: zisk | C5: strata | D5: nula
A6: Stredné firmy | B6: 0.7611292576 | C6: 0.2351694719 | D6: 0.003701270461
A7: Malé firmy | B7: 0.4262046129 | C7: 0.4050810687 | D7: 0.1687143183
A8: Veľké firmy | B8: 0.8545454545 | C8: 0.1454545455 | D8: 0

Sheet Graf 133
A1: Graf 133: Rozdelenie mikrofiriem podľa dĺžky fungovania (rok 2021)
A2: Zdroj: agregované daňové priznania
C5: podiel | D5: kumulativny podiel
A6: nad 25 rokov | B6: 12 tis. | C6: 0.07746863066 | D6: 0.07746863066
A7: od 20 do 25 rokov | B7: 7 tis. | C7: 0.04952415591 | D7: 0.1269927866
A8: od 15 do 20 rokov | B8: 12 tis. | C8: 0.08051969045 | D8: 0.207512477
A9: od 10 do 15 rokov | B9: 23 tis. | C9: 0.154405178 | D9: 0.3619176551
A10: od 5 do 10 rokov | B10: 36 tis. | C10: 0.2434449361 | D10: 0.6053625912
A11: do 5 rokov | B11: 59 tis. | C11: 0.3946374088 | D11: 1

Sheet Graf 134
A1: Graf 134: Odhad výpadku daní a odvodov z oslobodenia predaja cenných papierov
A2: Zdroj: Daňové priznania
B3: 2012 | C3: 2013 | D3: 2014 | E3: 2015 | F3: 2016 | G3: 2017 | H3: 2018 | I3: 2019 | J3: 2020
A4: rast S&P (y-o-y | D4: 0.1141774892 | E4: -0.007770762506 | F4: 0.09544787078 | G4: 0.1943699732 | H4: -0.06247661803 | I4: 0.2889066241 | J4: 0.1628482972
A5: cez S&P 500 (2015) | E5: 0 | F5: 3877945.514 | G5: 3176250.954 | H5: 5975097.817 | I5: 5357972.798 | J5: 4652869.509
A6: cez S&P 500 (2014) | E6: 1812471.165 | F6: 5863413.192 | G6: 5547633.931 | H6: 8198324.806 | I6: 8223504.791 | J6: 7985048.507

Sheet Graf 135
A1: Graf 135: Objem obchodovaných akcií na Burze cenných papierov v Bratislave
A2: Zdroj: Burza cenných papierov Bratislava
A3: mld.eur | B3: 2012 | C3: 2013 | D3: 2014 | E3: 2015 | F3: 2016 | G3: 2017 | H3: 2018 | I3: 2019 | J3: 2020
A4: akcie | B4: 3.5 | C4: 3.5 | D4: 3.9 | E4: 4.3 | F4: 4.3 | G4: 4.6 | H4: 4.8 | I4: 2.8 | J4: 2.7
A5: dlhopisy | B5: 34 | C5: 35 | D5: 37.3 | E5: 40.5 | F5: 42.3 | G5: 43.4 | H5: 45 | I5: 45.7 | J5: 55.1
A6: gdp | B6: 73.721749 | C6: 74.188216 | D6: 76.189213 | E6: 80.126048 | F6: 81.683659 | G6: 84.083581 | H6: 87.472477 | I6: 89.676515 | J6: 86.650218
A7: TK/HDP | B7: 0.04747581341 | C7: 0.04717730374 | D7: 0.05118834867 | E7: 0.05366544473 | F7: 0.05264210801 | G7: 0.05470747018 | H7: 0.05487440352 | I7: 0.03122333646 | J7: 0.03115976004

Sheet Graf 136
A1: Graf 136: Počet novo-registrovaných batériových vozidiel (BEV) a plug-in hybridov (PHEV) podľa vlastníctva
A2: Zdroj: IFP, PZSR
C3: 2018 | D3: 2019 | E3: 2020 | F3: 2021
A4: Podnikatelia | B4: BEV - firmy | D4: 454 | E4: 900 | F4: 1133
B5: PHEV - firmy | D5: 142 | E5: 595 | F5: 856
A6: domácnosti | B6: BEV - domácnosti | D6: 171 | E6: 461 | F6: 346
B7: PHEV - domácnosti | D7: 68 | E7: 140 | F7: 132
D8: =SUM(D4:D7) -> 835 | E8: =SUM(E4:E7) -> 2096

Sheet Graf 137
A1: Graf 137: Vzťah medzi počtom elektrických vozidiel a podporou vo forme regulácií či dotácií
A2: Zdroj: IHS, Kearney analysis
A3: Zdroj
A4: https://www.kearney.com/industry/automotive/article/-/insights/how-governments-can-encourage-adoption-of-battery-electric-vehicles

Sheet Graf 138
A1: Graf 138: Vzťah medzi počtom nabíjacích staníc a podporou vo forme regulácií či dotácií
A2: Zdroj: IHS, Kearney analysis
A3: Zdroj
A4: https://www.kearney.com/industry/automotive/article/-/insights/how-governments-can-encourage-adoption-of-battery-electric-vehicles

Sheet Graf 139
A1: Graf 139: Čerpanie rezervy vlády a rezervy predsedu vlády (mil. eur)
A2: Zdroj: ÚV SR
B6: 2014 | C6: 2015 | D6: 2016 | E6: 2017 | F6: 2018 | G6: 2019 | H6: 2020 | I6: 2021
A7: rezerva vlády | B7: 2050 | C7: 0 | D7: 19 | E7: 2186 | F7: 3477 | G7: 5083 | H7: 1015 | I7: 242
A8: rezerva predsedu vlády | B8: 2388 | C8: 5620 | D8: 3060 | E8: 1575 | F8: 3144 | G8: 3360 | H8: 1755 | I8: 4086
A9: spolu | B9: 1000 | C9: 1000 | D9: 1000 | E9: 1000 | F9: 1000 | G9: 1000 | H9: 1000 | I9: 1000
A10: popisok | B10: 4438 | C10: 5620 | D10: 3079 | E10: 3761 | F10: 6621 | G10: 8443 | H10: 2770 | I10: 4328

Sheet Graf 140
A1: Graf 140: Čerpanie dotačného programu MF SR (mil. eur)
A2: Zdroj: MF SR
B3: 2017 | C3: 2018 | D3: 2019 | E3: 2020 | F3: 2021
A4: záchrana a obnova kultúrnych pamiatok | B4: 2400000 | C4: 2400000 | D4: 2690000 | E4: 5380000 | F4: 5380000
A5: iné | B5: 13744008.6 | C5: 51558633.62 | D5: 82887368.78 | E5: 73307256 | F5: 13570759.92
A6: Spolu | B6: 10000000 | C6: 10000000 | D6: 10000000 | E6: 10000000 | F6: 10000001
A7: spolu | B7: =SUM(B4:B5) -> 16144008.6 | C7: =SUM(C4:C5) -> 53958633.62 | D7: =SUM(D4:D5) -> 85577368.78 | E7: =SUM(E4:E5) -> 78687256 | F7: =SUM(F4:F5) -> 18950759.92

Sheet Tabuľka 1
A1: Tabuľka 1: Čerpanie fondov EÚ v 3. programovom období (mil. eur)
B2: 2014-2018 S | C2: 2019-2021 S | D2: 2022-2024 N | E2: Spolu
A3: SPOLU | B3: 6231 | C3: 7748 | D3: 7634 | E3: 21614
A4: Dotácie | B4: 2748 | C4: 2479 | D4: 1433 | E4: 6659
A5: 1. pilier Spoločná poľnohospodárska politika | B5: 2086 | C5: 1368 | D5: 489 | E5: 3943
A6: Rozvoj vidieka SR 2014 - 2020 | B6: 506 | C6: 412 | D6: 934 | E6: 1851
A7: Oblasti s prírodnými alebo inými osobitnými obmedzeniami | B7: 242 | C7: 206 | D7: 133 | E7: 582
A8: Investície do hmotného majetku | B8: 0 | C8: 0 | D8: 313 | E8: 313
A9: Dobré životné podmienky zvierat | B9: 68 | C9: 77 | D9: 61 | E9: 207
A10: Ekologické poľnohospodárstvo | B10: 52 | C10: 49 | D10: 102 | E10: 203
A11: Iné | B11: 143 | C11: 79 | D11: 325 | E11: 547
A12: OP Výskum a inovácie a Integrovaná infraštruktúra | B12: 75 | C12: 470 | D12: 10 | E12: 555
A13: Iné | B13: 81 | C13: 229 | D13: 0 | E13: 310
A14: Ostatné transfery | B14: 690 | C14: 1473 | D14: 478 | E14: 2641
A15: OP Ľudské zdroje | B15: 468 | C15: 1205 | D15: 366 | E15: 2038
A16: Na aktívne opatrenia trhu práce | B16: 379 | C16: 375 | D16: 325 | E16: 1079
A17: Na peňažné príspevky na kompenzáciu | B17: 0 | C17: 526 | D17: 0 | E17: 526
A18: Obci (nie na prenesené kompetencie) | B18: 57 | C18: 198 | D18: 0 | E18: 256
A19: iné | B19: 31 | C19: 106 | D19: 41 | E19: 178
A20: Operačné programy regionálneho rozvoja 2014 - 2020 | B20: 185 | C20: 76 | D20: 0 | E20: 261
A21: Iné | B21: 38 | C21: 191 | D21: 113 | E21: 342
A22: Kompenzácie zamestnancov | B22: 230 | C22: 517 | D22: 0 | E22: 748
A23: Tovary a služby (vrátane záloh na projekty EÚ) | B23: 229 | C23: 400 | D23: 2790 | E23: 3420
A24: Z toho zálohy na projekty EÚ | B24: 25 | C24: 44 | D24: 1351 | E24: 1421
A25: ostatné | B25: 204 | C25: 356 | D25: 1439 | E25: 1999
A26: Kapitálové výdavky | B26: 2334 | C26: 2879 | D26: 2933 | E26: 8146
A27: Kapitálové transfery | B27: 2097 | C27: 2490 | D27: 2637 | E27: 7224
A28: Doprava | B28: 1188 | C28: 857 | D28: 890 | E28: 2936
A29: Ochrana životného prostredia | B29: 438 | C29: 530 | D29: 1157 | E29: 2125
A30: Všeobecná ekonomická, obchodná a pracovná oblasť | B30: 65 | C30: 567 | D30: 388 | E30: 1020
A31: Poľnohosp., lesníctvo, rybné hospodárstvo a poľovníctvo | B31: 221 | C31: 285 | D31: 111 | E31: 617
A32: Ostatné | B32: 185 | C32: 251 | D32: 91 | E32: 526
A33: Kapitálové výdavky – nie transfery | B33: 237 | C33: 389 | D33: 296 | E33: 922
D34: Zdroj: RIS, MF SR

Sheet Tabuľka 2
A1: Tabuľka 2: Očakávané dotácie z EÚ fondov, programové obdobie 2021 – 2027 (mil. eur)
A2: Priority | B2: Alokácia
A3: Výskum, veda a inovácie | B3: 611
A4: Energetická efektívnosť a dekarbonizácia | B4: 352
A5: Životné prostredie | B5: 288
A6: Zručnosti pre lepšiu adaptabilitu a inklúziu | B6: 105
A7: Adaptabilný a prístupný trh práce | B7: 11
A8: Fond spravodlivej transformácie | B8: N/A
A9: SPOLU | B9: 1370
B10: Zdroj: Partnerská dohoda, spracovanie ÚHP

Sheet Tabuľka 3
A1: Tabuľka 3: Prehľad dotačných schém poskytovaných štátom zahrnutých v priebežnej správe, v mil. eur
A3: Forma | B3: Kapitola | C3: Názov schémy | D3: Výdavky
A4: Energetika spolu | D4: 809.3
A5: Subvencia | B5: 44929 | C5: Podpora OZE a VÚ KVET | D5: 388.2
A6: Subvencia | B6: 44960 | C6: Podpora výroby elektrickej energie z domáceho uhlia | D6: 116.8
A7: Subvencia | B7: 44988 | C7: Kompenzácie podnikom za tarifu za prevádzkovanie systému | D7: 40
A8: Subvencia | B8: 45019 | C8: Podpora útlmu a likvidácie následkov ťažby v uhoľnom baníctve - uzatváranie ťažobných polí | D8: 3.7
A9: Subvencia | B9: 45049 | C9: Podpora energeticky náročným podnikom z ETS kvót | D9: 5.4
A10: Znížený poplatok | B10: 45080 | C10: Individuálna sadzba odvodu z TPS | D10: 81.7
A11: Znížený poplatok | B11: 45110 | C11: Individuálna sadzba odvodu z TSS | D11: 21.1
A12: Znížený poplatok | B12: 45141 | C12: Zníženie efektívnej sadzby odvodu do Národného jadrového fondu | D12: 7.3
A13: Znížený poplatok | B13: 45172 | C13: Zľavy z taríf za rezervovanú kapacitu a prenos elektriny | D13: 6.3
A14: Daňový výdavok | B14: 45202 | C14: Fakultatívne oslobodenia zo spotrebnej dane pre domácnosti, energetiku a dopravu | D14: 60.8
A15: Daňový výdavok | B15: 45233 | C15: Fakultatívne oslobodenia zo spotrebnej dane pre priemysel | D15: 69
A16: Daňový výdavok | B16: 45263 | C16: Obligatórne oslobodenia zo spotrebnej dane* | D16: 8.2
A17: Šport spolu | D17: 107.2
A18: Subvencia | B18: 44930 | C18: Uznané športy | D18: 56.8
A19: Subvencia | B19: 44961 | C19: Fond na podporu športu | D19: 33.9
A20: Subvencia | B20: 44989 | C20: Národné športové projekty | D20: 14.1
A21: Daňový výdavok | B21: 2023-04-04 | C21: Športové poukazy | D21: 2.4
A22: Pôdohospodárstvo spolu | D22: 63.4
A23: Subvencia | B23: 44931 | C23: Štátna pomoc | D23: 43.3
A24: Subvencia | B24: 44962 | C24: Národné podpory | D24: 7.5
A25: Subvencia | B25: 44990 | C25: Podpora potravinárov | D25: 5.8
A26: Subvencia | B26: 45021 | C26: Doplnkové vnútroštátne platby (dobytčie jednotky) | D26: 3.8
A27: Subvencia | B27: 2023-05-05 | C27: Správa vojenských lesov | D27: 3
A28: Kultúra spolu | D28: 60
A29: Subvencia | B29: 44932 | C29: Fond na podporu umenia | D29: 20.2
A30: Subvencia | B30: 44963 | C30: Audiovizuálny fond | D30: 12.5
A31: Subvencia | B31: 44991 | C31: Fond na podporu kultúry národnostných menšín | D31: 7.6
A32: Subvencia | B32: 45022 | C32: Obnovme si svoj dom | D32: 11.9
A33: Subvencia | B33: 45052 | C33: Podpora návštevnosti kultúrnych podujatí (Kultúrne poukazy) | D33: 2
A34: Subvencia | B34: 45083 | C34: Podpora aktivít Matice slovenskej | D34: 1.6
A35: Subvencia | B35: 45113 | C35: Kultúra znevýhodnených skupín obyvateľstva | D35: 0.9
A36: Daňový výdavok | B36: 2023-08-06 | C36: Znížená DPH na printové média | D36: 3.3
A37: Výskum a vývoj spolu | D37: 85.7
A38: Subvencia | B38: 44933 | C38: Všeobecná výzva (APVV) | D38: 35.7
A39: Subvencia | B39: 44964 | C39: Stimuly pre výskum a vývoj (MŠVVŠ SR) | D39: 5.2
A40: Subvencia | B40: 44992 | C40: Ostatné dotácie MŠVVŠ SR | D40: 0.8
A41: Subvencia | B41: 45023 | C41: Výskum a vývoj na podporu obrany štátu | D41: 0.9
A42: Daňový výdavok | B42: 45053 | C42: Úľava na dani (superodpočet nákladov na VaV) | D42: 41.9
A43: Daňový výdavok | B43: 2023-06-07 | C43: Patentbox | D43: 1.2
A44: Cestovný ruch spolu | D44: 85.3
A45: Podpora | B45: 44934 | C45: Slovakia Travel | D45: 19
A46: Subvencia | B46: 44965 | C46: Dotácie organizáciám cestovného ruchu | D46: 7.3
A47: Daňový výdavok | B47: 44993 | C47: Rekreačné poukazy | D47: 28
A48: Daňový výdavok | B48: 2023-04-08 | C48: Znížená DPH na ubytovanie | D48: 31
A49: Regionálny rozvoj spolu | D49: 88
A50: Subvencia | B50: 44935 | C50: Regionálny príspevok pre NRO | D50: 15.9
A51: Subvencia | B51: 44966 | C51: Podpora regionálneho rozvoja | D51: 7.4
A52: Daňový výdavok | B52: 2023-03-09 | C52: Regionálna investičná pomoc | D52: 64.7
A53: Ostatné spolu | D53: 141.2
A54: Podpora mobility zamestnancov spolu | D54: 22,7
A55: Daňový výdavok | B55: 44936 | C55: Nepeňažne príjmy (ubytovanie) | D55: 20.4
A56: Daňový výdavok | B56: 2023-01-10 | C56: Nepeňažne príjmy (doprava) | D56: 2.3
A57: Výnimky zo zdaňovania negatívnych externalít spolu | D57: 51.7
A58: Daňový výdavok | B58: 36932 | C58: Daň z vína - znížená sadzba (0 EUR) | D58: 36.9
A59: Daňový výdavok | B59: 37297 | C59: Daň z liehu - znížená sadzba pre pestovateľské pálenie | D59: 13.3
A60: Daňový výdavok | B60: 2003-02-10 | C60: Daň z piva - znížená sadzba pre malé pivovary | D60: 1.5
A61: Podpora malých firiem spolu | D61: 31.6
A62: Daňový výdavok | B62: 36960 | C62: Zníženie daňovej sadzby DPPO z 21 % na 15 % | D62: 21.3
A63: Daňový výdavok | B63: 37325 | C63: Ľubovoľná doba odpisu majetku | D63: 4.7
A64: Daňový výdavok | B64: 37325 | C64: Odpočet daňovej straty | D64: 4.5
A65: Daňový výdavok | B65: 2002-03-10 | C65: Tvorba opravných položiek | D65: 1.1
A66: Zvýhodnenie investícií do majetkových podielov | D66: 26
A67: Daňový výdavok | B67: 36991 | C67: Oslobodenie kapitálových príjmov z predaja cenných papierov na regulovanom trhu | D67: 5
A68: Daňový výdavok | B68: 37356 | C68: Oslobodenie kapitálových príjmov z predaja obchodného podielu | D68: 21
A69: Skrátenie doby odpisu pre elektromobily spolu | D69: 4,1
A70: Daňový výdavok | B70: 2023-05-10 | C70: Skrátenie doby odpisu pre elektromobily | D70: 4,1
A71: Rezervy spolu | D71: 5.1
A72: Subvencia | B72: 2023-06-10 | C72: Dotácie z rezervy predsedu vlády, rezervy vlády a dotácie MF SR | D72: 5.1

Sheet Tabuľka 4
A1: Tabuľka 4: Aspekty dizajnu dotácií
A3: Aspekty | B3: Alternatívy | C3: Pozitívne aspekty | D3: Negatívne aspekty
A4: Legislatívny rámec | B4: Zákon | C4: väčšia legislatívna sila, vhodné uvádzať základné pravidlá dotácií v zákone | D4: zložitejší legislatívny proces, riziko pozmeňujúcich návrhov, pre zrušenie potrebná zmena zákona
B5: Vyhláška | C5: ak sú základné parametre definované v zákone, detaily dotácií sa jednoduchšie a rýchlejšie uvádzajú do praxe cez vyhlášku, nie je potrebný dlhý legislatívny proces, možné jednoduchšie meniť | D5: legislatívny predpis s nižšou právnou silou
A6: Časový úsek | B6: Obmedzene | C6: stabilnejšie pre strategické plánovanie podnikov, väčší tlak na vyhodnocovanie KPIs na konci dotácie | D6: dodržanie zmluvných záväzkov voči podnikateľom aj napriek spätnej neefektívnosti
B7: Neobmedzene | C7: možné štátom zrušiť v prípade neefektivity alebo konsolidačných opatrení, predvídateľnosť | D7: zložité pre finančnú stratégiu podnikov, ak môže byť jednostranne zrušené, riziko závislosti podnikov, ktoré dotáciu vnímajú ako status quo a v prípade zrušenia dotácie majú problém, nízka motivácia pre hodnotenie KPIs kvôli neurčitému termínu ukončenia
A8: Charakter finančnej podpory | B8: Prevádzka | C8: zvyčajne menší, no každoročný vplyv na rozpočet, dlhodobá stabilita firiem | D8: vytváranie dlhodobých záväzkov štátneho rozpočtu, pri plánovanom zrušení riziko lobovania záujmových skupín proti
B9: Investície | C9: predvídateľnosť a kontrola využívania zdrojov, pre súkromný sektor menšia potreba dlhodobých pôžičiek | D9: zvyčajne vysoká jednorazová požiadavka na rozpočet, riziko straty štátnych peňazí v prípade krachu
A10: Nárokovateľnosť | B10: Plošná | C10: podpora všetkých subjektov, ktoré spĺňajú podmienky | D10: vnímané ako nespravodlivé, riziko čerpania financií aj subjektami, ktoré ich nepotrebujú
B11: Súťaživá | C11: podpora kvalitných projektov, podpora konkurencie | D11: náchylné na odbornosť vyhodnotenia, pri malom objeme dotácie nemusia byť podporené ani kvalitné projekty
A12: Spolufinancovanie subjektov | B12: Vysoké | C12: racionálne využitie štátnych zdrojov | D12: menšie subjekty nemusia mať prostriedky na spolufinancovanie
B13: Nízke | C13: nižšie bariéry čerpania dotácie | D13: projekt financuje do veľkej miery štát s neistými prínosmi pre celú spoločnosť
D14: Zdroj: Vlastné spracovanie

Sheet Tabuľka 5
A1: Tabuľka 5: Dotačné schémy v energetike, v mil. eur, priemer 2019-2021
A3: Forma | C3: Kapitola | D3: Názov schémy | G3: Suma
A4: Subvencia | C4: 2023-01-03 | D4: Podpora OZE a VÚ KVET | G4: 388.2
A5: Subvencia | C5: 2023-02-03 | D5: Podpora výroby elektrickej energie z domáceho uhlia | G5: 116.8
A6: Subvencia | C6: 2023-03-03 | D6: Kompenzácie podnikom za tarifu za prevádzkovanie systému | G6: 40
A7: Subvencia | C7: 2023-04-03 | D7: Podpora útlmu a likvidácie ťažby v uhoľnom baníctve - uzatváranie ťažobných polí | G7: 3.7
A8: Subvencia | C8: 2023-05-03 | D8: Podpora energeticky náročným podnikom z ETS kvót | G8: 5
A9: Znížený poplatok | C9: 2023-06-03 | D9: Individuálna sadzba odvodu z TPS | G9: 81.7
A10: Znížený poplatok | C10: 2023-07-03 | D10: Individuálna sadzba odvodu z TSS | G10: 21.1
A11: Znížený poplatok | C11: 2023-08-03 | D11: Zníženie efektívnej sadzby odvodu do Národného jadrového fondu | G11: 7.3
A12: Znížený poplatok | C12: 2023-09-03 | D12: Zľavy z taríf za rezervovanú kapacitu a prenos elektriny | G12: 6.3
A13: Daň. výdavok | C13: 2023-10-03 | D13: Fakultatívne oslobodenia zo spotrebnej dane pre domácnosti, energetiku a dopravu | G13: 60.8
A14: Daň. výdavok | C14: 2023-11-03 | D14: Fakultatívne oslobodenia zo spotrebnej dane pre priemysel | G14: 69.8
A15: Daň. výdavok | C15: 2023-12-03 | D15: Obligatórne oslobodenia zo spotrebnej dane* | G15: 8.2
A16: Spolu | F16: 808,9
A17: * neanalyzované dotácie | E17: Zdroj: ÚHP

Sheet Tabuľka 6
A1: Tabuľka 6: Príjemcovia dotácií v energetike, kumulatívne nad 2,5 mil. eur ročne (2021 resp. 2020, mil. eur)
A3: Podkapitola | B3: 2023-01-03 | C3: 2023-02-03 | D3: 2023-03-03 | E3: 2023-04-03 | F3: 35 | G3: 2023-06-03 | H3: 2023-07-03 | I3: 2023-08-03 | J3: 2023-09-03 | K3: Spolu
A4: Schéma | B4: Podpora OZE a VÚ KVET (2021) | C4: Podpora elektriny z uhlia (2021) | D4: Kompenzácia TPS podnikom (2021) | E4: Podpora útlmu baní (2021) | F4: Kompenzácie z emisných kvót (2020) | G4: Individuálna sadzba TPS (2021) | H4: Individuálna sadzba TSS (2021) | I4: Efektívna sadzba odvodu do NJF (2021) | J4: Tarifa za kapa-citu a prenos elektriny (2021)
A7: Slovenské elektrárne, a.s. | B7: 0.6 | C7: 124.8 | K7: 125.4
A8: Slovalco, a.s. | F8: 5 | G8: 47.4 | H8: 11.9 | I8: 4.8 | J8: 5.9 | K8: 75
A9: OFZ, a.s. | F9: 1 | G9: 11.7 | H9: 3 | I9: 1.4 | K9: 17.1
A10: U.S.Steel Košice, s.r.o. | D10: 10.1 | F10: 0.3 | I10: 1.1 | K10: 11.6
A11: FORTISCHEM a. s. | G11: 8.4 | H11: 2.1 | K11: 10.5
A12: Slovnaft, a.s. | B12: 0.3 | D12: 6.7 | F12: 1.3 | I12: 0.7 | K12: 9
A13: Hornonitrianske bane Prievidza, a.s. | C13: nepriamo* | E13: 7.3 | K13: 7,3+*
A14: Mondi SCP, a.s. | B14: 0.9 | D14: 3.1 | F14: 1 | K14: 5
A15: Duslo, a.s. | D15: 2 | F15: 1.6 | H15: 1.4 | K15: 5
A16: MH Teplárenský holding, a.s. | B16: 4.9 | K16: 4.9
A17: SSE-Solar, s.r.o. | B17: 3.7 | K17: 3.7
A18: Ferroenergy s.r.o. (100 % dcéra USSK) | B18: 3.4 | K18: 3.4
A19: Veolia Utilities Žiar nad Hronom, a.s. | B19: 3.2 | K19: 3.2
A20: ECOSTART, a.s. | B20: 3.1 | K20: 3.1
A21: BUKÓZA ENERGO, a.s. | B21: 3.1 | K21: 3.1
A22: Energy Edge ZC s. r. o. | B22: 3 | K22: 3
A23: Železiarne Podbrezová, a.s. | B23: 0.9 | D23: 1.7 | F23: 0.3 | K23: 2.9
A24: BUKOCEL, a.s. | B24: 2.8 | K24: 2.8
A25: TEPLÁREŇ Pov. Bystrica, s.r.o. | B25: 2.7 | K25: 2.7
A26: Teho Topoľčany, s.r.o. | B26: 2.5 | K26: 2.5
A27: Spolu (aj nezahrnuté subjekty) | B27: 262.8 | C27: 124.8 | D27: 40 | E27: 7.3 | F27: 11 | G27: 67.5 | H27: 18.4 | I27: 8 | J27: 5.9 | K27: 545.7
A28: Pozn.: Daňové výdavky (podkapitoly 3.10 a 3.11) v ročnej výške 139 mil. eur (2019-2021) nie sú zahrnuté z dôvodu daňového tajomstva. Niektoré firmy ich môžu poberať popri iných dotáciách. | J28: Zdroj: ÚHP na základe údajov
A29: Hornonitranske bane Prievidza, a.s. je nepriamym príjemcom dotácie podpory výroby elektriny z domáceho uhlia v elektrárni Nováky, keďže je jediným výrobcom uhlia, ktoré sa v tejto elektrárni spaľuje (bližšie vysvetlenie v podkapitole 3.3). | J29: ÚRSO, IHA, MH SR, MŽP SR
A30: Súčet dotácií v tabuľke 5 je rozdielny oproti súčtu dotácií v tabuľke 4 z dôvodu rôznych časových horizontov (tabuľka 4 obsahuje priemer za tri roky).

Sheet Tabuľka 7
A1: Tabuľka 7: Prehľad distribúcie doplatkov podľa veľkosti príjemcu (2021)
A2: Kategória podľa objemu dotácie | B2: Súčet dotácií (mil. eur) | C2: Priemerná výška dotácie (eur) | D2: Počet príjemcov
A3: 0 až 10 000 € | B3: 2.3 | C3: 2250 | D3: 1024
A4: 10 001 až 100 000 € | B4: 9.9 | C4: 32 661 | D4: 303
A5: 100 001 až 500 000 € | B5: 136 | C5: 307 927 | D5: 442
A6: 500 001 až 1 000 000 € | B6: 20.7 | C6: 767 967 | D6: 27
A7: Nad 1 000 001 € | B7: 93.7 | C7: 1 837 520 | D7: 51
A8: Spolu | B8: 262.8 | C8: 142 259 | D8: 1847
D9: Zdroj: ÚRSO

Sheet Tabuľka 8
A1: Tabuľka 8: Porovnanie kompenzácie (2021) a úspory plynúcej z multipásmovej TPS bez kompenzácie (2022).
A2: (v mil. eur) | B2: Dotácia 2021 | C2: Úspora 2022, odhad
A3: U.S. Steel Košice | B3: 10.1 | C3: 29
A4: Slovnaft | B4: 6.7 | C4: 19
A5: Mondi SCP | B5: 3.1 | C5: 9
A6: CRH (Slovensko) | B6: 2.3 | C6: 7
A7: Duslo | B7: 2 | C7: 6
A8: Železiarne Podbrezová | B8: 1.7 | C8: 5
A9: Ostatné podniky (111) | B9: 14.1 | C9: 23
A10: Spolu | B10: 40 | C10: 97
C11: Zdroj: ÚHP, MH SR

Sheet Tabuľka 9
A1: Tabuľka 9: Rozpočet dotácie podľa rôznych zdrojov (v mil. eur)
B2: Akčný plán | C2: Nový plán | D2: Čerpanie | E2: Štátny rozpočet
A3: 2019 | B3: 3.4 | C3: 0 | D3: 0
A4: 2020 | B4: 8.8 | C4: 3.4 | D4: 3.7
A5: 2021 | B5: 14.6 | C5: 7.3 | D5: 7.5
A6: 2022 | B6: 17.1 | C6: 11.8 | D6: 12
A7: 2023 | B7: 12.2 | C7: 14.7 | E7: 17.3
A8: 2024 | B8: 17.6 | C8: 11.9 | E8: 12.4
A9: 2025 | B9: 8.5 | C9: 4.1 | E9: 17.8
A10: 2026 | B10: 6.6 | C10: 0
A11: 2027 | B11: 3.7 | C11: 0
A12: Spolu | B12: 92.6 | C12: 53.1 | D12: 23.1 | E12: 47.5
A13: * - vrátane uzatvorenia bane Čáry, ktorý nie je súčasťou Akčného plánu. | E13: Zdroj: RIS, Akčný plán, MH SR

Sheet Tabuľka 10
A1: Tabuľka 10: Zoznam prijímateľov kompenzácií 2016-2020 (mil. eur)
A2: Podnik | B2: 2016 | C2: 2017 | D2: 2018 | E2: 2019 | F2: 2020 | G2: 2021 | H2: Spolu
A3: Slovalco | B3: 6.22 | C3: 5.39 | D3: 2.75 | E3: 1.81 | F3: 4.98 | G3: - | H3: 21.15
A4: SLOVNAFT | B4: 1.68 | C4: 1.46 | D4: 0.74 | E4: 0.49 | F4: 1.35 | G4: - | H4: 5.72
A5: OFZ | B5: 1.29 | C5: 1.13 | D5: 0.58 | E5: 0.38 | F5: 1.05 | G5: 0.02 | H5: 4.45
A6: Duslo | B6: - | C6: - | D6: 0.9 | E6: 0.59 | F6: 1.63 | G6: - | H6: 3.12
A7: Mondi SCP | B7: - | C7: 1.1 | D7: 0.56 | E7: 0.37 | F7: 1.02 | G7: 0.63 | H7: 3.68
A8: U. S. Steel Košice | B8: 0.43 | C8: 0.37 | D8: 0.19 | E8: 0.13 | F8: 0.34 | G8: 0.15 | H8: 1.61
A9: Železiarne Podbrezová | B9: 0.39 | C9: 0.33 | D9: 0.17 | E9: 0.11 | F9: 0.31 | G9: 0.13 | H9: 1.44
A10: Metsa Tissue Slovakia | B10: - | C10: 0.22 | D10: 0.11 | E10: 0.07 | F10: 0.2 | G10: 0.07 | H10: 0.67
A11: SHP Harmanec | B11: - | C11: - | D11: - | E11: 0.03 | F11: 0.09 | G11: 0.04 | H11: 0.16
A12: SHP SLAVOŠOVCE | B12: - | C12: - | D12: - | E12: 0.01 | F12: 0.03 | G12: - | H12: 0.04
A13: BUKOCEL | B13: - | C13: - | D13: - | E13: - | F13: - | G13: 0.05 | H13: 0.05
A14: Spolu | B14: 10 | C14: 10 | D14: 6 | E14: 4 | F14: 11 | G14: 1 | H14: 42
B15: Zdroj: Envirofond

Sheet Tabuľka 11
A1: Tabuľka 11: Prehľad možných zliav z taríf za rezervovanú kapacitu a prenos elektriny[1]
B2: Min. rezervovaná kapacita v roku t-2 | C2: Min. prenos elektriny v roku t | D2: Zľava z taríf | E2: Počet podnikov
A3: 1. kategória (§ 20, ods. 5 a) | B3: 200 MW | C3: 1 TWh | D3: 0.3 | E3: 0
A4: 2. kategória (§ 20, ods. 5 b) | B4: 250 MW | C4: 2 TWh | D4: 0.5 | E4: 1
A5: 3. kategória (§ 20, ods. 5 c) | B5: 350 MW | C5: 2,5 TWh | D5: 0.7 | E5: 0
A6: Zdroj: Vyhláška ÚRSO č. 18/2017 (§ 20, ods. 5)

Sheet Tabuľka 12
A1: Tabuľka 12: Fakultatívne oslobodenia spotrebných daní z energií podľa 609/2007 Z. z. (mil. eur, ESA 2010)
D2: 2018 | E2: 2019 | F2: 2020 | G2: 2021
B3: Zemný plyn | D3: 25.7 | E3: 31.1 | F3: 26.9 | G3: 29.9
A4: 1. | B4: § 31 ods.1 f) | C4: používaný koncovým odberateľom v domácnosti | D4: 20 | E4: 24.8 | F4: 19.4 | G4: 22.4
A5: 2. | B5: § 31 ods.1 d) | C5: používaný na KVET | D5: 5.7 | E5: 6.3 | F5: 7.5 | G5: 7.5
A6: 3. | B6: § 31 ods.1 h) | C6: na prepravu v železničnej doprave | D6: 0.03 | E6: 0.03 | F6: 0.02 | G6: 0.02
B7: Uhlie | D7: 26.7 | E7: 21.7 | F7: 16.2 | G7: 16
A8: 4. | B8: § 19 d) | C8: používané na KVET | D8: 25.5 | E8: 20.7 | F8: 15.4 | G8: 15.1
A9: 5. | B9: § 19 h) | C9: používané koncovým odberateľom v domácnosti | D9: 1.1 | E9: 1 | F9: 0.8 | G9: 0.9
B10: Elektrina | D10: 15 | E10: 13.1 | F10: 12.7 | G10: 14.8
A11: 6. | B11: § 7 ods.1 j) | C11: používaná koncovým odberateľom v domácnosti | D11: 7.3 | E11: 7.5 | F11: 7.7 | G11: 8.2
A12: 7. | B12: § 7 ods.1 e) | C12: vyrobená z OZE | D12: 7.2 | E12: 5.2 | F12: 4.7 | G12: 6.3
A13: 8. | B13: § 7 ods.1 h) | C13: používaná na prepravu vlakom, električkou a pod. | D13: 0.2 | E13: 0.2 | F13: 0.1 | G13: 0.2
A14: 9. | B14: § 7 ods.1 g) | C14: používaná na KVET | D14: 0.2 | E14: 0.2 | F14: 0.2 | G14: 0.1
A15: 10. | B15: § 7 ods.1 f) | C15: vyrobená KVET, dodaná konečnému spotrebiteľovi elektriny | D15: 0.13 | E15: 0.01 | F15: 0.02 | G15: 0.01
A16: Spolu | D16: 67.4 | E16: 65.9 | F16: 55.8 | G16: 60.7
A17: z toho oslobodenia pre domácnosti | D17: 28.4 | E17: 33.3 | F17: 27.9 | G17: 31.5
A18: z toho oslobodenia pre kombinovanú výrobu elektriny a tepla | D18: 31.4 | E18: 27.2 | F18: 23.1 | G18: 22.7
A19: z toho oslobodenia pre elektrinu z OZE | D19: 7.2 | E19: 5.2 | F19: 4.7 | G19: 6.3
A20: z toho iné oslobodenia | D20: 0.36 | E20: 0.24 | F20: 0.14 | G20: 0.23
A21: Oslobodenia s priemerným ročným objemom nižším ako 10 000 eur nie sú v zozname - § 7 ods.1 i); § 19 g) a e). | G21: Zdroj: IFP

Sheet Tabuľka 13
A1: Tabuľka 13: Obligatórne oslobodenia spotrebných daní z energií podľa 609/2007 Z. z. (v mil. eur, ESA 2010).
A2: Paragraf | B2: Paragrafové znenie | C2: 2018 | D2: 2019 | E2: 2020 | F2: 2021
A3: Uhlie | C3: 46.7 | D3: 39.3 | E3: 33.6 | F3: 46.4
A4: § 19 ods. 1 a) | B4: na duálne použitie (chemická redukcia, elektrolytické procesy, metalurgia) | C4: 23.8 | D4: 19 | E4: 16.6 | F4: 23
A5: § 19 ods. 1 f) | B5: na výrobu koksu a polokoksu | C5: 21.9 | D5: 19.3 | E5: 16.2 | F5: 22.4
A6: § 19 ods. 1 b) | B6: v mineralogických procesoch | C6: 0.3 | D6: 0.5 | E6: 0.5 | F6: 0.6
A7: § 19 ods. 1 c) | B7: na iný účel ako pohonná látka alebo ako palivo na výrobu tepla | C7: 0.7 | D7: 0.5 | E7: 0.4 | F7: 0.4
A8: Zemný plyn | C8: 27.5 | D8: 25.5 | E8: 24.3 | F8: 25.2
A9: § 31 ods. 1 g) | B9: na prevádzkové a technologické účely v plynár. podniku vrátane strát | C9: 10.9 | D9: 11.4 | E9: 10.1 | F9: 9.8
A10: § 31 ods. 1 a) | B10: na duálne použitie (chemická redukcia, elektrolytické procesy, metalurgia) | C10: 11.4 | D10: 9.3 | E10: 9.6 | F10: 10.4
A11: § 31 ods. 1 c) | B11: na iný účel ako pohonná látka alebo ako palivo na výrobu tepla | C11: 2.7 | D11: 2.6 | E11: 2.6 | F11: 2.9
A12: § 31 ods. 1 b) | B12: v mineralogických procesoch | C12: 2.5 | D12: 2.2 | E12: 2 | F12: 2.1
A13: Elektrina | C13: 4.8 | D13: 4.5 | E13: 4.8 | F13: 5.7
A14: § 7 ods. 1 a) | B14: na duálne použitie (chemická redukcia, elektrolytické procesy, metalurgia) | C14: 3.6 | D14: 3.3 | E14: 3.7 | F14: 4.5
A15: § 7 ods. 1 b) | B15: v mineralogických procesoch | C15: 1.1 | D15: 1.1 | E15: 1 | F15: 1.1
A16: § 7 ods. 1 c) | B16: na výrobu energeticky náročných výrobkov | C16: 0.1 | D16: 0.1 | E16: 0.1 | F16: 0.1
A17: Spolu | C17: 79 | D17: 69.3 | E17: 62.7 | F17: 77.3
A18: Pozn.: Oslobodenie § 19 ods. 1 i) bolo vynechané kvôli nulovej výške za posledné roky. | F18: Zdroj: IFP

Sheet Tabuľka 14
A1: Tabuľka 14: Obligatórne oslobodenia spotrebných daní z energií podľa 609/2007 Z. z. (v mil. eur, ESA 2010).
A2: Energetický nosič a paragraf | B2: Paragrafové znenie | C2: 2018 | D2: 2019 | E2: 2020 | G2: 2021
A3: Zemný plyn - § 31 ods. 1 e) | B3: na výrobu elektriny | C3: 1.9 | D3: 4.9 | E3: 6 | G3: 7.5
A4: Elektrina - § 7 ods. 1 d) | B4: na výrobu elektriny vrátane strát | C4: 1.8 | D4: 1.8 | E4: 2.2 | G4: 2.1
A5: Uhlie - § 19 ods. 1 e) | B5: na výrobu elektriny | C5: 0 | D5: 0 | E5: 0 | G5: 0
A6: Spolu | C6: 3.7 | D6: 6.7 | E6: 8.2 | G6: 9.6
F7: Zdroj: IFP

Sheet Tabuľka 15
A1: Tabuľka 15: Dotačné schémy v športe, v mil. eur, 2019-2021
A2: Forma | B2: Podkapitola | C2: Názov schémy | D2: Výdavky
A3: Subvencia | B3: 2023-01-04 | C3: Uznané športy | D3: 56.8
A4: Subvencia | B4: 2023-02-04 | C4: Fond na podporu športu | D4: 33,9*
A5: Subvencia | B5: 2023-03-04 | C5: Národné športové projekty | D5: 14.1
A6: Daňový výdavok | B6: 2023-04-04 | C6: Športové poukazy | D6: 2,4**
A7: Spolu | D7: 107.2
A8: * Priemer dotácie štátu pre Fond za roky 2020-2021, v roku 2019 fond nemal výdavky. Bez COVID výdavkov. | D8: Zdroj: ÚHP na základe údajov MF SR
A9: ** Odhad, výdavky na športové poukazy sa nesledujú osobitne v daňových priznaniach.

Sheet Tabuľka 16
A1: Tabuľka 16: Výdavky zo štátneho rozpočtu na šport (vrátane dotácií, mil. eur)
B2: 2015S | C2: 2017S | D2: 2019S | E2: 2020S | F2: 2021S | G2: 2022S | H2: 2023R | I2: 2024R | J2: 2025R
A3: SPOLU | B3: 50.2 | C3: 118.5 | D3: 151.3 | E3: 171 | F3: 163.5 | G3: 141.6 | H3: 112 | I3: 109.9 | J3: 108.4
A4: Bežné výdavky | B4: 41.9 | C4: 61.1 | D4: 91.8 | E4: 120 | F4: 122.8 | G4: 124.5 | H4: 111.1 | I4: 108.3 | J4: 107.6
A5: Z toho dotácie | B5: 31.4 | C5: 47.8 | D5: 75.8 | E5: 100.3 | F5: 101.8 | G5: 101.4 | H5: 91.9 | I5: 88.9 | J5: 88.9
A6: MŠVVaŠ SR | B6: 33.8 | C6: 51.9 | D6: 73.2 | E6: 104 | F6: 105.6 | G6: 98.4 | H6: 95.8 | I6: 92.8 | J6: 92.8
A7: Uznané športy | B7: 21.6 | C7: 35.6 | D7: 55.5 | E7: 55.2 | F7: 55.2 | G7: 58.3 | H7: 57.4 | I7: 55 | J7: 55
A8: Národné športové projekty | B8: 7.7 | C8: 10 | D8: 12.9 | E8: 14.4 | F8: 14.6 | G8: 13 | H8: 13.1 | I8: 12.8 | J8: 12.8
A9: do Fondu na podporu športu | E9: 30 | F9: 29.5 | G9: 20 | H9: 20 | I9: 20 | J9: 20
A10: Iné | B10: 4.5 | C10: 6.2 | D10: 4.8 | E10: 4.4 | F10: 6.2 | G10: 7.1 | H10: 5.3 | I10: 5.1 | J10: 5.1
A11: MO SR a MV SR | B11: 7 | C11: 8.8 | D11: 12.8 | E11: 15.5 | F11: 15.2 | G11: 16.9 | H11: 15.4 | I11: 15.5 | J11: 14.8
A12: VPS | B12: 1.2 | C12: 0.4 | D12: 5.8 | E12: 0.5 | F12: 2 | G12: 9.2
A13: Kapitálové výdavky | B13: 8.3 | C13: 57.4 | D13: 59.5 | E13: 51.1 | F13: 40.7 | G13: 17.2 | H13: 0.8 | I13: 1.7 | J13: 0.8
A14: MŠVVaŠ SR | B14: 5.7 | C14: 54.6 | D14: 26.6 | E14: 8.9 | F14: 31.9 | G14: 13.6 | H14: 0.8 | I14: 0.8 | J14: 0.8
A15: priamo | B15: 5.7 | C15: 54.6 | D15: 26.6 | E15: 6.9 | F15: 6.2 | G15: 6.1 | H15: 0.8 | I15: 0.8 | J15: 0.8
A16: do Fondu na podporu športu | E16: 2 | F16: 25.7 | G16: 7.5
A17: VPS | B17: 1.3 | C17: 2.6 | D17: 32.4 | E17: 34 | F17: 0.7 | G17: 0.8
A18: MO SR a MV SR | B18: 1.2 | C18: 0.1 | D18: 0.5 | E18: 8.1 | F18: 8 | G18: 2.8 | H18: 0 | I18: 0.9
J19: Zdroj: RIS SR

Sheet Tabuľka 17
A1: Tabuľka 17: Účely použitia dotácií z jednotlivých schém
B2: Uznané športy | C2: FnPŠ | D2: FnPŠ po novele | E2: Národné športové projekty | F2: Ad hoc podpory (rezervy vlády, MF SR)
A4: Činnosť športových zväzov a klubov | B4: x | F4: x
A5: Športovanie mládeže | B5: x | C5: x | F5: x
A6: Príprava reprezentantov | B6: x | C6: x | E6: x
A7: Organizácia súťaží | C7: x | D7: x | E7: x | F7: x
A8: Účasť na súťažiach | C8: x | E8: x
A9: Výstavba a údržba infraštruktúry | C9: x | D9: x | E9: x | F9: x
A10: Školský a univerzitný šport | E10: x | F10: x
A11: Turistické a cyklotur. chodníky a infraštruktúra | E11: x | F11: x
A12: Pandemická pomoc | C12: x
F13: Zdroj: ÚHP

Sheet Tabuľka 18
A1: Tabuľka 18: Príjmy a výdavky Fondu na podporu športu (v mil. eur)
B2: 2020S | C2: 2021S | D2: 2022 OS | E2: 2023N | F2: 2024N
A3: Príjmy spolu | B3: 32 | C3: 86.8 | D3: 99 | E3: 96.7 | F3: NA
A4: Dotácia podľa zákona | B4: 20 | C4: 20 | D4: 20 | E4: 20 | F4: 20
A5: Dotácia nad rámec zákona – bežná | B5: 10 | C5: 9.5
A6: Dotácia nad rámec zákona – kapitálová | B6: 2 | C6: 25.7 | D6: 7.5
A7: Zostatok z minulých rokov | C7: 31.6 | D7: 71.5 | E7: 76.7 | F7: NA
A8: Výdavky spolu | B8: 0.4 | C8: 15.4 | D8: 22.3 | E8: 30.9 | F8: NA
A9: Mzdy a poistné | B9: 0.1 | C9: 0.2 | D9: 0.5 | E9: 0.5 | F9: 0.5
A10: Tovary a služby | B10: 0.3 | C10: 0.3 | D10: 0.6 | E10: 0.6 | F10: 0.6
A11: Bežné transfery, z toho | B11: 0 | C11: 14.8
A12: Mimoriadna podpora pre profesionálne športové kluby II. | C12: 9.9
A13: Mimoriadna podpora pre profesionálne športové kluby I. | C13: 3.4
A14: Mimoriadna podpora pre amatérske športové kluby a organizácie | C14: 1.6
A15: Kapitálové výdavky | C15: 0 | D15: 21.3 | E15: 13.9 | F15: 19.5
A16: Výstavba, rekonštrukcia a modernizácia športovej infraštruktúry | D16: 19.3 | E16: 13.9 | F16: 19.5
A17: Modernizácie, rekonštrukcia a budovanie športovej infraštruktúry národného významu | D17: 2
A18: Iné | C18: 0
A19: Ďalšie plánované výzvy na roky 2023 a 2024 | E19: NA | F19: NA
A20: Zostatok | B20: 31.6 | C20: 71.5 | D20: 76.7 | E20: NA | F20: NA
E21: Zdroj: FNPŠ

Sheet Tabuľka 19
A1: Tabuľka 19: Rozdelenie príspevkov z Národných športových projektov (2021)
A2: Príspevok | B2: Výška príspevku
A3: Príspevok športovcom Top tímu (231 športovcov / tímov) | B3: 4632520
A4: Organizácia významnej súťaže alebo príprava a účasť na významnej súťaži (17 aktivít) | B4: 4002908
A5: Príprava zdravotne postihnutých športovcov a plnenie úloh Slovenského paralympijského výboru | B5: 2542745
A6: Zabezpečenie plnenia úloh Slovenského olympijského a športového výboru | B6: 1452997
A7: Rozvoj športov, ktoré nie sú uznanými (16 zväzov) | B7: 923330
A8: Plnenie úloh verejného záujmu v športe (17 organizácií) | B8: 802503
A9: Odmeny športových reprezentantov a členov realizačného tímu za výsledky na OH a PH | B9: 656115
A10: Značenie turistických trás | B10: 139500
A11: Značenie cykloturistických trás | B11: 110500
A12: SPOLU | B12: 15263118
A13: Zdroj: MŠVVaŠ SR

Sheet Tabuľka 20
A1: Tabuľka 20: Dotačné schémy v pôdohospodárstve, v mil. eur, 2019-2021
A2: Forma | B2: Podkapitola | C2: Názov schémy | D2: Výdavky
A3: Subvencia | B3: 2023-01-05 | C3: Štátna pomoc | D3: 43.3
A4: Subvencia | B4: 2023-02-05 | C4: Národné podpory | D4: 7.5
A5: Subvencia | B5: 2023-03-05 | C5: Podpora potravinárov | D5: 5.8
A6: Subvencia | B6: 2023-04-05 | C6: Doplnkové vnútroštátne platby (dobytčie jednotky) | D6: 3.8
A7: Subvencia | B7: 2023-05-05 | C7: Správa vojenských lesov | D7: 3
A8: Spolu | D8: 63.4
A9: Zdroj: ÚHP na základe údajov MF SR

Sheet Tabuľka 21
A1: Tabuľka 21: Príjemcovia dotácií v poľnohospodárstve (top 10 príjemcov zelenej nafty, 2021, tis. eur)
A2: Príjemca | B2: Dotácie zo ŠR | E2: Dotácie zo zdrojov EÚ | M2: Spolu | N2: Podiel zelenej nafty
B3: Zelená nafta | C3: Poistné | D3: Podpora potravinárov | E3: Životné podmienky zvierat | F3: Jednotná platba na plochu | G3: Produkcia mlieka | H3: Ekologizácia | I3: Cukrová repa | J3: Hovädzí dobytok | L3: Iné*
A5: Dan-Slovakia Agrar, a.s. | B5: 957 | C5: 219 | D5: 0 | E5: 1455 | F5: 468 | G5: 0 | H5: 281 | I5: 0 | J5: 0 | L5: 18 | M5: 3397 | N5: 0.28
A6: PIGAGRO, s.r.o. | B6: 601 | C6: 158 | D6: 0 | E6: 338 | F6: 116 | G6: 0 | H6: 67 | I6: 0 | J6: 0 | L6: 64 | M6: 1343 | N6: 0.45
A7: AGROVÝKRM, a.s. | B7: 293 | C7: 43 | D7: 0 | E7: 554 | F7: 0 | G7: 0 | H7: 0 | I7: 0 | J7: 0 | L7: 0 | M7: 890 | N7: 0.33
A8: FARMA MAJCICHOV, a.s. | B8: 270 | C8: 7 | D8: 15 | E8: 399 | F8: 522 | G8: 841 | H8: 314 | I8: 0 | J8: 1 | L8: 52 | M8: 2421 | N8: 0.11
A9: FirstFarms | B9: 265 | C9: 51 | D9: 0 | E9: 325 | F9: 328 | G9: 709 | H9: 195 | I9: 173 | J9: 0 | L9: 81 | M9: 2127 | N9: 0.12
A10: Agra M s. r. o.
A11: FirstFarms Gabčíkovo, s.r.o. | B11: 244 | C11: 54 | D11: 0 | E11: 268 | F11: 181 | G11: 0 | H11: 106 | I11: 0 | J11: 0 | L11: 7 | M11: 860 | N11: 0.28
A12: PAVEX s.r.o. | B12: 215 | C12: 0 | D12: 0 | E12: 0 | F12: 0 | G12: 0 | H12: 0 | I12: 0 | J12: 0 | L12: 0 | M12: 215 | N12: 1
A13: Polnohospodárske družstvo DEVIO Nové Sady | B13: 196 | C13: 20 | D13: 0 | E13: 179 | F13: 503 | G13: 251 | H13: 302 | I13: 158 | J13: 66 | L13: 49 | M13: 1724 | N13: 0.11
A14: Rybárova farma | B14: 185 | C14: 5 | D14: 0 | E14: 51 | F14: 0 | G14: 56 | H14: 0 | I14: 0 | J14: 110 | L14: 0 | M14: 407 | N14: 0.46
A15: ProOvo, a.s. | B15: 160 | C15: 54 | D15: 38 | E15: 225 | F15: 0 | G15: 0 | H15: 0 | I15: 0 | J15: 0 | L15: 0 | M15: 476 | N15: 0.34
A16: SPOLU | B16: 3385 | C16: 611 | D16: 53 | E16: 3791 | F16: 2118 | G16: 1857 | H16: 1265 | I16: 331 | J16: 177 | L16: 274 | M16: 13860 | N16: 0.24
A17: * Refundácia, Bielkovinové plodiny, Prírodné obmedzenia, Redistributívna platba | K17: Zdroj: PPA, MPRV SR, ÚHP

Sheet Tabuľka 22
A1: Tabuľka 22: Dotácie štátnym podnikom
A2: Štátny podnik | B2: 2018 | E2: 2019 | G2: 2020 | I2: 2021
B3: Vyplatená dotácia (mil.eur) | C3: Podiel z výnosov ŠP (%) | D3: Vyplatená dotácia (mil.eur) | E3: Podiel z výnosov ŠP (%) | F3: Vyplatená dotácia (mil.eur) | G3: Podiel z výnosov ŠP (%) | H3: Vyplatená dotácia (mil.eur) | I3: Podiel z výnosov ŠP (%)
A4: Hydromeliorácie | B4: 1.5 | C4: 62 | D4: 1.6 | E4: 53 | F4: 1.8 | G4: 68 | H4: 2.6 | I4: 72
A5: Topoľčianky | B5: 1.5 | C5: 57 | D5: 1.8 | E5: 67 | F5: 1.9 | G5: 71 | H5: 2 | I5: 69
A6: Závodisko | B6: 1.3 | C6: 62 | D6: 1.7 | E6: 69 | F6: 1.5 | G6: 87 | H6: 1.3 | I6: 66
A7: Lesy SR | B7: 0 | C7: 0 | D7: 0 | E7: 0 | F7: 0 | G7: 0 | H7: 0.6 | I7: 0.3
A8: Lesopoľnohosp. Majetok Ulič | B8: 0 | C8: 0 | D8: 0 | E8: 0 | F8: 0.1 | G8: 2 | H8: 0 | I8: 0
A9: SPOLU | B9: 4.3 | D9: 5.1 | F9: 5.3 | H9: 6.6
A10: Zdroj: Poskytnuté Národné podpory 2018-2021 MPRV SR, finstat.sk

Sheet Tabuľka 23
A1: Tabuľka 23: Priemerné výdavky na dotačné schémy v kultúre, v mil. eur, 2019-2021
A2: Forma | B2: Podkapitola | C2: Názov schémy | D2: Výdavky
A3: Subvencia | B3: 2023-01-06 | C3: Fond na podporu umenia | D3: 20,2*
A4: Subvencia | B4: 2023-02-06 | C4: Audiovizuálny fond | D4: 12.5
A5: Subvencia | B5: 2023-03-06 | C5: Fond na podporu kultúry národnostných menšín | D5: 7.6
A6: Subvencia | B6: 2023-04-06 | C6: Obnovme si svoj dom | D6: 11.9
A7: Subvencia | B7: 2023-05-06 | C7: Podpora návštevnosti kultúrnych podujatí (Kultúrne poukazy) | D7: 2,0*
A8: Subvencia | B8: 2023-06-06 | C8: Podpora aktivít Matice slovenskej | D8: 1.6
A9: Subvencia | B9: 2023-07-06 | C9: Kultúra znevýhodnených skupín obyvateľstva | D9: 0.9
A10: Daňový výdavok | B10: 2023-08-06 | C10: Znížená DPH na printové média | D10: 3.3
A11: Spolu | D11: 60
A12: * Priemer za roky 2018-2020 (2021 nárast COVID v FPU, pozastavenie kultúrnych poukazov) | D12: Zdroj: ÚHP na základe údajov MF SR
A13: Pozn.: Celkové výdavky na dotácie vrátane dotácií poskytnutých pre verejnú správu a štipendií pre fyzické osoby, ktoré nie sú primárnym cieľom revízie. Prevádzkové náklady dotačných fondov neboli zahrnuté.

Sheet Tabuľka 24
A1: Tabuľka 24: Vybrané ukazovatele z hlavnej knihy rozpočtu verejnej správy
A2: Indikátor | B2: 2018 | C2: 2019 | D2: 2020 | E2: 2021 | F2: Cieľ 2025 | G2: Cieľ 2030
A3: Podiel pridanej hodnoty kultúry a kreatívneho priemyslu na pridanej hodnote ekonomiky | B3: 0.0183 | C3: 0.0184 | D3: - | E3: - | F3: 0.0184 | G3: 0.0193
A4: Návštevnosť múzeí a galérií, v mil. | B4: 5.71 | C4: 5.9 | D4: 3.09 | E4: - | F4: 5.9 | G4: 6.76
A5: Návštevnosť divadelných a hudobno-tanečných predstavení, v mil. | B5: 2.25 | C5: 2.16 | D5: 0.59 | E5: - | F5: 2.48 | G5: 2.66
A6: Návštevnosť festivalov, v mil. | B6: 2.44 | C6: 2.4 | D6: 0.37 | E6: - | F6: 2.44 | G6: 2.59
A7: Podiel občanov s čitateľským preukazom SK | B7: 0.0715 | C7: 0.0735 | D7: 0.0594 | E7: - | F7: 0.129 | G7: 0.178
A8: Zdroj: MF SR, Hlavná kniha rozpočtu verejnej správy

Sheet Tabuľka 25
A1: Tabuľka 25: Priemer pridelenej podpory formou dotácie podľa programu (2019-2021)
A2: Program | B2: Pridelená suma (mil. eur) | C2: Počet prijímateľov | D2: Výška podpory (eur) | E2: Úspešnosť žiadateľov (%)
A3: 1. Umenie | B3: 7.3 | C3: 946 | D3: 7671 | E3: 0.57
A4: 2. Podujatia, kultúrne centrá a časopisy | B4: 3.3 | C4: 111 | D4: 30196 | E4: 0.67
A5: 3. Výskum a vzdelávacie aktivity | B5: 1.5 | C5: 260 | D5: 5640 | E5: 0.49
A6: 4. Tradičná kultúra a kultúrno-osvetová činnosť | B6: 3.1 | C6: 583 | D6: 5383 | E6: 0.5
A7: 5. Pamäťové a fondové inštitúcie | B7: 2.9 | C7: 678 | D7: 4304 | E7: 0.66
A8: 6. Mesto kultúry - víťazné mesto | B8: 0.2 | C8: 1 | D8: 245 873 | E8: 56 %
A9: 7. Verejné umelecké aktivity vysokých škôl*
A10: Spolu | B10: 18.3 | C10: 2579
A11: Pozn.: Údaje o výške podpory sú vrátane dotácií poskytnutých pre verejnú správu a dotácií poskytnutých formou kapitálových transferov, ktoré nie sú primárnym cieľom revízie. Štipendiá pre fyzické osoby zahrnuté nie sú. | E11: Zdroj: FPU, výročné správy
A12: V rámci programu Mesto kultúry neboli zahrnuté prípravné projekty prihlásených miest a organizácia sprievodných aktivít inými organizáciami ako víťazným mestom.
A13: Program Verejné umelecké aktivity vysokých škôl vznikol v roku 2023.

Sheet Tabuľka 26
A1: Tabuľka 26: Ukazovatele audiovizuálnej kultúry a priemyslu za roky 2015 až 2021
A2: Indikátor | B2: 2015 | C2: 2016 | D2: 2017 | E2: 2018 | F2: 2019 | G2: 2020 | H2: 2021 | I2: Cieľ 2025* | J2: Cieľ 2030*
A3: Počet premiér slovenských filmov | B3: 25 | C3: 29 | D3: 33 | E3: 31 | F3: 43 | G3: 20 | H3: 30 | I3: 43 | J3: 75
A4: Počet divákov slovenských filmov (tis.) | B4: 303 | C4: 377 | D4: 1431 | E4: 251 | F4: 1075 | G4: 776 | H4: 192 | I4: - | J4: -
A5: Tržby slovenských filmov (mil. eur) | B5: 1.4 | C5: 1.67 | D5: 7.2 | E5: 1.22 | F5: 5.97 | G5: 4.74 | H5: 1.15 | I5: - | J5: -
A6: Podiel tržieb slovenských filmov na trhu | B6: 0.059 | C6: 0.057 | D6: 0.209 | E6: 3,7 % | F6: 16,0 % | G6: 34,0 % | H6: 9,4 % | I6: - | J6: -
A7: Dodatočné investície vyvolané filmovými vratkami (mil. eur) | B7: - | C7: - | D7: - | E7: 1.09 | F7: 4.85 | G7: 8.64 | H7: 16,92* | I7: - | J7: -
A8: Pozn.: Údaj o výške dodatočných investícií za rok 2021 je odhad. Počet premiér filmov je vrátane minoritných koprodukcií (s menšinovým slovenským podielom). | H8: Zdroj: AVF, MK SR, MF SR
A9: Ciele pre počty premiér filmov na roky 2025 a 2030 boli stanovené na základe trendu z minulosti Ministerstvom kultúry SR, nie Audiovizuálnym fondom.

Sheet Tabuľka 27
A1: Tabuľka 27: Priemer pridelenej podpory formou dotácie podľa programu (roky 2019-2021)
A2: Program | B2: Pridelená suma (mil. eur) | C2: Počet prijímateľov | D2: Výška podpory (eur) | E2: Úspešnosť žiadateľov
A3: 1 Tvorba a realizácia slovenských audiovizuálnych diel | B3: 7.4 | C3: 119 | D3: 58602 | E3: 0.47
A4: 2 Distribúcia a iné uvádzanie audiovizuálnych diel na verejnosti | B4: 1.9 | C4: 173 | D4: 18045 | E4: 0.89
A5: 3 Výskum, vzdelávanie a edičná činnosť v oblasti audioviz kultúry | B5: 0.3 | C5: 22 | D5: 12563 | E5: 0.83
A6: 4 Rozvoj audiovizuálnych technológií v SR | B6: 0.2 | C6: 15 | D6: 15546 | E6: 0.67
A7: 5 Podpora audiovizuálneho priemyslu v SR (filmové vratky) | B7: 2.9 | C7: 24 | D7: 112540 | E7: -
A8: Spolu | B8: 12.7 | C8: 353
A9: Pozn.: Údaje o výške podpory sú vrátane dotácií poskytnutých pre verejnú správu a dotácií poskytnutých formou kapitálových transferov, ktoré nie sú primárnym cieľom revízie. Štipendiá pre fyzické osoby zahrnuté nie sú. | E9: Zdroj: AVF, výročné správy

Sheet Tabuľka 28
A1: Tabuľka 28: Priemer pridelenej podpory podľa programu (roky 2019-2021)
A2: Program | B2: Pridelená suma (mil. eur) | C2: Počet prijímateľov | D2: Výška podpory (eur)
A3: 1. Podpora kultúrno-osvetovej a vzdelávacej činnosti a vedy a výskumu | B3: 3.4 | C3: 877 | D3: 3910
A4: 2. Podpora literárnej, nakladateľskej a vydavateľskej činnosti | B4: 2.1 | C4: 258 | D4: 8024
A5: 3. Podpora divadelného, hudobného, tanečného, výtvarného a audiovizuálneho umenia | B5: 2.3 | C5: 309 | D5: 7349
A6: 4. Podpora interkultúrneho dialógu a porozumenia | B6: 0.2 | C6: 44 | D6: 5615
A7: Spolu | B7: 8 | C7: 1487
A8: Pozn.: Údaje o výške podpory sú vrátane dotácií poskytnutých pre verejnú správu a štipendií pre fyzické osoby, ktoré nie sú primárnym cieľom revízie. | D8: Zdroj: KULT MINOR, výročné správy

Sheet Tabuľka 29
A1: Tabuľka 29: Pomer národnostných menšín v sčítaniach obyvateľstva a alokácia prostriedkov
A2: Menšina | B2: Pomer (2011) | C2: Pomer (2021)* | D2: Alokácia | E2: Priemerná alokácia 2019-21 (tis. eur)
A3: Maďarská | B3: 0.6928 | C3: 0.57 | D3: 0.53 | E3: 4203
A4: Rómska | B4: 0.1598 | C4: 0.19 | D4: 0.224 | E4: 1754
A5: Rusínska | B5: 0.0506 | C5: 0.0793 | D5: 0.064 | E5: 508
A6: Česká | B6: 0.0459 | C6: 0.057 | D6: 0.037 | E6: 295
A7: Ukrajinská | B7: 0.0112 | C7: 0.0138 | D7: 0.02 | E7: 160
A8: Nemecká | B8: 0.0071 | C8: 0.0107 | D8: 0.018 | E8: 143
A9: Ruská | B9: 0.003 | C9: 0.0101 | D9: 0.011 | E9: 88
A10: Poľská | B10: 0.0047 | C10: 0.0066 | D10: 0.014 | E10: 112
A11: Vietnamská | C11: 0.0041
A12: Talianska | C12: 0.0031
A13: Moravská | B13: 0.005 | C13: 0.0026 | D13: 0.014 | E13: 111
A14: Chorvátska | B14: 0.0015 | C14: 0.0025 | D14: 0.01 | E14: 80
A15: Srbská | B15: 0.0011 | C15: 0.0023 | D15: 0.007 | E15: 56
A16: Židovská | B16: 0.001 | C16: 0.0023 | D16: 0.011 | E16: 88
A17: Rumunská | C17: 0.0022
A18: Anglická | C18: 0.0021
A19: Bulharská | B19: 0.0016 | C19: 0.0019 | D19: 0.01 | E19: 78
A20: Iná menšina | B20: 0.0148 | C20: 3,52 %**
A21: Pozn.: Pomery menšín v roku 2021 boli určené spočítaním osôb, ktoré sa prihlásili k menšinovej národnosti s osobami, ktoré sa k menšinovej národnosti prihlásili ako k ďalšej národnosti. | E21: Zdroj: ŠÚ SR, KULT MINOR
A22: Za rok 2021 sú v kategórií iná menšina obsiahnuté aj rakúska, čínska, francúzska, albánska, grécka, írska, kanadská, turecká, kórejská, sliezska a iránska menšina.

Sheet Tabuľka 30
A1: Tabuľka 30: Prijímatelia podľa priemernej alokácie (2020-2022), žiadanej sumy a stavu pamiatok
A2: Typ prijímateľa | B2: Pridelená suma (mil. eur) | C2: Podiel pridelenej sumy (%) | D2: Žiadaná suma (mil. eur) | E2: Podiel žiadanej sumy (%) | F2: Podiel pamiatok v narušenom a dezolátnom stave (2018) | G2: Počet pamiatkových objektov (2021)
A3: Cirkev | B3: 4.9 | C3: 0.38 | D3: 18 | E3: 0.26 | F3: 0.22 | G3: 4507
A4: Samospráva | B4: 3.9 | C4: 0.31 | D4: 25.9 | E4: 0.37 | F4: 0.27 | G4: 4800
A5: Právnické osoby* | B5: 2.3 | C5: 0.18 | D5: 18.5 | E5: 0.26 | F5: 0.27 | G5: 1 734
A6: Fyzické osoby | B6: 1.6 | C6: 0.13 | D6: 7.7 | E6: 0.11 | F6: 0.26 | G6: 4768
A7: Celkom | B7: 12.7 | D7: 70.1
A8: Pozn.: Právnické osoby vrátane občianskych združení, neziskových organizácií a vysokých škôl. | G8: Zdroj: MK SR

Sheet Tabuľka 31
A1: Tabuľka 31: Priemer podpory podľa podprogramu (roky 2020-2022)
A2: Podprogram | B2: Vyplatená suma (mil. eur) | C2: Počet prijímateľov | D2: Výška podpory (eur) | E2: Úspešnosť žiadateľov (%)
A4: 1.1 Obnova kultúrnych pamiatok | B4: 5 | C4: 321 | D4: 15735 | E4: 0.53
A5: 1.2 Obnova kultúrnych pamiatok v lokalitách svetového kultúrneho dedičstva | B5: 1.7 | C5: 115 | D5: 15045 | E5: 0.69
A6: 1.3 Aktivity kultúrnej politiky a edičnej činnosti v oblasti ochrany pamiatkového fondu | B6: 0.3 | C6: 38 | D6: 7486 | E6: 0.73
A7: 1.4 Obnova historických parkov a architektonických areálov v kritickom stavebno-technickom stave | B7: 0.8 | C7: 40 | D7: 21434 | E7: 0.75
A8: 1.5 Komplexná rekonštrukcia národných kultúrnych pamiatok s prioritou ochrany a obnovy | B8: 4.8 | C8: 9 | D8: 527888 | E8: 0.19
A9: 1.6 Reštaurovanie národných kultúrnych pamiatok*
A10: Spolu | B10: 12.7 | C10: 523
A11: Pozn.: Údaje o výške podpory sú vrátane dotácií poskytnutých pre verejnú správu a dotácií poskytnutých formou kapitálových transferov, ktoré nie sú primárnym cieľom revízie. | E11: Zdroj: MK SR
A12: Podprogram 1.6 vznikol v roku 2023.

Sheet Tabuľka 32
A1: Tabuľka 32: Priemer podpory podľa podprogramu (roky 2019-2021)
A2: Podprogram | B2: Pridelená suma (tis. eur) | C2: Počet prijímateľov | D2: Výška podpory (eur) | E2: Úspešnosť žiadateľov
A4: 2.1 Živá kultúra a jej sprístupňovanie | B4: 583 | C4: 115 | D4: 5035 | E4: 0.61
A5: 2.2 Vydavateľská a publikačná činnosť | B5: 47 | C5: 13 | D5: 3590 | E5: 0.45
A6: 2.3 Periodická tlač (noviny a časopisy) | B6: 38 | C6: 8 | D6: 5000 | E6: 0.61
A7: 2.4 Neformálne vzdelávanie a výskum | B7: 214 | C7: 47 | D7: 4515 | E7: 0.48
A8: 2.5 Fyzická a informačná debarierizácia kultúry* | B8: 128 | C8: 9 | D8: 14195 | E8: 0.3
A9: Spolu | B9: 1 009 | C9: 192
A10: Pozn.: Údaje o výške podpory sú vrátane dotácií poskytnutých pre verejnú správu a dotácií poskytnutých formou kapitálových transferov, ktoré nie sú primárnym cieľom revízie. | E10: Zdroj: MK SR
A11: Údaje o podprograme 2.5 Fyzická a informačná debarierizácia kultúry sú za rok 2021.

Sheet Tabuľka 33
A1: Tabuľka 33: Dotačné schémy vo výskume a vývoji, v mil. eur, 2019-2021
A2: Forma | B2: Podkapitola | C2: Názov schémy | D2: Výdavky
A3: Subvencia | B3: 2023-01-07 | C3: Všeobecná výzva (APVV) | D3: 35.7
A4: Subvencia | B4: 2023-02-07 | C4: Stimuly pre výskum a vývoj (MŠVVŠ) | D4: 5.2
A5: Subvencia | B5: 2023-03-07 | C5: Ostatné dotácie MŠVVŠ SR | D5: 0.8
A6: Subvencia | B6: 2023-04-07 | C6: Výskum a vývoj na podporu obrany štátu | D6: 0.9
A7: Daňové výdavky | B7: 2023-05-07 | C7: Úľava na dani (superodpočet nákladov na VaV) | D7: 41.9
A8: Daňové výdavky | B8: 2023-06-07 | C8: Patentbox | D8: 1.2
A9: Spolu | D9: 85.7
D10: Zdroj: ÚHP a IFP na základe údajov MF SR

Sheet Tabuľka 34
A1: Tabuľka 34: Ostatné dotačné schémy MŠVVŠ SR zo ŠR (pre podnikateľov a neziskové organizácie)
A2: Názov schémy | B2: Priemerný výdavok (mil. eur, 2019-2021) | C2: Počet prijímateľov za sledované obdobie; | D2: Opis
A4: ECSEL | B4: 0.2 | C4: 5 | D4: ECSEL (v súčasnosti KDT JU) slúži na podporu výskumných projektov v oblasti nanolektroniky a počítačových systémov. Ide o partnerstvo Európskej komisie, súkromného sektora a členských krajín EÚ.
A5: EUROSTARS | B5: 0.3 | C5: 7 | D5: EUROSTARS je zameraný na európsku spoluprácu malých a stredných podnikov, ktoré sa mimo svojej podnikateľskej činnosti zaoberajú tiež vlastným výskumom a vývojom. Ide o spoločný program EÚ a členských krajín, financovanie je zabezpečené prostredníctvom národných zdrojov, vlastných zdrojov riešiteľských organizácií a zdrojov EÚ.
A6: EURAXESS | B6: 0.1 | C6: 2 | D6: Hlavným cieľom dotácie je zabezpečenie činností národnej siete servisných centier EURAXESS pre pracovníkov výskumu a vývoja na Slovensku a prevádzkovanie národného portálu EURAXESS ako súčasť európskej siete servisných centier EURAXESS Services Network.
A7: Iné | B7: 0.2 | C7: 2 | D7: -
A8: SPOLU | B8: 0.8
D9: Zdroj: MŠVVŠ SR

Sheet Tabuľka 35
A1: Tabuľka 35: Dotačné schémy vo výskume a vývoji, v mil. eur, 2019-2021
A2: Forma | B2: Podkapitola | C2: Názov schémy | D2: Výdavky
A3: Transfer | B3: 2023-01-08 | C3: Slovakia Travel | D3: 19,0*
A4: Subvencia | B4: 2023-02-08 | C4: Dotácie organizáciám cestovného ruchu | D4: 7.3
A5: Daňové výdavky | B5: 2023-03-08 | C5: Rekreačné poukazy | D5: 28
A6: Daňové výdavky | B6: 2023-04-08 | C6: Znížená DPH na ubytovanie | D6: 31
A7: Spolu | D7: 85.3
A8: * Výdavky za rok 2022, predtým agentúra neexistovala | D8: Zdroj: ÚHP a IFP na základe údajov MF SR

Sheet Tabuľka 36
A1: Tabuľka 36: Štruktúra dotácii pre OCR a výdavkov Slovakia Travel, priemer 2020-2022, tis. eur
A2: Názov prijímateľa | B2: Výška dotácie | C2: Marketing | G2: Infraštruktúra CR | H2: Podpora podujatí | I2: Iné
C3: Spolu | D3: Mark. Kampane | E3: Prop. Materiály | F3: Iné Marketing
A4: OOCR spolu | B4: 5280 | C4: 2716 | D4: 1759 | E4: 387 | F4: 570 | G4: 948 | H4: 1138 | I4: 1396
A5: Región Vysoké Tatry | B5: 1216 | C5: 570 | D5: 475 | E5: 79 | F5: 16 | G5: 296 | H5: 294 | I5: 243
A6: Bratislavská org. cestovného ruchu | B6: 1062 | C6: 658 | D6: 362 | E6: 50 | F6: 247 | G6: 94 | H6: 201 | I6: 319
A7: Región Liptov | B7: 1019 | C7: 522 | D7: 410 | E7: 35 | F7: 78 | G7: 110 | H7: 329 | I7: 242
A8: Turizmus regiónu Bratislava | B8: 457 | C8: 279 | D8: 171 | E8: 40 | F8: 67 | G8: 3 | H8: 125 | I8: 150
A9: OOCR Dudince | B9: 304 | C9: 48 | D9: 22 | E9: 15 | F9: 11 | G9: 163 | H9: 50 | I9: 54
A10: Visit Košice | B10: 288 | C10: 193 | D10: 124 | E10: 45 | F10: 23 | I10: 146
A11: OOCR Žitný ostrov | B11: 258 | C11: 133 | D11: 80 | E11: 24 | F11: 28 | G11: 20 | H11: 76 | I11: 84
A12: Žilinský turistický kraj | B12: 233 | C12: 126 | D12: 53 | E12: 27 | F12: 46 | G12: 74 | I12: 77
A13: Malá Fatra | B13: 225 | C13: 32 | D13: 15 | E13: 9 | F13: 9 | G13: 144 | H13: 43 | I13: 21
A14: KOCR Severovýchod Slovenska | B14: 220 | C14: 155 | D14: 46 | E14: 63 | F14: 45 | G14: 44 | H14: 19 | I14: 60
A15: Slovakia Travel (2022)* | B15: 12427 | C15: 10431 | D15: 9852 | E15: 579 | H15: 1118 | I15: 878
A16: Spolu | B16: 17707 | C16: 12 681 | D16: 11 146 | E16: 966 | F16: 570 | G16: 948 | H16: 2721 | I16: 2274
A17: *Dáta za agentúru sú len za rok 2022, keďže vznikla v polovici roka 2021. Štruktúra výdavkov je len z dát z CRZ za rok 2022, kde nie sú zahrnuté aj iné výdavky agentúry (osobné výdavky etc.) | H17: Zdroj: CRZ

Sheet Tabuľka 37
A1: Tabuľka 37: Dotačné schémy v regionálnom rozvoji, v mil. eur, 2019-2021
A2: Forma | B2: Podkapitola | C2: Názov schémy | D2: Výdavky
A3: Dotácia | B3: 2023-01-09 | C3: Regionálny príspevok pre NRO | D3: 15.9
A4: Dotácia | B4: 2023-02-09 | C4: Podpora regionálneho rozvoja | D4: 7.4
A5: Daňový výdavok | B5: 2023-03-09 | C5: Regionálna investičná pomoc | D5: 64.7
A6: Spolu | D6: 88
C7: Zdroj: RIS MF SR

Sheet Tabuľka 38
A1: Tabuľka 38: Regionálne príspevky pre NRO a príspevky IROP pre jednotlivé okresy do roku 2021
A2: Príjemca | B2: Výška príspevku pre NRO (2016-21 spolu) | C2: EÚ výška podpory z IROP 2017-21 | D2: Miera evidovanej nezamestnanosti (%) | G2: Zmena v miere nezamestnanosti (v p. b.)
B4: (tis. eur) | C4: (tis. eur) | D4: 2016-01-01 | E4: 2019-01-01 | F4: 2022-01-01 | G4: Zmena | H4: Zmena
G5: 2019/2016 | H5: 2022/2019
A6: Rimavská Sobota | B6: 6418 | C6: 3076 | D6: 27.4 | E6: 16.2 | F6: 20.3 | G6: -11.2 | H6: 4
A7: Trebišov | B7: 5628 | C7: 16521 | D7: 18.2 | E7: 12.2 | F7: 12.9 | G7: -6 | H7: 0.7
A8: Košice - okolie | B8: 3757 | C8: 18629 | D8: 17.4 | E8: 10 | F8: 11.5 | G8: -7.5 | H8: 1.5
A9: Michalovce | B9: 3160 | C9: 12684 | D9: 14.7 | E9: 9.7 | F9: 14.2 | G9: -5.1 | H9: 4.5
A10: Vranov nad Topľou | B10: 5051 | C10: 10062 | D10: 18 | E10: 13.1 | F10: 16.1 | G10: -4.9 | H10: 3
A11: Veľký Krtíš | B11: 3279 | C11: 14569 | D11: 18.1 | E11: 7 | F11: 9.2 | G11: -11.1 | H11: 2.2
A12: Sabinov | B12: 4036 | C12: 6395 | D12: 18.3 | E12: 12.1 | F12: 15.6 | G12: -6.3 | H12: 3.6
A13: Kežmarok | B13: 5429 | C13: 12910 | D13: 23.1 | E13: 15.6 | F13: 17.5 | G13: -7.5 | H13: 1.9
A14: Bardejov | B14: 2753 | C14: 15943 | D14: 18.1 | E14: 10.8 | F14: 13 | G14: -7.3 | H14: 2.1
A15: Revúca | B15: 4 098 | C15: 2410 | D15: 21.4 | E15: 14.5 | F15: 18.2 | G15: -6.9 | H15: 3.7
A16: Lučenec | B16: 4293 | C16: 12366 | D16: 17.1 | E16: 8.9 | F16: 11.5 | G16: -8.2 | H16: 2.6
A17: Poltár | B17: 2 805 | C17: 4290 | D17: 21.1 | E17: 10.8 | F17: 13 | G17: -10.3 | H17: 2.1
A18: Snina | B18: 1925 | C18: 974 | D18: 16.4 | E18: 8.2 | F18: 9.5 | G18: -8.3 | H18: 1.4
A19: Rožňava | B19: 3 924 | C19: 10500 | D19: 21.9 | E19: 14.8 | F19: 15.6 | G19: -7.1 | H19: 0.9
A20: Levoča | B20: 1615 | C20: 6196 | D20: 15.8 | E20: 8.8 | F20: 10.4 | G20: -7 | H20: 1.6
A21: Gelnica | B21: 1977 | C21: 1540 | D21: 17.4 | E21: 9.7 | F21: 11.6 | G21: -7.7 | H21: 1.9
A22: Sobrance | B22: 2454 | C22: 1005 | D22: 18 | E22: 11.7 | F22: 15.2 | G22: -6.4 | H22: 3.6
A23: Medzilaborce | B23: 1501 | C23: 4041 | D23: 16.6 | E23: 11.1 | F23: 12.1 | G23: -5.5 | H23: 1
A24: Svidník | B24: 3095 | C24: 2422 | D24: 18.5 | E24: 11.8 | F24: 13 | G24: -6.7 | H24: 1.2
A25: Stropkov | B25: 854 | C25: 177 | D25: 14.6 | E25: 9.6 | F25: 11.6 | G25: -5 | H25: 2
A26: Spolu NRO | B26: 68 050 | C26: 156709 | D26: 18.8 | E26: 11.6 | F26: 13.9 | G26: -7.3 | H26: 2.4
A27: SPOLU/RO | B27: 0 | C27: 1193537 | D27: 8.3 | E27: 3.7 | F27: 5.3 | G27: -4.6 | H27: 1.6
A28: SPOLU/Slovensko | B28: 68 050 | C28: 1350246 | D28: 10.4 | E28: 5.3 | F28: 7 | G28: -5.1 | H28: 1.7
A29: Zdroj: MIRRI a ÚPSVaR

Sheet Tabuľka 39
A1: Tabuľka 39: Dotačné schémy v podpore mobility (priemer za 2019-2021, v mil. eur)
A2: Forma | B2: Podkapitola | C2: Názov schémy | D2: Výdavky
A3: Daňové výdavky | B3: 2023-01-10 | C3: Nepeňažne príjmy (ubytovanie) | D3: 20.4
A4: Daňové výdavky | B4: 2023-01-10 | C4: Nepeňažne príjmy (doprava) | D4: 2.3
A5: Spolu | D5: 22.7
C6: Zdroj: MF SR

Sheet Tabuľka 40
A1: Tabuľka 40: Výnimky zo zdaňovania negatívnych externalít, v mil. eur, 2019-2021
A2: Forma | B2: Podkapitola | C2: Názov schémy | D2: Výdavky
A3: Daňové výdavky | B3: 10.2.1 | C3: Spotrebná daň z vína - znížená sadzba (0 EUR) | D3: 36.9
A4: Daňové výdavky | B4: 10.2.2 | C4: Spotrebná daň z liehu - znížená sadzba pre pestovateľské pálenie | D4: 13.3
A5: Daňové výdavky | B5: 10.2.3 | C5: Spotrebná daň z piva - znížená sadzba pre malé pivovary | D5: 1.5
A6: Daňové výdavky | C6: Spotrebná daň z liehu – znížená sadzba pre súkromnú výrobu destilátu (od 1.1.2019)
A7: Daňové výdavky | C7: Spotrebná daň z liehu – znížená sadzba pre malé samostatné liehovary (od 1.1.2023)
A8: Daňové výdavky | C8: Spotrebná daň z piva – oslobodenie od dane pre súkromnú výrobu piva (od 1.1.2023)
A9: Spolu | D9: 51.7
A10: Zdroj: ÚHP a IFP na základe údajov MF SR

Sheet Tabuľka 41
A1: Tabuľka 41: Porovnanie efektívneho zaťaženia jednotlivých druhov alkoholu v bežnej dávke
A2: Druh alkoholického nápoja | B2: Bežná dávka (v l) | C2: Množstvo alkoholu v b. d. (v l) | D2: Spotrebná daň na b. d. (v eur)
A3: Pivo * | B3: 0.5 | C3: 0.022 | D3: 0.08
A4: Lieh ** | B4: 0.04 | C4: 0.016 | D4: 0.22
A5: Tiché víno *** | B5: 0.2 | C5: 0.022 | D5: 0
A6: Poznámky: * - pivo s obsahom alkoholu 4,4 %; ** - lieh s 40 %; *** - tiché víno s 11 %. | D6: Zdroj: prepočty IFP

Sheet Tabuľka 42
A1: Tabuľka 42: Dotačné schémy v podpore malých firiem, v mil. eur, 2019-2021
A2: Forma | B2: Podkapitola | C2: Schéma | D2: Výdavky
A3: Daňový výdavok | B3: 10.3.1 | C3: Zníženie daňovej sadzby DPPO z 21 % na 15 % | D3: 21.3
A4: Daňový výdavok | B4: 10.3.2 | C4: Ľubovoľná doba odpisu majetku | D4: 4.7
A5: Daňový výdavok | B5: 10.3.2 | C5: Odpočet daňovej straty | D5: 4,5*
A6: Daňový výdavok | B6: 10.3.2 | C6: Tvorba opravných položiek | D6: 1.1
A7: Spolu | D7: 31.6
A8: *vplyv 2022 | D8: Zdroj: ÚHP a IFP na základe údajov MF SR

Sheet Tabuľka 43
A1: Tabuľka 43: Dotačné schémy v zvýhodnení investícií do majetkových podielov, v mil. eur, 2019-2021
A2: Forma | B2: Podkapitola | C2: Názov schémy | D2: Výdavky 2021 (mil. eur)
A3: Daňový výdavok | B3: 10.4.1 | C3: Oslobodenie kapitálových príjmov z predaja cenných papierov na regulovanom trhu | D3: 5
A4: Daňový výdavok | B4: 10.4.2 | C4: Oslobodenie kapitálových príjmov z predaja obchodného podielu | D4: 21
A5: Spolu | D5: 26
C6: Zdroj: ÚHP a IFP na základe údajov MF SR

Sheet Tabuľka 44
A1: Tabuľka 44: Skrátenie doby odpisu pre elektromobily, v mil. eur, 2019-2021
A2: Forma | B2: Podkapitola | C2: Názov schémy | D2: Výdavky
A3: Daňové výdavky | B3: 2023-06-10 | C3: Skrátenie doby odpisu pre elektromobily | D3: 4.1
A4: Spolu | D4: 4.1
A5: Zdroj: MF SR

Sheet Tabuľka 45
A1: Tabuľka 45: Využitie prostriedkov z rezervy predsedu vlády SR (2021)
A2: Účel dotácie | B2: Dotácia (v tis. eur)
A3: obete domáceho násilia | B3: 1424.8
A4: odstránenie škôd po povodniach | B4: 978
A5: obnova pamätníkov či vojnových hrobov | B5: 952.4
A6: iné | B6: 351
A7: linky istoty | B7: 310
A8: Spolu | B8: 4016.1

Sheet Tabuľka 46
A1: Tabuľka 46: Využitie prostriedkov z dotačného programu MF SR (2021)
A2: Účel dotácie | B2: Suma (v mil. eur)
A3: Návšteva pápeža Františka | B3: 6168
A4: Záchrana a obnova kultúrnych pamiatok | B4: 5380
A5: Kultúra (múzeum Andyho Warhola) | B5: 4000
A6: Šport, vrátane EYOF | B6: 2712.2
A7: Iné | B7: 570.9
A8: Povodňové zabezpečovanie práce | B8: 119.7
A9: Spolu | B9: 18950.8

Sheet Tabuľka 47
A1: Tabuľka 47: Priemerné administratívne náklady vybraných dotačných schém (2019-2021)
A2: Schéma | B2: Pomer nákladov k podpore | D2: Náklady na 1 žiadosť (€) | F2: Priemerná podpora (€)
B3: Vyplatenej | C3: Schválenej | D3: Schválenú | E3: Podanú
A4: Schémy vyžadujúce hodnotenie kvality žiadostí
A5: Fond na podporu športu (2021) | B5: 0.034 | C5: - | D5: 1018 | E5: 914 | F5: 29854
A6: Agentúra na podporu výskumu a vývoja | B6: 0.04 | C6: - | D6: - | E6: - | F6: 217771
A7: Štátny fond rozvoja bývania | B7: 0.041 | C7: 0.035 | D7: 11268 | E7: 8968 | F7: 274596
A8: Dotačné schémy MK SR | B8: 0.041 | C8: - | D8: 563 | E8: 350 | F8: 14322
A9: Fond na podporu umenia | B9: 0.045 | C9: 0.048 | D9: 281 | E9: 148 | F9: 5768
A10: Fond na podporu kultúry národ. menšín | B10: 0.059 | C10: 0.055 | D10: 293 | E10: 207 | F10: 5282
A11: Audiovizuálny fond | B11: 0.07 | C11: 0.066 | D11: 2187 | E11: 1348 | F11: 33818
A12: Fond na podporu vzdelávania | B12: 0.103 | C12: 0.082 | D12: 357 | E12: 317 | F12: 4364
A13: Schémy čiastočne využívajúce na prerozdelenie prostriedkov vzorec
A14: Envirofond (2020-21) | B14: 0.06 | C14: - | D14: - | E14: - | F14: 69012
A15: Schémy do veľkej miery využívajúce na prerozdelenie prostriedkov vzorec
A16: Dotačné schémy MŠVVaŠ | B16: 0.003 | C16: - | D16: - | E16: - | F16: 556987
A17: Zahraničné schémy
A18: EU fondy (celá EU 2014-20) | B18: 0.04 | C18: - | D18: - | E18: - | F18: -
A19: Státní fond kinematografie (2018-20) | B19: 0.048 | C19: - | D19: - | E19: - | F19: -
A20: Pozn.: Pri Audiovizuálnom fonde sú filmové vratky súčasťou vyplatenej podpory, náklady na ne boli preto započítané k odporúčanej podpore. Podobne boli počty žiadostí o registráciu filmového projektu započítané k počtu podaných žiadostí o dotáciu a počty vyplatených vratiek k počtu odporučených projektov. Proces pri vratkách sa však líši od klasických dotácií a môže tak mať aj odlišnú administratívnu náročnosť. | E20: Zdroj: RIS MF SR, MŠVVaŠ SR, MK SR, Výročné správy organizácií, EK, SFKMG

Sheet Tabuľka 48
A1: Tabuľka 48: Priemerné administratívne náklady nadačných fondov
B2: Pomer nákladov k vyplatenej podpore | C2: Priemerná výška podpory | D2: Náklady na 1 žiadosť (eur)
D3: Odporučenú | E3: Podanú
A4: Fondy v správe Nadácie Pontis (2021-22) | B4: 0.125 | C4: 1200 | D4: 281 | E4: 144
A5: Nadácia Volkswagen Slovakia (2019) | B5: 0.018 | C5: - | D5: - | E5: -
A6: Nadácia EPH (2017-2019) | B6: 0.044 | C6: 3793 | D6: 179 | E6: -
A7: Nadácia SPP (2020-2021) | B7: 0.039 | C7: 5172 | D7: 187 | E7: -
A8: Nadácia VUB (2019-2021) | B8: 0.075 | C8: 10856 | D8: 803 | E8: -
A9: Nadácia Allianz (2019-2021) | B9: 0.083 | C9: 5538 | D9: 457 | E9: -
A10: Nadácia Orange (2019-2021) | B10: 0.329 | C10: 2572 | D10: 738 | E10: -
A11: Nadácia Tatrabanka (2019-21) | B11: 0.087 | C11: 2890 | D11: 255 | E11: -
A12: Nadácia Tesco (2019-21) | B12: 0.035 | C12: - | D12: - | E12: -
A13: Nadácia J&T (2019-21) | B13: 0.393 | C13: 7824 | D13: 2996 | E13: -
A14: Zdroj: vlastné výpočty Nadácie Pontis, výročné správy nadačných fondov
